Workbook

Sheet 1. Wijkscan
F1: =AVERAGE(F16:F530) -> 2.02
B3: Gemeente: | C3: Amsterdam
B4: Schaalniveau: | C4: Buurt
B6: Top 5 buurten met hoogste mate van geen toegang tot het fietsen | E6: Index | F6: Index voor correctie | G6: Verkennende variabele 1 | H6: Verkennende variabele 2 | J6: Verdiepende variabele 1 | K6: Verdiepende variabele 2 | L6: Verdiepende variabele 3 | M6: Verdiepende variabele 4 | N6: Verdiepende variabele 5 | O6: Verdiepende variabele 6
B7: Positie | C7: =C4 -> Buurt | D7: =E15 -> Mate van geen toegang tot het fietsen (index) | E7: Mate van geen toegang tot het fietsen (index) | G7: Percentage huishoudens onder 110% Wettelijk Sociaal Minimum | H7: Percentage geboren buiten NL | J7: Percentage WO student | K7: OAD | L7: Aantal inwoners | M7: Gemiddeld autobezit per huishouden | N7: Percentage kinderen tussen 0 en 14 jaar | O7: =O15 -> Percentage senioren (65+)
B8: 1. | C8: =_xlfn.XLOOKUP(LARGE($F$16:$F$532,1),$F$16:$F$532,$B$16:$B$532,"n/a",0,1) -> Amsterdamse Poort | D8: =LARGE($F$16:$F$532,1) -> 4.18 | E8: =_xlfn.XLOOKUP($C8,$B$16:$B$532,$E$16:$E$532,"",0,1) -> 2.07 | F8: =_xlfn.XLOOKUP($C8,$B$16:$B$532,$E$16:$E$532,"",0,1) -> 2.07 | G8: =_xlfn.XLOOKUP($C8,$B$16:$B$532,$G$16:$G$532,"",0,1) -> 37.40 | H8: =_xlfn.XLOOKUP($C8,$B$16:$B$532,$H$16:$H$532,"",0,1) -> 90.77 | J8: =_xlfn.XLOOKUP($C8,$B$16:$B$532,$J$16:$J$532,"",0,1) -> 8 | K8: =_xlfn.XLOOKUP($C8,$B$16:$B$532,$K$16:$K$532,"",0,1) -> 3417 | L8: =_xlfn.XLOOKUP($C8,$B$16:$B$532,$L$16:$L$532,"",0,1) -> 1300 | M8: =_xlfn.XLOOKUP($C8,$B$16:$B$532,$M$16:$M$532,"",0,1) -> 0.2 | N8: =_xlfn.XLOOKUP($C8,$B$16:$B$532,$N$16:$N$532,"",0,1) -> 11 | O8: =_xlfn.XLOOKUP($C8,$B$16:$B$532,$O$16:$O$532,"",0,1) -> 15
B9: 2. | C9: =_xlfn.XLOOKUP(LARGE($F$16:$F$532,2),$F$16:$F$532,$B$16:$B$532,"n/a",0,1) -> Johan Jongkindbuurt | D9: =LARGE($F$16:$F$532,2) -> 4.06 | E9: =_xlfn.XLOOKUP($C9,$B$16:$B$532,$E$16:$E$532,"",0,1) -> 2.01 | F9: 2.01 | G9: =_xlfn.XLOOKUP($C9,$B$16:$B$532,$G$16:$G$532,"",0,1) -> 35.10 | H9: =_xlfn.XLOOKUP($C9,$B$16:$B$532,$H$16:$H$532,"",0,1) -> 92.67 | J9: =_xlfn.XLOOKUP($C9,$B$16:$B$532,$J$16:$J$532,"",0,1) -> 1 | K9: =_xlfn.XLOOKUP($C9,$B$16:$B$532,$K$16:$K$532,"",0,1) -> 6705 | L9: =_xlfn.XLOOKUP($C9,$B$16:$B$532,$L$16:$L$532,"",0,1) -> 955 | M9: =_xlfn.XLOOKUP($C9,$B$16:$B$532,$M$16:$M$532,"",0,1) -> 0.3 | N9: =_xlfn.XLOOKUP($C9,$B$16:$B$532,$N$16:$N$532,"",0,1) -> 24 | O9: =_xlfn.XLOOKUP($C9,$B$16:$B$532,$O$16:$O$532,"",0,1) -> 5
B10: 3. | C10: =_xlfn.XLOOKUP(LARGE($F$16:$F$532,3),$F$16:$F$532,$B$16:$B$532,"n/a",0,1) -> G-buurt-Noord | D10: =LARGE($F$16:$F$532,3) -> 3.94 | E10: 1.95 | F10: 1.95 | G10: 33.80 | H10: 90.93 | J10: =_xlfn.XLOOKUP($C10,$B$16:$B$532,$J$16:$J$532,"",0,1) -> 1 | K10: =_xlfn.XLOOKUP($C10,$B$16:$B$532,$K$16:$K$532,"",0,1) -> 4013 | L10: =_xlfn.XLOOKUP($C10,$B$16:$B$532,$L$16:$L$532,"",0,1) -> 1765 | M10: =_xlfn.XLOOKUP($C10,$B$16:$B$532,$M$16:$M$532,"",0,1) -> 0.3 | N10: =_xlfn.XLOOKUP($C10,$B$16:$B$532,$N$16:$N$532,"",0,1) -> 18 | O10: 9
B11: 4. | C11: =_xlfn.XLOOKUP(LARGE($F$16:$F$532,4),$F$16:$F$532,$B$16:$B$532,"n/a",0,1) -> Bijlmermuseum-Noord | D11: =LARGE($F$16:$F$532,4) -> 3.93 | E11: 1.95 | F11: 1.95 | G11: 34.20 | H11: 88.74 | J11: =_xlfn.XLOOKUP($C11,$B$16:$B$532,$J$16:$J$532,"",0,1) -> 2 | K11: =_xlfn.XLOOKUP($C11,$B$16:$B$532,$K$16:$K$532,"",0,1) -> 3910 | L11: =_xlfn.XLOOKUP($C11,$B$16:$B$532,$L$16:$L$532,"",0,1) -> 2310 | M11: =_xlfn.XLOOKUP($C11,$B$16:$B$532,$M$16:$M$532,"",0,1) -> 0.3 | N11: =_xlfn.XLOOKUP($C11,$B$16:$B$532,$N$16:$N$532,"",0,1) -> 16 | O11: 21
B12: 5. | C12: =_xlfn.XLOOKUP(LARGE($F$16:$F$532,5),$F$16:$F$532,$B$16:$B$532,"n/a",0,1) -> Holendrecht-West | D12: =LARGE($F$16:$F$532,5) -> 3.90 | E12: 1.93 | F12: 1.93 | G12: 35.90 | H12: 80.80 | J12: =_xlfn.XLOOKUP($C12,$B$16:$B$532,$J$16:$J$532,"",0,1) -> 1 | K12: =_xlfn.XLOOKUP($C12,$B$16:$B$532,$K$16:$K$532,"",0,1) -> 2841 | L12: =_xlfn.XLOOKUP($C12,$B$16:$B$532,$L$16:$L$532,"",0,1) -> 2735 | M12: =_xlfn.XLOOKUP($C12,$B$16:$B$532,$M$16:$M$532,"",0,1) -> 0.4 | N12: =_xlfn.XLOOKUP($C12,$B$16:$B$532,$N$16:$N$532,"",0,1) -> 20 | O12: 20
B14: Cijfertool | E14: Index | F14: Index voor correctie | G14: Verkennende variabele 1 | H14: Verkennende variabele 2 | J14: Verdiepende variabele 1 | K14: Verdiepende variabele 2 | L14: Verdiepende variabele 3 | M14: Verdiepende variabele 4 | N14: Verdiepende variabele 5 | O14: Verdiepende variabele 6
B15: =C4 -> Buurt | C15: Wijk | E15: Mate van geen toegang tot het fietsen (index) | G15: Percentage huishoudens onder 110% Wettelijk Sociaal Minimum | H15: Percentage geboren buiten NL | J15: Percentage WO student | K15: OAD | L15: Aantal inwoners | M15: Gemiddeld autobezit per huishouden | N15: Percentage kinderen tussen 0 en 14 jaar | O15: Percentage senioren (65+)
B16: =IF('Gefilterde data'!C3=0,"",'Gefilterde data'!C3) -> Planciusbuurt-Noord | C16: =IF(B16="","",IF(LEFT(D16,2)="BU",'Gefilterde data'!G3,"-")) -> Haarlemmerbuurt | D16: =IF('Gefilterde data'!C3=0,"",'Gefilterde data'!A3) -> BU0363AA01 | E16: =IF(G16="","",IF(OR(NOT(ISNUMBER(G16)),NOT(ISNUMBER(H16))),"Ontbrekende waarde",F16/F$1)) -> 1.09 | F16: =IF(G16="","",IF(OR(NOT(ISNUMBER(G16)),NOT(ISNUMBER(H16))),"Ontbrekende waarde",((G16/AVERAGE(G$16:G$532)+H16/AVERAGE(H$16:H$532))))) -> 2.21 | G16: =IF('Gefilterde data'!CL3=0,"",'Gefilterde data'!CL3) -> 18.2 | H16: =IF('Gefilterde data'!DX3=0,"",'Gefilterde data'!DX3) -> 53.6 | J16: =IF('Gefilterde data'!DZ3=0,"",'Gefilterde data'!DZ3) -> 3 | K16: =IF('Gefilterde data'!DW3=0,"",'Gefilterde data'!DW3) -> 8,723 | L16: =IF('Gefilterde data'!I3=0,"",'Gefilterde data'!I3) -> 345 | M16: =IF('Gefilterde data'!DI3=0,"",'Gefilterde data'!DI3) -> 0.2 | N16: =IF('Gefilterde data'!EA3=0,"",'Gefilterde data'!EA3) -> 4 | O16: =IF('Gefilterde data'!EA3=0,"",'Gefilterde data'!EB3) -> 10
B17: =IF('Gefilterde data'!C4=0,"",'Gefilterde data'!C4) -> Westelijke eilanden | C17: =IF(B17="","",IF(LEFT(D17,2)="BU",'Gefilterde data'!G4,"-")) -> Haarlemmerbuurt | D17: =IF('Gefilterde data'!C4=0,"",'Gefilterde data'!A4) -> BU0363AA02 | E17: =IF(G17="","",IF(OR(NOT(ISNUMBER(G17)),NOT(ISNUMBER(H17))),"Ontbrekende waarde",F17/F$1)) -> 0.92 | F17: =IF(G17="","",IF(OR(NOT(ISNUMBER(G17)),NOT(ISNUMBER(H17))),"Ontbrekende waarde",((G17/AVERAGE(G$16:G$532)+H17/AVERAGE(H$16:H$532))))) -> 1.86 | G17: =IF('Gefilterde data'!CL4=0,"",'Gefilterde data'!CL4) -> 15.4 | H17: =IF('Gefilterde data'!DX4=0,"",'Gefilterde data'!DX4) -> 45.2 | J17: =IF('Gefilterde data'!DZ4=0,"",'Gefilterde data'!DZ4) -> 4 | K17: =IF('Gefilterde data'!DW4=0,"",'Gefilterde data'!DW4) -> 7,797 | L17: =IF('Gefilterde data'!I4=0,"",'Gefilterde data'!I4) -> 2,910 | M17: =IF('Gefilterde data'!DI4=0,"",'Gefilterde data'!DI4) -> 0.4 | N17: =IF('Gefilterde data'!EA4=0,"",'Gefilterde data'!EA4) -> 10 | O17: =IF('Gefilterde data'!EA4=0,"",'Gefilterde data'!EB4) -> 20
B18: =IF('Gefilterde data'!C5=0,"",'Gefilterde data'!C5) -> Westerdokseiland | C18: =IF(B18="","",IF(LEFT(D18,2)="BU",'Gefilterde data'!G5,"-")) -> Haarlemmerbuurt | D18: =IF('Gefilterde data'!C5=0,"",'Gefilterde data'!A5) -> BU0363AA03 | E18: 0.89 | F18: 1.79 | G18: =IF('Gefilterde data'!CL5=0,"",'Gefilterde data'!CL5) -> 12.5 | H18: =IF('Gefilterde data'!DX5=0,"",'Gefilterde data'!DX5) -> 52.1 | J18: =IF('Gefilterde data'!DZ5=0,"",'Gefilterde data'!DZ5) -> 2 | K18: =IF('Gefilterde data'!DW5=0,"",'Gefilterde data'!DW5) -> 6,823 | L18: =IF('Gefilterde data'!I5=0,"",'Gefilterde data'!I5) -> 1,825 | M18: =IF('Gefilterde data'!DI5=0,"",'Gefilterde data'!DI5) -> 0.5 | N18: =IF('Gefilterde data'!EA5=0,"",'Gefilterde data'!EA5) -> 12 | O18: =IF('Gefilterde data'!EA5=0,"",'Gefilterde data'!EB5) -> 22
B19: =IF('Gefilterde data'!C6=0,"",'Gefilterde data'!C6) -> Planciusbuurt-Zuid | C19: =IF(B19="","",IF(LEFT(D19,2)="BU",'Gefilterde data'!G6,"-")) -> Haarlemmerbuurt | D19: =IF('Gefilterde data'!C6=0,"",'Gefilterde data'!A6) -> BU0363AA04 | E19: 1.45 | F19: 2.92 | G19: =IF('Gefilterde data'!CL6=0,"",'Gefilterde data'!CL6) -> 30.9 | H19: =IF('Gefilterde data'!DX6=0,"",'Gefilterde data'!DX6) -> 45.5 | J19: =IF('Gefilterde data'!DZ6=0,"",'Gefilterde data'!DZ6) ->  | K19: =IF('Gefilterde data'!DW6=0,"",'Gefilterde data'!DW6) -> 8,984 | L19: =IF('Gefilterde data'!I6=0,"",'Gefilterde data'!I6) -> 165 | M19: =IF('Gefilterde data'!DI6=0,"",'Gefilterde data'!DI6) -> 0.2 | N19: =IF('Gefilterde data'!EA6=0,"",'Gefilterde data'!EA6) -> 6 | O19: =IF('Gefilterde data'!EA6=0,"",'Gefilterde data'!EB6) -> 18
B20: =IF('Gefilterde data'!C7=0,"",'Gefilterde data'!C7) -> Haarlemmerbuurt-West | C20: =IF(B20="","",IF(LEFT(D20,2)="BU",'Gefilterde data'!G7,"-")) -> Haarlemmerbuurt | D20: =IF('Gefilterde data'!C7=0,"",'Gefilterde data'!A7) -> BU0363AA05 | E20: 1.03 | F20: 2.08 | G20: =IF('Gefilterde data'!CL7=0,"",'Gefilterde data'!CL7) -> 17.8 | H20: =IF('Gefilterde data'!DX7=0,"",'Gefilterde data'!DX7) -> 48.4 | J20: =IF('Gefilterde data'!DZ7=0,"",'Gefilterde data'!DZ7) -> 4 | K20: =IF('Gefilterde data'!DW7=0,"",'Gefilterde data'!DW7) -> 9,613 | L20: =IF('Gefilterde data'!I7=0,"",'Gefilterde data'!I7) -> 2,375 | M20: =IF('Gefilterde data'!DI7=0,"",'Gefilterde data'!DI7) -> 0.3 | N20: =IF('Gefilterde data'!EA7=0,"",'Gefilterde data'!EA7) -> 8 | O20: =IF('Gefilterde data'!EA7=0,"",'Gefilterde data'!EB7) -> 19
B21: =IF('Gefilterde data'!C8=0,"",'Gefilterde data'!C8) -> Haarlemmerbuurt-Oost | C21: =IF(B21="","",IF(LEFT(D21,2)="BU",'Gefilterde data'!G8,"-")) -> Haarlemmerbuurt | D21: =IF('Gefilterde data'!C8=0,"",'Gefilterde data'!A8) -> BU0363AA06 | E21: 0.83 | F21: 1.67 | G21: =IF('Gefilterde data'!CL8=0,"",'Gefilterde data'!CL8) -> 12.6 | H21: =IF('Gefilterde data'!DX8=0,"",'Gefilterde data'!DX8) -> 44.9 | J21: =IF('Gefilterde data'!DZ8=0,"",'Gefilterde data'!DZ8) -> 5 | K21: =IF('Gefilterde data'!DW8=0,"",'Gefilterde data'!DW8) -> 8,303 | L21: =IF('Gefilterde data'!I8=0,"",'Gefilterde data'!I8) -> 1,515 | M21: =IF('Gefilterde data'!DI8=0,"",'Gefilterde data'!DI8) -> 0.3 | N21: =IF('Gefilterde data'!EA8=0,"",'Gefilterde data'!EA8) -> 6 | O21: =IF('Gefilterde data'!EA8=0,"",'Gefilterde data'!EB8) -> 18
B22: =IF('Gefilterde data'!C9=0,"",'Gefilterde data'!C9) -> Marnixbuurt-Noord | C22: =IF(B22="","",IF(LEFT(D22,2)="BU",'Gefilterde data'!G9,"-")) -> Jordaan | D22: =IF('Gefilterde data'!C9=0,"",'Gefilterde data'!A9) -> BU0363AB01 | E22: 1.11 | F22: 2.24 | G22: =IF('Gefilterde data'!CL9=0,"",'Gefilterde data'!CL9) -> 19.5 | H22: =IF('Gefilterde data'!DX9=0,"",'Gefilterde data'!DX9) -> 50.5 | J22: =IF('Gefilterde data'!DZ9=0,"",'Gefilterde data'!DZ9) -> 3 | K22: =IF('Gefilterde data'!DW9=0,"",'Gefilterde data'!DW9) -> 10,924 | L22: =IF('Gefilterde data'!I9=0,"",'Gefilterde data'!I9) -> 1,455 | M22: =IF('Gefilterde data'!DI9=0,"",'Gefilterde data'!DI9) -> 0.3 | N22: =IF('Gefilterde data'!EA9=0,"",'Gefilterde data'!EA9) -> 9 | O22: =IF('Gefilterde data'!EA9=0,"",'Gefilterde data'!EB9) -> 18
B23: =IF('Gefilterde data'!C10=0,"",'Gefilterde data'!C10) -> Driehoekbuurt | C23: =IF(B23="","",IF(LEFT(D23,2)="BU",'Gefilterde data'!G10,"-")) -> Jordaan | D23: =IF('Gefilterde data'!C10=0,"",'Gefilterde data'!A10) -> BU0363AB02 | E23: 1.01 | F23: 2.04 | G23: =IF('Gefilterde data'!CL10=0,"",'Gefilterde data'!CL10) -> 17.5 | H23: =IF('Gefilterde data'!DX10=0,"",'Gefilterde data'!DX10) -> 47.2 | J23: =IF('Gefilterde data'!DZ10=0,"",'Gefilterde data'!DZ10) -> 4 | K23: =IF('Gefilterde data'!DW10=0,"",'Gefilterde data'!DW10) -> 10,744 | L23: =IF('Gefilterde data'!I10=0,"",'Gefilterde data'!I10) -> 2,725 | M23: =IF('Gefilterde data'!DI10=0,"",'Gefilterde data'!DI10) -> 0.3 | N23: =IF('Gefilterde data'!EA10=0,"",'Gefilterde data'!EA10) -> 8 | O23: =IF('Gefilterde data'!EA10=0,"",'Gefilterde data'!EB10) -> 17
B24: =IF('Gefilterde data'!C11=0,"",'Gefilterde data'!C11) -> Anjeliersbuurt-Noord | C24: =IF(B24="","",IF(LEFT(D24,2)="BU",'Gefilterde data'!G11,"-")) -> Jordaan | D24: =IF('Gefilterde data'!C11=0,"",'Gefilterde data'!A11) -> BU0363AB03 | E24: 0.85 | F24: 1.71 | G24: =IF('Gefilterde data'!CL11=0,"",'Gefilterde data'!CL11) -> 14.5 | H24: =IF('Gefilterde data'!DX11=0,"",'Gefilterde data'!DX11) -> 39.9 | J24: =IF('Gefilterde data'!DZ11=0,"",'Gefilterde data'!DZ11) -> 5 | K24: =IF('Gefilterde data'!DW11=0,"",'Gefilterde data'!DW11) -> 11,013 | L24: =IF('Gefilterde data'!I11=0,"",'Gefilterde data'!I11) -> 2,095 | M24: =IF('Gefilterde data'!DI11=0,"",'Gefilterde data'!DI11) -> 0.4 | N24: =IF('Gefilterde data'!EA11=0,"",'Gefilterde data'!EA11) -> 7 | O24: =IF('Gefilterde data'!EA11=0,"",'Gefilterde data'!EB11) -> 18
B25: =IF('Gefilterde data'!C12=0,"",'Gefilterde data'!C12) -> Zaagpoortbuurt | C25: =IF(B25="","",IF(LEFT(D25,2)="BU",'Gefilterde data'!G12,"-")) -> Jordaan | D25: =IF('Gefilterde data'!C12=0,"",'Gefilterde data'!A12) -> BU0363AB04 | E25: 1.37 | F25: 2.77 | G25: =IF('Gefilterde data'!CL12=0,"",'Gefilterde data'!CL12) -> 25.2 | H25: =IF('Gefilterde data'!DX12=0,"",'Gefilterde data'!DX12) -> 58.5 | J25: =IF('Gefilterde data'!DZ12=0,"",'Gefilterde data'!DZ12) -> 8 | K25: =IF('Gefilterde data'!DW12=0,"",'Gefilterde data'!DW12) -> 12,438 | L25: =IF('Gefilterde data'!I12=0,"",'Gefilterde data'!I12) -> 915 | M25: =IF('Gefilterde data'!DI12=0,"",'Gefilterde data'!DI12) -> 0.2 | N25: =IF('Gefilterde data'!EA12=0,"",'Gefilterde data'!EA12) -> 5 | O25: =IF('Gefilterde data'!EA12=0,"",'Gefilterde data'!EB12) -> 9
B26: =IF('Gefilterde data'!C13=0,"",'Gefilterde data'!C13) -> Anjeliersbuurt-Zuid | C26: =IF(B26="","",IF(LEFT(D26,2)="BU",'Gefilterde data'!G13,"-")) -> Jordaan | D26: =IF('Gefilterde data'!C13=0,"",'Gefilterde data'!A13) -> BU0363AB05 | E26: 0.98 | F26: 1.97 | G26: =IF('Gefilterde data'!CL13=0,"",'Gefilterde data'!CL13) -> 17.5 | H26: =IF('Gefilterde data'!DX13=0,"",'Gefilterde data'!DX13) -> 43.4 | J26: =IF('Gefilterde data'!DZ13=0,"",'Gefilterde data'!DZ13) -> 5 | K26: =IF('Gefilterde data'!DW13=0,"",'Gefilterde data'!DW13) -> 11,876 | L26: =IF('Gefilterde data'!I13=0,"",'Gefilterde data'!I13) -> 2,915 | M26: =IF('Gefilterde data'!DI13=0,"",'Gefilterde data'!DI13) -> 0.3 | N26: =IF('Gefilterde data'!EA13=0,"",'Gefilterde data'!EA13) -> 8 | O26: =IF('Gefilterde data'!EA13=0,"",'Gefilterde data'!EB13) -> 20
B27: =IF('Gefilterde data'!C14=0,"",'Gefilterde data'!C14) -> Marnixbuurt-Midden | C27: =IF(B27="","",IF(LEFT(D27,2)="BU",'Gefilterde data'!G14,"-")) -> Jordaan | D27: =IF('Gefilterde data'!C14=0,"",'Gefilterde data'!A14) -> BU0363AB06 | E27: 0.68 | F27: 1.37 | G27: =IF('Gefilterde data'!CL14=0,"",'Gefilterde data'!CL14) -> 5.3 | H27: =IF('Gefilterde data'!DX14=0,"",'Gefilterde data'!DX14) -> 55.8 | J27: =IF('Gefilterde data'!DZ14=0,"",'Gefilterde data'!DZ14) -> 5 | K27: =IF('Gefilterde data'!DW14=0,"",'Gefilterde data'!DW14) -> 12,047 | L27: =IF('Gefilterde data'!I14=0,"",'Gefilterde data'!I14) -> 215 | M27: =IF('Gefilterde data'!DI14=0,"",'Gefilterde data'!DI14) -> 0.3 | N27: =IF('Gefilterde data'!EA14=0,"",'Gefilterde data'!EA14) -> 7 | O27: =IF('Gefilterde data'!EA14=0,"",'Gefilterde data'!EB14) -> 7
B28: =IF('Gefilterde data'!C15=0,"",'Gefilterde data'!C15) -> Bloemgrachtbuurt | C28: =IF(B28="","",IF(LEFT(D28,2)="BU",'Gefilterde data'!G15,"-")) -> Jordaan | D28: =IF('Gefilterde data'!C15=0,"",'Gefilterde data'!A15) -> BU0363AB07 | E28: 0.92 | F28: 1.86 | G28: =IF('Gefilterde data'!CL15=0,"",'Gefilterde data'!CL15) -> 14.4 | H28: =IF('Gefilterde data'!DX15=0,"",'Gefilterde data'!DX15) -> 48.8 | J28: =IF('Gefilterde data'!DZ15=0,"",'Gefilterde data'!DZ15) -> 6 | K28: =IF('Gefilterde data'!DW15=0,"",'Gefilterde data'!DW15) -> 12,003 | L28: =IF('Gefilterde data'!I15=0,"",'Gefilterde data'!I15) -> 2,980 | M28: =IF('Gefilterde data'!DI15=0,"",'Gefilterde data'!DI15) -> 0.3 | N28: =IF('Gefilterde data'!EA15=0,"",'Gefilterde data'!EA15) -> 8 | O28: =IF('Gefilterde data'!EA15=0,"",'Gefilterde data'!EB15) -> 16
B29: =IF('Gefilterde data'!C16=0,"",'Gefilterde data'!C16) -> Groenmarktkadebuurt | C29: =IF(B29="","",IF(LEFT(D29,2)="BU",'Gefilterde data'!G16,"-")) -> Jordaan | D29: =IF('Gefilterde data'!C16=0,"",'Gefilterde data'!A16) -> BU0363AB08 | E29: 0.74 | F29: 1.49 | G29: =IF('Gefilterde data'!CL16=0,"",'Gefilterde data'!CL16) -> 8.2 | H29: =IF('Gefilterde data'!DX16=0,"",'Gefilterde data'!DX16) -> 51.6 | J29: =IF('Gefilterde data'!DZ16=0,"",'Gefilterde data'!DZ16) -> 13 | K29: =IF('Gefilterde data'!DW16=0,"",'Gefilterde data'!DW16) -> 12,038 | L29: =IF('Gefilterde data'!I16=0,"",'Gefilterde data'!I16) -> 310 | M29: =IF('Gefilterde data'!DI16=0,"",'Gefilterde data'!DI16) -> 0.2 | N29: =IF('Gefilterde data'!EA16=0,"",'Gefilterde data'!EA16) -> 3 | O29: =IF('Gefilterde data'!EA16=0,"",'Gefilterde data'!EB16) -> 8
B30: =IF('Gefilterde data'!C17=0,"",'Gefilterde data'!C17) -> Marnixbuurt-Zuid | C30: =IF(B30="","",IF(LEFT(D30,2)="BU",'Gefilterde data'!G17,"-")) -> Jordaan | D30: =IF('Gefilterde data'!C17=0,"",'Gefilterde data'!A17) -> BU0363AB09 | E30: 0.98 | F30: 1.98 | G30: =IF('Gefilterde data'!CL17=0,"",'Gefilterde data'!CL17) -> 15.9 | H30: =IF('Gefilterde data'!DX17=0,"",'Gefilterde data'!DX17) -> 50.0 | J30: =IF('Gefilterde data'!DZ17=0,"",'Gefilterde data'!DZ17) -> 6 | K30: =IF('Gefilterde data'!DW17=0,"",'Gefilterde data'!DW17) -> 11,370 | L30: =IF('Gefilterde data'!I17=0,"",'Gefilterde data'!I17) -> 700 | M30: =IF('Gefilterde data'!DI17=0,"",'Gefilterde data'!DI17) -> 0.2 | N30: =IF('Gefilterde data'!EA17=0,"",'Gefilterde data'!EA17) -> 4 | O30: =IF('Gefilterde data'!EA17=0,"",'Gefilterde data'!EB17) -> 28
B31: =IF('Gefilterde data'!C18=0,"",'Gefilterde data'!C18) -> Elandsgrachtbuurt | C31: =IF(B31="","",IF(LEFT(D31,2)="BU",'Gefilterde data'!G18,"-")) -> Jordaan | D31: =IF('Gefilterde data'!C18=0,"",'Gefilterde data'!A18) -> BU0363AB10 | E31: 1.02 | F31: 2.05 | G31: =IF('Gefilterde data'!CL18=0,"",'Gefilterde data'!CL18) -> 17.3 | H31: =IF('Gefilterde data'!DX18=0,"",'Gefilterde data'!DX18) -> 48.2 | J31: =IF('Gefilterde data'!DZ18=0,"",'Gefilterde data'!DZ18) -> 6 | K31: =IF('Gefilterde data'!DW18=0,"",'Gefilterde data'!DW18) -> 11,783 | L31: =IF('Gefilterde data'!I18=0,"",'Gefilterde data'!I18) -> 4,325 | M31: =IF('Gefilterde data'!DI18=0,"",'Gefilterde data'!DI18) -> 0.3 | N31: =IF('Gefilterde data'!EA18=0,"",'Gefilterde data'!EA18) -> 7 | O31: =IF('Gefilterde data'!EA18=0,"",'Gefilterde data'!EB18) -> 19
B32: =IF('Gefilterde data'!C19=0,"",'Gefilterde data'!C19) -> Passeerdersgrachtbuurt | C32: =IF(B32="","",IF(LEFT(D32,2)="BU",'Gefilterde data'!G19,"-")) -> Jordaan | D32: =IF('Gefilterde data'!C19=0,"",'Gefilterde data'!A19) -> BU0363AB11 | E32: 1.03 | F32: 2.08 | G32: =IF('Gefilterde data'!CL19=0,"",'Gefilterde data'!CL19) -> 17.2 | H32: =IF('Gefilterde data'!DX19=0,"",'Gefilterde data'!DX19) -> 50.3 | J32: =IF('Gefilterde data'!DZ19=0,"",'Gefilterde data'!DZ19) -> 4 | K32: =IF('Gefilterde data'!DW19=0,"",'Gefilterde data'!DW19) -> 10,307 | L32: =IF('Gefilterde data'!I19=0,"",'Gefilterde data'!I19) -> 915 | M32: =IF('Gefilterde data'!DI19=0,"",'Gefilterde data'!DI19) -> 0.2 | N32: =IF('Gefilterde data'!EA19=0,"",'Gefilterde data'!EA19) -> 5 | O32: =IF('Gefilterde data'!EA19=0,"",'Gefilterde data'!EB19) -> 20
B33: =IF('Gefilterde data'!C20=0,"",'Gefilterde data'!C20) -> Langestraat e.o. | C33: =IF(B33="","",IF(LEFT(D33,2)="BU",'Gefilterde data'!G20,"-")) -> Grachtengordel-West | D33: =IF('Gefilterde data'!C20=0,"",'Gefilterde data'!A20) -> BU0363AC01 | E33: 0.75 | F33: 1.51 | G33: =IF('Gefilterde data'!CL20=0,"",'Gefilterde data'!CL20) -> 9.7 | H33: =IF('Gefilterde data'!DX20=0,"",'Gefilterde data'!DX20) -> 47.2 | J33: =IF('Gefilterde data'!DZ20=0,"",'Gefilterde data'!DZ20) -> 6 | K33: =IF('Gefilterde data'!DW20=0,"",'Gefilterde data'!DW20) -> 9,729 | L33: =IF('Gefilterde data'!I20=0,"",'Gefilterde data'!I20) -> 1,895 | M33: =IF('Gefilterde data'!DI20=0,"",'Gefilterde data'!DI20) -> 0.5 | N33: =IF('Gefilterde data'!EA20=0,"",'Gefilterde data'!EA20) -> 8 | O33: =IF('Gefilterde data'!EA20=0,"",'Gefilterde data'!EB20) -> 21
B34: =IF('Gefilterde data'!C21=0,"",'Gefilterde data'!C21) -> Leliegracht e.o. | C34: =IF(B34="","",IF(LEFT(D34,2)="BU",'Gefilterde data'!G21,"-")) -> Grachtengordel-West | D34: =IF('Gefilterde data'!C21=0,"",'Gefilterde data'!A21) -> BU0363AC02 | E34: 0.79 | F34: 1.58 | G34: =IF('Gefilterde data'!CL21=0,"",'Gefilterde data'!CL21) -> 9.1 | H34: =IF('Gefilterde data'!DX21=0,"",'Gefilterde data'!DX21) -> 53.5 | J34: =IF('Gefilterde data'!DZ21=0,"",'Gefilterde data'!DZ21) -> 7 | K34: =IF('Gefilterde data'!DW21=0,"",'Gefilterde data'!DW21) -> 10,958 | L34: =IF('Gefilterde data'!I21=0,"",'Gefilterde data'!I21) -> 1,870 | M34: =IF('Gefilterde data'!DI21=0,"",'Gefilterde data'!DI21) -> 0.5 | N34: =IF('Gefilterde data'!EA21=0,"",'Gefilterde data'!EA21) -> 6 | O34: =IF('Gefilterde data'!EA21=0,"",'Gefilterde data'!EB21) -> 14
B35: =IF('Gefilterde data'!C22=0,"",'Gefilterde data'!C22) -> Felix Meritisbuurt | C35: =IF(B35="","",IF(LEFT(D35,2)="BU",'Gefilterde data'!G22,"-")) -> Grachtengordel-West | D35: =IF('Gefilterde data'!C22=0,"",'Gefilterde data'!A22) -> BU0363AC03 | E35: 0.80 | F35: 1.62 | G35: =IF('Gefilterde data'!CL22=0,"",'Gefilterde data'!CL22) -> 9.9 | H35: =IF('Gefilterde data'!DX22=0,"",'Gefilterde data'!DX22) -> 52.3 | J35: =IF('Gefilterde data'!DZ22=0,"",'Gefilterde data'!DZ22) -> 7 | K35: =IF('Gefilterde data'!DW22=0,"",'Gefilterde data'!DW22) -> 11,681 | L35: =IF('Gefilterde data'!I22=0,"",'Gefilterde data'!I22) -> 2,075 | M35: =IF('Gefilterde data'!DI22=0,"",'Gefilterde data'!DI22) -> 0.5 | N35: =IF('Gefilterde data'!EA22=0,"",'Gefilterde data'!EA22) -> 6 | O35: =IF('Gefilterde data'!EA22=0,"",'Gefilterde data'!EB22) -> 15
B36: =IF('Gefilterde data'!C23=0,"",'Gefilterde data'!C23) -> Leidsegracht-Noord | C36: =IF(B36="","",IF(LEFT(D36,2)="BU",'Gefilterde data'!G23,"-")) -> Grachtengordel-West | D36: =IF('Gefilterde data'!C23=0,"",'Gefilterde data'!A23) -> BU0363AC04 | E36: 0.86 | F36: 1.73 | G36: =IF('Gefilterde data'!CL23=0,"",'Gefilterde data'!CL23) -> 10.8 | H36: =IF('Gefilterde data'!DX23=0,"",'Gefilterde data'!DX23) -> 55.4 | J36: =IF('Gefilterde data'!DZ23=0,"",'Gefilterde data'!DZ23) -> 8 | K36: =IF('Gefilterde data'!DW23=0,"",'Gefilterde data'!DW23) -> 10,004 | L36: =IF('Gefilterde data'!I23=0,"",'Gefilterde data'!I23) -> 740 | M36: =IF('Gefilterde data'!DI23=0,"",'Gefilterde data'!DI23) -> 0.5 | N36: =IF('Gefilterde data'!EA23=0,"",'Gefilterde data'!EA23) -> 7 | O36: =IF('Gefilterde data'!EA23=0,"",'Gefilterde data'!EB23) -> 16
B37: =IF('Gefilterde data'!C24=0,"",'Gefilterde data'!C24) -> Stationsplein e.o. | C37: =IF(B37="","",IF(LEFT(D37,2)="BU",'Gefilterde data'!G24,"-")) -> Burgwallen-Nieuwe Zijde | D37: =IF('Gefilterde data'!C24=0,"",'Gefilterde data'!A24) -> BU0363AD01 | E37: Ontbrekende waarde | F37: Ontbrekende waarde | G37: =IF('Gefilterde data'!CL24=0,"",'Gefilterde data'!CL24) -> . | H37: =IF('Gefilterde data'!DX24=0,"",'Gefilterde data'!DX24) -> 100.0 | J37: =IF('Gefilterde data'!DZ24=0,"",'Gefilterde data'!DZ24) ->  | K37: =IF('Gefilterde data'!DW24=0,"",'Gefilterde data'!DW24) -> 6,747 | L37: =IF('Gefilterde data'!I24=0,"",'Gefilterde data'!I24) -> 5 | M37: =IF('Gefilterde data'!DI24=0,"",'Gefilterde data'!DI24) -> . | N37: =IF('Gefilterde data'!EA24=0,"",'Gefilterde data'!EA24) ->  | O37: =IF('Gefilterde data'!EA24=0,"",'Gefilterde data'!EB24) -> 
B38: =IF('Gefilterde data'!C25=0,"",'Gefilterde data'!C25) -> Hemelrijk | C38: =IF(B38="","",IF(LEFT(D38,2)="BU",'Gefilterde data'!G25,"-")) -> Burgwallen-Nieuwe Zijde | D38: =IF('Gefilterde data'!C25=0,"",'Gefilterde data'!A25) -> BU0363AD02 | E38: 1.05 | F38: 2.12 | G38: =IF('Gefilterde data'!CL25=0,"",'Gefilterde data'!CL25) -> 14.7 | H38: =IF('Gefilterde data'!DX25=0,"",'Gefilterde data'!DX25) -> 61.9 | J38: =IF('Gefilterde data'!DZ25=0,"",'Gefilterde data'!DZ25) -> 9 | K38: =IF('Gefilterde data'!DW25=0,"",'Gefilterde data'!DW25) -> 8,884 | L38: =IF('Gefilterde data'!I25=0,"",'Gefilterde data'!I25) -> 565 | M38: =IF('Gefilterde data'!DI25=0,"",'Gefilterde data'!DI25) -> 0.2 | N38: =IF('Gefilterde data'!EA25=0,"",'Gefilterde data'!EA25) -> 4 | O38: =IF('Gefilterde data'!EA25=0,"",'Gefilterde data'!EB25) -> 6
B39: =IF('Gefilterde data'!C26=0,"",'Gefilterde data'!C26) -> Nieuwendijk-Noord | C39: =IF(B39="","",IF(LEFT(D39,2)="BU",'Gefilterde data'!G26,"-")) -> Burgwallen-Nieuwe Zijde | D39: =IF('Gefilterde data'!C26=0,"",'Gefilterde data'!A26) -> BU0363AD03 | E39: 1.13 | F39: 2.28 | G39: =IF('Gefilterde data'!CL26=0,"",'Gefilterde data'!CL26) -> 15.2 | H39: =IF('Gefilterde data'!DX26=0,"",'Gefilterde data'!DX26) -> 69.3 | J39: =IF('Gefilterde data'!DZ26=0,"",'Gefilterde data'!DZ26) -> 8 | K39: =IF('Gefilterde data'!DW26=0,"",'Gefilterde data'!DW26) -> 7,205 | L39: =IF('Gefilterde data'!I26=0,"",'Gefilterde data'!I26) -> 505 | M39: =IF('Gefilterde data'!DI26=0,"",'Gefilterde data'!DI26) -> 0.2 | N39: =IF('Gefilterde data'!EA26=0,"",'Gefilterde data'!EA26) -> 4 | O39: =IF('Gefilterde data'!EA26=0,"",'Gefilterde data'!EB26) -> 5
B40: =IF('Gefilterde data'!C27=0,"",'Gefilterde data'!C27) -> Spuistraat-Noord | C40: =IF(B40="","",IF(LEFT(D40,2)="BU",'Gefilterde data'!G27,"-")) -> Burgwallen-Nieuwe Zijde | D40: =IF('Gefilterde data'!C27=0,"",'Gefilterde data'!A27) -> BU0363AD04 | E40: 0.90 | F40: 1.81 | G40: =IF('Gefilterde data'!CL27=0,"",'Gefilterde data'!CL27) -> 10.1 | H40: =IF('Gefilterde data'!DX27=0,"",'Gefilterde data'!DX27) -> 62.4 | J40: =IF('Gefilterde data'!DZ27=0,"",'Gefilterde data'!DZ27) -> 11 | K40: =IF('Gefilterde data'!DW27=0,"",'Gefilterde data'!DW27) -> 9,860 | L40: =IF('Gefilterde data'!I27=0,"",'Gefilterde data'!I27) -> 890 | M40: =IF('Gefilterde data'!DI27=0,"",'Gefilterde data'!DI27) -> 0.2 | N40: =IF('Gefilterde data'!EA27=0,"",'Gefilterde data'!EA27) -> 3 | O40: =IF('Gefilterde data'!EA27=0,"",'Gefilterde data'!EB27) -> 8
B41: =IF('Gefilterde data'!C28=0,"",'Gefilterde data'!C28) -> Nieuwe Kerk e.o. | C41: =IF(B41="","",IF(LEFT(D41,2)="BU",'Gefilterde data'!G28,"-")) -> Burgwallen-Nieuwe Zijde | D41: =IF('Gefilterde data'!C28=0,"",'Gefilterde data'!A28) -> BU0363AD05 | E41: 0.80 | F41: 1.62 | G41: =IF('Gefilterde data'!CL28=0,"",'Gefilterde data'!CL28) -> 8.4 | H41: =IF('Gefilterde data'!DX28=0,"",'Gefilterde data'!DX28) -> 58.2 | J41: =IF('Gefilterde data'!DZ28=0,"",'Gefilterde data'!DZ28) -> 11 | K41: =IF('Gefilterde data'!DW28=0,"",'Gefilterde data'!DW28) -> 9,666 | L41: =IF('Gefilterde data'!I28=0,"",'Gefilterde data'!I28) -> 790 | M41: =IF('Gefilterde data'!DI28=0,"",'Gefilterde data'!DI28) -> 0.2 | N41: =IF('Gefilterde data'!EA28=0,"",'Gefilterde data'!EA28) -> 5 | O41: =IF('Gefilterde data'!EA28=0,"",'Gefilterde data'!EB28) -> 6
B42: =IF('Gefilterde data'!C29=0,"",'Gefilterde data'!C29) -> Spuistraat-Zuid | C42: =IF(B42="","",IF(LEFT(D42,2)="BU",'Gefilterde data'!G29,"-")) -> Burgwallen-Nieuwe Zijde | D42: =IF('Gefilterde data'!C29=0,"",'Gefilterde data'!A29) -> BU0363AD06 | E42: 1.01 | F42: 2.04 | G42: =IF('Gefilterde data'!CL29=0,"",'Gefilterde data'!CL29) -> 14.1 | H42: =IF('Gefilterde data'!DX29=0,"",'Gefilterde data'!DX29) -> 59.9 | J42: =IF('Gefilterde data'!DZ29=0,"",'Gefilterde data'!DZ29) -> 9 | K42: =IF('Gefilterde data'!DW29=0,"",'Gefilterde data'!DW29) -> 10,146 | L42: =IF('Gefilterde data'!I29=0,"",'Gefilterde data'!I29) -> 785 | M42: =IF('Gefilterde data'!DI29=0,"",'Gefilterde data'!DI29) -> 0.2 | N42: =IF('Gefilterde data'!EA29=0,"",'Gefilterde data'!EA29) -> 4 | O42: =IF('Gefilterde data'!EA29=0,"",'Gefilterde data'!EB29) -> 11
B43: =IF('Gefilterde data'!C30=0,"",'Gefilterde data'!C30) -> Begijnhofbuurt | C43: =IF(B43="","",IF(LEFT(D43,2)="BU",'Gefilterde data'!G30,"-")) -> Burgwallen-Nieuwe Zijde | D43: =IF('Gefilterde data'!C30=0,"",'Gefilterde data'!A30) -> BU0363AD07 | E43: 0.94 | F43: 1.89 | G43: =IF('Gefilterde data'!CL30=0,"",'Gefilterde data'!CL30) -> 12.5 | H43: =IF('Gefilterde data'!DX30=0,"",'Gefilterde data'!DX30) -> 57.6 | J43: =IF('Gefilterde data'!DZ30=0,"",'Gefilterde data'!DZ30) -> 7 | K43: =IF('Gefilterde data'!DW30=0,"",'Gefilterde data'!DW30) -> 10,098 | L43: =IF('Gefilterde data'!I30=0,"",'Gefilterde data'!I30) -> 460 | M43: =IF('Gefilterde data'!DI30=0,"",'Gefilterde data'!DI30) -> 0.2 | N43: =IF('Gefilterde data'!EA30=0,"",'Gefilterde data'!EA30) -> 1 | O43: =IF('Gefilterde data'!EA30=0,"",'Gefilterde data'!EB30) -> 16
B44: =IF('Gefilterde data'!C31=0,"",'Gefilterde data'!C31) -> Kalverdriehoek | C44: =IF(B44="","",IF(LEFT(D44,2)="BU",'Gefilterde data'!G31,"-")) -> Burgwallen-Nieuwe Zijde | D44: =IF('Gefilterde data'!C31=0,"",'Gefilterde data'!A31) -> BU0363AD08 | E44: 0.82 | F44: 1.65 | G44: =IF('Gefilterde data'!CL31=0,"",'Gefilterde data'!CL31) -> 8 | H44: =IF('Gefilterde data'!DX31=0,"",'Gefilterde data'!DX31) -> 61.2 | J44: =IF('Gefilterde data'!DZ31=0,"",'Gefilterde data'!DZ31) -> 12 | K44: =IF('Gefilterde data'!DW31=0,"",'Gefilterde data'!DW31) -> 9,859 | L44: =IF('Gefilterde data'!I31=0,"",'Gefilterde data'!I31) -> 335 | M44: =IF('Gefilterde data'!DI31=0,"",'Gefilterde data'!DI31) -> 0.2 | N44: =IF('Gefilterde data'!EA31=0,"",'Gefilterde data'!EA31) -> 4 | O44: =IF('Gefilterde data'!EA31=0,"",'Gefilterde data'!EB31) -> 6
B45: =IF('Gefilterde data'!C32=0,"",'Gefilterde data'!C32) -> Kop Zeedijk | C45: =IF(B45="","",IF(LEFT(D45,2)="BU",'Gefilterde data'!G32,"-")) -> Burgwallen-Oude Zijde | D45: =IF('Gefilterde data'!C32=0,"",'Gefilterde data'!A32) -> BU0363AE01 | E45: 1.03 | F45: 2.08 | G45: =IF('Gefilterde data'!CL32=0,"",'Gefilterde data'!CL32) -> 15.2 | H45: =IF('Gefilterde data'!DX32=0,"",'Gefilterde data'!DX32) -> 58.0 | J45: =IF('Gefilterde data'!DZ32=0,"",'Gefilterde data'!DZ32) -> 9 | K45: =IF('Gefilterde data'!DW32=0,"",'Gefilterde data'!DW32) -> 6,841 | L45: =IF('Gefilterde data'!I32=0,"",'Gefilterde data'!I32) -> 1,155 | M45: =IF('Gefilterde data'!DI32=0,"",'Gefilterde data'!DI32) -> 0.2 | N45: =IF('Gefilterde data'!EA32=0,"",'Gefilterde data'!EA32) -> 4 | O45: =IF('Gefilterde data'!EA32=0,"",'Gefilterde data'!EB32) -> 9
B46: =IF('Gefilterde data'!C33=0,"",'Gefilterde data'!C33) -> Oude Kerk e.o. | C46: =IF(B46="","",IF(LEFT(D46,2)="BU",'Gefilterde data'!G33,"-")) -> Burgwallen-Oude Zijde | D46: =IF('Gefilterde data'!C33=0,"",'Gefilterde data'!A33) -> BU0363AE02 | E46: 1.10 | F46: 2.22 | G46: =IF('Gefilterde data'!CL33=0,"",'Gefilterde data'!CL33) -> 17.7 | H46: =IF('Gefilterde data'!DX33=0,"",'Gefilterde data'!DX33) -> 56.1 | J46: =IF('Gefilterde data'!DZ33=0,"",'Gefilterde data'!DZ33) -> 12 | K46: =IF('Gefilterde data'!DW33=0,"",'Gefilterde data'!DW33) -> 7,498 | L46: =IF('Gefilterde data'!I33=0,"",'Gefilterde data'!I33) -> 740 | M46: =IF('Gefilterde data'!DI33=0,"",'Gefilterde data'!DI33) -> 0.2 | N46: =IF('Gefilterde data'!EA33=0,"",'Gefilterde data'!EA33) -> 3 | O46: =IF('Gefilterde data'!EA33=0,"",'Gefilterde data'!EB33) -> 9
B47: =IF('Gefilterde data'!C34=0,"",'Gefilterde data'!C34) -> Burgwallen-Oost | C47: =IF(B47="","",IF(LEFT(D47,2)="BU",'Gefilterde data'!G34,"-")) -> Burgwallen-Oude Zijde | D47: =IF('Gefilterde data'!C34=0,"",'Gefilterde data'!A34) -> BU0363AE03 | E47: 1.13 | F47: 2.27 | G47: =IF('Gefilterde data'!CL34=0,"",'Gefilterde data'!CL34) -> 18 | H47: =IF('Gefilterde data'!DX34=0,"",'Gefilterde data'!DX34) -> 58.1 | J47: =IF('Gefilterde data'!DZ34=0,"",'Gefilterde data'!DZ34) -> 9 | K47: =IF('Gefilterde data'!DW34=0,"",'Gefilterde data'!DW34) -> 7,618 | L47: =IF('Gefilterde data'!I34=0,"",'Gefilterde data'!I34) -> 1,600 | M47: =IF('Gefilterde data'!DI34=0,"",'Gefilterde data'!DI34) -> 0.2 | N47: =IF('Gefilterde data'!EA34=0,"",'Gefilterde data'!EA34) -> 5 | O47: =IF('Gefilterde data'!EA34=0,"",'Gefilterde data'!EB34) -> 11
B48: =IF('Gefilterde data'!C35=0,"",'Gefilterde data'!C35) -> Nes e.o. | C48: =IF(B48="","",IF(LEFT(D48,2)="BU",'Gefilterde data'!G35,"-")) -> Burgwallen-Oude Zijde | D48: =IF('Gefilterde data'!C35=0,"",'Gefilterde data'!A35) -> BU0363AE04 | E48: 0.85 | F48: 1.72 | G48: =IF('Gefilterde data'!CL35=0,"",'Gefilterde data'!CL35) -> 9.7 | H48: =IF('Gefilterde data'!DX35=0,"",'Gefilterde data'!DX35) -> 58.7 | J48: =IF('Gefilterde data'!DZ35=0,"",'Gefilterde data'!DZ35) -> 11 | K48: =IF('Gefilterde data'!DW35=0,"",'Gefilterde data'!DW35) -> 10,044 | L48: =IF('Gefilterde data'!I35=0,"",'Gefilterde data'!I35) -> 375 | M48: =IF('Gefilterde data'!DI35=0,"",'Gefilterde data'!DI35) -> . | N48: =IF('Gefilterde data'!EA35=0,"",'Gefilterde data'!EA35) -> 4 | O48: =IF('Gefilterde data'!EA35=0,"",'Gefilterde data'!EB35) -> 8
B49: =IF('Gefilterde data'!C36=0,"",'Gefilterde data'!C36) -> BG-terrein e.o. | C49: =IF(B49="","",IF(LEFT(D49,2)="BU",'Gefilterde data'!G36,"-")) -> Burgwallen-Oude Zijde | D49: =IF('Gefilterde data'!C36=0,"",'Gefilterde data'!A36) -> BU0363AE05 | E49: 0.94 | F49: 1.90 | G49: =IF('Gefilterde data'!CL36=0,"",'Gefilterde data'!CL36) -> 15.6 | H49: =IF('Gefilterde data'!DX36=0,"",'Gefilterde data'!DX36) -> 46.8 | J49: =IF('Gefilterde data'!DZ36=0,"",'Gefilterde data'!DZ36) -> 17 | K49: =IF('Gefilterde data'!DW36=0,"",'Gefilterde data'!DW36) -> 8,551 | L49: =IF('Gefilterde data'!I36=0,"",'Gefilterde data'!I36) -> 695 | M49: =IF('Gefilterde data'!DI36=0,"",'Gefilterde data'!DI36) -> 0.2 | N49: =IF('Gefilterde data'!EA36=0,"",'Gefilterde data'!EA36) -> 4 | O49: =IF('Gefilterde data'!EA36=0,"",'Gefilterde data'!EB36) -> 13
B50: =IF('Gefilterde data'!C37=0,"",'Gefilterde data'!C37) -> Oosterdokseiland | C50: =IF(B50="","",IF(LEFT(D50,2)="BU",'Gefilterde data'!G37,"-")) -> Nieuwmarkt/Lastage | D50: =IF('Gefilterde data'!C37=0,"",'Gefilterde data'!A37) -> BU0363AF01 | E50: 0.78 | F50: 1.57 | G50: =IF('Gefilterde data'!CL37=0,"",'Gefilterde data'!CL37) -> 7.6 | H50: =IF('Gefilterde data'!DX37=0,"",'Gefilterde data'!DX37) -> 58.4 | J50: =IF('Gefilterde data'!DZ37=0,"",'Gefilterde data'!DZ37) -> 4 | K50: =IF('Gefilterde data'!DW37=0,"",'Gefilterde data'!DW37) -> 5,476 | L50: =IF('Gefilterde data'!I37=0,"",'Gefilterde data'!I37) -> 505 | M50: =IF('Gefilterde data'!DI37=0,"",'Gefilterde data'!DI37) -> . | N50: =IF('Gefilterde data'!EA37=0,"",'Gefilterde data'!EA37) -> 11 | O50: =IF('Gefilterde data'!EA37=0,"",'Gefilterde data'!EB37) -> 11
B51: =IF('Gefilterde data'!C38=0,"",'Gefilterde data'!C38) -> Lastage | C51: =IF(B51="","",IF(LEFT(D51,2)="BU",'Gefilterde data'!G38,"-")) -> Nieuwmarkt/Lastage | D51: =IF('Gefilterde data'!C38=0,"",'Gefilterde data'!A38) -> BU0363AF02 | E51: 0.79 | F51: 1.59 | G51: =IF('Gefilterde data'!CL38=0,"",'Gefilterde data'!CL38) -> 11.5 | H51: =IF('Gefilterde data'!DX38=0,"",'Gefilterde data'!DX38) -> 45.0 | J51: =IF('Gefilterde data'!DZ38=0,"",'Gefilterde data'!DZ38) -> 5 | K51: =IF('Gefilterde data'!DW38=0,"",'Gefilterde data'!DW38) -> 6,700 | L51: =IF('Gefilterde data'!I38=0,"",'Gefilterde data'!I38) -> 1,100 | M51: =IF('Gefilterde data'!DI38=0,"",'Gefilterde data'!DI38) -> 0.3 | N51: =IF('Gefilterde data'!EA38=0,"",'Gefilterde data'!EA38) -> 7 | O51: =IF('Gefilterde data'!EA38=0,"",'Gefilterde data'!EB38) -> 15
B52: =IF('Gefilterde data'!C39=0,"",'Gefilterde data'!C39) -> Scheepvaarthuisbuurt | C52: =IF(B52="","",IF(LEFT(D52,2)="BU",'Gefilterde data'!G39,"-")) -> Nieuwmarkt/Lastage | D52: =IF('Gefilterde data'!C39=0,"",'Gefilterde data'!A39) -> BU0363AF03 | E52: 0.58 | F52: 1.17 | G52: =IF('Gefilterde data'!CL39=0,"",'Gefilterde data'!CL39) -> 7 | H52: =IF('Gefilterde data'!DX39=0,"",'Gefilterde data'!DX39) -> 38.3 | J52: =IF('Gefilterde data'!DZ39=0,"",'Gefilterde data'!DZ39) -> 12 | K52: =IF('Gefilterde data'!DW39=0,"",'Gefilterde data'!DW39) -> 6,396 | L52: =IF('Gefilterde data'!I39=0,"",'Gefilterde data'!I39) -> 745 | M52: =IF('Gefilterde data'!DI39=0,"",'Gefilterde data'!DI39) -> 0.4 | N52: =IF('Gefilterde data'!EA39=0,"",'Gefilterde data'!EA39) -> 7 | O52: =IF('Gefilterde data'!EA39=0,"",'Gefilterde data'!EB39) -> 14
B53: =IF('Gefilterde data'!C40=0,"",'Gefilterde data'!C40) -> Rapenburg | C53: =IF(B53="","",IF(LEFT(D53,2)="BU",'Gefilterde data'!G40,"-")) -> Nieuwmarkt/Lastage | D53: =IF('Gefilterde data'!C40=0,"",'Gefilterde data'!A40) -> BU0363AF04 | E53: 0.85 | F53: 1.71 | G53: =IF('Gefilterde data'!CL40=0,"",'Gefilterde data'!CL40) -> 10.8 | H53: =IF('Gefilterde data'!DX40=0,"",'Gefilterde data'!DX40) -> 54.3 | J53: =IF('Gefilterde data'!DZ40=0,"",'Gefilterde data'!DZ40) -> 9 | K53: =IF('Gefilterde data'!DW40=0,"",'Gefilterde data'!DW40) -> 6,134 | L53: =IF('Gefilterde data'!I40=0,"",'Gefilterde data'!I40) -> 995 | M53: =IF('Gefilterde data'!DI40=0,"",'Gefilterde data'!DI40) -> 0.3 | N53: =IF('Gefilterde data'!EA40=0,"",'Gefilterde data'!EA40) -> 9 | O53: =IF('Gefilterde data'!EA40=0,"",'Gefilterde data'!EB40) -> 12
B54: =IF('Gefilterde data'!C41=0,"",'Gefilterde data'!C41) -> Nieuwmarkt | C54: =IF(B54="","",IF(LEFT(D54,2)="BU",'Gefilterde data'!G41,"-")) -> Nieuwmarkt/Lastage | D54: =IF('Gefilterde data'!C41=0,"",'Gefilterde data'!A41) -> BU0363AF05 | E54: 1.15 | F54: 2.33 | G54: =IF('Gefilterde data'!CL41=0,"",'Gefilterde data'!CL41) -> 23 | H54: =IF('Gefilterde data'!DX41=0,"",'Gefilterde data'!DX41) -> 42.3 | J54: =IF('Gefilterde data'!DZ41=0,"",'Gefilterde data'!DZ41) -> 5 | K54: =IF('Gefilterde data'!DW41=0,"",'Gefilterde data'!DW41) -> 7,384 | L54: =IF('Gefilterde data'!I41=0,"",'Gefilterde data'!I41) -> 1,585 | M54: =IF('Gefilterde data'!DI41=0,"",'Gefilterde data'!DI41) -> 0.2 | N54: =IF('Gefilterde data'!EA41=0,"",'Gefilterde data'!EA41) -> 7 | O54: =IF('Gefilterde data'!EA41=0,"",'Gefilterde data'!EB41) -> 30
B55: =IF('Gefilterde data'!C42=0,"",'Gefilterde data'!C42) -> Uilenburg | C55: =IF(B55="","",IF(LEFT(D55,2)="BU",'Gefilterde data'!G42,"-")) -> Nieuwmarkt/Lastage | D55: =IF('Gefilterde data'!C42=0,"",'Gefilterde data'!A42) -> BU0363AF06 | E55: 1.05 | F55: 2.11 | G55: =IF('Gefilterde data'!CL42=0,"",'Gefilterde data'!CL42) -> 16.1 | H55: =IF('Gefilterde data'!DX42=0,"",'Gefilterde data'!DX42) -> 56.2 | J55: =IF('Gefilterde data'!DZ42=0,"",'Gefilterde data'!DZ42) -> 6 | K55: =IF('Gefilterde data'!DW42=0,"",'Gefilterde data'!DW42) -> 6,666 | L55: =IF('Gefilterde data'!I42=0,"",'Gefilterde data'!I42) -> 1,245 | M55: =IF('Gefilterde data'!DI42=0,"",'Gefilterde data'!DI42) -> 0.3 | N55: =IF('Gefilterde data'!EA42=0,"",'Gefilterde data'!EA42) -> 6 | O55: =IF('Gefilterde data'!EA42=0,"",'Gefilterde data'!EB42) -> 18
B56: =IF('Gefilterde data'!C43=0,"",'Gefilterde data'!C43) -> Valkenburg | C56: =IF(B56="","",IF(LEFT(D56,2)="BU",'Gefilterde data'!G43,"-")) -> Nieuwmarkt/Lastage | D56: =IF('Gefilterde data'!C43=0,"",'Gefilterde data'!A43) -> BU0363AF07 | E56: 0.88 | F56: 1.77 | G56: =IF('Gefilterde data'!CL43=0,"",'Gefilterde data'!CL43) -> 12.6 | H56: =IF('Gefilterde data'!DX43=0,"",'Gefilterde data'!DX43) -> 50.8 | J56: =IF('Gefilterde data'!DZ43=0,"",'Gefilterde data'!DZ43) -> 9 | K56: =IF('Gefilterde data'!DW43=0,"",'Gefilterde data'!DW43) -> 7,142 | L56: =IF('Gefilterde data'!I43=0,"",'Gefilterde data'!I43) -> 1,200 | M56: =IF('Gefilterde data'!DI43=0,"",'Gefilterde data'!DI43) -> 0.3 | N56: =IF('Gefilterde data'!EA43=0,"",'Gefilterde data'!EA43) -> 7 | O56: =IF('Gefilterde data'!EA43=0,"",'Gefilterde data'!EB43) -> 24
B57: =IF('Gefilterde data'!C44=0,"",'Gefilterde data'!C44) -> Zuiderkerkbuurt | C57: =IF(B57="","",IF(LEFT(D57,2)="BU",'Gefilterde data'!G44,"-")) -> Nieuwmarkt/Lastage | D57: =IF('Gefilterde data'!C44=0,"",'Gefilterde data'!A44) -> BU0363AF08 | E57: 1.03 | F57: 2.08 | G57: =IF('Gefilterde data'!CL44=0,"",'Gefilterde data'!CL44) -> 17.8 | H57: =IF('Gefilterde data'!DX44=0,"",'Gefilterde data'!DX44) -> 48.2 | J57: =IF('Gefilterde data'!DZ44=0,"",'Gefilterde data'!DZ44) -> 6 | K57: =IF('Gefilterde data'!DW44=0,"",'Gefilterde data'!DW44) -> 8,396 | L57: =IF('Gefilterde data'!I44=0,"",'Gefilterde data'!I44) -> 1,630 | M57: =IF('Gefilterde data'!DI44=0,"",'Gefilterde data'!DI44) -> 0.3 | N57: =IF('Gefilterde data'!EA44=0,"",'Gefilterde data'!EA44) -> 6 | O57: =IF('Gefilterde data'!EA44=0,"",'Gefilterde data'!EB44) -> 21
B58: =IF('Gefilterde data'!C45=0,"",'Gefilterde data'!C45) -> Waterloopleinbuurt | C58: =IF(B58="","",IF(LEFT(D58,2)="BU",'Gefilterde data'!G45,"-")) -> Nieuwmarkt/Lastage | D58: =IF('Gefilterde data'!C45=0,"",'Gefilterde data'!A45) -> BU0363AF09 | E58: 0.96 | F58: 1.94 | G58: =IF('Gefilterde data'!CL45=0,"",'Gefilterde data'!CL45) -> 14.7 | H58: =IF('Gefilterde data'!DX45=0,"",'Gefilterde data'!DX45) -> 52.0 | J58: =IF('Gefilterde data'!DZ45=0,"",'Gefilterde data'!DZ45) -> 8 | K58: =IF('Gefilterde data'!DW45=0,"",'Gefilterde data'!DW45) -> 8,165 | L58: =IF('Gefilterde data'!I45=0,"",'Gefilterde data'!I45) -> 895 | M58: =IF('Gefilterde data'!DI45=0,"",'Gefilterde data'!DI45) -> 0.3 | N58: =IF('Gefilterde data'!EA45=0,"",'Gefilterde data'!EA45) -> 7 | O58: =IF('Gefilterde data'!EA45=0,"",'Gefilterde data'!EB45) -> 20
B59: =IF('Gefilterde data'!C46=0,"",'Gefilterde data'!C46) -> Leidsegracht-Zuid | C59: =IF(B59="","",IF(LEFT(D59,2)="BU",'Gefilterde data'!G46,"-")) -> Grachtengordel-Zuid | D59: =IF('Gefilterde data'!C46=0,"",'Gefilterde data'!A46) -> BU0363AG01 | E59: 0.77 | F59: 1.55 | G59: =IF('Gefilterde data'!CL46=0,"",'Gefilterde data'!CL46) -> 8.6 | H59: =IF('Gefilterde data'!DX46=0,"",'Gefilterde data'!DX46) -> 53.6 | J59: =IF('Gefilterde data'!DZ46=0,"",'Gefilterde data'!DZ46) -> 7 | K59: =IF('Gefilterde data'!DW46=0,"",'Gefilterde data'!DW46) -> 9,979 | L59: =IF('Gefilterde data'!I46=0,"",'Gefilterde data'!I46) -> 700 | M59: =IF('Gefilterde data'!DI46=0,"",'Gefilterde data'!DI46) -> 0.6 | N59: =IF('Gefilterde data'!EA46=0,"",'Gefilterde data'!EA46) -> 7 | O59: =IF('Gefilterde data'!EA46=0,"",'Gefilterde data'!EB46) -> 16
B60: =IF('Gefilterde data'!C47=0,"",'Gefilterde data'!C47) -> Geelvinckbuurt | C60: =IF(B60="","",IF(LEFT(D60,2)="BU",'Gefilterde data'!G47,"-")) -> Grachtengordel-Zuid | D60: =IF('Gefilterde data'!C47=0,"",'Gefilterde data'!A47) -> BU0363AG02 | E60: 0.79 | F60: 1.60 | G60: =IF('Gefilterde data'!CL47=0,"",'Gefilterde data'!CL47) -> 6.6 | H60: =IF('Gefilterde data'!DX47=0,"",'Gefilterde data'!DX47) -> 63.8 | J60: =IF('Gefilterde data'!DZ47=0,"",'Gefilterde data'!DZ47) -> 12 | K60: =IF('Gefilterde data'!DW47=0,"",'Gefilterde data'!DW47) -> 9,859 | L60: =IF('Gefilterde data'!I47=0,"",'Gefilterde data'!I47) -> 345 | M60: =IF('Gefilterde data'!DI47=0,"",'Gefilterde data'!DI47) -> 0.4 | N60: =IF('Gefilterde data'!EA47=0,"",'Gefilterde data'!EA47) -> 6 | O60: =IF('Gefilterde data'!EA47=0,"",'Gefilterde data'!EB47) -> 6
B61: =IF('Gefilterde data'!C48=0,"",'Gefilterde data'!C48) -> Rembrandtplein e.o. | C61: =IF(B61="","",IF(LEFT(D61,2)="BU",'Gefilterde data'!G48,"-")) -> Grachtengordel-Zuid | D61: =IF('Gefilterde data'!C48=0,"",'Gefilterde data'!A48) -> BU0363AG03 | E61: 0.90 | F61: 1.81 | G61: =IF('Gefilterde data'!CL48=0,"",'Gefilterde data'!CL48) -> 8.2 | H61: =IF('Gefilterde data'!DX48=0,"",'Gefilterde data'!DX48) -> 69.3 | J61: =IF('Gefilterde data'!DZ48=0,"",'Gefilterde data'!DZ48) -> 9 | K61: =IF('Gefilterde data'!DW48=0,"",'Gefilterde data'!DW48) -> 9,184 | L61: =IF('Gefilterde data'!I48=0,"",'Gefilterde data'!I48) -> 1,025 | M61: =IF('Gefilterde data'!DI48=0,"",'Gefilterde data'!DI48) -> 0.2 | N61: =IF('Gefilterde data'!EA48=0,"",'Gefilterde data'!EA48) -> 6 | O61: =IF('Gefilterde data'!EA48=0,"",'Gefilterde data'!EB48) -> 5
B62: =IF('Gefilterde data'!C49=0,"",'Gefilterde data'!C49) -> Spiegelbuurt | C62: =IF(B62="","",IF(LEFT(D62,2)="BU",'Gefilterde data'!G49,"-")) -> Grachtengordel-Zuid | D62: =IF('Gefilterde data'!C49=0,"",'Gefilterde data'!A49) -> BU0363AG04 | E62: 0.77 | F62: 1.55 | G62: =IF('Gefilterde data'!CL49=0,"",'Gefilterde data'!CL49) -> 6.7 | H62: =IF('Gefilterde data'!DX49=0,"",'Gefilterde data'!DX49) -> 60.5 | J62: =IF('Gefilterde data'!DZ49=0,"",'Gefilterde data'!DZ49) -> 7 | K62: =IF('Gefilterde data'!DW49=0,"",'Gefilterde data'!DW49) -> 9,511 | L62: =IF('Gefilterde data'!I49=0,"",'Gefilterde data'!I49) -> 835 | M62: =IF('Gefilterde data'!DI49=0,"",'Gefilterde data'!DI49) -> 0.6 | N62: =IF('Gefilterde data'!EA49=0,"",'Gefilterde data'!EA49) -> 8 | O62: =IF('Gefilterde data'!EA49=0,"",'Gefilterde data'!EB49) -> 13
B63: =IF('Gefilterde data'!C50=0,"",'Gefilterde data'!C50) -> Vijzelstraatbuurt | C63: =IF(B63="","",IF(LEFT(D63,2)="BU",'Gefilterde data'!G50,"-")) -> Grachtengordel-Zuid | D63: =IF('Gefilterde data'!C50=0,"",'Gefilterde data'!A50) -> BU0363AG05 | E63: 0.67 | F63: 1.35 | G63: =IF('Gefilterde data'!CL50=0,"",'Gefilterde data'!CL50) -> 8.5 | H63: =IF('Gefilterde data'!DX50=0,"",'Gefilterde data'!DX50) -> 42.9 | J63: =IF('Gefilterde data'!DZ50=0,"",'Gefilterde data'!DZ50) -> 8 | K63: =IF('Gefilterde data'!DW50=0,"",'Gefilterde data'!DW50) -> 9,283 | L63: =IF('Gefilterde data'!I50=0,"",'Gefilterde data'!I50) -> 1,410 | M63: =IF('Gefilterde data'!DI50=0,"",'Gefilterde data'!DI50) -> 0.5 | N63: =IF('Gefilterde data'!EA50=0,"",'Gefilterde data'!EA50) -> 7 | O63: =IF('Gefilterde data'!EA50=0,"",'Gefilterde data'!EB50) -> 19
B64: =IF('Gefilterde data'!C51=0,"",'Gefilterde data'!C51) -> Amstelveldbuurt | C64: =IF(B64="","",IF(LEFT(D64,2)="BU",'Gefilterde data'!G51,"-")) -> Grachtengordel-Zuid | D64: =IF('Gefilterde data'!C51=0,"",'Gefilterde data'!A51) -> BU0363AG06 | E64: 0.70 | F64: 1.40 | G64: =IF('Gefilterde data'!CL51=0,"",'Gefilterde data'!CL51) -> 9.1 | H64: =IF('Gefilterde data'!DX51=0,"",'Gefilterde data'!DX51) -> 43.5 | J64: =IF('Gefilterde data'!DZ51=0,"",'Gefilterde data'!DZ51) -> 8 | K64: =IF('Gefilterde data'!DW51=0,"",'Gefilterde data'!DW51) -> 9,341 | L64: =IF('Gefilterde data'!I51=0,"",'Gefilterde data'!I51) -> 1,550 | M64: =IF('Gefilterde data'!DI51=0,"",'Gefilterde data'!DI51) -> 0.5 | N64: =IF('Gefilterde data'!EA51=0,"",'Gefilterde data'!EA51) -> 9 | O64: =IF('Gefilterde data'!EA51=0,"",'Gefilterde data'!EB51) -> 16
B65: =IF('Gefilterde data'!C52=0,"",'Gefilterde data'!C52) -> Leidsebuurt-Noordwest | C65: =IF(B65="","",IF(LEFT(D65,2)="BU",'Gefilterde data'!G52,"-")) -> De Weteringschans | D65: =IF('Gefilterde data'!C52=0,"",'Gefilterde data'!A52) -> BU0363AH01 | E65: 0.83 | F65: 1.67 | G65: =IF('Gefilterde data'!CL52=0,"",'Gefilterde data'!CL52) -> 7.3 | H65: =IF('Gefilterde data'!DX52=0,"",'Gefilterde data'!DX52) -> 64.9 | J65: =IF('Gefilterde data'!DZ52=0,"",'Gefilterde data'!DZ52) -> 7 | K65: =IF('Gefilterde data'!DW52=0,"",'Gefilterde data'!DW52) -> 9,579 | L65: =IF('Gefilterde data'!I52=0,"",'Gefilterde data'!I52) -> 285 | M65: =IF('Gefilterde data'!DI52=0,"",'Gefilterde data'!DI52) -> 0.2 | N65: =IF('Gefilterde data'!EA52=0,"",'Gefilterde data'!EA52) -> 4 | O65: =IF('Gefilterde data'!EA52=0,"",'Gefilterde data'!EB52) -> 5
B66: =IF('Gefilterde data'!C53=0,"",'Gefilterde data'!C53) -> Leidsebuurt-Noordoost | C66: =IF(B66="","",IF(LEFT(D66,2)="BU",'Gefilterde data'!G53,"-")) -> De Weteringschans | D66: =IF('Gefilterde data'!C53=0,"",'Gefilterde data'!A53) -> BU0363AH02 | E66: 0.90 | F66: 1.82 | G66: =IF('Gefilterde data'!CL53=0,"",'Gefilterde data'!CL53) -> 10.3 | H66: =IF('Gefilterde data'!DX53=0,"",'Gefilterde data'!DX53) -> 62.2 | J66: =IF('Gefilterde data'!DZ53=0,"",'Gefilterde data'!DZ53) -> 12 | K66: =IF('Gefilterde data'!DW53=0,"",'Gefilterde data'!DW53) -> 9,452 | L66: =IF('Gefilterde data'!I53=0,"",'Gefilterde data'!I53) -> 1,110 | M66: =IF('Gefilterde data'!DI53=0,"",'Gefilterde data'!DI53) -> 0.2 | N66: =IF('Gefilterde data'!EA53=0,"",'Gefilterde data'!EA53) -> 4 | O66: =IF('Gefilterde data'!EA53=0,"",'Gefilterde data'!EB53) -> 6
B67: =IF('Gefilterde data'!C54=0,"",'Gefilterde data'!C54) -> Weteringbuurt | C67: =IF(B67="","",IF(LEFT(D67,2)="BU",'Gefilterde data'!G54,"-")) -> De Weteringschans | D67: =IF('Gefilterde data'!C54=0,"",'Gefilterde data'!A54) -> BU0363AH03 | E67: 0.79 | F67: 1.59 | G67: =IF('Gefilterde data'!CL54=0,"",'Gefilterde data'!CL54) -> 10 | H67: =IF('Gefilterde data'!DX54=0,"",'Gefilterde data'!DX54) -> 50.2 | J67: =IF('Gefilterde data'!DZ54=0,"",'Gefilterde data'!DZ54) -> 8 | K67: =IF('Gefilterde data'!DW54=0,"",'Gefilterde data'!DW54) -> 9,642 | L67: =IF('Gefilterde data'!I54=0,"",'Gefilterde data'!I54) -> 2,400 | M67: =IF('Gefilterde data'!DI54=0,"",'Gefilterde data'!DI54) -> 0.3 | N67: =IF('Gefilterde data'!EA54=0,"",'Gefilterde data'!EA54) -> 9 | O67: =IF('Gefilterde data'!EA54=0,"",'Gefilterde data'!EB54) -> 12
B68: =IF('Gefilterde data'!C55=0,"",'Gefilterde data'!C55) -> Utrechtsebuurt-Zuid | C68: =IF(B68="","",IF(LEFT(D68,2)="BU",'Gefilterde data'!G55,"-")) -> De Weteringschans | D68: =IF('Gefilterde data'!C55=0,"",'Gefilterde data'!A55) -> BU0363AH04 | E68: 0.81 | F68: 1.63 | G68: =IF('Gefilterde data'!CL55=0,"",'Gefilterde data'!CL55) -> 11.5 | H68: =IF('Gefilterde data'!DX55=0,"",'Gefilterde data'!DX55) -> 47.1 | J68: =IF('Gefilterde data'!DZ55=0,"",'Gefilterde data'!DZ55) -> 5 | K68: =IF('Gefilterde data'!DW55=0,"",'Gefilterde data'!DW55) -> 9,451 | L68: =IF('Gefilterde data'!I55=0,"",'Gefilterde data'!I55) -> 1,220 | M68: =IF('Gefilterde data'!DI55=0,"",'Gefilterde data'!DI55) -> 0.4 | N68: =IF('Gefilterde data'!EA55=0,"",'Gefilterde data'!EA55) -> 8 | O68: =IF('Gefilterde data'!EA55=0,"",'Gefilterde data'!EB55) -> 18
B69: =IF('Gefilterde data'!C56=0,"",'Gefilterde data'!C56) -> Leidsebuurt-Zuidwest | C69: =IF(B69="","",IF(LEFT(D69,2)="BU",'Gefilterde data'!G56,"-")) -> De Weteringschans | D69: =IF('Gefilterde data'!C56=0,"",'Gefilterde data'!A56) -> BU0363AH05 | E69: Ontbrekende waarde | F69: Ontbrekende waarde | G69: =IF('Gefilterde data'!CL56=0,"",'Gefilterde data'!CL56) -> . | H69: =IF('Gefilterde data'!DX56=0,"",'Gefilterde data'!DX56) -> 65.6 | J69: =IF('Gefilterde data'!DZ56=0,"",'Gefilterde data'!DZ56) -> 13 | K69: =IF('Gefilterde data'!DW56=0,"",'Gefilterde data'!DW56) -> 9,855 | L69: =IF('Gefilterde data'!I56=0,"",'Gefilterde data'!I56) -> 160 | M69: =IF('Gefilterde data'!DI56=0,"",'Gefilterde data'!DI56) -> 0.3 | N69: =IF('Gefilterde data'!EA56=0,"",'Gefilterde data'!EA56) -> 3 | O69: =IF('Gefilterde data'!EA56=0,"",'Gefilterde data'!EB56) -> 13
B70: =IF('Gefilterde data'!C57=0,"",'Gefilterde data'!C57) -> Leidsebuurt-Zuidoost | C70: =IF(B70="","",IF(LEFT(D70,2)="BU",'Gefilterde data'!G57,"-")) -> De Weteringschans | D70: =IF('Gefilterde data'!C57=0,"",'Gefilterde data'!A57) -> BU0363AH06 | E70: 0.89 | F70: 1.80 | G70: =IF('Gefilterde data'!CL57=0,"",'Gefilterde data'!CL57) -> 11.5 | H70: =IF('Gefilterde data'!DX57=0,"",'Gefilterde data'!DX57) -> 56.7 | J70: =IF('Gefilterde data'!DZ57=0,"",'Gefilterde data'!DZ57) -> 7 | K70: =IF('Gefilterde data'!DW57=0,"",'Gefilterde data'!DW57) -> 9,452 | L70: =IF('Gefilterde data'!I57=0,"",'Gefilterde data'!I57) -> 300 | M70: =IF('Gefilterde data'!DI57=0,"",'Gefilterde data'!DI57) -> 0.3 | N70: =IF('Gefilterde data'!EA57=0,"",'Gefilterde data'!EA57) -> 10 | O70: =IF('Gefilterde data'!EA57=0,"",'Gefilterde data'!EB57) -> 15
B71: =IF('Gefilterde data'!C58=0,"",'Gefilterde data'!C58) -> Den Texbuurt | C71: =IF(B71="","",IF(LEFT(D71,2)="BU",'Gefilterde data'!G58,"-")) -> De Weteringschans | D71: =IF('Gefilterde data'!C58=0,"",'Gefilterde data'!A58) -> BU0363AH07 | E71: 0.76 | F71: 1.53 | G71: =IF('Gefilterde data'!CL58=0,"",'Gefilterde data'!CL58) -> 9.9 | H71: =IF('Gefilterde data'!DX58=0,"",'Gefilterde data'!DX58) -> 47.3 | J71: =IF('Gefilterde data'!DZ58=0,"",'Gefilterde data'!DZ58) -> 7 | K71: =IF('Gefilterde data'!DW58=0,"",'Gefilterde data'!DW58) -> 10,199 | L71: =IF('Gefilterde data'!I58=0,"",'Gefilterde data'!I58) -> 1,110 | M71: =IF('Gefilterde data'!DI58=0,"",'Gefilterde data'!DI58) -> 0.4 | N71: =IF('Gefilterde data'!EA58=0,"",'Gefilterde data'!EA58) -> 10 | O71: =IF('Gefilterde data'!EA58=0,"",'Gefilterde data'!EB58) -> 17
B72: =IF('Gefilterde data'!C59=0,"",'Gefilterde data'!C59) -> Frederikspleinbuurt | C72: =IF(B72="","",IF(LEFT(D72,2)="BU",'Gefilterde data'!G59,"-")) -> De Weteringschans | D72: =IF('Gefilterde data'!C59=0,"",'Gefilterde data'!A59) -> BU0363AH08 | E72: 0.79 | F72: 1.59 | G72: =IF('Gefilterde data'!CL59=0,"",'Gefilterde data'!CL59) -> 10.6 | H72: =IF('Gefilterde data'!DX59=0,"",'Gefilterde data'!DX59) -> 48.5 | J72: =IF('Gefilterde data'!DZ59=0,"",'Gefilterde data'!DZ59) -> 4 | K72: =IF('Gefilterde data'!DW59=0,"",'Gefilterde data'!DW59) -> 10,506 | L72: =IF('Gefilterde data'!I59=0,"",'Gefilterde data'!I59) -> 970 | M72: =IF('Gefilterde data'!DI59=0,"",'Gefilterde data'!DI59) -> 0.5 | N72: =IF('Gefilterde data'!EA59=0,"",'Gefilterde data'!EA59) -> 8 | O72: =IF('Gefilterde data'!EA59=0,"",'Gefilterde data'!EB59) -> 15
B73: =IF('Gefilterde data'!C60=0,"",'Gefilterde data'!C60) -> Weesperbuurt | C73: =IF(B73="","",IF(LEFT(D73,2)="BU",'Gefilterde data'!G60,"-")) -> Weesperbuurt/Plantage | D73: =IF('Gefilterde data'!C60=0,"",'Gefilterde data'!A60) -> BU0363AJ01 | E73: 0.88 | F73: 1.78 | G73: =IF('Gefilterde data'!CL60=0,"",'Gefilterde data'!CL60) -> 13.4 | H73: =IF('Gefilterde data'!DX60=0,"",'Gefilterde data'!DX60) -> 48.4 | J73: =IF('Gefilterde data'!DZ60=0,"",'Gefilterde data'!DZ60) -> 11 | K73: =IF('Gefilterde data'!DW60=0,"",'Gefilterde data'!DW60) -> 8,096 | L73: =IF('Gefilterde data'!I60=0,"",'Gefilterde data'!I60) -> 3,060 | M73: =IF('Gefilterde data'!DI60=0,"",'Gefilterde data'!DI60) -> 0.5 | N73: =IF('Gefilterde data'!EA60=0,"",'Gefilterde data'!EA60) -> 6 | O73: =IF('Gefilterde data'!EA60=0,"",'Gefilterde data'!EB60) -> 20
B74: =IF('Gefilterde data'!C61=0,"",'Gefilterde data'!C61) -> Plantage | C74: =IF(B74="","",IF(LEFT(D74,2)="BU",'Gefilterde data'!G61,"-")) -> Weesperbuurt/Plantage | D74: =IF('Gefilterde data'!C61=0,"",'Gefilterde data'!A61) -> BU0363AJ02 | E74: 0.67 | F74: 1.34 | G74: =IF('Gefilterde data'!CL61=0,"",'Gefilterde data'!CL61) -> 8.6 | H74: =IF('Gefilterde data'!DX61=0,"",'Gefilterde data'!DX61) -> 42.1 | J74: =IF('Gefilterde data'!DZ61=0,"",'Gefilterde data'!DZ61) -> 7 | K74: =IF('Gefilterde data'!DW61=0,"",'Gefilterde data'!DW61) -> 7,290 | L74: =IF('Gefilterde data'!I61=0,"",'Gefilterde data'!I61) -> 2,385 | M74: =IF('Gefilterde data'!DI61=0,"",'Gefilterde data'!DI61) -> 0.4 | N74: =IF('Gefilterde data'!EA61=0,"",'Gefilterde data'!EA61) -> 8 | O74: =IF('Gefilterde data'!EA61=0,"",'Gefilterde data'!EB61) -> 22
B75: =IF('Gefilterde data'!C62=0,"",'Gefilterde data'!C62) -> Sarphatistrook | C75: =IF(B75="","",IF(LEFT(D75,2)="BU",'Gefilterde data'!G62,"-")) -> Weesperbuurt/Plantage | D75: =IF('Gefilterde data'!C62=0,"",'Gefilterde data'!A62) -> BU0363AJ03 | E75: 0.95 | F75: 1.91 | G75: =IF('Gefilterde data'!CL62=0,"",'Gefilterde data'!CL62) -> 14.8 | H75: =IF('Gefilterde data'!DX62=0,"",'Gefilterde data'!DX62) -> 49.9 | J75: =IF('Gefilterde data'!DZ62=0,"",'Gefilterde data'!DZ62) -> 9 | K75: =IF('Gefilterde data'!DW62=0,"",'Gefilterde data'!DW62) -> 8,296 | L75: =IF('Gefilterde data'!I62=0,"",'Gefilterde data'!I62) -> 1,995 | M75: =IF('Gefilterde data'!DI62=0,"",'Gefilterde data'!DI62) -> 0.3 | N75: =IF('Gefilterde data'!EA62=0,"",'Gefilterde data'!EA62) -> 9 | O75: =IF('Gefilterde data'!EA62=0,"",'Gefilterde data'!EB62) -> 12
B76: =IF('Gefilterde data'!C63=0,"",'Gefilterde data'!C63) -> Alexanderplein e.o. | C76: =IF(B76="","",IF(LEFT(D76,2)="BU",'Gefilterde data'!G63,"-")) -> Weesperbuurt/Plantage | D76: =IF('Gefilterde data'!C63=0,"",'Gefilterde data'!A63) -> BU0363AJ04 | E76: 0.62 | F76: 1.24 | G76: =IF('Gefilterde data'!CL63=0,"",'Gefilterde data'!CL63) -> 6.7 | H76: =IF('Gefilterde data'!DX63=0,"",'Gefilterde data'!DX63) -> 43.6 | J76: =IF('Gefilterde data'!DZ63=0,"",'Gefilterde data'!DZ63) -> 8 | K76: =IF('Gefilterde data'!DW63=0,"",'Gefilterde data'!DW63) -> 9,304 | L76: =IF('Gefilterde data'!I63=0,"",'Gefilterde data'!I63) -> 390 | M76: =IF('Gefilterde data'!DI63=0,"",'Gefilterde data'!DI63) -> 0.3 | N76: =IF('Gefilterde data'!EA63=0,"",'Gefilterde data'!EA63) -> 12 | O76: =IF('Gefilterde data'!EA63=0,"",'Gefilterde data'!EB63) -> 10
B77: =IF('Gefilterde data'!C64=0,"",'Gefilterde data'!C64) -> Marine-Etablissement | C77: =IF(B77="","",IF(LEFT(D77,2)="BU",'Gefilterde data'!G64,"-")) -> Oostelijke Eilanden/Kadijken | D77: =IF('Gefilterde data'!C64=0,"",'Gefilterde data'!A64) -> BU0363AK01 | E77: Ontbrekende waarde | F77: Ontbrekende waarde | G77: =IF('Gefilterde data'!CL64=0,"",'Gefilterde data'!CL64) -> . | H77: =IF('Gefilterde data'!DX64=0,"",'Gefilterde data'!DX64) -> 50.0 | J77: =IF('Gefilterde data'!DZ64=0,"",'Gefilterde data'!DZ64) ->  | K77: =IF('Gefilterde data'!DW64=0,"",'Gefilterde data'!DW64) -> 4,259 | L77: =IF('Gefilterde data'!I64=0,"",'Gefilterde data'!I64) -> 110 | M77: =IF('Gefilterde data'!DI64=0,"",'Gefilterde data'!DI64) -> . | N77: =IF('Gefilterde data'!EA64=0,"",'Gefilterde data'!EA64) -> 9 | O77: =IF('Gefilterde data'!EA64=0,"",'Gefilterde data'!EB64) -> 14
B78: =IF('Gefilterde data'!C65=0,"",'Gefilterde data'!C65) -> Kattenburg | C78: =IF(B78="","",IF(LEFT(D78,2)="BU",'Gefilterde data'!G65,"-")) -> Oostelijke Eilanden/Kadijken | D78: =IF('Gefilterde data'!C65=0,"",'Gefilterde data'!A65) -> BU0363AK02 | E78: 1.04 | F78: 2.09 | G78: =IF('Gefilterde data'!CL65=0,"",'Gefilterde data'!CL65) -> 18.4 | H78: =IF('Gefilterde data'!DX65=0,"",'Gefilterde data'!DX65) -> 46.7 | J78: =IF('Gefilterde data'!DZ65=0,"",'Gefilterde data'!DZ65) -> 11 | K78: =IF('Gefilterde data'!DW65=0,"",'Gefilterde data'!DW65) -> 5,209 | L78: =IF('Gefilterde data'!I65=0,"",'Gefilterde data'!I65) -> 1,670 | M78: =IF('Gefilterde data'!DI65=0,"",'Gefilterde data'!DI65) -> 0.3 | N78: =IF('Gefilterde data'!EA65=0,"",'Gefilterde data'!EA65) -> 10 | O78: =IF('Gefilterde data'!EA65=0,"",'Gefilterde data'!EB65) -> 23
B79: =IF('Gefilterde data'!C66=0,"",'Gefilterde data'!C66) -> Wittenburg | C79: =IF(B79="","",IF(LEFT(D79,2)="BU",'Gefilterde data'!G66,"-")) -> Oostelijke Eilanden/Kadijken | D79: =IF('Gefilterde data'!C66=0,"",'Gefilterde data'!A66) -> BU0363AK03 | E79: 1.12 | F79: 2.25 | G79: =IF('Gefilterde data'!CL66=0,"",'Gefilterde data'!CL66) -> 18.1 | H79: =IF('Gefilterde data'!DX66=0,"",'Gefilterde data'!DX66) -> 56.4 | J79: =IF('Gefilterde data'!DZ66=0,"",'Gefilterde data'!DZ66) -> 2 | K79: =IF('Gefilterde data'!DW66=0,"",'Gefilterde data'!DW66) -> 5,333 | L79: =IF('Gefilterde data'!I66=0,"",'Gefilterde data'!I66) -> 2,525 | M79: =IF('Gefilterde data'!DI66=0,"",'Gefilterde data'!DI66) -> 0.4 | N79: =IF('Gefilterde data'!EA66=0,"",'Gefilterde data'!EA66) -> 8 | O79: =IF('Gefilterde data'!EA66=0,"",'Gefilterde data'!EB66) -> 16
B80: =IF('Gefilterde data'!C67=0,"",'Gefilterde data'!C67) -> Oostenburg | C80: =IF(B80="","",IF(LEFT(D80,2)="BU",'Gefilterde data'!G67,"-")) -> Oostelijke Eilanden/Kadijken | D80: =IF('Gefilterde data'!C67=0,"",'Gefilterde data'!A67) -> BU0363AK04 | E80: 0.87 | F80: 1.76 | G80: =IF('Gefilterde data'!CL67=0,"",'Gefilterde data'!CL67) -> 11.1 | H80: =IF('Gefilterde data'!DX67=0,"",'Gefilterde data'!DX67) -> 55.9 | J80: =IF('Gefilterde data'!DZ67=0,"",'Gefilterde data'!DZ67) -> 4 | K80: =IF('Gefilterde data'!DW67=0,"",'Gefilterde data'!DW67) -> 6,438 | L80: =IF('Gefilterde data'!I67=0,"",'Gefilterde data'!I67) -> 2,900 | M80: =IF('Gefilterde data'!DI67=0,"",'Gefilterde data'!DI67) -> 0.3 | N80: =IF('Gefilterde data'!EA67=0,"",'Gefilterde data'!EA67) -> 7 | O80: =IF('Gefilterde data'!EA67=0,"",'Gefilterde data'!EB67) -> 10
B81: =IF('Gefilterde data'!C68=0,"",'Gefilterde data'!C68) -> Czaar Peterbuurt | C81: =IF(B81="","",IF(LEFT(D81,2)="BU",'Gefilterde data'!G68,"-")) -> Oostelijke Eilanden/Kadijken | D81: =IF('Gefilterde data'!C68=0,"",'Gefilterde data'!A68) -> BU0363AK05 | E81: =IF(G81="","",IF(OR(NOT(ISNUMBER(G81)),NOT(ISNUMBER(H81))),"Ontbrekende waarde",F81/F$1)) -> 1.18 | F81: =IF(G81="","",IF(OR(NOT(ISNUMBER(G81)),NOT(ISNUMBER(H81))),"Ontbrekende waarde",((G81/AVERAGE(G$16:G$532)+H81/AVERAGE(H$16:H$532))))) -> 2.38 | G81: =IF('Gefilterde data'!CL68=0,"",'Gefilterde data'!CL68) -> 20.3 | H81: =IF('Gefilterde data'!DX68=0,"",'Gefilterde data'!DX68) -> 55.4 | J81: =IF('Gefilterde data'!DZ68=0,"",'Gefilterde data'!DZ68) -> 5 | K81: =IF('Gefilterde data'!DW68=0,"",'Gefilterde data'!DW68) -> 7,029 | L81: =IF('Gefilterde data'!I68=0,"",'Gefilterde data'!I68) -> 2,320 | M81: =IF('Gefilterde data'!DI68=0,"",'Gefilterde data'!DI68) -> 0.3 | N81: =IF('Gefilterde data'!EA68=0,"",'Gefilterde data'!EA68) -> 9 | O81: =IF('Gefilterde data'!EA68=0,"",'Gefilterde data'!EB68) -> 11
B82: =IF('Gefilterde data'!C69=0,"",'Gefilterde data'!C69) -> Het Funen | C82: =IF(B82="","",IF(LEFT(D82,2)="BU",'Gefilterde data'!G69,"-")) -> Oostelijke Eilanden/Kadijken | D82: =IF('Gefilterde data'!C69=0,"",'Gefilterde data'!A69) -> BU0363AK06 | E82: 0.73 | F82: 1.47 | G82: =IF('Gefilterde data'!CL69=0,"",'Gefilterde data'!CL69) -> 9.5 | H82: =IF('Gefilterde data'!DX69=0,"",'Gefilterde data'!DX69) -> 45.9 | J82: =IF('Gefilterde data'!DZ69=0,"",'Gefilterde data'!DZ69) -> 3 | K82: =IF('Gefilterde data'!DW69=0,"",'Gefilterde data'!DW69) -> 7,997 | L82: =IF('Gefilterde data'!I69=0,"",'Gefilterde data'!I69) -> 1,295 | M82: =IF('Gefilterde data'!DI69=0,"",'Gefilterde data'!DI69) -> 0.5 | N82: =IF('Gefilterde data'!EA69=0,"",'Gefilterde data'!EA69) -> 18 | O82: =IF('Gefilterde data'!EA69=0,"",'Gefilterde data'!EB69) -> 11
B83: =IF('Gefilterde data'!C70=0,"",'Gefilterde data'!C70) -> Kadijken | C83: =IF(B83="","",IF(LEFT(D83,2)="BU",'Gefilterde data'!G70,"-")) -> Oostelijke Eilanden/Kadijken | D83: =IF('Gefilterde data'!C70=0,"",'Gefilterde data'!A70) -> BU0363AK07 | E83: 0.90 | F83: 1.81 | G83: =IF('Gefilterde data'!CL70=0,"",'Gefilterde data'!CL70) -> 15.5 | H83: =IF('Gefilterde data'!DX70=0,"",'Gefilterde data'!DX70) -> 42.0 | J83: =IF('Gefilterde data'!DZ70=0,"",'Gefilterde data'!DZ70) -> 3 | K83: =IF('Gefilterde data'!DW70=0,"",'Gefilterde data'!DW70) -> 6,535 | L83: =IF('Gefilterde data'!I70=0,"",'Gefilterde data'!I70) -> 2,905 | M83: =IF('Gefilterde data'!DI70=0,"",'Gefilterde data'!DI70) -> 0.4 | N83: =IF('Gefilterde data'!EA70=0,"",'Gefilterde data'!EA70) -> 8 | O83: =IF('Gefilterde data'!EA70=0,"",'Gefilterde data'!EB70) -> 23
B84: =IF('Gefilterde data'!C71=0,"",'Gefilterde data'!C71) -> Kazernebuurt | C84: =IF(B84="","",IF(LEFT(D84,2)="BU",'Gefilterde data'!G71,"-")) -> Oostelijke Eilanden/Kadijken | D84: =IF('Gefilterde data'!C71=0,"",'Gefilterde data'!A71) -> BU0363AK08 | E84: 1.08 | F84: 2.18 | G84: =IF('Gefilterde data'!CL71=0,"",'Gefilterde data'!CL71) -> 19.9 | H84: =IF('Gefilterde data'!DX71=0,"",'Gefilterde data'!DX71) -> 45.7 | J84: =IF('Gefilterde data'!DZ71=0,"",'Gefilterde data'!DZ71) -> 2 | K84: =IF('Gefilterde data'!DW71=0,"",'Gefilterde data'!DW71) -> 8,163 | L84: =IF('Gefilterde data'!I71=0,"",'Gefilterde data'!I71) -> 940 | M84: =IF('Gefilterde data'!DI71=0,"",'Gefilterde data'!DI71) -> 0.3 | N84: =IF('Gefilterde data'!EA71=0,"",'Gefilterde data'!EA71) -> 6 | O84: =IF('Gefilterde data'!EA71=0,"",'Gefilterde data'!EB71) -> 25
B85: =IF('Gefilterde data'!C72=0,"",'Gefilterde data'!C72) -> Afrikahaven | C85: =IF(B85="","",IF(LEFT(D85,2)="BU",'Gefilterde data'!G72,"-")) -> Havens-West | D85: =IF('Gefilterde data'!C72=0,"",'Gefilterde data'!A72) -> BU0363BA01 | E85: Ontbrekende waarde | F85: Ontbrekende waarde | G85: =IF('Gefilterde data'!CL72=0,"",'Gefilterde data'!CL72) -> . | H85: =IF('Gefilterde data'!DX72=0,"",'Gefilterde data'!DX72) ->  | J85: =IF('Gefilterde data'!DZ72=0,"",'Gefilterde data'!DZ72) ->  | K85: =IF('Gefilterde data'!DW72=0,"",'Gefilterde data'!DW72) -> 51 | L85: =IF('Gefilterde data'!I72=0,"",'Gefilterde data'!I72) -> 5 | M85: =IF('Gefilterde data'!DI72=0,"",'Gefilterde data'!DI72) -> . | N85: =IF('Gefilterde data'!EA72=0,"",'Gefilterde data'!EA72) ->  | O85: =IF('Gefilterde data'!EA72=0,"",'Gefilterde data'!EB72) -> 
B86: =IF('Gefilterde data'!C73=0,"",'Gefilterde data'!C73) -> Amerikahaven | C86: =IF(B86="","",IF(LEFT(D86,2)="BU",'Gefilterde data'!G73,"-")) -> Havens-West | D86: =IF('Gefilterde data'!C73=0,"",'Gefilterde data'!A73) -> BU0363BA02 | E86: Ontbrekende waarde | F86: Ontbrekende waarde | G86: =IF('Gefilterde data'!CL73=0,"",'Gefilterde data'!CL73) -> . | H86: =IF('Gefilterde data'!DX73=0,"",'Gefilterde data'!DX73) -> 100.0 | J86: =IF('Gefilterde data'!DZ73=0,"",'Gefilterde data'!DZ73) ->  | K86: =IF('Gefilterde data'!DW73=0,"",'Gefilterde data'!DW73) -> 47 | L86: =IF('Gefilterde data'!I73=0,"",'Gefilterde data'!I73) -> 5 | M86: =IF('Gefilterde data'!DI73=0,"",'Gefilterde data'!DI73) -> . | N86: =IF('Gefilterde data'!EA73=0,"",'Gefilterde data'!EA73) ->  | O86: =IF('Gefilterde data'!EA73=0,"",'Gefilterde data'!EB73) -> 
B87: =IF('Gefilterde data'!C74=0,"",'Gefilterde data'!C74) -> Westhaven-Noord | C87: =IF(B87="","",IF(LEFT(D87,2)="BU",'Gefilterde data'!G74,"-")) -> Havens-West | D87: =IF('Gefilterde data'!C74=0,"",'Gefilterde data'!A74) -> BU0363BA03 | E87: Ontbrekende waarde | F87: Ontbrekende waarde | G87: =IF('Gefilterde data'!CL74=0,"",'Gefilterde data'!CL74) -> . | H87: =IF('Gefilterde data'!DX74=0,"",'Gefilterde data'!DX74) -> 33.3 | J87: =IF('Gefilterde data'!DZ74=0,"",'Gefilterde data'!DZ74) ->  | K87: =IF('Gefilterde data'!DW74=0,"",'Gefilterde data'!DW74) -> 99 | L87: =IF('Gefilterde data'!I74=0,"",'Gefilterde data'!I74) -> 15 | M87: =IF('Gefilterde data'!DI74=0,"",'Gefilterde data'!DI74) -> . | N87: =IF('Gefilterde data'!EA74=0,"",'Gefilterde data'!EA74) -> 33 | O87: =IF('Gefilterde data'!EA74=0,"",'Gefilterde data'!EB74) -> 33
B88: =IF('Gefilterde data'!C75=0,"",'Gefilterde data'!C75) -> Petroleumhaven | C88: =IF(B88="","",IF(LEFT(D88,2)="BU",'Gefilterde data'!G75,"-")) -> Havens-West | D88: =IF('Gefilterde data'!C75=0,"",'Gefilterde data'!A75) -> BU0363BA04 | E88: Ontbrekende waarde | F88: Ontbrekende waarde | G88: =IF('Gefilterde data'!CL75=0,"",'Gefilterde data'!CL75) -> . | H88: =IF('Gefilterde data'!DX75=0,"",'Gefilterde data'!DX75) -> Geen inwoners | J88: =IF('Gefilterde data'!DZ75=0,"",'Gefilterde data'!DZ75) -> Geen inwoners | K88: =IF('Gefilterde data'!DW75=0,"",'Gefilterde data'!DW75) -> 84 | L88: =IF('Gefilterde data'!I75=0,"",'Gefilterde data'!I75) ->  | M88: =IF('Gefilterde data'!DI75=0,"",'Gefilterde data'!DI75) -> . | N88: =IF('Gefilterde data'!EA75=0,"",'Gefilterde data'!EA75) -> Geen inwoners | O88: =IF('Gefilterde data'!EA75=0,"",'Gefilterde data'!EB75) -> Geen inwoners
B89: =IF('Gefilterde data'!C76=0,"",'Gefilterde data'!C76) -> Vervoerscentrum | C89: =IF(B89="","",IF(LEFT(D89,2)="BU",'Gefilterde data'!G76,"-")) -> Havens-West | D89: =IF('Gefilterde data'!C76=0,"",'Gefilterde data'!A76) -> BU0363BA05 | E89: Ontbrekende waarde | F89: Ontbrekende waarde | G89: =IF('Gefilterde data'!CL76=0,"",'Gefilterde data'!CL76) -> . | H89: =IF('Gefilterde data'!DX76=0,"",'Gefilterde data'!DX76) -> Geen inwoners | J89: =IF('Gefilterde data'!DZ76=0,"",'Gefilterde data'!DZ76) -> Geen inwoners | K89: =IF('Gefilterde data'!DW76=0,"",'Gefilterde data'!DW76) -> 171 | L89: =IF('Gefilterde data'!I76=0,"",'Gefilterde data'!I76) ->  | M89: =IF('Gefilterde data'!DI76=0,"",'Gefilterde data'!DI76) -> . | N89: =IF('Gefilterde data'!EA76=0,"",'Gefilterde data'!EA76) -> Geen inwoners | O89: =IF('Gefilterde data'!EA76=0,"",'Gefilterde data'!EB76) -> Geen inwoners
B90: =IF('Gefilterde data'!C77=0,"",'Gefilterde data'!C77) -> Westhaven-Zuid | C90: =IF(B90="","",IF(LEFT(D90,2)="BU",'Gefilterde data'!G77,"-")) -> Havens-West | D90: =IF('Gefilterde data'!C77=0,"",'Gefilterde data'!A77) -> BU0363BA06 | E90: Ontbrekende waarde | F90: Ontbrekende waarde | G90: =IF('Gefilterde data'!CL77=0,"",'Gefilterde data'!CL77) -> . | H90: =IF('Gefilterde data'!DX77=0,"",'Gefilterde data'!DX77) -> 50.0 | J90: =IF('Gefilterde data'!DZ77=0,"",'Gefilterde data'!DZ77) ->  | K90: =IF('Gefilterde data'!DW77=0,"",'Gefilterde data'!DW77) -> 316 | L90: =IF('Gefilterde data'!I77=0,"",'Gefilterde data'!I77) -> 10 | M90: =IF('Gefilterde data'!DI77=0,"",'Gefilterde data'!DI77) -> . | N90: =IF('Gefilterde data'!EA77=0,"",'Gefilterde data'!EA77) ->  | O90: =IF('Gefilterde data'!EA77=0,"",'Gefilterde data'!EB77) -> 
B91: =IF('Gefilterde data'!C78=0,"",'Gefilterde data'!C78) -> Coenhaven | C91: =IF(B91="","",IF(LEFT(D91,2)="BU",'Gefilterde data'!G78,"-")) -> Coenhaven/Minervahaven | D91: =IF('Gefilterde data'!C78=0,"",'Gefilterde data'!A78) -> BU0363BB01 | E91: Ontbrekende waarde | F91: Ontbrekende waarde | G91: =IF('Gefilterde data'!CL78=0,"",'Gefilterde data'!CL78) -> . | H91: =IF('Gefilterde data'!DX78=0,"",'Gefilterde data'!DX78) -> 100.0 | J91: =IF('Gefilterde data'!DZ78=0,"",'Gefilterde data'!DZ78) ->  | K91: =IF('Gefilterde data'!DW78=0,"",'Gefilterde data'!DW78) -> 124 | L91: =IF('Gefilterde data'!I78=0,"",'Gefilterde data'!I78) -> 175 | M91: =IF('Gefilterde data'!DI78=0,"",'Gefilterde data'!DI78) -> . | N91: =IF('Gefilterde data'!EA78=0,"",'Gefilterde data'!EA78) ->  | O91: =IF('Gefilterde data'!EA78=0,"",'Gefilterde data'!EB78) -> 
B92: =IF('Gefilterde data'!C79=0,"",'Gefilterde data'!C79) -> Vlothaven | C92: =IF(B92="","",IF(LEFT(D92,2)="BU",'Gefilterde data'!G79,"-")) -> Coenhaven/Minervahaven | D92: =IF('Gefilterde data'!C79=0,"",'Gefilterde data'!A79) -> BU0363BB02 | E92: Ontbrekende waarde | F92: Ontbrekende waarde | G92: =IF('Gefilterde data'!CL79=0,"",'Gefilterde data'!CL79) -> . | H92: =IF('Gefilterde data'!DX79=0,"",'Gefilterde data'!DX79) -> Geen inwoners | J92: =IF('Gefilterde data'!DZ79=0,"",'Gefilterde data'!DZ79) -> Geen inwoners | K92: =IF('Gefilterde data'!DW79=0,"",'Gefilterde data'!DW79) -> 133 | L92: =IF('Gefilterde data'!I79=0,"",'Gefilterde data'!I79) ->  | M92: =IF('Gefilterde data'!DI79=0,"",'Gefilterde data'!DI79) -> . | N92: =IF('Gefilterde data'!EA79=0,"",'Gefilterde data'!EA79) -> Geen inwoners | O92: =IF('Gefilterde data'!EA79=0,"",'Gefilterde data'!EB79) -> Geen inwoners
B93: =IF('Gefilterde data'!C80=0,"",'Gefilterde data'!C80) -> Minervahaven-Noordoost | C93: =IF(B93="","",IF(LEFT(D93,2)="BU",'Gefilterde data'!G80,"-")) -> Coenhaven/Minervahaven | D93: =IF('Gefilterde data'!C80=0,"",'Gefilterde data'!A80) -> BU0363BB03 | E93: Ontbrekende waarde | F93: Ontbrekende waarde | G93: =IF('Gefilterde data'!CL80=0,"",'Gefilterde data'!CL80) -> . | H93: =IF('Gefilterde data'!DX80=0,"",'Gefilterde data'!DX80) -> 98.7 | J93: =IF('Gefilterde data'!DZ80=0,"",'Gefilterde data'!DZ80) -> 64 | K93: =IF('Gefilterde data'!DW80=0,"",'Gefilterde data'!DW80) -> 1,454 | L93: =IF('Gefilterde data'!I80=0,"",'Gefilterde data'!I80) -> 785 | M93: =IF('Gefilterde data'!DI80=0,"",'Gefilterde data'!DI80) -> 0.2 | N93: =IF('Gefilterde data'!EA80=0,"",'Gefilterde data'!EA80) ->  | O93: =IF('Gefilterde data'!EA80=0,"",'Gefilterde data'!EB80) -> 
B94: =IF('Gefilterde data'!C81=0,"",'Gefilterde data'!C81) -> Minervahaven-Noordwest | C94: =IF(B94="","",IF(LEFT(D94,2)="BU",'Gefilterde data'!G81,"-")) -> Coenhaven/Minervahaven | D94: =IF('Gefilterde data'!C81=0,"",'Gefilterde data'!A81) -> BU0363BB04 | E94: Ontbrekende waarde | F94: Ontbrekende waarde | G94: =IF('Gefilterde data'!CL81=0,"",'Gefilterde data'!CL81) -> . | H94: =IF('Gefilterde data'!DX81=0,"",'Gefilterde data'!DX81) -> 100.0 | J94: =IF('Gefilterde data'!DZ81=0,"",'Gefilterde data'!DZ81) ->  | K94: =IF('Gefilterde data'!DW81=0,"",'Gefilterde data'!DW81) -> 1,707 | L94: =IF('Gefilterde data'!I81=0,"",'Gefilterde data'!I81) -> 5 | M94: =IF('Gefilterde data'!DI81=0,"",'Gefilterde data'!DI81) -> . | N94: =IF('Gefilterde data'!EA81=0,"",'Gefilterde data'!EA81) ->  | O94: =IF('Gefilterde data'!EA81=0,"",'Gefilterde data'!EB81) -> 
B95: =IF('Gefilterde data'!C82=0,"",'Gefilterde data'!C82) -> Minervahaven-Zuidwest | C95: =IF(B95="","",IF(LEFT(D95,2)="BU",'Gefilterde data'!G82,"-")) -> Coenhaven/Minervahaven | D95: =IF('Gefilterde data'!C82=0,"",'Gefilterde data'!A82) -> BU0363BB05 | E95: Ontbrekende waarde | F95: Ontbrekende waarde | G95: =IF('Gefilterde data'!CL82=0,"",'Gefilterde data'!CL82) -> . | H95: =IF('Gefilterde data'!DX82=0,"",'Gefilterde data'!DX82) -> Geen inwoners | J95: =IF('Gefilterde data'!DZ82=0,"",'Gefilterde data'!DZ82) -> Geen inwoners | K95: =IF('Gefilterde data'!DW82=0,"",'Gefilterde data'!DW82) -> 2,523 | L95: =IF('Gefilterde data'!I82=0,"",'Gefilterde data'!I82) ->  | M95: =IF('Gefilterde data'!DI82=0,"",'Gefilterde data'!DI82) -> . | N95: =IF('Gefilterde data'!EA82=0,"",'Gefilterde data'!EA82) -> Geen inwoners | O95: =IF('Gefilterde data'!EA82=0,"",'Gefilterde data'!EB82) -> Geen inwoners
B96: =IF('Gefilterde data'!C83=0,"",'Gefilterde data'!C83) -> Minervahaven-Zuidoost | C96: =IF(B96="","",IF(LEFT(D96,2)="BU",'Gefilterde data'!G83,"-")) -> Coenhaven/Minervahaven | D96: =IF('Gefilterde data'!C83=0,"",'Gefilterde data'!A83) -> BU0363BB06 | E96: Ontbrekende waarde | F96: Ontbrekende waarde | G96: =IF('Gefilterde data'!CL83=0,"",'Gefilterde data'!CL83) -> . | H96: =IF('Gefilterde data'!DX83=0,"",'Gefilterde data'!DX83) -> 100.0 | J96: =IF('Gefilterde data'!DZ83=0,"",'Gefilterde data'!DZ83) ->  | K96: =IF('Gefilterde data'!DW83=0,"",'Gefilterde data'!DW83) -> 2,569 | L96: =IF('Gefilterde data'!I83=0,"",'Gefilterde data'!I83) -> 20 | M96: =IF('Gefilterde data'!DI83=0,"",'Gefilterde data'!DI83) -> . | N96: =IF('Gefilterde data'!EA83=0,"",'Gefilterde data'!EA83) ->  | O96: =IF('Gefilterde data'!EA83=0,"",'Gefilterde data'!EB83) -> 
B97: =IF('Gefilterde data'!C84=0,"",'Gefilterde data'!C84) -> Alfa-driehoek | C97: =IF(B97="","",IF(LEFT(D97,2)="BU",'Gefilterde data'!G84,"-")) -> Coenhaven/Minervahaven | D97: =IF('Gefilterde data'!C84=0,"",'Gefilterde data'!A84) -> BU0363BB07 | E97: Ontbrekende waarde | F97: Ontbrekende waarde | G97: =IF('Gefilterde data'!CL84=0,"",'Gefilterde data'!CL84) -> . | H97: =IF('Gefilterde data'!DX84=0,"",'Gefilterde data'!DX84) -> Geen inwoners | J97: =IF('Gefilterde data'!DZ84=0,"",'Gefilterde data'!DZ84) -> Geen inwoners | K97: =IF('Gefilterde data'!DW84=0,"",'Gefilterde data'!DW84) -> 409 | L97: =IF('Gefilterde data'!I84=0,"",'Gefilterde data'!I84) ->  | M97: =IF('Gefilterde data'!DI84=0,"",'Gefilterde data'!DI84) -> . | N97: =IF('Gefilterde data'!EA84=0,"",'Gefilterde data'!EA84) -> Geen inwoners | O97: =IF('Gefilterde data'!EA84=0,"",'Gefilterde data'!EB84) -> Geen inwoners
B98: =IF('Gefilterde data'!C85=0,"",'Gefilterde data'!C85) -> Hemknoop-Noord | C98: =IF(B98="","",IF(LEFT(D98,2)="BU",'Gefilterde data'!G85,"-")) -> Coenhaven/Minervahaven | D98: =IF('Gefilterde data'!C85=0,"",'Gefilterde data'!A85) -> BU0363BB08 | E98: Ontbrekende waarde | F98: Ontbrekende waarde | G98: =IF('Gefilterde data'!CL85=0,"",'Gefilterde data'!CL85) -> . | H98: =IF('Gefilterde data'!DX85=0,"",'Gefilterde data'!DX85) -> Geen inwoners | J98: =IF('Gefilterde data'!DZ85=0,"",'Gefilterde data'!DZ85) -> Geen inwoners | K98: =IF('Gefilterde data'!DW85=0,"",'Gefilterde data'!DW85) -> 581 | L98: =IF('Gefilterde data'!I85=0,"",'Gefilterde data'!I85) ->  | M98: =IF('Gefilterde data'!DI85=0,"",'Gefilterde data'!DI85) -> . | N98: =IF('Gefilterde data'!EA85=0,"",'Gefilterde data'!EA85) -> Geen inwoners | O98: =IF('Gefilterde data'!EA85=0,"",'Gefilterde data'!EB85) -> Geen inwoners
B99: =IF('Gefilterde data'!C86=0,"",'Gefilterde data'!C86) -> Isolatorbuurt | C99: =IF(B99="","",IF(LEFT(D99,2)="BU",'Gefilterde data'!G86,"-")) -> Sloterdijk-West | D99: =IF('Gefilterde data'!C86=0,"",'Gefilterde data'!A86) -> BU0363EA01 | E99: Ontbrekende waarde | F99: Ontbrekende waarde | G99: =IF('Gefilterde data'!CL86=0,"",'Gefilterde data'!CL86) -> . | H99: =IF('Gefilterde data'!DX86=0,"",'Gefilterde data'!DX86) -> 75.0 | J99: =IF('Gefilterde data'!DZ86=0,"",'Gefilterde data'!DZ86) ->  | K99: =IF('Gefilterde data'!DW86=0,"",'Gefilterde data'!DW86) -> 654 | L99: =IF('Gefilterde data'!I86=0,"",'Gefilterde data'!I86) -> 60 | M99: =IF('Gefilterde data'!DI86=0,"",'Gefilterde data'!DI86) -> . | N99: =IF('Gefilterde data'!EA86=0,"",'Gefilterde data'!EA86) ->  | O99: =IF('Gefilterde data'!EA86=0,"",'Gefilterde data'!EB86) -> 
B100: =IF('Gefilterde data'!C87=0,"",'Gefilterde data'!C87) -> Contactbuurt | C100: =IF(B100="","",IF(LEFT(D100,2)="BU",'Gefilterde data'!G87,"-")) -> Sloterdijk-West | D100: =IF('Gefilterde data'!C87=0,"",'Gefilterde data'!A87) -> BU0363EA02 | E100: Ontbrekende waarde | F100: Ontbrekende waarde | G100: =IF('Gefilterde data'!CL87=0,"",'Gefilterde data'!CL87) -> . | H100: =IF('Gefilterde data'!DX87=0,"",'Gefilterde data'!DX87) -> 66.7 | J100: =IF('Gefilterde data'!DZ87=0,"",'Gefilterde data'!DZ87) ->  | K100: =IF('Gefilterde data'!DW87=0,"",'Gefilterde data'!DW87) -> 1,998 | L100: =IF('Gefilterde data'!I87=0,"",'Gefilterde data'!I87) -> 15 | M100: =IF('Gefilterde data'!DI87=0,"",'Gefilterde data'!DI87) -> . | N100: =IF('Gefilterde data'!EA87=0,"",'Gefilterde data'!EA87) -> 33 | O100: =IF('Gefilterde data'!EA87=0,"",'Gefilterde data'!EB87) -> 0
B101: =IF('Gefilterde data'!C88=0,"",'Gefilterde data'!C88) -> Woon- en Groengebied Sloterdijk | C101: =IF(B101="","",IF(LEFT(D101,2)="BU",'Gefilterde data'!G88,"-")) -> Sloterdijk-West | D101: =IF('Gefilterde data'!C88=0,"",'Gefilterde data'!A88) -> BU0363EA03 | E101: 0.53 | F101: 1.07 | G101: =IF('Gefilterde data'!CL88=0,"",'Gefilterde data'!CL88) -> 3.8 | H101: =IF('Gefilterde data'!DX88=0,"",'Gefilterde data'!DX88) -> 44.8 | J101: =IF('Gefilterde data'!DZ88=0,"",'Gefilterde data'!DZ88) -> 2 | K101: =IF('Gefilterde data'!DW88=0,"",'Gefilterde data'!DW88) -> 4,144 | L101: =IF('Gefilterde data'!I88=0,"",'Gefilterde data'!I88) -> 580 | M101: =IF('Gefilterde data'!DI88=0,"",'Gefilterde data'!DI88) -> 0.5 | N101: =IF('Gefilterde data'!EA88=0,"",'Gefilterde data'!EA88) -> 10 | O101: =IF('Gefilterde data'!EA88=0,"",'Gefilterde data'!EB88) -> 6
B102: =IF('Gefilterde data'!C89=0,"",'Gefilterde data'!C89) -> Hemknoop-Zuid | C102: =IF(B102="","",IF(LEFT(D102,2)="BU",'Gefilterde data'!G89,"-")) -> Spaarndammerbuurt/Zeeheldenbuurt | D102: =IF('Gefilterde data'!C89=0,"",'Gefilterde data'!A89) -> BU0363EB01 | E102: Ontbrekende waarde | F102: Ontbrekende waarde | G102: =IF('Gefilterde data'!CL89=0,"",'Gefilterde data'!CL89) -> . | H102: =IF('Gefilterde data'!DX89=0,"",'Gefilterde data'!DX89) -> Geen inwoners | J102: =IF('Gefilterde data'!DZ89=0,"",'Gefilterde data'!DZ89) -> Geen inwoners | K102: =IF('Gefilterde data'!DW89=0,"",'Gefilterde data'!DW89) -> 852 | L102: =IF('Gefilterde data'!I89=0,"",'Gefilterde data'!I89) ->  | M102: =IF('Gefilterde data'!DI89=0,"",'Gefilterde data'!DI89) -> . | N102: =IF('Gefilterde data'!EA89=0,"",'Gefilterde data'!EA89) -> Geen inwoners | O102: =IF('Gefilterde data'!EA89=0,"",'Gefilterde data'!EB89) -> Geen inwoners
B103: =IF('Gefilterde data'!C90=0,"",'Gefilterde data'!C90) -> Overbraker Binnenpolder | C103: =IF(B103="","",IF(LEFT(D103,2)="BU",'Gefilterde data'!G90,"-")) -> Spaarndammerbuurt/Zeeheldenbuurt | D103: =IF('Gefilterde data'!C90=0,"",'Gefilterde data'!A90) -> BU0363EB02 | E103: Ontbrekende waarde | F103: Ontbrekende waarde | G103: =IF('Gefilterde data'!CL90=0,"",'Gefilterde data'!CL90) -> . | H103: =IF('Gefilterde data'!DX90=0,"",'Gefilterde data'!DX90) ->  | J103: =IF('Gefilterde data'!DZ90=0,"",'Gefilterde data'!DZ90) ->  | K103: =IF('Gefilterde data'!DW90=0,"",'Gefilterde data'!DW90) -> 2,739 | L103: =IF('Gefilterde data'!I90=0,"",'Gefilterde data'!I90) -> 5 | M103: =IF('Gefilterde data'!DI90=0,"",'Gefilterde data'!DI90) -> . | N103: =IF('Gefilterde data'!EA90=0,"",'Gefilterde data'!EA90) ->  | O103: =IF('Gefilterde data'!EA90=0,"",'Gefilterde data'!EB90) -> 
B104: =IF('Gefilterde data'!C91=0,"",'Gefilterde data'!C91) -> Zaanstraat emplacement | C104: =IF(B104="","",IF(LEFT(D104,2)="BU",'Gefilterde data'!G91,"-")) -> Spaarndammerbuurt/Zeeheldenbuurt | D104: =IF('Gefilterde data'!C91=0,"",'Gefilterde data'!A91) -> BU0363EB03 | E104: Ontbrekende waarde | F104: Ontbrekende waarde | G104: =IF('Gefilterde data'!CL91=0,"",'Gefilterde data'!CL91) -> . | H104: =IF('Gefilterde data'!DX91=0,"",'Gefilterde data'!DX91) -> Geen inwoners | J104: =IF('Gefilterde data'!DZ91=0,"",'Gefilterde data'!DZ91) -> Geen inwoners | K104: =IF('Gefilterde data'!DW91=0,"",'Gefilterde data'!DW91) -> 4,440 | L104: =IF('Gefilterde data'!I91=0,"",'Gefilterde data'!I91) ->  | M104: =IF('Gefilterde data'!DI91=0,"",'Gefilterde data'!DI91) -> . | N104: =IF('Gefilterde data'!EA91=0,"",'Gefilterde data'!EA91) -> Geen inwoners | O104: =IF('Gefilterde data'!EA91=0,"",'Gefilterde data'!EB91) -> Geen inwoners
B105: =IF('Gefilterde data'!C92=0,"",'Gefilterde data'!C92) -> Spaarndammerbuurt-Noordwest | C105: =IF(B105="","",IF(LEFT(D105,2)="BU",'Gefilterde data'!G92,"-")) -> Spaarndammerbuurt/Zeeheldenbuurt | D105: =IF('Gefilterde data'!C92=0,"",'Gefilterde data'!A92) -> BU0363EB04 | E105: 1.14 | F105: 2.30 | G105: =IF('Gefilterde data'!CL92=0,"",'Gefilterde data'!CL92) -> 19.2 | H105: =IF('Gefilterde data'!DX92=0,"",'Gefilterde data'!DX92) -> 55.2 | J105: =IF('Gefilterde data'!DZ92=0,"",'Gefilterde data'!DZ92) -> 1 | K105: =IF('Gefilterde data'!DW92=0,"",'Gefilterde data'!DW92) -> 4,249 | L105: =IF('Gefilterde data'!I92=0,"",'Gefilterde data'!I92) -> 1,920 | M105: =IF('Gefilterde data'!DI92=0,"",'Gefilterde data'!DI92) -> 0.4 | N105: =IF('Gefilterde data'!EA92=0,"",'Gefilterde data'!EA92) -> 13 | O105: =IF('Gefilterde data'!EA92=0,"",'Gefilterde data'!EB92) -> 11
B106: =IF('Gefilterde data'!C93=0,"",'Gefilterde data'!C93) -> Spaarndammerbuurt-Midden | C106: =IF(B106="","",IF(LEFT(D106,2)="BU",'Gefilterde data'!G93,"-")) -> Spaarndammerbuurt/Zeeheldenbuurt | D106: =IF('Gefilterde data'!C93=0,"",'Gefilterde data'!A93) -> BU0363EB05 | E106: 1.12 | F106: 2.26 | G106: =IF('Gefilterde data'!CL93=0,"",'Gefilterde data'!CL93) -> 18.6 | H106: =IF('Gefilterde data'!DX93=0,"",'Gefilterde data'!DX93) -> 55.1 | J106: =IF('Gefilterde data'!DZ93=0,"",'Gefilterde data'!DZ93) -> 2 | K106: =IF('Gefilterde data'!DW93=0,"",'Gefilterde data'!DW93) -> 5,726 | L106: =IF('Gefilterde data'!I93=0,"",'Gefilterde data'!I93) -> 1,460 | M106: =IF('Gefilterde data'!DI93=0,"",'Gefilterde data'!DI93) -> 0.4 | N106: =IF('Gefilterde data'!EA93=0,"",'Gefilterde data'!EA93) -> 15 | O106: =IF('Gefilterde data'!EA93=0,"",'Gefilterde data'!EB93) -> 7
B107: =IF('Gefilterde data'!C94=0,"",'Gefilterde data'!C94) -> Spaarndammerbuurt-Zuidwest | C107: =IF(B107="","",IF(LEFT(D107,2)="BU",'Gefilterde data'!G94,"-")) -> Spaarndammerbuurt/Zeeheldenbuurt | D107: =IF('Gefilterde data'!C94=0,"",'Gefilterde data'!A94) -> BU0363EB06 | E107: 1.12 | F107: 2.26 | G107: =IF('Gefilterde data'!CL94=0,"",'Gefilterde data'!CL94) -> 19.7 | H107: =IF('Gefilterde data'!DX94=0,"",'Gefilterde data'!DX94) -> 51.1 | J107: =IF('Gefilterde data'!DZ94=0,"",'Gefilterde data'!DZ94) -> 3 | K107: =IF('Gefilterde data'!DW94=0,"",'Gefilterde data'!DW94) -> 5,905 | L107: =IF('Gefilterde data'!I94=0,"",'Gefilterde data'!I94) -> 1,800 | M107: =IF('Gefilterde data'!DI94=0,"",'Gefilterde data'!DI94) -> 0.3 | N107: =IF('Gefilterde data'!EA94=0,"",'Gefilterde data'!EA94) -> 11 | O107: =IF('Gefilterde data'!EA94=0,"",'Gefilterde data'!EB94) -> 21
B108: =IF('Gefilterde data'!C95=0,"",'Gefilterde data'!C95) -> Spaarndammerbuurt-Noordoost | C108: =IF(B108="","",IF(LEFT(D108,2)="BU",'Gefilterde data'!G95,"-")) -> Spaarndammerbuurt/Zeeheldenbuurt | D108: =IF('Gefilterde data'!C95=0,"",'Gefilterde data'!A95) -> BU0363EB07 | E108: 1.27 | F108: 2.55 | G108: =IF('Gefilterde data'!CL95=0,"",'Gefilterde data'!CL95) -> 22.8 | H108: =IF('Gefilterde data'!DX95=0,"",'Gefilterde data'!DX95) -> 55.6 | J108: =IF('Gefilterde data'!DZ95=0,"",'Gefilterde data'!DZ95) -> 2 | K108: =IF('Gefilterde data'!DW95=0,"",'Gefilterde data'!DW95) -> 6,052 | L108: =IF('Gefilterde data'!I95=0,"",'Gefilterde data'!I95) -> 2,645 | M108: =IF('Gefilterde data'!DI95=0,"",'Gefilterde data'!DI95) -> 0.3 | N108: =IF('Gefilterde data'!EA95=0,"",'Gefilterde data'!EA95) -> 11 | O108: =IF('Gefilterde data'!EA95=0,"",'Gefilterde data'!EB95) -> 15
B109: =IF('Gefilterde data'!C96=0,"",'Gefilterde data'!C96) -> Zeeheldenbuurt | C109: =IF(B109="","",IF(LEFT(D109,2)="BU",'Gefilterde data'!G96,"-")) -> Spaarndammerbuurt/Zeeheldenbuurt | D109: =IF('Gefilterde data'!C96=0,"",'Gefilterde data'!A96) -> BU0363EB08 | E109: 1.16 | F109: 2.34 | G109: =IF('Gefilterde data'!CL96=0,"",'Gefilterde data'!CL96) -> 19.3 | H109: =IF('Gefilterde data'!DX96=0,"",'Gefilterde data'!DX96) -> 57.0 | J109: =IF('Gefilterde data'!DZ96=0,"",'Gefilterde data'!DZ96) -> 4 | K109: =IF('Gefilterde data'!DW96=0,"",'Gefilterde data'!DW96) -> 5,622 | L109: =IF('Gefilterde data'!I96=0,"",'Gefilterde data'!I96) -> 1,955 | M109: =IF('Gefilterde data'!DI96=0,"",'Gefilterde data'!DI96) -> 0.4 | N109: =IF('Gefilterde data'!EA96=0,"",'Gefilterde data'!EA96) -> 14 | O109: =IF('Gefilterde data'!EA96=0,"",'Gefilterde data'!EB96) -> 13
B110: =IF('Gefilterde data'!C97=0,"",'Gefilterde data'!C97) -> Westergasfabriek | C110: =IF(B110="","",IF(LEFT(D110,2)="BU",'Gefilterde data'!G97,"-")) -> Spaarndammerbuurt/Zeeheldenbuurt | D110: =IF('Gefilterde data'!C97=0,"",'Gefilterde data'!A97) -> BU0363EB09 | E110: Ontbrekende waarde | F110: Ontbrekende waarde | G110: =IF('Gefilterde data'!CL97=0,"",'Gefilterde data'!CL97) -> . | H110: =IF('Gefilterde data'!DX97=0,"",'Gefilterde data'!DX97) -> Geen inwoners | J110: =IF('Gefilterde data'!DZ97=0,"",'Gefilterde data'!DZ97) -> Geen inwoners | K110: =IF('Gefilterde data'!DW97=0,"",'Gefilterde data'!DW97) -> 7,442 | L110: =IF('Gefilterde data'!I97=0,"",'Gefilterde data'!I97) ->  | M110: =IF('Gefilterde data'!DI97=0,"",'Gefilterde data'!DI97) -> . | N110: =IF('Gefilterde data'!EA97=0,"",'Gefilterde data'!EA97) -> Geen inwoners | O110: =IF('Gefilterde data'!EA97=0,"",'Gefilterde data'!EB97) -> Geen inwoners
B111: =IF('Gefilterde data'!C98=0,"",'Gefilterde data'!C98) -> Spaarndammerbuurt-Zuidoost | C111: =IF(B111="","",IF(LEFT(D111,2)="BU",'Gefilterde data'!G98,"-")) -> Spaarndammerbuurt/Zeeheldenbuurt | D111: =IF('Gefilterde data'!C98=0,"",'Gefilterde data'!A98) -> BU0363EB10 | E111: 1.05 | F111: 2.11 | G111: =IF('Gefilterde data'!CL98=0,"",'Gefilterde data'!CL98) -> 17 | H111: =IF('Gefilterde data'!DX98=0,"",'Gefilterde data'!DX98) -> 52.9 | J111: =IF('Gefilterde data'!DZ98=0,"",'Gefilterde data'!DZ98) -> 2 | K111: =IF('Gefilterde data'!DW98=0,"",'Gefilterde data'!DW98) -> 7,354 | L111: =IF('Gefilterde data'!I98=0,"",'Gefilterde data'!I98) -> 1,020 | M111: =IF('Gefilterde data'!DI98=0,"",'Gefilterde data'!DI98) -> 0.4 | N111: =IF('Gefilterde data'!EA98=0,"",'Gefilterde data'!EA98) -> 11 | O111: =IF('Gefilterde data'!EA98=0,"",'Gefilterde data'!EB98) -> 15
B112: =IF('Gefilterde data'!C99=0,"",'Gefilterde data'!C99) -> Houthavens-West | C112: =IF(B112="","",IF(LEFT(D112,2)="BU",'Gefilterde data'!G99,"-")) -> Houthavens | D112: =IF('Gefilterde data'!C99=0,"",'Gefilterde data'!A99) -> BU0363EC01 | E112: 0.55 | F112: 1.12 | G112: =IF('Gefilterde data'!CL99=0,"",'Gefilterde data'!CL99) -> 4.6 | H112: =IF('Gefilterde data'!DX99=0,"",'Gefilterde data'!DX99) -> 44.6 | J112: =IF('Gefilterde data'!DZ99=0,"",'Gefilterde data'!DZ99) -> 5 | K112: =IF('Gefilterde data'!DW99=0,"",'Gefilterde data'!DW99) -> 3,553 | L112: =IF('Gefilterde data'!I99=0,"",'Gefilterde data'!I99) -> 4,015 | M112: =IF('Gefilterde data'!DI99=0,"",'Gefilterde data'!DI99) -> 1.1 | N112: =IF('Gefilterde data'!EA99=0,"",'Gefilterde data'!EA99) -> 21 | O112: =IF('Gefilterde data'!EA99=0,"",'Gefilterde data'!EB99) -> 8
B113: =IF('Gefilterde data'!C100=0,"",'Gefilterde data'!C100) -> Houthavens-Oost | C113: =IF(B113="","",IF(LEFT(D113,2)="BU",'Gefilterde data'!G100,"-")) -> Houthavens | D113: =IF('Gefilterde data'!C100=0,"",'Gefilterde data'!A100) -> BU0363EC02 | E113: 0.75 | F113: 1.50 | G113: =IF('Gefilterde data'!CL100=0,"",'Gefilterde data'!CL100) -> 11.4 | H113: =IF('Gefilterde data'!DX100=0,"",'Gefilterde data'!DX100) -> 40.3 | J113: =IF('Gefilterde data'!DZ100=0,"",'Gefilterde data'!DZ100) -> 2 | K113: =IF('Gefilterde data'!DW100=0,"",'Gefilterde data'!DW100) -> 4,467 | L113: =IF('Gefilterde data'!I100=0,"",'Gefilterde data'!I100) -> 645 | M113: =IF('Gefilterde data'!DI100=0,"",'Gefilterde data'!DI100) -> 0.6 | N113: =IF('Gefilterde data'!EA100=0,"",'Gefilterde data'!EA100) -> 5 | O113: =IF('Gefilterde data'!EA100=0,"",'Gefilterde data'!EB100) -> 22
B114: =IF('Gefilterde data'!C101=0,"",'Gefilterde data'!C101) -> Kolenkitbuurt-Noord | C114: =IF(B114="","",IF(LEFT(D114,2)="BU",'Gefilterde data'!G101,"-")) -> De Kolenkit | D114: =IF('Gefilterde data'!C101=0,"",'Gefilterde data'!A101) -> BU0363ED01 | E114: 1.54 | F114: 3.10 | G114: =IF('Gefilterde data'!CL101=0,"",'Gefilterde data'!CL101) -> 23.7 | H114: =IF('Gefilterde data'!DX101=0,"",'Gefilterde data'!DX101) -> 82.5 | J114: =IF('Gefilterde data'!DZ101=0,"",'Gefilterde data'!DZ101) -> 1 | K114: =IF('Gefilterde data'!DW101=0,"",'Gefilterde data'!DW101) -> 5,886 | L114: =IF('Gefilterde data'!I101=0,"",'Gefilterde data'!I101) -> 4,805 | M114: =IF('Gefilterde data'!DI101=0,"",'Gefilterde data'!DI101) -> 0.4 | N114: =IF('Gefilterde data'!EA101=0,"",'Gefilterde data'!EA101) -> 20 | O114: =IF('Gefilterde data'!EA101=0,"",'Gefilterde data'!EB101) -> 7
B115: =IF('Gefilterde data'!C102=0,"",'Gefilterde data'!C102) -> Kolenkitbuurt-Zuid | C115: =IF(B115="","",IF(LEFT(D115,2)="BU",'Gefilterde data'!G102,"-")) -> De Kolenkit | D115: =IF('Gefilterde data'!C102=0,"",'Gefilterde data'!A102) -> BU0363ED02 | E115: 1.28 | F115: 2.58 | G115: =IF('Gefilterde data'!CL102=0,"",'Gefilterde data'!CL102) -> 18.1 | H115: =IF('Gefilterde data'!DX102=0,"",'Gefilterde data'!DX102) -> 74.7 | J115: =IF('Gefilterde data'!DZ102=0,"",'Gefilterde data'!DZ102) -> 1 | K115: =IF('Gefilterde data'!DW102=0,"",'Gefilterde data'!DW102) -> 6,368 | L115: =IF('Gefilterde data'!I102=0,"",'Gefilterde data'!I102) -> 2,170 | M115: =IF('Gefilterde data'!DI102=0,"",'Gefilterde data'!DI102) -> 0.5 | N115: =IF('Gefilterde data'!EA102=0,"",'Gefilterde data'!EA102) -> 16 | O115: =IF('Gefilterde data'!EA102=0,"",'Gefilterde data'!EB102) -> 10
B116: =IF('Gefilterde data'!C103=0,"",'Gefilterde data'!C103) -> Laan van Spartaan | C116: =IF(B116="","",IF(LEFT(D116,2)="BU",'Gefilterde data'!G103,"-")) -> De Kolenkit | D116: =IF('Gefilterde data'!C103=0,"",'Gefilterde data'!A103) -> BU0363ED03 | E116: 1.05 | F116: 2.11 | G116: =IF('Gefilterde data'!CL103=0,"",'Gefilterde data'!CL103) -> 13.1 | H116: =IF('Gefilterde data'!DX103=0,"",'Gefilterde data'!DX103) -> 67.5 | J116: =IF('Gefilterde data'!DZ103=0,"",'Gefilterde data'!DZ103) -> 11 | K116: =IF('Gefilterde data'!DW103=0,"",'Gefilterde data'!DW103) -> 6,173 | L116: =IF('Gefilterde data'!I103=0,"",'Gefilterde data'!I103) -> 2,800 | M116: =IF('Gefilterde data'!DI103=0,"",'Gefilterde data'!DI103) -> 0.3 | N116: =IF('Gefilterde data'!EA103=0,"",'Gefilterde data'!EA103) -> 16 | O116: =IF('Gefilterde data'!EA103=0,"",'Gefilterde data'!EB103) -> 6
B117: =IF('Gefilterde data'!C104=0,"",'Gefilterde data'!C104) -> Robert Scottbuurt-West | C117: =IF(B117="","",IF(LEFT(D117,2)="BU",'Gefilterde data'!G104,"-")) -> De Kolenkit | D117: =IF('Gefilterde data'!C104=0,"",'Gefilterde data'!A104) -> BU0363ED04 | E117: 1.29 | F117: 2.60 | G117: =IF('Gefilterde data'!CL104=0,"",'Gefilterde data'!CL104) -> 20.5 | H117: =IF('Gefilterde data'!DX104=0,"",'Gefilterde data'!DX104) -> 67.0 | J117: =IF('Gefilterde data'!DZ104=0,"",'Gefilterde data'!DZ104) -> 7 | K117: =IF('Gefilterde data'!DW104=0,"",'Gefilterde data'!DW104) -> 7,874 | L117: =IF('Gefilterde data'!I104=0,"",'Gefilterde data'!I104) -> 2,000 | M117: =IF('Gefilterde data'!DI104=0,"",'Gefilterde data'!DI104) -> 0.3 | N117: =IF('Gefilterde data'!EA104=0,"",'Gefilterde data'!EA104) -> 8 | O117: =IF('Gefilterde data'!EA104=0,"",'Gefilterde data'!EB104) -> 14
B118: =IF('Gefilterde data'!C105=0,"",'Gefilterde data'!C105) -> Bosleeuw | C118: =IF(B118="","",IF(LEFT(D118,2)="BU",'Gefilterde data'!G105,"-")) -> Landlust | D118: =IF('Gefilterde data'!C105=0,"",'Gefilterde data'!A105) -> BU0363EE01 | E118: 1.26 | F118: 2.53 | G118: =IF('Gefilterde data'!CL105=0,"",'Gefilterde data'!CL105) -> 18.3 | H118: =IF('Gefilterde data'!DX105=0,"",'Gefilterde data'!DX105) -> 71.3 | J118: =IF('Gefilterde data'!DZ105=0,"",'Gefilterde data'!DZ105) -> 6 | K118: =IF('Gefilterde data'!DW105=0,"",'Gefilterde data'!DW105) -> 6,394 | L118: =IF('Gefilterde data'!I105=0,"",'Gefilterde data'!I105) -> 5,485 | M118: =IF('Gefilterde data'!DI105=0,"",'Gefilterde data'!DI105) -> 0.4 | N118: =IF('Gefilterde data'!EA105=0,"",'Gefilterde data'!EA105) -> 14 | O118: =IF('Gefilterde data'!EA105=0,"",'Gefilterde data'!EB105) -> 9
B119: =IF('Gefilterde data'!C106=0,"",'Gefilterde data'!C106) -> Gibraltarbuurt | C119: =IF(B119="","",IF(LEFT(D119,2)="BU",'Gefilterde data'!G106,"-")) -> Landlust | D119: =IF('Gefilterde data'!C106=0,"",'Gefilterde data'!A106) -> BU0363EE02 | E119: 1.22 | F119: 2.46 | G119: =IF('Gefilterde data'!CL106=0,"",'Gefilterde data'!CL106) -> 19.6 | H119: =IF('Gefilterde data'!DX106=0,"",'Gefilterde data'!DX106) -> 62.5 | J119: =IF('Gefilterde data'!DZ106=0,"",'Gefilterde data'!DZ106) -> 3 | K119: =IF('Gefilterde data'!DW106=0,"",'Gefilterde data'!DW106) -> 5,215 | L119: =IF('Gefilterde data'!I106=0,"",'Gefilterde data'!I106) -> 4,185 | M119: =IF('Gefilterde data'!DI106=0,"",'Gefilterde data'!DI106) -> 0.3 | N119: =IF('Gefilterde data'!EA106=0,"",'Gefilterde data'!EA106) -> 12 | O119: =IF('Gefilterde data'!EA106=0,"",'Gefilterde data'!EB106) -> 9
B120: =IF('Gefilterde data'!C107=0,"",'Gefilterde data'!C107) -> Bedrijventerrein Landlust | C120: =IF(B120="","",IF(LEFT(D120,2)="BU",'Gefilterde data'!G107,"-")) -> Landlust | D120: =IF('Gefilterde data'!C107=0,"",'Gefilterde data'!A107) -> BU0363EE03 | E120: 0.84 | F120: 1.70 | G120: =IF('Gefilterde data'!CL107=0,"",'Gefilterde data'!CL107) -> 8.5 | H120: =IF('Gefilterde data'!DX107=0,"",'Gefilterde data'!DX107) -> 62.4 | J120: =IF('Gefilterde data'!DZ107=0,"",'Gefilterde data'!DZ107) -> 3 | K120: =IF('Gefilterde data'!DW107=0,"",'Gefilterde data'!DW107) -> 5,338 | L120: =IF('Gefilterde data'!I107=0,"",'Gefilterde data'!I107) -> 585 | M120: =IF('Gefilterde data'!DI107=0,"",'Gefilterde data'!DI107) -> 0.4 | N120: =IF('Gefilterde data'!EA107=0,"",'Gefilterde data'!EA107) -> 7 | O120: =IF('Gefilterde data'!EA107=0,"",'Gefilterde data'!EB107) -> 5
B121: =IF('Gefilterde data'!C108=0,"",'Gefilterde data'!C108) -> Landlust-Noord | C121: =IF(B121="","",IF(LEFT(D121,2)="BU",'Gefilterde data'!G108,"-")) -> Landlust | D121: =IF('Gefilterde data'!C108=0,"",'Gefilterde data'!A108) -> BU0363EE04 | E121: 1.24 | F121: 2.51 | G121: =IF('Gefilterde data'!CL108=0,"",'Gefilterde data'!CL108) -> 19.5 | H121: =IF('Gefilterde data'!DX108=0,"",'Gefilterde data'!DX108) -> 65.4 | J121: =IF('Gefilterde data'!DZ108=0,"",'Gefilterde data'!DZ108) -> 3 | K121: =IF('Gefilterde data'!DW108=0,"",'Gefilterde data'!DW108) -> 7,447 | L121: =IF('Gefilterde data'!I108=0,"",'Gefilterde data'!I108) -> 2,410 | M121: =IF('Gefilterde data'!DI108=0,"",'Gefilterde data'!DI108) -> 0.4 | N121: =IF('Gefilterde data'!EA108=0,"",'Gefilterde data'!EA108) -> 15 | O121: =IF('Gefilterde data'!EA108=0,"",'Gefilterde data'!EB108) -> 8
B122: =IF('Gefilterde data'!C109=0,"",'Gefilterde data'!C109) -> Erasmusparkbuurt-Oost | C122: =IF(B122="","",IF(LEFT(D122,2)="BU",'Gefilterde data'!G109,"-")) -> Landlust | D122: =IF('Gefilterde data'!C109=0,"",'Gefilterde data'!A109) -> BU0363EE05 | E122: 1.03 | F122: 2.08 | G122: =IF('Gefilterde data'!CL109=0,"",'Gefilterde data'!CL109) -> 15.2 | H122: =IF('Gefilterde data'!DX109=0,"",'Gefilterde data'!DX109) -> 57.9 | J122: =IF('Gefilterde data'!DZ109=0,"",'Gefilterde data'!DZ109) -> 4 | K122: =IF('Gefilterde data'!DW109=0,"",'Gefilterde data'!DW109) -> 9,009 | L122: =IF('Gefilterde data'!I109=0,"",'Gefilterde data'!I109) -> 1,865 | M122: =IF('Gefilterde data'!DI109=0,"",'Gefilterde data'!DI109) -> 0.4 | N122: =IF('Gefilterde data'!EA109=0,"",'Gefilterde data'!EA109) -> 14 | O122: =IF('Gefilterde data'!EA109=0,"",'Gefilterde data'!EB109) -> 9
B123: =IF('Gefilterde data'!C110=0,"",'Gefilterde data'!C110) -> Landlust-Zuid | C123: =IF(B123="","",IF(LEFT(D123,2)="BU",'Gefilterde data'!G110,"-")) -> Landlust | D123: =IF('Gefilterde data'!C110=0,"",'Gefilterde data'!A110) -> BU0363EE06 | E123: 1.09 | F123: 2.19 | G123: =IF('Gefilterde data'!CL110=0,"",'Gefilterde data'!CL110) -> 17.6 | H123: =IF('Gefilterde data'!DX110=0,"",'Gefilterde data'!DX110) -> 54.9 | J123: =IF('Gefilterde data'!DZ110=0,"",'Gefilterde data'!DZ110) -> 3 | K123: =IF('Gefilterde data'!DW110=0,"",'Gefilterde data'!DW110) -> 9,716 | L123: =IF('Gefilterde data'!I110=0,"",'Gefilterde data'!I110) -> 4,125 | M123: =IF('Gefilterde data'!DI110=0,"",'Gefilterde data'!DI110) -> 0.4 | N123: =IF('Gefilterde data'!EA110=0,"",'Gefilterde data'!EA110) -> 13 | O123: =IF('Gefilterde data'!EA110=0,"",'Gefilterde data'!EB110) -> 8
B124: =IF('Gefilterde data'!C111=0,"",'Gefilterde data'!C111) -> Robert Scottbuurt-Oost | C124: =IF(B124="","",IF(LEFT(D124,2)="BU",'Gefilterde data'!G111,"-")) -> Erasmuspark | D124: =IF('Gefilterde data'!C111=0,"",'Gefilterde data'!A111) -> BU0363EF01 | E124: 1.02 | F124: 2.05 | G124: =IF('Gefilterde data'!CL111=0,"",'Gefilterde data'!CL111) -> 15.2 | H124: =IF('Gefilterde data'!DX111=0,"",'Gefilterde data'!DX111) -> 56.3 | J124: =IF('Gefilterde data'!DZ111=0,"",'Gefilterde data'!DZ111) -> 3 | K124: =IF('Gefilterde data'!DW111=0,"",'Gefilterde data'!DW111) -> 8,150 | L124: =IF('Gefilterde data'!I111=0,"",'Gefilterde data'!I111) -> 1,750 | M124: =IF('Gefilterde data'!DI111=0,"",'Gefilterde data'!DI111) -> 0.3 | N124: =IF('Gefilterde data'!EA111=0,"",'Gefilterde data'!EA111) -> 10 | O124: =IF('Gefilterde data'!EA111=0,"",'Gefilterde data'!EB111) -> 9
B125: =IF('Gefilterde data'!C112=0,"",'Gefilterde data'!C112) -> Erasmusparkbuurt-West | C125: =IF(B125="","",IF(LEFT(D125,2)="BU",'Gefilterde data'!G112,"-")) -> Erasmuspark | D125: =IF('Gefilterde data'!C112=0,"",'Gefilterde data'!A112) -> BU0363EF02 | E125: 0.80 | F125: 1.62 | G125: =IF('Gefilterde data'!CL112=0,"",'Gefilterde data'!CL112) -> 9.3 | H125: =IF('Gefilterde data'!DX112=0,"",'Gefilterde data'!DX112) -> 54.8 | J125: =IF('Gefilterde data'!DZ112=0,"",'Gefilterde data'!DZ112) -> 4 | K125: =IF('Gefilterde data'!DW112=0,"",'Gefilterde data'!DW112) -> 8,432 | L125: =IF('Gefilterde data'!I112=0,"",'Gefilterde data'!I112) -> 3,995 | M125: =IF('Gefilterde data'!DI112=0,"",'Gefilterde data'!DI112) -> 0.4 | N125: =IF('Gefilterde data'!EA112=0,"",'Gefilterde data'!EA112) -> 11 | O125: =IF('Gefilterde data'!EA112=0,"",'Gefilterde data'!EB112) -> 8
B126: =IF('Gefilterde data'!C113=0,"",'Gefilterde data'!C113) -> Bedrijvencentrum Westerkwartier | C126: =IF(B126="","",IF(LEFT(D126,2)="BU",'Gefilterde data'!G113,"-")) -> Centrale Markt | D126: =IF('Gefilterde data'!C113=0,"",'Gefilterde data'!A113) -> BU0363EG01 | E126: Ontbrekende waarde | F126: Ontbrekende waarde | G126: =IF('Gefilterde data'!CL113=0,"",'Gefilterde data'!CL113) -> . | H126: =IF('Gefilterde data'!DX113=0,"",'Gefilterde data'!DX113) -> 16.7 | J126: =IF('Gefilterde data'!DZ113=0,"",'Gefilterde data'!DZ113) ->  | K126: =IF('Gefilterde data'!DW113=0,"",'Gefilterde data'!DW113) -> 6,257 | L126: =IF('Gefilterde data'!I113=0,"",'Gefilterde data'!I113) -> 60 | M126: =IF('Gefilterde data'!DI113=0,"",'Gefilterde data'!DI113) -> . | N126: =IF('Gefilterde data'!EA113=0,"",'Gefilterde data'!EA113) -> 8 | O126: =IF('Gefilterde data'!EA113=0,"",'Gefilterde data'!EB113) -> 8
B127: =IF('Gefilterde data'!C114=0,"",'Gefilterde data'!C114) -> GWL-terrein | C127: =IF(B127="","",IF(LEFT(D127,2)="BU",'Gefilterde data'!G114,"-")) -> Centrale Markt | D127: =IF('Gefilterde data'!C114=0,"",'Gefilterde data'!A114) -> BU0363EG02 | E127: 0.83 | F127: 1.67 | G127: =IF('Gefilterde data'!CL114=0,"",'Gefilterde data'!CL114) -> 12 | H127: =IF('Gefilterde data'!DX114=0,"",'Gefilterde data'!DX114) -> 47.4 | J127: =IF('Gefilterde data'!DZ114=0,"",'Gefilterde data'!DZ114) -> 2 | K127: =IF('Gefilterde data'!DW114=0,"",'Gefilterde data'!DW114) -> 7,177 | L127: =IF('Gefilterde data'!I114=0,"",'Gefilterde data'!I114) -> 1,235 | M127: =IF('Gefilterde data'!DI114=0,"",'Gefilterde data'!DI114) -> 0.3 | N127: =IF('Gefilterde data'!EA114=0,"",'Gefilterde data'!EA114) -> 12 | O127: =IF('Gefilterde data'!EA114=0,"",'Gefilterde data'!EB114) -> 14
B128: =IF('Gefilterde data'!C115=0,"",'Gefilterde data'!C115) -> Markthallen | C128: =IF(B128="","",IF(LEFT(D128,2)="BU",'Gefilterde data'!G115,"-")) -> Centrale Markt | D128: =IF('Gefilterde data'!C115=0,"",'Gefilterde data'!A115) -> BU0363EG03 | E128: Ontbrekende waarde | F128: Ontbrekende waarde | G128: =IF('Gefilterde data'!CL115=0,"",'Gefilterde data'!CL115) -> . | H128: =IF('Gefilterde data'!DX115=0,"",'Gefilterde data'!DX115) -> 33.3 | J128: =IF('Gefilterde data'!DZ115=0,"",'Gefilterde data'!DZ115) ->  | K128: =IF('Gefilterde data'!DW115=0,"",'Gefilterde data'!DW115) -> 10,121 | L128: =IF('Gefilterde data'!I115=0,"",'Gefilterde data'!I115) -> 15 | M128: =IF('Gefilterde data'!DI115=0,"",'Gefilterde data'!DI115) -> . | N128: =IF('Gefilterde data'!EA115=0,"",'Gefilterde data'!EA115) -> 33 | O128: =IF('Gefilterde data'!EA115=0,"",'Gefilterde data'!EB115) -> 33
B129: =IF('Gefilterde data'!C116=0,"",'Gefilterde data'!C116) -> Marcanti | C129: =IF(B129="","",IF(LEFT(D129,2)="BU",'Gefilterde data'!G116,"-")) -> Centrale Markt | D129: =IF('Gefilterde data'!C116=0,"",'Gefilterde data'!A116) -> BU0363EG04 | E129: 1.07 | F129: 2.16 | G129: =IF('Gefilterde data'!CL116=0,"",'Gefilterde data'!CL116) -> 17.1 | H129: =IF('Gefilterde data'!DX116=0,"",'Gefilterde data'!DX116) -> 55.3 | J129: =IF('Gefilterde data'!DZ116=0,"",'Gefilterde data'!DZ116) -> 3 | K129: =IF('Gefilterde data'!DW116=0,"",'Gefilterde data'!DW116) -> 11,439 | L129: =IF('Gefilterde data'!I116=0,"",'Gefilterde data'!I116) -> 1,030 | M129: =IF('Gefilterde data'!DI116=0,"",'Gefilterde data'!DI116) -> 0.3 | N129: =IF('Gefilterde data'!EA116=0,"",'Gefilterde data'!EA116) -> 9 | O129: =IF('Gefilterde data'!EA116=0,"",'Gefilterde data'!EB116) -> 17
B130: =IF('Gefilterde data'!C117=0,"",'Gefilterde data'!C117) -> Westerstaatsman | C130: =IF(B130="","",IF(LEFT(D130,2)="BU",'Gefilterde data'!G117,"-")) -> Staatsliedenbuurt | D130: =IF('Gefilterde data'!C117=0,"",'Gefilterde data'!A117) -> BU0363EH01 | E130: 1.06 | F130: 2.14 | G130: =IF('Gefilterde data'!CL117=0,"",'Gefilterde data'!CL117) -> 16.6 | H130: =IF('Gefilterde data'!DX117=0,"",'Gefilterde data'!DX117) -> 56.0 | J130: =IF('Gefilterde data'!DZ117=0,"",'Gefilterde data'!DZ117) -> 4 | K130: =IF('Gefilterde data'!DW117=0,"",'Gefilterde data'!DW117) -> 8,295 | L130: =IF('Gefilterde data'!I117=0,"",'Gefilterde data'!I117) -> 2,785 | M130: =IF('Gefilterde data'!DI117=0,"",'Gefilterde data'!DI117) -> 0.3 | N130: =IF('Gefilterde data'!EA117=0,"",'Gefilterde data'!EA117) -> 9 | O130: =IF('Gefilterde data'!EA117=0,"",'Gefilterde data'!EB117) -> 6
B131: =IF('Gefilterde data'!C118=0,"",'Gefilterde data'!C118) -> Fannius Scholtenbuurt | C131: =IF(B131="","",IF(LEFT(D131,2)="BU",'Gefilterde data'!G118,"-")) -> Staatsliedenbuurt | D131: =IF('Gefilterde data'!C118=0,"",'Gefilterde data'!A118) -> BU0363EH02 | E131: 1.17 | F131: 2.36 | G131: =IF('Gefilterde data'!CL118=0,"",'Gefilterde data'!CL118) -> 19.4 | H131: =IF('Gefilterde data'!DX118=0,"",'Gefilterde data'!DX118) -> 57.6 | J131: =IF('Gefilterde data'!DZ118=0,"",'Gefilterde data'!DZ118) -> 3 | K131: =IF('Gefilterde data'!DW118=0,"",'Gefilterde data'!DW118) -> 9,147 | L131: =IF('Gefilterde data'!I118=0,"",'Gefilterde data'!I118) -> 3,635 | M131: =IF('Gefilterde data'!DI118=0,"",'Gefilterde data'!DI118) -> 0.3 | N131: =IF('Gefilterde data'!EA118=0,"",'Gefilterde data'!EA118) -> 10 | O131: =IF('Gefilterde data'!EA118=0,"",'Gefilterde data'!EB118) -> 9
B132: =IF('Gefilterde data'!C119=0,"",'Gefilterde data'!C119) -> Staatsliedenbuurt-Noordoost | C132: =IF(B132="","",IF(LEFT(D132,2)="BU",'Gefilterde data'!G119,"-")) -> Staatsliedenbuurt | D132: =IF('Gefilterde data'!C119=0,"",'Gefilterde data'!A119) -> BU0363EH03 | E132: 1.37 | F132: 2.77 | G132: =IF('Gefilterde data'!CL119=0,"",'Gefilterde data'!CL119) -> 25.3 | H132: =IF('Gefilterde data'!DX119=0,"",'Gefilterde data'!DX119) -> 58.2 | J132: =IF('Gefilterde data'!DZ119=0,"",'Gefilterde data'!DZ119) -> 2 | K132: =IF('Gefilterde data'!DW119=0,"",'Gefilterde data'!DW119) -> 9,193 | L132: =IF('Gefilterde data'!I119=0,"",'Gefilterde data'!I119) -> 1,195 | M132: =IF('Gefilterde data'!DI119=0,"",'Gefilterde data'!DI119) -> 0.3 | N132: =IF('Gefilterde data'!EA119=0,"",'Gefilterde data'!EA119) -> 8 | O132: =IF('Gefilterde data'!EA119=0,"",'Gefilterde data'!EB119) -> 27
B133: =IF('Gefilterde data'!C120=0,"",'Gefilterde data'!C120) -> De Wittenbuurt-Noord | C133: =IF(B133="","",IF(LEFT(D133,2)="BU",'Gefilterde data'!G120,"-")) -> Staatsliedenbuurt | D133: =IF('Gefilterde data'!C120=0,"",'Gefilterde data'!A120) -> BU0363EH04 | E133: 1.07 | F133: 2.16 | G133: =IF('Gefilterde data'!CL120=0,"",'Gefilterde data'!CL120) -> 17.4 | H133: =IF('Gefilterde data'!DX120=0,"",'Gefilterde data'!DX120) -> 54.2 | J133: =IF('Gefilterde data'!DZ120=0,"",'Gefilterde data'!DZ120) -> 4 | K133: =IF('Gefilterde data'!DW120=0,"",'Gefilterde data'!DW120) -> 9,790 | L133: =IF('Gefilterde data'!I120=0,"",'Gefilterde data'!I120) -> 1,355 | M133: =IF('Gefilterde data'!DI120=0,"",'Gefilterde data'!DI120) -> 0.3 | N133: =IF('Gefilterde data'!EA120=0,"",'Gefilterde data'!EA120) -> 11 | O133: =IF('Gefilterde data'!EA120=0,"",'Gefilterde data'!EB120) -> 13
B134: =IF('Gefilterde data'!C121=0,"",'Gefilterde data'!C121) -> De Wittenbuurt-Zuid | C134: =IF(B134="","",IF(LEFT(D134,2)="BU",'Gefilterde data'!G121,"-")) -> Staatsliedenbuurt | D134: =IF('Gefilterde data'!C121=0,"",'Gefilterde data'!A121) -> BU0363EH05 | E134: 1.40 | F134: 2.82 | G134: =IF('Gefilterde data'!CL121=0,"",'Gefilterde data'!CL121) -> 27.5 | H134: =IF('Gefilterde data'!DX121=0,"",'Gefilterde data'!DX121) -> 52.8 | J134: =IF('Gefilterde data'!DZ121=0,"",'Gefilterde data'!DZ121) -> 2 | K134: =IF('Gefilterde data'!DW121=0,"",'Gefilterde data'!DW121) -> 11,037 | L134: =IF('Gefilterde data'!I121=0,"",'Gefilterde data'!I121) -> 815 | M134: =IF('Gefilterde data'!DI121=0,"",'Gefilterde data'!DI121) -> 0.3 | N134: =IF('Gefilterde data'!EA121=0,"",'Gefilterde data'!EA121) -> 7 | O134: =IF('Gefilterde data'!EA121=0,"",'Gefilterde data'!EB121) -> 25
B135: =IF('Gefilterde data'!C122=0,"",'Gefilterde data'!C122) -> Buyskade e.o. | C135: =IF(B135="","",IF(LEFT(D135,2)="BU",'Gefilterde data'!G122,"-")) -> Staatsliedenbuurt | D135: =IF('Gefilterde data'!C122=0,"",'Gefilterde data'!A122) -> BU0363EH06 | E135: 0.97 | F135: 1.96 | G135: =IF('Gefilterde data'!CL122=0,"",'Gefilterde data'!CL122) -> 15.3 | H135: =IF('Gefilterde data'!DX122=0,"",'Gefilterde data'!DX122) -> 50.9 | J135: =IF('Gefilterde data'!DZ122=0,"",'Gefilterde data'!DZ122) -> 4 | K135: =IF('Gefilterde data'!DW122=0,"",'Gefilterde data'!DW122) -> 9,789 | L135: =IF('Gefilterde data'!I122=0,"",'Gefilterde data'!I122) -> 3,190 | M135: =IF('Gefilterde data'!DI122=0,"",'Gefilterde data'!DI122) -> 0.4 | N135: =IF('Gefilterde data'!EA122=0,"",'Gefilterde data'!EA122) -> 10 | O135: =IF('Gefilterde data'!EA122=0,"",'Gefilterde data'!EB122) -> 10
B136: =IF('Gefilterde data'!C123=0,"",'Gefilterde data'!C123) -> Frederik Hendrikbuurt-Noord | C136: =IF(B136="","",IF(LEFT(D136,2)="BU",'Gefilterde data'!G123,"-")) -> Frederik Hendrikbuurt | D136: =IF('Gefilterde data'!C123=0,"",'Gefilterde data'!A123) -> BU0363EJ01 | E136: 1.02 | F136: 2.06 | G136: =IF('Gefilterde data'!CL123=0,"",'Gefilterde data'!CL123) -> 16.5 | H136: =IF('Gefilterde data'!DX123=0,"",'Gefilterde data'!DX123) -> 51.8 | J136: =IF('Gefilterde data'!DZ123=0,"",'Gefilterde data'!DZ123) -> 4 | K136: =IF('Gefilterde data'!DW123=0,"",'Gefilterde data'!DW123) -> 11,688 | L136: =IF('Gefilterde data'!I123=0,"",'Gefilterde data'!I123) -> 3,820 | M136: =IF('Gefilterde data'!DI123=0,"",'Gefilterde data'!DI123) -> 0.3 | N136: =IF('Gefilterde data'!EA123=0,"",'Gefilterde data'!EA123) -> 9 | O136: =IF('Gefilterde data'!EA123=0,"",'Gefilterde data'!EB123) -> 13
B137: =IF('Gefilterde data'!C124=0,"",'Gefilterde data'!C124) -> Frederik Hendrikbuurt-Zuidwest | C137: =IF(B137="","",IF(LEFT(D137,2)="BU",'Gefilterde data'!G124,"-")) -> Frederik Hendrikbuurt | D137: =IF('Gefilterde data'!C124=0,"",'Gefilterde data'!A124) -> BU0363EJ02 | E137: 0.94 | F137: 1.89 | G137: =IF('Gefilterde data'!CL124=0,"",'Gefilterde data'!CL124) -> 15.6 | H137: =IF('Gefilterde data'!DX124=0,"",'Gefilterde data'!DX124) -> 45.8 | J137: =IF('Gefilterde data'!DZ124=0,"",'Gefilterde data'!DZ124) -> 3 | K137: =IF('Gefilterde data'!DW124=0,"",'Gefilterde data'!DW124) -> 11,957 | L137: =IF('Gefilterde data'!I124=0,"",'Gefilterde data'!I124) -> 1,190 | M137: =IF('Gefilterde data'!DI124=0,"",'Gefilterde data'!DI124) -> 0.4 | N137: =IF('Gefilterde data'!EA124=0,"",'Gefilterde data'!EA124) -> 7 | O137: =IF('Gefilterde data'!EA124=0,"",'Gefilterde data'!EB124) -> 27
B138: =IF('Gefilterde data'!C125=0,"",'Gefilterde data'!C125) -> Frederik Hendrikbuurt-Zuidoost | C138: =IF(B138="","",IF(LEFT(D138,2)="BU",'Gefilterde data'!G125,"-")) -> Frederik Hendrikbuurt | D138: =IF('Gefilterde data'!C125=0,"",'Gefilterde data'!A125) -> BU0363EJ03 | E138: 1.13 | F138: 2.28 | G138: =IF('Gefilterde data'!CL125=0,"",'Gefilterde data'!CL125) -> 18.7 | H138: =IF('Gefilterde data'!DX125=0,"",'Gefilterde data'!DX125) -> 56.0 | J138: =IF('Gefilterde data'!DZ125=0,"",'Gefilterde data'!DZ125) -> 4 | K138: =IF('Gefilterde data'!DW125=0,"",'Gefilterde data'!DW125) -> 12,106 | L138: =IF('Gefilterde data'!I125=0,"",'Gefilterde data'!I125) -> 3,185 | M138: =IF('Gefilterde data'!DI125=0,"",'Gefilterde data'!DI125) -> 0.3 | N138: =IF('Gefilterde data'!EA125=0,"",'Gefilterde data'!EA125) -> 8 | O138: =IF('Gefilterde data'!EA125=0,"",'Gefilterde data'!EB125) -> 11
B139: =IF('Gefilterde data'!C126=0,"",'Gefilterde data'!C126) -> Mercatorpark | C139: =IF(B139="","",IF(LEFT(D139,2)="BU",'Gefilterde data'!G126,"-")) -> Van Galenbuurt | D139: =IF('Gefilterde data'!C126=0,"",'Gefilterde data'!A126) -> BU0363EK01 | E139: Ontbrekende waarde | F139: Ontbrekende waarde | G139: =IF('Gefilterde data'!CL126=0,"",'Gefilterde data'!CL126) -> . | H139: =IF('Gefilterde data'!DX126=0,"",'Gefilterde data'!DX126) -> 85.4 | J139: =IF('Gefilterde data'!DZ126=0,"",'Gefilterde data'!DZ126) ->  | K139: =IF('Gefilterde data'!DW126=0,"",'Gefilterde data'!DW126) -> 7,654 | L139: =IF('Gefilterde data'!I126=0,"",'Gefilterde data'!I126) -> 2,500 | M139: =IF('Gefilterde data'!DI126=0,"",'Gefilterde data'!DI126) -> . | N139: =IF('Gefilterde data'!EA126=0,"",'Gefilterde data'!EA126) -> 10 | O139: =IF('Gefilterde data'!EA126=0,"",'Gefilterde data'!EB126) -> 1
B140: =IF('Gefilterde data'!C127=0,"",'Gefilterde data'!C127) -> Orteliusbuurt-Noord | C140: =IF(B140="","",IF(LEFT(D140,2)="BU",'Gefilterde data'!G127,"-")) -> Van Galenbuurt | D140: =IF('Gefilterde data'!C127=0,"",'Gefilterde data'!A127) -> BU0363EK02 | E140: 1.16 | F140: 2.34 | G140: =IF('Gefilterde data'!CL127=0,"",'Gefilterde data'!CL127) -> 19.4 | H140: =IF('Gefilterde data'!DX127=0,"",'Gefilterde data'!DX127) -> 56.4 | J140: =IF('Gefilterde data'!DZ127=0,"",'Gefilterde data'!DZ127) -> 4 | K140: =IF('Gefilterde data'!DW127=0,"",'Gefilterde data'!DW127) -> 8,329 | L140: =IF('Gefilterde data'!I127=0,"",'Gefilterde data'!I127) -> 1,330 | M140: =IF('Gefilterde data'!DI127=0,"",'Gefilterde data'!DI127) -> 0.3 | N140: =IF('Gefilterde data'!EA127=0,"",'Gefilterde data'!EA127) -> 10 | O140: =IF('Gefilterde data'!EA127=0,"",'Gefilterde data'!EB127) -> 12
B141: =IF('Gefilterde data'!C128=0,"",'Gefilterde data'!C128) -> Jan Maijenbuurt | C141: =IF(B141="","",IF(LEFT(D141,2)="BU",'Gefilterde data'!G128,"-")) -> Van Galenbuurt | D141: =IF('Gefilterde data'!C128=0,"",'Gefilterde data'!A128) -> BU0363EK03 | E141: 1.39 | F141: 2.79 | G141: =IF('Gefilterde data'!CL128=0,"",'Gefilterde data'!CL128) -> 24.1 | H141: =IF('Gefilterde data'!DX128=0,"",'Gefilterde data'!DX128) -> 63.9 | J141: =IF('Gefilterde data'!DZ128=0,"",'Gefilterde data'!DZ128) -> 4 | K141: =IF('Gefilterde data'!DW128=0,"",'Gefilterde data'!DW128) -> 9,511 | L141: =IF('Gefilterde data'!I128=0,"",'Gefilterde data'!I128) -> 2,230 | M141: =IF('Gefilterde data'!DI128=0,"",'Gefilterde data'!DI128) -> 0.3 | N141: =IF('Gefilterde data'!EA128=0,"",'Gefilterde data'!EA128) -> 10 | O141: =IF('Gefilterde data'!EA128=0,"",'Gefilterde data'!EB128) -> 10
B142: =IF('Gefilterde data'!C129=0,"",'Gefilterde data'!C129) -> John Franklinbuurt | C142: =IF(B142="","",IF(LEFT(D142,2)="BU",'Gefilterde data'!G129,"-")) -> Van Galenbuurt | D142: =IF('Gefilterde data'!C129=0,"",'Gefilterde data'!A129) -> BU0363EK04 | E142: 1.15 | F142: 2.33 | G142: =IF('Gefilterde data'!CL129=0,"",'Gefilterde data'!CL129) -> 19.6 | H142: =IF('Gefilterde data'!DX129=0,"",'Gefilterde data'!DX129) -> 55.0 | J142: =IF('Gefilterde data'!DZ129=0,"",'Gefilterde data'!DZ129) -> 4 | K142: =IF('Gefilterde data'!DW129=0,"",'Gefilterde data'!DW129) -> 10,545 | L142: =IF('Gefilterde data'!I129=0,"",'Gefilterde data'!I129) -> 1,845 | M142: =IF('Gefilterde data'!DI129=0,"",'Gefilterde data'!DI129) -> 0.3 | N142: =IF('Gefilterde data'!EA129=0,"",'Gefilterde data'!EA129) -> 11 | O142: =IF('Gefilterde data'!EA129=0,"",'Gefilterde data'!EB129) -> 10
B143: =IF('Gefilterde data'!C130=0,"",'Gefilterde data'!C130) -> Pieter van der Doesbuurt | C143: =IF(B143="","",IF(LEFT(D143,2)="BU",'Gefilterde data'!G130,"-")) -> Geuzenbuurt | D143: =IF('Gefilterde data'!C130=0,"",'Gefilterde data'!A130) -> BU0363EL01 | E143: 1.22 | F143: 2.45 | G143: =IF('Gefilterde data'!CL130=0,"",'Gefilterde data'!CL130) -> 21.3 | H143: =IF('Gefilterde data'!DX130=0,"",'Gefilterde data'!DX130) -> 55.6 | J143: =IF('Gefilterde data'!DZ130=0,"",'Gefilterde data'!DZ130) -> 4 | K143: =IF('Gefilterde data'!DW130=0,"",'Gefilterde data'!DW130) -> 10,632 | L143: =IF('Gefilterde data'!I130=0,"",'Gefilterde data'!I130) -> 1,835 | M143: =IF('Gefilterde data'!DI130=0,"",'Gefilterde data'!DI130) -> 0.3 | N143: =IF('Gefilterde data'!EA130=0,"",'Gefilterde data'!EA130) -> 12 | O143: =IF('Gefilterde data'!EA130=0,"",'Gefilterde data'!EB130) -> 10
B144: =IF('Gefilterde data'!C131=0,"",'Gefilterde data'!C131) -> Trompbuurt | C144: =IF(B144="","",IF(LEFT(D144,2)="BU",'Gefilterde data'!G131,"-")) -> Geuzenbuurt | D144: =IF('Gefilterde data'!C131=0,"",'Gefilterde data'!A131) -> BU0363EL02 | E144: 0.83 | F144: 1.66 | G144: =IF('Gefilterde data'!CL131=0,"",'Gefilterde data'!CL131) -> 12.1 | H144: =IF('Gefilterde data'!DX131=0,"",'Gefilterde data'!DX131) -> 46.6 | J144: =IF('Gefilterde data'!DZ131=0,"",'Gefilterde data'!DZ131) -> 5 | K144: =IF('Gefilterde data'!DW131=0,"",'Gefilterde data'!DW131) -> 11,506 | L144: =IF('Gefilterde data'!I131=0,"",'Gefilterde data'!I131) -> 3,130 | M144: =IF('Gefilterde data'!DI131=0,"",'Gefilterde data'!DI131) -> 0.3 | N144: =IF('Gefilterde data'!EA131=0,"",'Gefilterde data'!EA131) -> 12 | O144: =IF('Gefilterde data'!EA131=0,"",'Gefilterde data'!EB131) -> 9
B145: =IF('Gefilterde data'!C132=0,"",'Gefilterde data'!C132) -> Geuzenhofbuurt | C145: =IF(B145="","",IF(LEFT(D145,2)="BU",'Gefilterde data'!G132,"-")) -> Geuzenbuurt | D145: =IF('Gefilterde data'!C132=0,"",'Gefilterde data'!A132) -> BU0363EL03 | E145: =IF(G145="","",IF(OR(NOT(ISNUMBER(G145)),NOT(ISNUMBER(H145))),"Ontbrekende waarde",F145/F$1)) -> 0.72 | F145: =IF(G145="","",IF(OR(NOT(ISNUMBER(G145)),NOT(ISNUMBER(H145))),"Ontbrekende waarde",((G145/AVERAGE(G$16:G$532)+H145/AVERAGE(H$16:H$532))))) -> 1.45 | G145: =IF('Gefilterde data'!CL132=0,"",'Gefilterde data'!CL132) -> 8.9 | H145: =IF('Gefilterde data'!DX132=0,"",'Gefilterde data'!DX132) -> 47.0 | J145: =IF('Gefilterde data'!DZ132=0,"",'Gefilterde data'!DZ132) -> 6 | K145: =IF('Gefilterde data'!DW132=0,"",'Gefilterde data'!DW132) -> 11,669 | L145: =IF('Gefilterde data'!I132=0,"",'Gefilterde data'!I132) -> 1,660 | M145: =IF('Gefilterde data'!DI132=0,"",'Gefilterde data'!DI132) -> 0.3 | N145: =IF('Gefilterde data'!EA132=0,"",'Gefilterde data'!EA132) -> 8 | O145: =IF('Gefilterde data'!EA132=0,"",'Gefilterde data'!EB132) -> 8
B146: =IF('Gefilterde data'!C133=0,"",'Gefilterde data'!C133) -> Orteliusbuurt-Midden | C146: =IF(B146="","",IF(LEFT(D146,2)="BU",'Gefilterde data'!G133,"-")) -> Hoofdweg e.o. | D146: =IF('Gefilterde data'!C133=0,"",'Gefilterde data'!A133) -> BU0363EM01 | E146: 1.03 | F146: 2.07 | G146: =IF('Gefilterde data'!CL133=0,"",'Gefilterde data'!CL133) -> 16.2 | H146: =IF('Gefilterde data'!DX133=0,"",'Gefilterde data'!DX133) -> 53.8 | J146: =IF('Gefilterde data'!DZ133=0,"",'Gefilterde data'!DZ133) -> 4 | K146: =IF('Gefilterde data'!DW133=0,"",'Gefilterde data'!DW133) -> 9,207 | L146: =IF('Gefilterde data'!I133=0,"",'Gefilterde data'!I133) -> 1,895 | M146: =IF('Gefilterde data'!DI133=0,"",'Gefilterde data'!DI133) -> 0.3 | N146: =IF('Gefilterde data'!EA133=0,"",'Gefilterde data'!EA133) -> 11 | O146: =IF('Gefilterde data'!EA133=0,"",'Gefilterde data'!EB133) -> 9
B147: =IF('Gefilterde data'!C134=0,"",'Gefilterde data'!C134) -> Balboaplein e.o. | C147: =IF(B147="","",IF(LEFT(D147,2)="BU",'Gefilterde data'!G134,"-")) -> Hoofdweg e.o. | D147: =IF('Gefilterde data'!C134=0,"",'Gefilterde data'!A134) -> BU0363EM02 | E147: 1.14 | F147: 2.30 | G147: =IF('Gefilterde data'!CL134=0,"",'Gefilterde data'!CL134) -> 18.1 | H147: =IF('Gefilterde data'!DX134=0,"",'Gefilterde data'!DX134) -> 59.1 | J147: =IF('Gefilterde data'!DZ134=0,"",'Gefilterde data'!DZ134) -> 5 | K147: =IF('Gefilterde data'!DW134=0,"",'Gefilterde data'!DW134) -> 10,846 | L147: =IF('Gefilterde data'!I134=0,"",'Gefilterde data'!I134) -> 2,970 | M147: =IF('Gefilterde data'!DI134=0,"",'Gefilterde data'!DI134) -> 0.3 | N147: =IF('Gefilterde data'!EA134=0,"",'Gefilterde data'!EA134) -> 11 | O147: =IF('Gefilterde data'!EA134=0,"",'Gefilterde data'!EB134) -> 8
B148: =IF('Gefilterde data'!C135=0,"",'Gefilterde data'!C135) -> Orteliusbuurt-Zuid | C148: =IF(B148="","",IF(LEFT(D148,2)="BU",'Gefilterde data'!G135,"-")) -> Hoofdweg e.o. | D148: =IF('Gefilterde data'!C135=0,"",'Gefilterde data'!A135) -> BU0363EM03 | E148: 1.05 | F148: 2.11 | G148: =IF('Gefilterde data'!CL135=0,"",'Gefilterde data'!CL135) -> 16.6 | H148: =IF('Gefilterde data'!DX135=0,"",'Gefilterde data'!DX135) -> 54.4 | J148: =IF('Gefilterde data'!DZ135=0,"",'Gefilterde data'!DZ135) -> 4 | K148: =IF('Gefilterde data'!DW135=0,"",'Gefilterde data'!DW135) -> 10,211 | L148: =IF('Gefilterde data'!I135=0,"",'Gefilterde data'!I135) -> 1,865 | M148: =IF('Gefilterde data'!DI135=0,"",'Gefilterde data'!DI135) -> 0.3 | N148: =IF('Gefilterde data'!EA135=0,"",'Gefilterde data'!EA135) -> 8 | O148: =IF('Gefilterde data'!EA135=0,"",'Gefilterde data'!EB135) -> 14
B149: =IF('Gefilterde data'!C136=0,"",'Gefilterde data'!C136) -> Columbusplein e.o. | C149: =IF(B149="","",IF(LEFT(D149,2)="BU",'Gefilterde data'!G136,"-")) -> Hoofdweg e.o. | D149: =IF('Gefilterde data'!C136=0,"",'Gefilterde data'!A136) -> BU0363EM04 | E149: 1.26 | F149: 2.54 | G149: =IF('Gefilterde data'!CL136=0,"",'Gefilterde data'!CL136) -> 21.2 | H149: =IF('Gefilterde data'!DX136=0,"",'Gefilterde data'!DX136) -> 61.1 | J149: =IF('Gefilterde data'!DZ136=0,"",'Gefilterde data'!DZ136) -> 4 | K149: =IF('Gefilterde data'!DW136=0,"",'Gefilterde data'!DW136) -> 10,925 | L149: =IF('Gefilterde data'!I136=0,"",'Gefilterde data'!I136) -> 3,415 | M149: =IF('Gefilterde data'!DI136=0,"",'Gefilterde data'!DI136) -> 0.4 | N149: =IF('Gefilterde data'!EA136=0,"",'Gefilterde data'!EA136) -> 12 | O149: =IF('Gefilterde data'!EA136=0,"",'Gefilterde data'!EB136) -> 10
B150: =IF('Gefilterde data'!C137=0,"",'Gefilterde data'!C137) -> Filips van Almondekwartier | C150: =IF(B150="","",IF(LEFT(D150,2)="BU",'Gefilterde data'!G137,"-")) -> Chassébuurt | D150: =IF('Gefilterde data'!C137=0,"",'Gefilterde data'!A137) -> BU0363EN01 | E150: 0.96 | F150: 1.94 | G150: =IF('Gefilterde data'!CL137=0,"",'Gefilterde data'!CL137) -> 14.6 | H150: =IF('Gefilterde data'!DX137=0,"",'Gefilterde data'!DX137) -> 52.5 | J150: =IF('Gefilterde data'!DZ137=0,"",'Gefilterde data'!DZ137) -> 5 | K150: =IF('Gefilterde data'!DW137=0,"",'Gefilterde data'!DW137) -> 11,062 | L150: =IF('Gefilterde data'!I137=0,"",'Gefilterde data'!I137) -> 1,105 | M150: =IF('Gefilterde data'!DI137=0,"",'Gefilterde data'!DI137) -> 0.3 | N150: =IF('Gefilterde data'!EA137=0,"",'Gefilterde data'!EA137) -> 11 | O150: =IF('Gefilterde data'!EA137=0,"",'Gefilterde data'!EB137) -> 8
B151: =IF('Gefilterde data'!C138=0,"",'Gefilterde data'!C138) -> Kortenaerkwartier | C151: =IF(B151="","",IF(LEFT(D151,2)="BU",'Gefilterde data'!G138,"-")) -> Chassébuurt | D151: =IF('Gefilterde data'!C138=0,"",'Gefilterde data'!A138) -> BU0363EN02 | E151: 0.97 | F151: 1.95 | G151: =IF('Gefilterde data'!CL138=0,"",'Gefilterde data'!CL138) -> 15.2 | H151: =IF('Gefilterde data'!DX138=0,"",'Gefilterde data'!DX138) -> 50.7 | J151: =IF('Gefilterde data'!DZ138=0,"",'Gefilterde data'!DZ138) -> 4 | K151: =IF('Gefilterde data'!DW138=0,"",'Gefilterde data'!DW138) -> 12,149 | L151: =IF('Gefilterde data'!I138=0,"",'Gefilterde data'!I138) -> 2,220 | M151: =IF('Gefilterde data'!DI138=0,"",'Gefilterde data'!DI138) -> 0.4 | N151: =IF('Gefilterde data'!EA138=0,"",'Gefilterde data'!EA138) -> 12 | O151: =IF('Gefilterde data'!EA138=0,"",'Gefilterde data'!EB138) -> 10
B152: =IF('Gefilterde data'!C139=0,"",'Gefilterde data'!C139) -> Van Brakelkwartier | C152: =IF(B152="","",IF(LEFT(D152,2)="BU",'Gefilterde data'!G139,"-")) -> Chassébuurt | D152: =IF('Gefilterde data'!C139=0,"",'Gefilterde data'!A139) -> BU0363EN03 | E152: 1.28 | F152: 2.59 | G152: =IF('Gefilterde data'!CL139=0,"",'Gefilterde data'!CL139) -> 20.8 | H152: =IF('Gefilterde data'!DX139=0,"",'Gefilterde data'!DX139) -> 65.2 | J152: =IF('Gefilterde data'!DZ139=0,"",'Gefilterde data'!DZ139) -> 3 | K152: =IF('Gefilterde data'!DW139=0,"",'Gefilterde data'!DW139) -> 11,620 | L152: =IF('Gefilterde data'!I139=0,"",'Gefilterde data'!I139) -> 990 | M152: =IF('Gefilterde data'!DI139=0,"",'Gefilterde data'!DI139) -> 0.4 | N152: =IF('Gefilterde data'!EA139=0,"",'Gefilterde data'!EA139) -> 16 | O152: =IF('Gefilterde data'!EA139=0,"",'Gefilterde data'!EB139) -> 11
B153: =IF('Gefilterde data'!C140=0,"",'Gefilterde data'!C140) -> De Wester Quartier | C153: =IF(B153="","",IF(LEFT(D153,2)="BU",'Gefilterde data'!G140,"-")) -> Chassébuurt | D153: =IF('Gefilterde data'!C140=0,"",'Gefilterde data'!A140) -> BU0363EN04 | E153: 1.23 | F153: 2.48 | G153: =IF('Gefilterde data'!CL140=0,"",'Gefilterde data'!CL140) -> 19 | H153: =IF('Gefilterde data'!DX140=0,"",'Gefilterde data'!DX140) -> 66.0 | J153: =IF('Gefilterde data'!DZ140=0,"",'Gefilterde data'!DZ140) -> 3 | K153: =IF('Gefilterde data'!DW140=0,"",'Gefilterde data'!DW140) -> 12,559 | L153: =IF('Gefilterde data'!I140=0,"",'Gefilterde data'!I140) -> 1,750 | M153: =IF('Gefilterde data'!DI140=0,"",'Gefilterde data'!DI140) -> 0.4 | N153: =IF('Gefilterde data'!EA140=0,"",'Gefilterde data'!EA140) -> 14 | O153: =IF('Gefilterde data'!EA140=0,"",'Gefilterde data'!EB140) -> 11
B154: =IF('Gefilterde data'!C141=0,"",'Gefilterde data'!C141) -> Bellamybuurt-Noord | C154: =IF(B154="","",IF(LEFT(D154,2)="BU",'Gefilterde data'!G141,"-")) -> Bellamybuurt | D154: =IF('Gefilterde data'!C141=0,"",'Gefilterde data'!A141) -> BU0363EP01 | E154: 0.98 | F154: 1.98 | G154: =IF('Gefilterde data'!CL141=0,"",'Gefilterde data'!CL141) -> 16.1 | H154: =IF('Gefilterde data'!DX141=0,"",'Gefilterde data'!DX141) -> 49.2 | J154: =IF('Gefilterde data'!DZ141=0,"",'Gefilterde data'!DZ141) -> 4 | K154: =IF('Gefilterde data'!DW141=0,"",'Gefilterde data'!DW141) -> 12,419 | L154: =IF('Gefilterde data'!I141=0,"",'Gefilterde data'!I141) -> 2,400 | M154: =IF('Gefilterde data'!DI141=0,"",'Gefilterde data'!DI141) -> 0.3 | N154: =IF('Gefilterde data'!EA141=0,"",'Gefilterde data'!EA141) -> 11 | O154: =IF('Gefilterde data'!EA141=0,"",'Gefilterde data'!EB141) -> 11
B155: =IF('Gefilterde data'!C142=0,"",'Gefilterde data'!C142) -> Bellamybuurt-Zuid | C155: =IF(B155="","",IF(LEFT(D155,2)="BU",'Gefilterde data'!G142,"-")) -> Bellamybuurt | D155: =IF('Gefilterde data'!C142=0,"",'Gefilterde data'!A142) -> BU0363EP02 | E155: 0.92 | F155: 1.86 | G155: =IF('Gefilterde data'!CL142=0,"",'Gefilterde data'!CL142) -> 13 | H155: =IF('Gefilterde data'!DX142=0,"",'Gefilterde data'!DX142) -> 53.9 | J155: =IF('Gefilterde data'!DZ142=0,"",'Gefilterde data'!DZ142) -> 5 | K155: =IF('Gefilterde data'!DW142=0,"",'Gefilterde data'!DW142) -> 12,192 | L155: =IF('Gefilterde data'!I142=0,"",'Gefilterde data'!I142) -> 3,980 | M155: =IF('Gefilterde data'!DI142=0,"",'Gefilterde data'!DI142) -> 0.3 | N155: =IF('Gefilterde data'!EA142=0,"",'Gefilterde data'!EA142) -> 11 | O155: =IF('Gefilterde data'!EA142=0,"",'Gefilterde data'!EB142) -> 9
B156: =IF('Gefilterde data'!C143=0,"",'Gefilterde data'!C143) -> Da Costabuurt-Noord | C156: =IF(B156="","",IF(LEFT(D156,2)="BU",'Gefilterde data'!G143,"-")) -> Da Costabuurt | D156: =IF('Gefilterde data'!C143=0,"",'Gefilterde data'!A143) -> BU0363EQ01 | E156: 0.87 | F156: 1.75 | G156: =IF('Gefilterde data'!CL143=0,"",'Gefilterde data'!CL143) -> 12.4 | H156: =IF('Gefilterde data'!DX143=0,"",'Gefilterde data'!DX143) -> 50.1 | J156: =IF('Gefilterde data'!DZ143=0,"",'Gefilterde data'!DZ143) -> 4 | K156: =IF('Gefilterde data'!DW143=0,"",'Gefilterde data'!DW143) -> 12,219 | L156: =IF('Gefilterde data'!I143=0,"",'Gefilterde data'!I143) -> 4,740 | M156: =IF('Gefilterde data'!DI143=0,"",'Gefilterde data'!DI143) -> 0.3 | N156: =IF('Gefilterde data'!EA143=0,"",'Gefilterde data'!EA143) -> 8 | O156: =IF('Gefilterde data'!EA143=0,"",'Gefilterde data'!EB143) -> 13
B157: =IF('Gefilterde data'!C144=0,"",'Gefilterde data'!C144) -> Postjeskade e.o. | C157: =IF(B157="","",IF(LEFT(D157,2)="BU",'Gefilterde data'!G144,"-")) -> Westindische Buurt | D157: =IF('Gefilterde data'!C144=0,"",'Gefilterde data'!A144) -> BU0363ER01 | E157: 0.78 | F157: 1.57 | G157: =IF('Gefilterde data'!CL144=0,"",'Gefilterde data'!CL144) -> 11.4 | H157: =IF('Gefilterde data'!DX144=0,"",'Gefilterde data'!DX144) -> 44.1 | J157: =IF('Gefilterde data'!DZ144=0,"",'Gefilterde data'!DZ144) -> 4 | K157: =IF('Gefilterde data'!DW144=0,"",'Gefilterde data'!DW144) -> 8,979 | L157: =IF('Gefilterde data'!I144=0,"",'Gefilterde data'!I144) -> 2,990 | M157: =IF('Gefilterde data'!DI144=0,"",'Gefilterde data'!DI144) -> 0.4 | N157: =IF('Gefilterde data'!EA144=0,"",'Gefilterde data'!EA144) -> 11 | O157: =IF('Gefilterde data'!EA144=0,"",'Gefilterde data'!EB144) -> 11
B158: =IF('Gefilterde data'!C145=0,"",'Gefilterde data'!C145) -> Paramariboplein e.o. | C158: =IF(B158="","",IF(LEFT(D158,2)="BU",'Gefilterde data'!G145,"-")) -> Westindische Buurt | D158: =IF('Gefilterde data'!C145=0,"",'Gefilterde data'!A145) -> BU0363ER02 | E158: 0.81 | F158: 1.63 | G158: =IF('Gefilterde data'!CL145=0,"",'Gefilterde data'!CL145) -> 10.8 | H158: =IF('Gefilterde data'!DX145=0,"",'Gefilterde data'!DX145) -> 49.8 | J158: =IF('Gefilterde data'!DZ145=0,"",'Gefilterde data'!DZ145) -> 5 | K158: =IF('Gefilterde data'!DW145=0,"",'Gefilterde data'!DW145) -> 10,025 | L158: =IF('Gefilterde data'!I145=0,"",'Gefilterde data'!I145) -> 3,705 | M158: =IF('Gefilterde data'!DI145=0,"",'Gefilterde data'!DI145) -> 0.4 | N158: =IF('Gefilterde data'!EA145=0,"",'Gefilterde data'!EA145) -> 13 | O158: =IF('Gefilterde data'!EA145=0,"",'Gefilterde data'!EB145) -> 8
B159: =IF('Gefilterde data'!C146=0,"",'Gefilterde data'!C146) -> Lootsbuurt | C159: =IF(B159="","",IF(LEFT(D159,2)="BU",'Gefilterde data'!G146,"-")) -> Van Lennepbuurt | D159: =IF('Gefilterde data'!C146=0,"",'Gefilterde data'!A146) -> BU0363ES01 | E159: 1.28 | F159: 2.59 | G159: =IF('Gefilterde data'!CL146=0,"",'Gefilterde data'!CL146) -> 23 | H159: =IF('Gefilterde data'!DX146=0,"",'Gefilterde data'!DX146) -> 56.8 | J159: =IF('Gefilterde data'!DZ146=0,"",'Gefilterde data'!DZ146) -> 4 | K159: =IF('Gefilterde data'!DW146=0,"",'Gefilterde data'!DW146) -> 10,530 | L159: =IF('Gefilterde data'!I146=0,"",'Gefilterde data'!I146) -> 1,865 | M159: =IF('Gefilterde data'!DI146=0,"",'Gefilterde data'!DI146) -> 0.3 | N159: =IF('Gefilterde data'!EA146=0,"",'Gefilterde data'!EA146) -> 9 | O159: =IF('Gefilterde data'!EA146=0,"",'Gefilterde data'!EB146) -> 11
B160: =IF('Gefilterde data'!C147=0,"",'Gefilterde data'!C147) -> Borgerbuurt | C160: =IF(B160="","",IF(LEFT(D160,2)="BU",'Gefilterde data'!G147,"-")) -> Van Lennepbuurt | D160: =IF('Gefilterde data'!C147=0,"",'Gefilterde data'!A147) -> BU0363ES02 | E160: 1.51 | F160: 3.04 | G160: =IF('Gefilterde data'!CL147=0,"",'Gefilterde data'!CL147) -> 27.9 | H160: =IF('Gefilterde data'!DX147=0,"",'Gefilterde data'!DX147) -> 63.1 | J160: =IF('Gefilterde data'!DZ147=0,"",'Gefilterde data'!DZ147) -> 3 | K160: =IF('Gefilterde data'!DW147=0,"",'Gefilterde data'!DW147) -> 11,200 | L160: =IF('Gefilterde data'!I147=0,"",'Gefilterde data'!I147) -> 2,790 | M160: =IF('Gefilterde data'!DI147=0,"",'Gefilterde data'!DI147) -> 0.3 | N160: =IF('Gefilterde data'!EA147=0,"",'Gefilterde data'!EA147) -> 10 | O160: =IF('Gefilterde data'!EA147=0,"",'Gefilterde data'!EB147) -> 24
B161: =IF('Gefilterde data'!C148=0,"",'Gefilterde data'!C148) -> Da Costabuurt-Zuid | C161: =IF(B161="","",IF(LEFT(D161,2)="BU",'Gefilterde data'!G148,"-")) -> Van Lennepbuurt | D161: =IF('Gefilterde data'!C148=0,"",'Gefilterde data'!A148) -> BU0363ES03 | E161: 0.94 | F161: 1.89 | G161: =IF('Gefilterde data'!CL148=0,"",'Gefilterde data'!CL148) -> 13.3 | H161: =IF('Gefilterde data'!DX148=0,"",'Gefilterde data'!DX148) -> 54.6 | J161: =IF('Gefilterde data'!DZ148=0,"",'Gefilterde data'!DZ148) -> 6 | K161: =IF('Gefilterde data'!DW148=0,"",'Gefilterde data'!DW148) -> 11,670 | L161: =IF('Gefilterde data'!I148=0,"",'Gefilterde data'!I148) -> 2,235 | M161: =IF('Gefilterde data'!DI148=0,"",'Gefilterde data'!DI148) -> 0.2 | N161: =IF('Gefilterde data'!EA148=0,"",'Gefilterde data'!EA148) -> 7 | O161: =IF('Gefilterde data'!EA148=0,"",'Gefilterde data'!EB148) -> 9
B162: =IF('Gefilterde data'!C149=0,"",'Gefilterde data'!C149) -> Cremerbuurt-West | C162: =IF(B162="","",IF(LEFT(D162,2)="BU",'Gefilterde data'!G149,"-")) -> Overtoomse Sluis | D162: =IF('Gefilterde data'!C149=0,"",'Gefilterde data'!A149) -> BU0363ET01 | E162: 0.87 | F162: 1.75 | G162: =IF('Gefilterde data'!CL149=0,"",'Gefilterde data'!CL149) -> 12.1 | H162: =IF('Gefilterde data'!DX149=0,"",'Gefilterde data'!DX149) -> 51.4 | J162: =IF('Gefilterde data'!DZ149=0,"",'Gefilterde data'!DZ149) -> 4 | K162: =IF('Gefilterde data'!DW149=0,"",'Gefilterde data'!DW149) -> 9,720 | L162: =IF('Gefilterde data'!I149=0,"",'Gefilterde data'!I149) -> 5,690 | M162: =IF('Gefilterde data'!DI149=0,"",'Gefilterde data'!DI149) -> 0.3 | N162: =IF('Gefilterde data'!EA149=0,"",'Gefilterde data'!EA149) -> 10 | O162: =IF('Gefilterde data'!EA149=0,"",'Gefilterde data'!EB149) -> 9
B163: =IF('Gefilterde data'!C150=0,"",'Gefilterde data'!C150) -> Vondelparkbuurt-West | C163: =IF(B163="","",IF(LEFT(D163,2)="BU",'Gefilterde data'!G150,"-")) -> Overtoomse Sluis | D163: =IF('Gefilterde data'!C150=0,"",'Gefilterde data'!A150) -> BU0363ET02 | E163: 0.78 | F163: 1.57 | G163: =IF('Gefilterde data'!CL150=0,"",'Gefilterde data'!CL150) -> 10.6 | H163: =IF('Gefilterde data'!DX150=0,"",'Gefilterde data'!DX150) -> 47.1 | J163: =IF('Gefilterde data'!DZ150=0,"",'Gefilterde data'!DZ150) -> 4 | K163: =IF('Gefilterde data'!DW150=0,"",'Gefilterde data'!DW150) -> 8,826 | L163: =IF('Gefilterde data'!I150=0,"",'Gefilterde data'!I150) -> 2,250 | M163: =IF('Gefilterde data'!DI150=0,"",'Gefilterde data'!DI150) -> 0.3 | N163: =IF('Gefilterde data'!EA150=0,"",'Gefilterde data'!EA150) -> 10 | O163: =IF('Gefilterde data'!EA150=0,"",'Gefilterde data'!EB150) -> 14
B164: =IF('Gefilterde data'!C151=0,"",'Gefilterde data'!C151) -> Cremerbuurt-Oost | C164: =IF(B164="","",IF(LEFT(D164,2)="BU",'Gefilterde data'!G151,"-")) -> Helmersbuurt | D164: =IF('Gefilterde data'!C151=0,"",'Gefilterde data'!A151) -> BU0363EU01 | E164: 0.78 | F164: 1.58 | G164: =IF('Gefilterde data'!CL151=0,"",'Gefilterde data'!CL151) -> 11.1 | H164: =IF('Gefilterde data'!DX151=0,"",'Gefilterde data'!DX151) -> 45.6 | J164: =IF('Gefilterde data'!DZ151=0,"",'Gefilterde data'!DZ151) -> 5 | K164: =IF('Gefilterde data'!DW151=0,"",'Gefilterde data'!DW151) -> 10,508 | L164: =IF('Gefilterde data'!I151=0,"",'Gefilterde data'!I151) -> 2,335 | M164: =IF('Gefilterde data'!DI151=0,"",'Gefilterde data'!DI151) -> 0.3 | N164: =IF('Gefilterde data'!EA151=0,"",'Gefilterde data'!EA151) -> 10 | O164: =IF('Gefilterde data'!EA151=0,"",'Gefilterde data'!EB151) -> 7
B165: =IF('Gefilterde data'!C152=0,"",'Gefilterde data'!C152) -> WG-terrein | C165: =IF(B165="","",IF(LEFT(D165,2)="BU",'Gefilterde data'!G152,"-")) -> Helmersbuurt | D165: =IF('Gefilterde data'!C152=0,"",'Gefilterde data'!A152) -> BU0363EU02 | E165: 1.06 | F165: 2.13 | G165: =IF('Gefilterde data'!CL152=0,"",'Gefilterde data'!CL152) -> 18.6 | H165: =IF('Gefilterde data'!DX152=0,"",'Gefilterde data'!DX152) -> 47.9 | J165: =IF('Gefilterde data'!DZ152=0,"",'Gefilterde data'!DZ152) -> 3 | K165: =IF('Gefilterde data'!DW152=0,"",'Gefilterde data'!DW152) -> 10,597 | L165: =IF('Gefilterde data'!I152=0,"",'Gefilterde data'!I152) -> 2,630 | M165: =IF('Gefilterde data'!DI152=0,"",'Gefilterde data'!DI152) -> 0.4 | N165: =IF('Gefilterde data'!EA152=0,"",'Gefilterde data'!EA152) -> 9 | O165: =IF('Gefilterde data'!EA152=0,"",'Gefilterde data'!EB152) -> 19
B166: =IF('Gefilterde data'!C153=0,"",'Gefilterde data'!C153) -> Helmersbuurt-Oost | C166: =IF(B166="","",IF(LEFT(D166,2)="BU",'Gefilterde data'!G153,"-")) -> Helmersbuurt | D166: =IF('Gefilterde data'!C153=0,"",'Gefilterde data'!A153) -> BU0363EU03 | E166: 0.68 | F166: 1.38 | G166: =IF('Gefilterde data'!CL153=0,"",'Gefilterde data'!CL153) -> 7.6 | H166: =IF('Gefilterde data'!DX153=0,"",'Gefilterde data'!DX153) -> 47.9 | J166: =IF('Gefilterde data'!DZ153=0,"",'Gefilterde data'!DZ153) -> 7 | K166: =IF('Gefilterde data'!DW153=0,"",'Gefilterde data'!DW153) -> 10,472 | L166: =IF('Gefilterde data'!I153=0,"",'Gefilterde data'!I153) -> 2,535 | M166: =IF('Gefilterde data'!DI153=0,"",'Gefilterde data'!DI153) -> 0.4 | N166: =IF('Gefilterde data'!EA153=0,"",'Gefilterde data'!EA153) -> 11 | O166: =IF('Gefilterde data'!EA153=0,"",'Gefilterde data'!EB153) -> 9
B167: =IF('Gefilterde data'!C154=0,"",'Gefilterde data'!C154) -> Vondelparkbuurt-Midden | C167: =IF(B167="","",IF(LEFT(D167,2)="BU",'Gefilterde data'!G154,"-")) -> Vondelparkbuurt | D167: =IF('Gefilterde data'!C154=0,"",'Gefilterde data'!A154) -> BU0363EV01 | E167: 0.89 | F167: 1.80 | G167: =IF('Gefilterde data'!CL154=0,"",'Gefilterde data'!CL154) -> 13 | H167: =IF('Gefilterde data'!DX154=0,"",'Gefilterde data'!DX154) -> 50.6 | J167: =IF('Gefilterde data'!DZ154=0,"",'Gefilterde data'!DZ154) -> 6 | K167: =IF('Gefilterde data'!DW154=0,"",'Gefilterde data'!DW154) -> 9,737 | L167: =IF('Gefilterde data'!I154=0,"",'Gefilterde data'!I154) -> 860 | M167: =IF('Gefilterde data'!DI154=0,"",'Gefilterde data'!DI154) -> 0.5 | N167: =IF('Gefilterde data'!EA154=0,"",'Gefilterde data'!EA154) -> 11 | O167: =IF('Gefilterde data'!EA154=0,"",'Gefilterde data'!EB154) -> 16
B168: =IF('Gefilterde data'!C155=0,"",'Gefilterde data'!C155) -> Vondelparkbuurt-Oost | C168: =IF(B168="","",IF(LEFT(D168,2)="BU",'Gefilterde data'!G155,"-")) -> Vondelparkbuurt | D168: =IF('Gefilterde data'!C155=0,"",'Gefilterde data'!A155) -> BU0363EV02 | E168: 1.01 | F168: 2.03 | G168: =IF('Gefilterde data'!CL155=0,"",'Gefilterde data'!CL155) -> 14.4 | H168: =IF('Gefilterde data'!DX155=0,"",'Gefilterde data'!DX155) -> 58.2 | J168: =IF('Gefilterde data'!DZ155=0,"",'Gefilterde data'!DZ155) -> 5 | K168: =IF('Gefilterde data'!DW155=0,"",'Gefilterde data'!DW155) -> 10,016 | L168: =IF('Gefilterde data'!I155=0,"",'Gefilterde data'!I155) -> 1,005 | M168: =IF('Gefilterde data'!DI155=0,"",'Gefilterde data'!DI155) -> 0.5 | N168: =IF('Gefilterde data'!EA155=0,"",'Gefilterde data'!EA155) -> 8 | O168: =IF('Gefilterde data'!EA155=0,"",'Gefilterde data'!EB155) -> 15
B169: =IF('Gefilterde data'!C156=0,"",'Gefilterde data'!C156) -> Sloterdijk De Heining | C169: =IF(B169="","",IF(LEFT(D169,2)="BU",'Gefilterde data'!G156,"-")) -> Sloterdijk Nieuw-West | D169: =IF('Gefilterde data'!C156=0,"",'Gefilterde data'!A156) -> BU0363FA01 | E169: Ontbrekende waarde | F169: Ontbrekende waarde | G169: =IF('Gefilterde data'!CL156=0,"",'Gefilterde data'!CL156) -> . | H169: =IF('Gefilterde data'!DX156=0,"",'Gefilterde data'!DX156) -> 33.3 | J169: =IF('Gefilterde data'!DZ156=0,"",'Gefilterde data'!DZ156) ->  | K169: =IF('Gefilterde data'!DW156=0,"",'Gefilterde data'!DW156) -> 147 | L169: =IF('Gefilterde data'!I156=0,"",'Gefilterde data'!I156) -> 30 | M169: =IF('Gefilterde data'!DI156=0,"",'Gefilterde data'!DI156) -> . | N169: =IF('Gefilterde data'!EA156=0,"",'Gefilterde data'!EA156) -> 17 | O169: =IF('Gefilterde data'!EA156=0,"",'Gefilterde data'!EB156) -> 17
B170: =IF('Gefilterde data'!C157=0,"",'Gefilterde data'!C157) -> Sloterdijk Poort-Noord | C170: =IF(B170="","",IF(LEFT(D170,2)="BU",'Gefilterde data'!G157,"-")) -> Sloterdijk Nieuw-West | D170: =IF('Gefilterde data'!C157=0,"",'Gefilterde data'!A157) -> BU0363FA02 | E170: Ontbrekende waarde | F170: Ontbrekende waarde | G170: =IF('Gefilterde data'!CL157=0,"",'Gefilterde data'!CL157) -> . | H170: =IF('Gefilterde data'!DX157=0,"",'Gefilterde data'!DX157) -> 66.7 | J170: =IF('Gefilterde data'!DZ157=0,"",'Gefilterde data'!DZ157) ->  | K170: =IF('Gefilterde data'!DW157=0,"",'Gefilterde data'!DW157) -> 186 | L170: =IF('Gefilterde data'!I157=0,"",'Gefilterde data'!I157) -> 15 | M170: =IF('Gefilterde data'!DI157=0,"",'Gefilterde data'!DI157) -> . | N170: =IF('Gefilterde data'!EA157=0,"",'Gefilterde data'!EA157) ->  | O170: =IF('Gefilterde data'!EA157=0,"",'Gefilterde data'!EB157) -> 
B171: =IF('Gefilterde data'!C158=0,"",'Gefilterde data'!C158) -> Sloterdijk Poort-Zuid | C171: =IF(B171="","",IF(LEFT(D171,2)="BU",'Gefilterde data'!G158,"-")) -> Sloterdijk Nieuw-West | D171: =IF('Gefilterde data'!C158=0,"",'Gefilterde data'!A158) -> BU0363FA03 | E171: Ontbrekende waarde | F171: Ontbrekende waarde | G171: =IF('Gefilterde data'!CL158=0,"",'Gefilterde data'!CL158) -> . | H171: =IF('Gefilterde data'!DX158=0,"",'Gefilterde data'!DX158) -> 78.3 | J171: =IF('Gefilterde data'!DZ158=0,"",'Gefilterde data'!DZ158) ->  | K171: =IF('Gefilterde data'!DW158=0,"",'Gefilterde data'!DW158) -> 387 | L171: =IF('Gefilterde data'!I158=0,"",'Gefilterde data'!I158) -> 115 | M171: =IF('Gefilterde data'!DI158=0,"",'Gefilterde data'!DI158) -> . | N171: =IF('Gefilterde data'!EA158=0,"",'Gefilterde data'!EA158) -> 4 | O171: =IF('Gefilterde data'!EA158=0,"",'Gefilterde data'!EB158) -> 4
B172: =IF('Gefilterde data'!C159=0,"",'Gefilterde data'!C159) -> Sloterdijk Rhônepark | C172: =IF(B172="","",IF(LEFT(D172,2)="BU",'Gefilterde data'!G159,"-")) -> Sloterdijk Nieuw-West | D172: =IF('Gefilterde data'!C159=0,"",'Gefilterde data'!A159) -> BU0363FA04 | E172: Ontbrekende waarde | F172: Ontbrekende waarde | G172: =IF('Gefilterde data'!CL159=0,"",'Gefilterde data'!CL159) -> . | H172: =IF('Gefilterde data'!DX159=0,"",'Gefilterde data'!DX159) -> Geen inwoners | J172: =IF('Gefilterde data'!DZ159=0,"",'Gefilterde data'!DZ159) -> Geen inwoners | K172: =IF('Gefilterde data'!DW159=0,"",'Gefilterde data'!DW159) -> 1,193 | L172: =IF('Gefilterde data'!I159=0,"",'Gefilterde data'!I159) ->  | M172: =IF('Gefilterde data'!DI159=0,"",'Gefilterde data'!DI159) -> . | N172: =IF('Gefilterde data'!EA159=0,"",'Gefilterde data'!EA159) -> Geen inwoners | O172: =IF('Gefilterde data'!EA159=0,"",'Gefilterde data'!EB159) -> Geen inwoners
B173: =IF('Gefilterde data'!C160=0,"",'Gefilterde data'!C160) -> Sloterdijk Donauhoek | C173: =IF(B173="","",IF(LEFT(D173,2)="BU",'Gefilterde data'!G160,"-")) -> Sloterdijk Nieuw-West | D173: =IF('Gefilterde data'!C160=0,"",'Gefilterde data'!A160) -> BU0363FA05 | E173: Ontbrekende waarde | F173: Ontbrekende waarde | G173: =IF('Gefilterde data'!CL160=0,"",'Gefilterde data'!CL160) -> . | H173: =IF('Gefilterde data'!DX160=0,"",'Gefilterde data'!DX160) -> 100.0 | J173: =IF('Gefilterde data'!DZ160=0,"",'Gefilterde data'!DZ160) ->  | K173: =IF('Gefilterde data'!DW160=0,"",'Gefilterde data'!DW160) -> 561 | L173: =IF('Gefilterde data'!I160=0,"",'Gefilterde data'!I160) -> 10 | M173: =IF('Gefilterde data'!DI160=0,"",'Gefilterde data'!DI160) -> . | N173: =IF('Gefilterde data'!EA160=0,"",'Gefilterde data'!EA160) ->  | O173: =IF('Gefilterde data'!EA160=0,"",'Gefilterde data'!EB160) -> 
B174: =IF('Gefilterde data'!C161=0,"",'Gefilterde data'!C161) -> Bretten-West | C174: =IF(B174="","",IF(LEFT(D174,2)="BU",'Gefilterde data'!G161,"-")) -> Sloterdijk Nieuw-West | D174: =IF('Gefilterde data'!C161=0,"",'Gefilterde data'!A161) -> BU0363FA06 | E174: Ontbrekende waarde | F174: Ontbrekende waarde | G174: =IF('Gefilterde data'!CL161=0,"",'Gefilterde data'!CL161) -> . | H174: =IF('Gefilterde data'!DX161=0,"",'Gefilterde data'!DX161) -> Geen inwoners | J174: =IF('Gefilterde data'!DZ161=0,"",'Gefilterde data'!DZ161) -> Geen inwoners | K174: =IF('Gefilterde data'!DW161=0,"",'Gefilterde data'!DW161) -> 205 | L174: =IF('Gefilterde data'!I161=0,"",'Gefilterde data'!I161) ->  | M174: =IF('Gefilterde data'!DI161=0,"",'Gefilterde data'!DI161) -> . | N174: =IF('Gefilterde data'!EA161=0,"",'Gefilterde data'!EA161) -> Geen inwoners | O174: =IF('Gefilterde data'!EA161=0,"",'Gefilterde data'!EB161) -> Geen inwoners
B175: =IF('Gefilterde data'!C162=0,"",'Gefilterde data'!C162) -> Bretten-Oost | C175: =IF(B175="","",IF(LEFT(D175,2)="BU",'Gefilterde data'!G162,"-")) -> Sloterdijk Nieuw-West | D175: =IF('Gefilterde data'!C162=0,"",'Gefilterde data'!A162) -> BU0363FA07 | E175: Ontbrekende waarde | F175: Ontbrekende waarde | G175: =IF('Gefilterde data'!CL162=0,"",'Gefilterde data'!CL162) -> . | H175: =IF('Gefilterde data'!DX162=0,"",'Gefilterde data'!DX162) -> Geen inwoners | J175: =IF('Gefilterde data'!DZ162=0,"",'Gefilterde data'!DZ162) -> Geen inwoners | K175: =IF('Gefilterde data'!DW162=0,"",'Gefilterde data'!DW162) -> 2,416 | L175: =IF('Gefilterde data'!I162=0,"",'Gefilterde data'!I162) ->  | M175: =IF('Gefilterde data'!DI162=0,"",'Gefilterde data'!DI162) -> . | N175: =IF('Gefilterde data'!EA162=0,"",'Gefilterde data'!EA162) -> Geen inwoners | O175: =IF('Gefilterde data'!EA162=0,"",'Gefilterde data'!EB162) -> Geen inwoners
B176: =IF('Gefilterde data'!C163=0,"",'Gefilterde data'!C163) -> Sloterdijk Stationskwartier | C176: =IF(B176="","",IF(LEFT(D176,2)="BU",'Gefilterde data'!G163,"-")) -> Sloterdijk Nieuw-West | D176: =IF('Gefilterde data'!C163=0,"",'Gefilterde data'!A163) -> BU0363FA08 | E176: 1.27 | F176: 2.56 | G176: =IF('Gefilterde data'!CL163=0,"",'Gefilterde data'!CL163) -> 14.6 | H176: =IF('Gefilterde data'!DX163=0,"",'Gefilterde data'!DX163) -> 87.1 | J176: =IF('Gefilterde data'!DZ163=0,"",'Gefilterde data'!DZ163) -> 21 | K176: =IF('Gefilterde data'!DW163=0,"",'Gefilterde data'!DW163) -> 2,603 | L176: =IF('Gefilterde data'!I163=0,"",'Gefilterde data'!I163) -> 1,010 | M176: =IF('Gefilterde data'!DI163=0,"",'Gefilterde data'!DI163) -> 1.4 | N176: =IF('Gefilterde data'!EA163=0,"",'Gefilterde data'!EA163) -> 6 | O176: =IF('Gefilterde data'!EA163=0,"",'Gefilterde data'!EB163) -> 0
B177: =IF('Gefilterde data'!C164=0,"",'Gefilterde data'!C164) -> Osdorper Binnenpolder | C177: =IF(B177="","",IF(LEFT(D177,2)="BU",'Gefilterde data'!G164,"-")) -> Geuzenveld | D177: =IF('Gefilterde data'!C164=0,"",'Gefilterde data'!A164) -> BU0363FB01 | E177: Ontbrekende waarde | F177: Ontbrekende waarde | G177: =IF('Gefilterde data'!CL164=0,"",'Gefilterde data'!CL164) -> . | H177: =IF('Gefilterde data'!DX164=0,"",'Gefilterde data'!DX164) -> 40.0 | J177: =IF('Gefilterde data'!DZ164=0,"",'Gefilterde data'!DZ164) ->  | K177: =IF('Gefilterde data'!DW164=0,"",'Gefilterde data'!DW164) -> 672 | L177: =IF('Gefilterde data'!I164=0,"",'Gefilterde data'!I164) -> 25 | M177: =IF('Gefilterde data'!DI164=0,"",'Gefilterde data'!DI164) -> . | N177: =IF('Gefilterde data'!EA164=0,"",'Gefilterde data'!EA164) ->  | O177: =IF('Gefilterde data'!EA164=0,"",'Gefilterde data'!EB164) -> 
B178: =IF('Gefilterde data'!C165=0,"",'Gefilterde data'!C165) -> De Eendracht | C178: =IF(B178="","",IF(LEFT(D178,2)="BU",'Gefilterde data'!G165,"-")) -> Geuzenveld | D178: =IF('Gefilterde data'!C165=0,"",'Gefilterde data'!A165) -> BU0363FB02 | E178: 0.83 | F178: 1.67 | G178: =IF('Gefilterde data'!CL165=0,"",'Gefilterde data'!CL165) -> 7.6 | H178: =IF('Gefilterde data'!DX165=0,"",'Gefilterde data'!DX165) -> 63.9 | J178: =IF('Gefilterde data'!DZ165=0,"",'Gefilterde data'!DZ165) -> 1 | K178: =IF('Gefilterde data'!DW165=0,"",'Gefilterde data'!DW165) -> 1,752 | L178: =IF('Gefilterde data'!I165=0,"",'Gefilterde data'!I165) -> 2,425 | M178: =IF('Gefilterde data'!DI165=0,"",'Gefilterde data'!DI165) -> 1.0 | N178: =IF('Gefilterde data'!EA165=0,"",'Gefilterde data'!EA165) -> 19 | O178: =IF('Gefilterde data'!EA165=0,"",'Gefilterde data'!EB165) -> 19
B179: =IF('Gefilterde data'!C166=0,"",'Gefilterde data'!C166) -> Ruys de Beerenbrouckbuurt | C179: =IF(B179="","",IF(LEFT(D179,2)="BU",'Gefilterde data'!G166,"-")) -> Geuzenveld | D179: =IF('Gefilterde data'!C166=0,"",'Gefilterde data'!A166) -> BU0363FB03 | E179: 1.49 | F179: 3.01 | G179: =IF('Gefilterde data'!CL166=0,"",'Gefilterde data'!CL166) -> 22.4 | H179: =IF('Gefilterde data'!DX166=0,"",'Gefilterde data'!DX166) -> 82.5 | J179: =IF('Gefilterde data'!DZ166=0,"",'Gefilterde data'!DZ166) -> 1 | K179: =IF('Gefilterde data'!DW166=0,"",'Gefilterde data'!DW166) -> 2,845 | L179: =IF('Gefilterde data'!I166=0,"",'Gefilterde data'!I166) -> 6,105 | M179: =IF('Gefilterde data'!DI166=0,"",'Gefilterde data'!DI166) -> 0.7 | N179: =IF('Gefilterde data'!EA166=0,"",'Gefilterde data'!EA166) -> 22 | O179: =IF('Gefilterde data'!EA166=0,"",'Gefilterde data'!EB166) -> 11
B180: =IF('Gefilterde data'!C167=0,"",'Gefilterde data'!C167) -> Eendrachtspark | C180: =IF(B180="","",IF(LEFT(D180,2)="BU",'Gefilterde data'!G167,"-")) -> Geuzenveld | D180: =IF('Gefilterde data'!C167=0,"",'Gefilterde data'!A167) -> BU0363FB04 | E180: 1.73 | F180: 3.50 | G180: =IF('Gefilterde data'!CL167=0,"",'Gefilterde data'!CL167) -> 32.5 | H180: =IF('Gefilterde data'!DX167=0,"",'Gefilterde data'!DX167) -> 71.2 | J180: =IF('Gefilterde data'!DZ167=0,"",'Gefilterde data'!DZ167) -> 3 | K180: =IF('Gefilterde data'!DW167=0,"",'Gefilterde data'!DW167) -> 2,175 | L180: =IF('Gefilterde data'!I167=0,"",'Gefilterde data'!I167) -> 295 | M180: =IF('Gefilterde data'!DI167=0,"",'Gefilterde data'!DI167) -> 0.7 | N180: =IF('Gefilterde data'!EA167=0,"",'Gefilterde data'!EA167) -> 12 | O180: =IF('Gefilterde data'!EA167=0,"",'Gefilterde data'!EB167) -> 7
B181: =IF('Gefilterde data'!C168=0,"",'Gefilterde data'!C168) -> Van Tijenbuurt | C181: =IF(B181="","",IF(LEFT(D181,2)="BU",'Gefilterde data'!G168,"-")) -> Geuzenveld | D181: =IF('Gefilterde data'!C168=0,"",'Gefilterde data'!A168) -> BU0363FB05 | E181: 1.15 | F181: 2.32 | G181: =IF('Gefilterde data'!CL168=0,"",'Gefilterde data'!CL168) -> 13.4 | H181: =IF('Gefilterde data'!DX168=0,"",'Gefilterde data'!DX168) -> 78.0 | J181: =IF('Gefilterde data'!DZ168=0,"",'Gefilterde data'!DZ168) -> 2 | K181: =IF('Gefilterde data'!DW168=0,"",'Gefilterde data'!DW168) -> 2,657 | L181: =IF('Gefilterde data'!I168=0,"",'Gefilterde data'!I168) -> 2,910 | M181: =IF('Gefilterde data'!DI168=0,"",'Gefilterde data'!DI168) -> 0.9 | N181: =IF('Gefilterde data'!EA168=0,"",'Gefilterde data'!EA168) -> 23 | O181: =IF('Gefilterde data'!EA168=0,"",'Gefilterde data'!EB168) -> 13
B182: =IF('Gefilterde data'!C169=0,"",'Gefilterde data'!C169) -> Dudokbuurt | C182: =IF(B182="","",IF(LEFT(D182,2)="BU",'Gefilterde data'!G169,"-")) -> Geuzenveld | D182: =IF('Gefilterde data'!C169=0,"",'Gefilterde data'!A169) -> BU0363FB06 | E182: 1.66 | F182: 3.34 | G182: =IF('Gefilterde data'!CL169=0,"",'Gefilterde data'!CL169) -> 26 | H182: =IF('Gefilterde data'!DX169=0,"",'Gefilterde data'!DX169) -> 87.3 | J182: =IF('Gefilterde data'!DZ169=0,"",'Gefilterde data'!DZ169) -> 2 | K182: =IF('Gefilterde data'!DW169=0,"",'Gefilterde data'!DW169) -> 2,906 | L182: =IF('Gefilterde data'!I169=0,"",'Gefilterde data'!I169) -> 2,755 | M182: =IF('Gefilterde data'!DI169=0,"",'Gefilterde data'!DI169) -> 0.6 | N182: =IF('Gefilterde data'!EA169=0,"",'Gefilterde data'!EA169) -> 23 | O182: =IF('Gefilterde data'!EA169=0,"",'Gefilterde data'!EB169) -> 8
B183: =IF('Gefilterde data'!C170=0,"",'Gefilterde data'!C170) -> Bakemabuurt | C183: =IF(B183="","",IF(LEFT(D183,2)="BU",'Gefilterde data'!G170,"-")) -> Geuzenveld | D183: =IF('Gefilterde data'!C170=0,"",'Gefilterde data'!A170) -> BU0363FB07 | E183: 1.45 | F183: 2.92 | G183: =IF('Gefilterde data'!CL170=0,"",'Gefilterde data'!CL170) -> 20.5 | H183: =IF('Gefilterde data'!DX170=0,"",'Gefilterde data'!DX170) -> 84.8 | J183: =IF('Gefilterde data'!DZ170=0,"",'Gefilterde data'!DZ170) -> 2 | K183: =IF('Gefilterde data'!DW170=0,"",'Gefilterde data'!DW170) -> 3,375 | L183: =IF('Gefilterde data'!I170=0,"",'Gefilterde data'!I170) -> 2,920 | M183: =IF('Gefilterde data'!DI170=0,"",'Gefilterde data'!DI170) -> 0.7 | N183: =IF('Gefilterde data'!EA170=0,"",'Gefilterde data'!EA170) -> 20 | O183: =IF('Gefilterde data'!EA170=0,"",'Gefilterde data'!EB170) -> 9
B184: =IF('Gefilterde data'!C171=0,"",'Gefilterde data'!C171) -> Wegener Sleeswijkbuurt | C184: =IF(B184="","",IF(LEFT(D184,2)="BU",'Gefilterde data'!G171,"-")) -> Geuzenveld | D184: =IF('Gefilterde data'!C171=0,"",'Gefilterde data'!A171) -> BU0363FB08 | E184: 1.45 | F184: 2.93 | G184: =IF('Gefilterde data'!CL171=0,"",'Gefilterde data'!CL171) -> 23.4 | H184: =IF('Gefilterde data'!DX171=0,"",'Gefilterde data'!DX171) -> 74.3 | J184: =IF('Gefilterde data'!DZ171=0,"",'Gefilterde data'!DZ171) -> 1 | K184: =IF('Gefilterde data'!DW171=0,"",'Gefilterde data'!DW171) -> 3,337 | L184: =IF('Gefilterde data'!I171=0,"",'Gefilterde data'!I171) -> 1,520 | M184: =IF('Gefilterde data'!DI171=0,"",'Gefilterde data'!DI171) -> 0.6 | N184: =IF('Gefilterde data'!EA171=0,"",'Gefilterde data'!EA171) -> 19 | O184: =IF('Gefilterde data'!EA171=0,"",'Gefilterde data'!EB171) -> 16
B185: =IF('Gefilterde data'!C172=0,"",'Gefilterde data'!C172) -> Jan de Louterbuurt | C185: =IF(B185="","",IF(LEFT(D185,2)="BU",'Gefilterde data'!G172,"-")) -> Slotermeer-West | D185: =IF('Gefilterde data'!C172=0,"",'Gefilterde data'!A172) -> BU0363FC01 | E185: 1.35 | F185: 2.72 | G185: =IF('Gefilterde data'!CL172=0,"",'Gefilterde data'!CL172) -> 19.3 | H185: =IF('Gefilterde data'!DX172=0,"",'Gefilterde data'!DX172) -> 78.0 | J185: =IF('Gefilterde data'!DZ172=0,"",'Gefilterde data'!DZ172) -> 2 | K185: =IF('Gefilterde data'!DW172=0,"",'Gefilterde data'!DW172) -> 3,535 | L185: =IF('Gefilterde data'!I172=0,"",'Gefilterde data'!I172) -> 3,435 | M185: =IF('Gefilterde data'!DI172=0,"",'Gefilterde data'!DI172) -> 0.5 | N185: =IF('Gefilterde data'!EA172=0,"",'Gefilterde data'!EA172) -> 16 | O185: =IF('Gefilterde data'!EA172=0,"",'Gefilterde data'!EB172) -> 14
B186: =IF('Gefilterde data'!C173=0,"",'Gefilterde data'!C173) -> Lodewijk van Deysselbuurt | C186: =IF(B186="","",IF(LEFT(D186,2)="BU",'Gefilterde data'!G173,"-")) -> Slotermeer-West | D186: =IF('Gefilterde data'!C173=0,"",'Gefilterde data'!A173) -> BU0363FC02 | E186: 1.70 | F186: 3.42 | G186: =IF('Gefilterde data'!CL173=0,"",'Gefilterde data'!CL173) -> 26.8 | H186: =IF('Gefilterde data'!DX173=0,"",'Gefilterde data'!DX173) -> 88.5 | J186: =IF('Gefilterde data'!DZ173=0,"",'Gefilterde data'!DZ173) -> 2 | K186: =IF('Gefilterde data'!DW173=0,"",'Gefilterde data'!DW173) -> 3,767 | L186: =IF('Gefilterde data'!I173=0,"",'Gefilterde data'!I173) -> 3,440 | M186: =IF('Gefilterde data'!DI173=0,"",'Gefilterde data'!DI173) -> 0.6 | N186: =IF('Gefilterde data'!EA173=0,"",'Gefilterde data'!EA173) -> 19 | O186: =IF('Gefilterde data'!EA173=0,"",'Gefilterde data'!EB173) -> 10
B187: =IF('Gefilterde data'!C174=0,"",'Gefilterde data'!C174) -> Confuciusbuurt | C187: =IF(B187="","",IF(LEFT(D187,2)="BU",'Gefilterde data'!G174,"-")) -> Slotermeer-West | D187: =IF('Gefilterde data'!C174=0,"",'Gefilterde data'!A174) -> BU0363FC03 | E187: 1.53 | F187: 3.08 | G187: =IF('Gefilterde data'!CL174=0,"",'Gefilterde data'!CL174) -> 24.5 | H187: =IF('Gefilterde data'!DX174=0,"",'Gefilterde data'!DX174) -> 78.5 | J187: =IF('Gefilterde data'!DZ174=0,"",'Gefilterde data'!DZ174) -> 2 | K187: =IF('Gefilterde data'!DW174=0,"",'Gefilterde data'!DW174) -> 3,405 | L187: =IF('Gefilterde data'!I174=0,"",'Gefilterde data'!I174) -> 3,830 | M187: =IF('Gefilterde data'!DI174=0,"",'Gefilterde data'!DI174) -> 0.6 | N187: =IF('Gefilterde data'!EA174=0,"",'Gefilterde data'!EA174) -> 20 | O187: =IF('Gefilterde data'!EA174=0,"",'Gefilterde data'!EB174) -> 11
B188: =IF('Gefilterde data'!C175=0,"",'Gefilterde data'!C175) -> Arondeusbuurt | C188: =IF(B188="","",IF(LEFT(D188,2)="BU",'Gefilterde data'!G175,"-")) -> Slotermeer-Noordoost | D188: =IF('Gefilterde data'!C175=0,"",'Gefilterde data'!A175) -> BU0363FD01 | E188: 1.61 | F188: 3.25 | G188: =IF('Gefilterde data'!CL175=0,"",'Gefilterde data'!CL175) -> 26.2 | H188: =IF('Gefilterde data'!DX175=0,"",'Gefilterde data'!DX175) -> 81.6 | J188: =IF('Gefilterde data'!DZ175=0,"",'Gefilterde data'!DZ175) -> 1 | K188: =IF('Gefilterde data'!DW175=0,"",'Gefilterde data'!DW175) -> 3,308 | L188: =IF('Gefilterde data'!I175=0,"",'Gefilterde data'!I175) -> 2,795 | M188: =IF('Gefilterde data'!DI175=0,"",'Gefilterde data'!DI175) -> 0.5 | N188: =IF('Gefilterde data'!EA175=0,"",'Gefilterde data'!EA175) -> 24 | O188: =IF('Gefilterde data'!EA175=0,"",'Gefilterde data'!EB175) -> 9
B189: =IF('Gefilterde data'!C176=0,"",'Gefilterde data'!C176) -> Coronelbuurt | C189: =IF(B189="","",IF(LEFT(D189,2)="BU",'Gefilterde data'!G176,"-")) -> Slotermeer-Noordoost | D189: =IF('Gefilterde data'!C176=0,"",'Gefilterde data'!A176) -> BU0363FD02 | E189: 0.75 | F189: 1.51 | G189: =IF('Gefilterde data'!CL176=0,"",'Gefilterde data'!CL176) -> 6.7 | H189: =IF('Gefilterde data'!DX176=0,"",'Gefilterde data'!DX176) -> 58.3 | J189: =IF('Gefilterde data'!DZ176=0,"",'Gefilterde data'!DZ176) -> 5 | K189: =IF('Gefilterde data'!DW176=0,"",'Gefilterde data'!DW176) -> 3,489 | L189: =IF('Gefilterde data'!I176=0,"",'Gefilterde data'!I176) -> 1,510 | M189: =IF('Gefilterde data'!DI176=0,"",'Gefilterde data'!DI176) -> 0.5 | N189: =IF('Gefilterde data'!EA176=0,"",'Gefilterde data'!EA176) -> 17 | O189: =IF('Gefilterde data'!EA176=0,"",'Gefilterde data'!EB176) -> 9
B190: =IF('Gefilterde data'!C177=0,"",'Gefilterde data'!C177) -> Meerwaldtbuurt | C190: =IF(B190="","",IF(LEFT(D190,2)="BU",'Gefilterde data'!G177,"-")) -> Slotermeer-Noordoost | D190: =IF('Gefilterde data'!C177=0,"",'Gefilterde data'!A177) -> BU0363FD03 | E190: 1.78 | F190: 3.58 | G190: =IF('Gefilterde data'!CL177=0,"",'Gefilterde data'!CL177) -> 31.9 | H190: =IF('Gefilterde data'!DX177=0,"",'Gefilterde data'!DX177) -> 78.1 | J190: =IF('Gefilterde data'!DZ177=0,"",'Gefilterde data'!DZ177) -> 2 | K190: =IF('Gefilterde data'!DW177=0,"",'Gefilterde data'!DW177) -> 4,705 | L190: =IF('Gefilterde data'!I177=0,"",'Gefilterde data'!I177) -> 1,985 | M190: =IF('Gefilterde data'!DI177=0,"",'Gefilterde data'!DI177) -> 0.6 | N190: =IF('Gefilterde data'!EA177=0,"",'Gefilterde data'!EA177) -> 17 | O190: =IF('Gefilterde data'!EA177=0,"",'Gefilterde data'!EB177) -> 14
B191: =IF('Gefilterde data'!C178=0,"",'Gefilterde data'!C178) -> Dobbebuurt | C191: =IF(B191="","",IF(LEFT(D191,2)="BU",'Gefilterde data'!G178,"-")) -> Slotermeer-Noordoost | D191: =IF('Gefilterde data'!C178=0,"",'Gefilterde data'!A178) -> BU0363FD04 | E191: 1.50 | F191: 3.03 | G191: =IF('Gefilterde data'!CL178=0,"",'Gefilterde data'!CL178) -> 22.5 | H191: =IF('Gefilterde data'!DX178=0,"",'Gefilterde data'!DX178) -> 83.2 | J191: =IF('Gefilterde data'!DZ178=0,"",'Gefilterde data'!DZ178) -> 2 | K191: =IF('Gefilterde data'!DW178=0,"",'Gefilterde data'!DW178) -> 4,428 | L191: =IF('Gefilterde data'!I178=0,"",'Gefilterde data'!I178) -> 2,910 | M191: =IF('Gefilterde data'!DI178=0,"",'Gefilterde data'!DI178) -> 0.5 | N191: =IF('Gefilterde data'!EA178=0,"",'Gefilterde data'!EA178) -> 19 | O191: =IF('Gefilterde data'!EA178=0,"",'Gefilterde data'!EB178) -> 10
B192: =IF('Gefilterde data'!C179=0,"",'Gefilterde data'!C179) -> Dichtersbuurt | C192: =IF(B192="","",IF(LEFT(D192,2)="BU",'Gefilterde data'!G179,"-")) -> Slotermeer-Zuidoost | D192: =IF('Gefilterde data'!C179=0,"",'Gefilterde data'!A179) -> BU0363FE01 | E192: 1.85 | F192: 3.73 | G192: =IF('Gefilterde data'!CL179=0,"",'Gefilterde data'!CL179) -> 33.3 | H192: =IF('Gefilterde data'!DX179=0,"",'Gefilterde data'!DX179) -> 81.0 | J192: =IF('Gefilterde data'!DZ179=0,"",'Gefilterde data'!DZ179) -> 1 | K192: =IF('Gefilterde data'!DW179=0,"",'Gefilterde data'!DW179) -> 4,003 | L192: =IF('Gefilterde data'!I179=0,"",'Gefilterde data'!I179) -> 1,050 | M192: =IF('Gefilterde data'!DI179=0,"",'Gefilterde data'!DI179) -> 0.6 | N192: =IF('Gefilterde data'!EA179=0,"",'Gefilterde data'!EA179) -> 12 | O192: =IF('Gefilterde data'!EA179=0,"",'Gefilterde data'!EB179) -> 20
B193: =IF('Gefilterde data'!C180=0,"",'Gefilterde data'!C180) -> Louis Couperusbuurt | C193: =IF(B193="","",IF(LEFT(D193,2)="BU",'Gefilterde data'!G180,"-")) -> Slotermeer-Zuidoost | D193: =IF('Gefilterde data'!C180=0,"",'Gefilterde data'!A180) -> BU0363FE02 | E193: 1.62 | F193: 3.26 | G193: =IF('Gefilterde data'!CL180=0,"",'Gefilterde data'!CL180) -> 27.6 | H193: =IF('Gefilterde data'!DX180=0,"",'Gefilterde data'!DX180) -> 76.6 | J193: =IF('Gefilterde data'!DZ180=0,"",'Gefilterde data'!DZ180) -> 3 | K193: =IF('Gefilterde data'!DW180=0,"",'Gefilterde data'!DW180) -> 4,921 | L193: =IF('Gefilterde data'!I180=0,"",'Gefilterde data'!I180) -> 2,330 | M193: =IF('Gefilterde data'!DI180=0,"",'Gefilterde data'!DI180) -> 0.5 | N193: =IF('Gefilterde data'!EA180=0,"",'Gefilterde data'!EA180) -> 18 | O193: =IF('Gefilterde data'!EA180=0,"",'Gefilterde data'!EB180) -> 10
B194: =IF('Gefilterde data'!C181=0,"",'Gefilterde data'!C181) -> Noordoever Sloterplas | C194: =IF(B194="","",IF(LEFT(D194,2)="BU",'Gefilterde data'!G181,"-")) -> Slotermeer-Zuidoost | D194: =IF('Gefilterde data'!C181=0,"",'Gefilterde data'!A181) -> BU0363FE03 | E194: 1.09 | F194: 2.19 | G194: =IF('Gefilterde data'!CL181=0,"",'Gefilterde data'!CL181) -> 15.8 | H194: =IF('Gefilterde data'!DX181=0,"",'Gefilterde data'!DX181) -> 61.7 | J194: =IF('Gefilterde data'!DZ181=0,"",'Gefilterde data'!DZ181) -> 4 | K194: =IF('Gefilterde data'!DW181=0,"",'Gefilterde data'!DW181) -> 3,845 | L194: =IF('Gefilterde data'!I181=0,"",'Gefilterde data'!I181) -> 3,385 | M194: =IF('Gefilterde data'!DI181=0,"",'Gefilterde data'!DI181) -> 0.5 | N194: =IF('Gefilterde data'!EA181=0,"",'Gefilterde data'!EA181) -> 16 | O194: =IF('Gefilterde data'!EA181=0,"",'Gefilterde data'!EB181) -> 11
B195: =IF('Gefilterde data'!C182=0,"",'Gefilterde data'!C182) -> Sloterpark | C195: =IF(B195="","",IF(LEFT(D195,2)="BU",'Gefilterde data'!G182,"-")) -> Slotermeer-Zuidoost | D195: =IF('Gefilterde data'!C182=0,"",'Gefilterde data'!A182) -> BU0363FE04 | E195: Ontbrekende waarde | F195: Ontbrekende waarde | G195: =IF('Gefilterde data'!CL182=0,"",'Gefilterde data'!CL182) -> . | H195: =IF('Gefilterde data'!DX182=0,"",'Gefilterde data'!DX182) -> Geen inwoners | J195: =IF('Gefilterde data'!DZ182=0,"",'Gefilterde data'!DZ182) -> Geen inwoners | K195: =IF('Gefilterde data'!DW182=0,"",'Gefilterde data'!DW182) -> 2,742 | L195: =IF('Gefilterde data'!I182=0,"",'Gefilterde data'!I182) ->  | M195: =IF('Gefilterde data'!DI182=0,"",'Gefilterde data'!DI182) -> . | N195: =IF('Gefilterde data'!EA182=0,"",'Gefilterde data'!EA182) -> Geen inwoners | O195: =IF('Gefilterde data'!EA182=0,"",'Gefilterde data'!EB182) -> Geen inwoners
B196: =IF('Gefilterde data'!C183=0,"",'Gefilterde data'!C183) -> Osdorper Bovenpolder | C196: =IF(B196="","",IF(LEFT(D196,2)="BU",'Gefilterde data'!G183,"-")) -> Lutkemeer/Ookmeer | D196: =IF('Gefilterde data'!C183=0,"",'Gefilterde data'!A183) -> BU0363FF01 | E196: 0.80 | F196: 1.61 | G196: =IF('Gefilterde data'!CL183=0,"",'Gefilterde data'!CL183) -> 15.7 | H196: =IF('Gefilterde data'!DX183=0,"",'Gefilterde data'!DX183) -> 30.3 | J196: =IF('Gefilterde data'!DZ183=0,"",'Gefilterde data'!DZ183) -> 1 | K196: =IF('Gefilterde data'!DW183=0,"",'Gefilterde data'!DW183) -> 1,034 | L196: =IF('Gefilterde data'!I183=0,"",'Gefilterde data'!I183) -> 760 | M196: =IF('Gefilterde data'!DI183=0,"",'Gefilterde data'!DI183) -> 1.3 | N196: =IF('Gefilterde data'!EA183=0,"",'Gefilterde data'!EA183) -> 13 | O196: =IF('Gefilterde data'!EA183=0,"",'Gefilterde data'!EB183) -> 22
B197: =IF('Gefilterde data'!C184=0,"",'Gefilterde data'!C184) -> Ookmeer | C197: =IF(B197="","",IF(LEFT(D197,2)="BU",'Gefilterde data'!G184,"-")) -> Lutkemeer/Ookmeer | D197: =IF('Gefilterde data'!C184=0,"",'Gefilterde data'!A184) -> BU0363FF02 | E197: Ontbrekende waarde | F197: Ontbrekende waarde | G197: =IF('Gefilterde data'!CL184=0,"",'Gefilterde data'!CL184) -> . | H197: =IF('Gefilterde data'!DX184=0,"",'Gefilterde data'!DX184) -> 100.0 | J197: =IF('Gefilterde data'!DZ184=0,"",'Gefilterde data'!DZ184) ->  | K197: =IF('Gefilterde data'!DW184=0,"",'Gefilterde data'!DW184) -> 2,601 | L197: =IF('Gefilterde data'!I184=0,"",'Gefilterde data'!I184) -> 420 | M197: =IF('Gefilterde data'!DI184=0,"",'Gefilterde data'!DI184) -> . | N197: =IF('Gefilterde data'!EA184=0,"",'Gefilterde data'!EA184) -> 12 | O197: =IF('Gefilterde data'!EA184=0,"",'Gefilterde data'!EB184) -> 2
B198: =IF('Gefilterde data'!C185=0,"",'Gefilterde data'!C185) -> Bedrijvenpark Lutkemeer | C198: =IF(B198="","",IF(LEFT(D198,2)="BU",'Gefilterde data'!G185,"-")) -> Lutkemeer/Ookmeer | D198: =IF('Gefilterde data'!C185=0,"",'Gefilterde data'!A185) -> BU0363FF03 | E198: Ontbrekende waarde | F198: Ontbrekende waarde | G198: =IF('Gefilterde data'!CL185=0,"",'Gefilterde data'!CL185) -> . | H198: =IF('Gefilterde data'!DX185=0,"",'Gefilterde data'!DX185) -> 28.6 | J198: =IF('Gefilterde data'!DZ185=0,"",'Gefilterde data'!DZ185) ->  | K198: =IF('Gefilterde data'!DW185=0,"",'Gefilterde data'!DW185) -> 1,004 | L198: =IF('Gefilterde data'!I185=0,"",'Gefilterde data'!I185) -> 70 | M198: =IF('Gefilterde data'!DI185=0,"",'Gefilterde data'!DI185) -> . | N198: =IF('Gefilterde data'!EA185=0,"",'Gefilterde data'!EA185) -> 14 | O198: =IF('Gefilterde data'!EA185=0,"",'Gefilterde data'!EB185) -> 14
B199: =IF('Gefilterde data'!C186=0,"",'Gefilterde data'!C186) -> Middelveldsche Akerpolder | C199: =IF(B199="","",IF(LEFT(D199,2)="BU",'Gefilterde data'!G186,"-")) -> De Aker | D199: =IF('Gefilterde data'!C186=0,"",'Gefilterde data'!A186) -> BU0363FG01 | E199: 0.95 | F199: 1.91 | G199: =IF('Gefilterde data'!CL186=0,"",'Gefilterde data'!CL186) -> 11.8 | H199: =IF('Gefilterde data'!DX186=0,"",'Gefilterde data'!DX186) -> 61.4 | J199: =IF('Gefilterde data'!DZ186=0,"",'Gefilterde data'!DZ186) -> 1 | K199: =IF('Gefilterde data'!DW186=0,"",'Gefilterde data'!DW186) -> 3,264 | L199: =IF('Gefilterde data'!I186=0,"",'Gefilterde data'!I186) -> 4,000 | M199: =IF('Gefilterde data'!DI186=0,"",'Gefilterde data'!DI186) -> 0.9 | N199: =IF('Gefilterde data'!EA186=0,"",'Gefilterde data'!EA186) -> 22 | O199: =IF('Gefilterde data'!EA186=0,"",'Gefilterde data'!EB186) -> 18
B200: =IF('Gefilterde data'!C187=0,"",'Gefilterde data'!C187) -> De Aker-West | C200: =IF(B200="","",IF(LEFT(D200,2)="BU",'Gefilterde data'!G187,"-")) -> De Aker | D200: =IF('Gefilterde data'!C187=0,"",'Gefilterde data'!A187) -> BU0363FG02 | E200: 0.92 | F200: 1.84 | G200: =IF('Gefilterde data'!CL187=0,"",'Gefilterde data'!CL187) -> 10.8 | H200: =IF('Gefilterde data'!DX187=0,"",'Gefilterde data'!DX187) -> 61.6 | J200: =IF('Gefilterde data'!DZ187=0,"",'Gefilterde data'!DZ187) -> 2 | K200: =IF('Gefilterde data'!DW187=0,"",'Gefilterde data'!DW187) -> 2,789 | L200: =IF('Gefilterde data'!I187=0,"",'Gefilterde data'!I187) -> 4,570 | M200: =IF('Gefilterde data'!DI187=0,"",'Gefilterde data'!DI187) -> 0.9 | N200: =IF('Gefilterde data'!EA187=0,"",'Gefilterde data'!EA187) -> 15 | O200: =IF('Gefilterde data'!EA187=0,"",'Gefilterde data'!EB187) -> 14
B201: =IF('Gefilterde data'!C188=0,"",'Gefilterde data'!C188) -> De Aker-Oost | C201: =IF(B201="","",IF(LEFT(D201,2)="BU",'Gefilterde data'!G188,"-")) -> De Aker | D201: =IF('Gefilterde data'!C188=0,"",'Gefilterde data'!A188) -> BU0363FG03 | E201: 0.84 | F201: 1.70 | G201: =IF('Gefilterde data'!CL188=0,"",'Gefilterde data'!CL188) -> 8.5 | H201: =IF('Gefilterde data'!DX188=0,"",'Gefilterde data'!DX188) -> 62.1 | J201: =IF('Gefilterde data'!DZ188=0,"",'Gefilterde data'!DZ188) -> 3 | K201: =IF('Gefilterde data'!DW188=0,"",'Gefilterde data'!DW188) -> 3,588 | L201: =IF('Gefilterde data'!I188=0,"",'Gefilterde data'!I188) -> 5,865 | M201: =IF('Gefilterde data'!DI188=0,"",'Gefilterde data'!DI188) -> 1.0 | N201: =IF('Gefilterde data'!EA188=0,"",'Gefilterde data'!EA188) -> 16 | O201: =IF('Gefilterde data'!EA188=0,"",'Gefilterde data'!EB188) -> 12
B202: =IF('Gefilterde data'!C189=0,"",'Gefilterde data'!C189) -> Bedrijvencentrum Osdorp | C202: =IF(B202="","",IF(LEFT(D202,2)="BU",'Gefilterde data'!G189,"-")) -> De Punt | D202: =IF('Gefilterde data'!C189=0,"",'Gefilterde data'!A189) -> BU0363FH01 | E202: Ontbrekende waarde | F202: Ontbrekende waarde | G202: =IF('Gefilterde data'!CL189=0,"",'Gefilterde data'!CL189) -> . | H202: =IF('Gefilterde data'!DX189=0,"",'Gefilterde data'!DX189) -> 65.2 | J202: =IF('Gefilterde data'!DZ189=0,"",'Gefilterde data'!DZ189) ->  | K202: =IF('Gefilterde data'!DW189=0,"",'Gefilterde data'!DW189) -> 2,741 | L202: =IF('Gefilterde data'!I189=0,"",'Gefilterde data'!I189) -> 115 | M202: =IF('Gefilterde data'!DI189=0,"",'Gefilterde data'!DI189) -> . | N202: =IF('Gefilterde data'!EA189=0,"",'Gefilterde data'!EA189) ->  | O202: =IF('Gefilterde data'!EA189=0,"",'Gefilterde data'!EB189) -> 
B203: =IF('Gefilterde data'!C190=0,"",'Gefilterde data'!C190) -> Dijkgraafpleinbuurt | C203: =IF(B203="","",IF(LEFT(D203,2)="BU",'Gefilterde data'!G190,"-")) -> De Punt | D203: =IF('Gefilterde data'!C190=0,"",'Gefilterde data'!A190) -> BU0363FH02 | E203: 1.25 | F203: 2.53 | G203: =IF('Gefilterde data'!CL190=0,"",'Gefilterde data'!CL190) -> 17.1 | H203: =IF('Gefilterde data'!DX190=0,"",'Gefilterde data'!DX190) -> 75.8 | J203: =IF('Gefilterde data'!DZ190=0,"",'Gefilterde data'!DZ190) -> 2 | K203: =IF('Gefilterde data'!DW190=0,"",'Gefilterde data'!DW190) -> 3,915 | L203: =IF('Gefilterde data'!I190=0,"",'Gefilterde data'!I190) -> 6,210 | M203: =IF('Gefilterde data'!DI190=0,"",'Gefilterde data'!DI190) -> 0.6 | N203: =IF('Gefilterde data'!EA190=0,"",'Gefilterde data'!EA190) -> 17 | O203: =IF('Gefilterde data'!EA190=0,"",'Gefilterde data'!EB190) -> 13
... 404 more rows

Sheet 2. Achtergrond

Sheet 3. Gebruik

Sheet 4. Verantwoording

Sheet 5. Voorbeeld

Sheet Gefilterde data (hidden)
A1: =Data_2023!A1 -> gwb_code_10 | B1: =Data_2023!B1 -> gwb_code_8 | C1: =Data_2023!C1 -> regio | D1: =Data_2023!D1 -> gm_naam | E1: =Data_2023!E1 -> recs | F1: =Data_2023!F1 -> gwb_code | G1: =Data_2023!G1 -> Wijk bij buurt | H1: =Data_2023!H1 -> ind_wbi | I1: =Data_2023!I1 -> a_inw | J1: =Data_2023!J1 -> a_man | K1: =Data_2023!K1 -> a_vrouw | L1: =Data_2023!L1 -> a_00_14 | M1: =Data_2023!M1 -> a_15_24 | N1: =Data_2023!N1 -> a_25_44 | O1: =Data_2023!O1 -> a_45_64 | P1: =Data_2023!P1 -> a_65_oo | Q1: =Data_2023!Q1 -> a_ongeh | R1: =Data_2023!R1 -> a_gehuwd | S1: =Data_2023!S1 -> a_gesch | T1: =Data_2023!T1 -> a_verwed | U1: =Data_2023!U1 -> a_nl_all | V1: =Data_2023!V1 -> a_eur_al | W1: =Data_2023!W1 -> a_neu_al | X1: =Data_2023!X1 -> a_geb_nl | Y1: =Data_2023!Y1 -> a_geb_eu | Z1: =Data_2023!Z1 -> a_geb_ne | AA1: =Data_2023!AA1 -> a_gbl_eu | AB1: =Data_2023!AB1 -> a_gbl_ne | AC1: =Data_2023!AC1 -> a_geb | AD1: =Data_2023!AD1 -> p_geb | AE1: =Data_2023!AE1 -> a_ste | AF1: =Data_2023!AF1 -> p_ste | AG1: =Data_2023!AG1 -> a_hh | AH1: =Data_2023!AH1 -> a_1p_hh | AI1: =Data_2023!AI1 -> a_hh_z_k | AJ1: =Data_2023!AJ1 -> a_hh_m_k | AK1: =Data_2023!AK1 -> g_hhgro | AL1: =Data_2023!AL1 -> bev_dich | AM1: =Data_2023!AM1 -> a_woning | AN1: =Data_2023!AN1 -> g_wozbag | AO1: =Data_2023!AO1 -> p_1gezw | AP1: =Data_2023!AP1 -> p_mgezw | AQ1: =Data_2023!AQ1 -> p_bewndw | AR1: =Data_2023!AR1 -> p_leegsw | AS1: =Data_2023!AS1 -> p_koopw | AT1: =Data_2023!AT1 -> p_huurw | AU1: =Data_2023!AU1 -> p_wcorpw | AV1: =Data_2023!AV1 -> p_ov_hw | AW1: =Data_2023!AW1 -> p_e_o_w | AX1: =Data_2023!AX1 -> p_bjj2k | AY1: =Data_2023!AY1 -> p_bjo2k | AZ1: =Data_2023!AZ1 -> g_ele | BA1: =Data_2023!BA1 -> g_ele_ap | BB1: =Data_2023!BB1 -> g_ele_tw | BC1: =Data_2023!BC1 -> g_ele_hw | BD1: =Data_2023!BD1 -> g_ele_2w | BE1: =Data_2023!BE1 -> g_ele_vw | BF1: =Data_2023!BF1 -> g_ele_hu | BG1: =Data_2023!BG1 -> g_ele_ko | BH1: =Data_2023!BH1 -> g_gas | BI1: =Data_2023!BI1 -> g_gas_ap | BJ1: =Data_2023!BJ1 -> g_gas_tw | BK1: =Data_2023!BK1 -> g_gas_hw | BL1: =Data_2023!BL1 -> g_gas_2w | BM1: =Data_2023!BM1 -> g_gas_vw | BN1: =Data_2023!BN1 -> g_gas_hu | BO1: =Data_2023!BO1 -> g_gas_ko | BP1: =Data_2023!BP1 -> p_stadsv | BQ1: =Data_2023!BQ1 -> a_ons_po | BR1: =Data_2023!BR1 -> a_ons_vovavo | BS1: =Data_2023!BS1 -> a_ons_mbo | BT1: =Data_2023!BT1 -> a_ons_hbo | BU1: =Data_2023!BU1 -> a_ons_wo | BV1: =Data_2023!BV1 -> a_opl_bvm | BW1: =Data_2023!BW1 -> a_opl_hvm | BX1: =Data_2023!BX1 -> a_opl_hw | BY1: =Data_2023!BY1 -> p_arb_pp | BZ1: =Data_2023!BZ1 -> p_arb_wn | CA1: =Data_2023!CA1 -> p_arb_zs | CB1: =Data_2023!CB1 -> a_inkont | CC1: =Data_2023!CC1 -> g_ink_po | CD1: =Data_2023!CD1 -> g_ink_pi | CE1: =Data_2023!CE1 -> p_ink_li | CF1: =Data_2023!CF1 -> p_ink_hi | CG1: =Data_2023!CG1 -> g_hh_sti | CH1: =Data_2023!CH1 -> p_hh_li | CI1: =Data_2023!CI1 -> p_hh_hi | CJ1: =Data_2023!CJ1 -> p_hh_lkk | CK1: =Data_2023!CK1 -> p_hh_osm | CL1: =Data_2023!CL1 -> p_hh_110 | CM1: =Data_2023!CM1 -> p_hh_120 | CN1: =Data_2023!CN1 -> m_hh_ver | CO1: =Data_2023!CO1 -> a_soz_wb | CP1: =Data_2023!CP1 -> a_soz_ao | CQ1: =Data_2023!CQ1 -> a_soz_ww | CR1: =Data_2023!CR1 -> a_soz_ow | CS1: =Data_2023!CS1 -> a_jz_tn | CT1: =Data_2023!CT1 -> p_jz_tn | CU1: =Data_2023!CU1 -> a_wmo_t | CV1: =Data_2023!CV1 -> p_wmo_t | CW1: =Data_2023!CW1 -> a_bedv | CX1: =Data_2023!CX1 -> a_bed_a | CY1: =Data_2023!CY1 -> a_bed_bf | CZ1: =Data_2023!CZ1 -> a_bed_gi | DA1: =Data_2023!DA1 -> a_bed_hj | DB1: =Data_2023!DB1 -> a_bed_kl | DC1: =Data_2023!DC1 -> a_bed_mn | DD1: =Data_2023!DD1 -> a_bed_oq | DE1: =Data_2023!DE1 -> a_bed_ru | DF1: =Data_2023!DF1 -> a_pau | DG1: =Data_2023!DG1 -> a_bst_b | DH1: =Data_2023!DH1 -> a_bst_nb | DI1: =Data_2023!DI1 -> g_pau_hh | DJ1: =Data_2023!DJ1 -> g_pau_km | DK1: =Data_2023!DK1 -> a_m2w | DL1: =Data_2023!DL1 -> g_afs_hp | DM1: =Data_2023!DM1 -> g_afs_gs | DN1: =Data_2023!DN1 -> g_afs_kv | DO1: =Data_2023!DO1 -> g_afs_sc | DP1: =Data_2023!DP1 -> g_3km_sc | DQ1: =Data_2023!DQ1 -> a_opp_ha | DR1: =Data_2023!DR1 -> a_lan_ha | DS1: =Data_2023!DS1 -> a_wat_ha | DT1: =Data_2023!DT1 -> pst_mvp | DU1: =Data_2023!DU1 -> pst_dekp | DV1: =Data_2023!DV1 -> ste_mvs | DW1: =Data_2023!DW1 -> ste_oad | DX1: =Data_2023!DX1 -> Percentage geboren buiten NL | DY1: =Data_2023!DY1 -> Percentage herkomst niet NL | DZ1: =Data_2023!DZ1 -> %WO student | EA1: =Data_2023!EA1 -> % kinderen onder 15 jaar | EB1: =Data_2023!EB1 -> % senioren | EC1: =Data_2023!EC1 -> 0 | ED1: =Data_2023!ED1 -> 0 | EE1: =Data_2023!EE1 -> 0 | EF1: =Data_2023!EF1 -> 0 | EG1: =Data_2023!EG1 -> 0 | EH1: =Data_2023!EH1 -> 0 | EI1: =Data_2023!EI1 -> 0 | EJ1: =Data_2023!EJ1 -> 0 | EK1: =Data_2023!EK1 -> 0 | EL1: =Data_2023!EL1 -> 0 | EM1: =Data_2023!EM1 -> 0 | EN1: =Data_2023!EN1 -> 0 | EO1: =Data_2023!EO1 -> 0 | EP1: =Data_2023!EP1 -> 0 | EQ1: =Data_2023!EQ1 -> 0 | ER1: =Data_2023!ER1 -> 0 | ES1: =Data_2023!ES1 -> 0 | ET1: =Data_2023!ET1 -> 0 | EU1: =Data_2023!EU1 -> 0 | EV1: =Data_2023!EV1 -> 0 | EW1: =Data_2023!EW1 -> 0
A2: =Data_2023!A2 -> 0 | B2: =Data_2023!B2 -> 0 | C2: =Data_2023!C2 -> 0 | D2: =Data_2023!D2 -> 0 | E2: =Data_2023!E2 -> 0 | F2: =Data_2023!F2 -> 0 | H2: =Data_2023!H2 -> 0 | I2: =Data_2023!I2 -> 0 | J2: =Data_2023!J2 -> 0 | K2: =Data_2023!K2 -> 0 | L2: =Data_2023!L2 -> 0 | M2: =Data_2023!M2 -> 0 | N2: =Data_2023!N2 -> 0 | O2: =Data_2023!O2 -> 0 | P2: =Data_2023!P2 -> 0 | Q2: =Data_2023!Q2 -> 0 | R2: =Data_2023!R2 -> 0 | S2: =Data_2023!S2 -> 0 | T2: =Data_2023!T2 -> 0 | U2: =Data_2023!U2 -> 0 | V2: =Data_2023!V2 -> 0 | W2: =Data_2023!W2 -> 0 | X2: =Data_2023!X2 -> 0 | Y2: =Data_2023!Y2 -> 0 | Z2: =Data_2023!Z2 -> 0 | AA2: =Data_2023!AA2 -> 0 | AB2: =Data_2023!AB2 -> 0 | AC2: =Data_2023!AC2 -> 0 | AD2: =Data_2023!AD2 -> 0 | AE2: =Data_2023!AE2 -> 0 | AF2: =Data_2023!AF2 -> 0 | AG2: =Data_2023!AG2 -> 0 | AH2: =Data_2023!AH2 -> 0 | AI2: =Data_2023!AI2 -> 0 | AJ2: =Data_2023!AJ2 -> 0 | AK2: =Data_2023!AK2 -> 0 | AL2: =Data_2023!AL2 -> 0 | AM2: =Data_2023!AM2 -> 0 | AN2: =Data_2023!AN2 -> 0 | AO2: =Data_2023!AO2 -> 0 | AP2: =Data_2023!AP2 -> 0 | AQ2: =Data_2023!AQ2 -> 0 | AR2: =Data_2023!AR2 -> 0 | AS2: =Data_2023!AS2 -> 0 | AT2: =Data_2023!AT2 -> 0 | AU2: =Data_2023!AU2 -> 0 | AV2: =Data_2023!AV2 -> 0 | AW2: =Data_2023!AW2 -> 0 | AX2: =Data_2023!AX2 -> 0 | AY2: =Data_2023!AY2 -> 0 | AZ2: =Data_2023!AZ2 -> 0 | BA2: =Data_2023!BA2 -> 0 | BB2: =Data_2023!BB2 -> 0 | BC2: =Data_2023!BC2 -> 0 | BD2: =Data_2023!BD2 -> 0 | BE2: =Data_2023!BE2 -> 0 | BF2: =Data_2023!BF2 -> 0 | BG2: =Data_2023!BG2 -> 0 | BH2: =Data_2023!BH2 -> 0 | BI2: =Data_2023!BI2 -> 0 | BJ2: =Data_2023!BJ2 -> 0 | BK2: =Data_2023!BK2 -> 0 | BL2: =Data_2023!BL2 -> 0 | BM2: =Data_2023!BM2 -> 0 | BN2: =Data_2023!BN2 -> 0 | BO2: =Data_2023!BO2 -> 0 | BP2: =Data_2023!BP2 -> 0 | BQ2: =Data_2023!BQ2 -> 0 | BR2: =Data_2023!BR2 -> 0 | BS2: =Data_2023!BS2 -> 0 | BT2: =Data_2023!BT2 -> 0 | BU2: =Data_2023!BU2 -> 0 | BV2: =Data_2023!BV2 -> 0 | BW2: =Data_2023!BW2 -> 0 | BX2: =Data_2023!BX2 -> 0 | BY2: =Data_2023!BY2 -> 0 | BZ2: =Data_2023!BZ2 -> 0 | CA2: =Data_2023!CA2 -> 0 | CB2: =Data_2023!CB2 -> 0 | CC2: =Data_2023!CC2 -> 0 | CD2: =Data_2023!CD2 -> 0 | CE2: =Data_2023!CE2 -> 0 | CF2: =Data_2023!CF2 -> 0 | CG2: =Data_2023!CG2 -> 0 | CH2: =Data_2023!CH2 -> 0 | CI2: =Data_2023!CI2 -> 0 | CJ2: =Data_2023!CJ2 -> 0 | CK2: =Data_2023!CK2 -> 0 | CL2: =Data_2023!CL2 -> Percentage huishoudens onder 110% WSM | CM2: =Data_2023!CM2 -> 0 | CN2: =Data_2023!CN2 -> 0 | CO2: =Data_2023!CO2 -> 0 | CP2: =Data_2023!CP2 -> 0 | CQ2: =Data_2023!CQ2 -> 0 | CR2: =Data_2023!CR2 -> 0 | CS2: =Data_2023!CS2 -> 0 | CT2: =Data_2023!CT2 -> 0 | CU2: =Data_2023!CU2 -> 0 | CV2: =Data_2023!CV2 -> 0 | CW2: =Data_2023!CW2 -> 0 | CX2: =Data_2023!CX2 -> 0 | CY2: =Data_2023!CY2 -> 0 | CZ2: =Data_2023!CZ2 -> 0 | DA2: =Data_2023!DA2 -> 0 | DB2: =Data_2023!DB2 -> 0 | DC2: =Data_2023!DC2 -> 0 | DD2: =Data_2023!DD2 -> 0 | DE2: =Data_2023!DE2 -> 0 | DF2: =Data_2023!DF2 -> 0 | DG2: =Data_2023!DG2 -> 0 | DH2: =Data_2023!DH2 -> 0 | DI2: =Data_2023!DI2 -> 0 | DJ2: =Data_2023!DJ2 -> 0 | DK2: =Data_2023!DK2 -> 0 | DL2: =Data_2023!DL2 -> 0 | DM2: =Data_2023!DM2 -> 0 | DN2: =Data_2023!DN2 -> 0 | DO2: =Data_2023!DO2 -> 0 | DP2: =Data_2023!DP2 -> 0 | DQ2: =Data_2023!DQ2 -> 0 | DR2: =Data_2023!DR2 -> 0 | DS2: =Data_2023!DS2 -> 0 | DT2: =Data_2023!DT2 -> 0 | DU2: =Data_2023!DU2 -> 0 | DV2: =Data_2023!DV2 -> 0 | DW2: =Data_2023!DW2 -> Omgevingsadressendichtheid | DX2: =Data_2023!DX2 -> Percentage geboren buiten NL | DY2: =Data_2023!DY2 -> Percentage herkomst niet NL | DZ2: =Data_2023!DZ2 -> %WO student | EA2: =Data_2023!EA2 -> % kinderen onder 15 jaar | EB2: =Data_2023!EB2 -> %senioren | EC2: =Data_2023!EC2 -> 0 | ED2: =Data_2023!ED2 -> 0 | EE2: =Data_2023!EE2 -> 0 | EF2: =Data_2023!EF2 -> 0 | EG2: =Data_2023!EG2 -> 0 | EH2: =Data_2023!EH2 -> 0 | EI2: =Data_2023!EI2 -> 0 | EJ2: =Data_2023!EJ2 -> 0 | EK2: =Data_2023!EK2 -> 0 | EL2: =Data_2023!EL2 -> 0 | EM2: =Data_2023!EM2 -> 0 | EN2: =Data_2023!EN2 -> 0 | EO2: =Data_2023!EO2 -> 0 | EP2: =Data_2023!EP2 -> 0 | EQ2: =Data_2023!EQ2 -> 0 | ER2: =Data_2023!ER2 -> 0 | ES2: =Data_2023!ES2 -> 0 | ET2: =Data_2023!ET2 -> 0 | EU2: =Data_2023!EU2 -> 0 | EV2: =Data_2023!EV2 -> 0 | EW2: =Data_2023!EW2 -> 0
A3: =_xlfn._xlws.FILTER(Data_2023!A3:FA100001, (Data_2023!D3:D100001='1. Wijkscan'!C3)*(Data_2023!E3:E100001='1. Wijkscan'!C4)) -> BU0363AA01 | B3: 0363AA01 | C3: Planciusbuurt-Noord | D3: Amsterdam | E3: Buurt | F3: BU0363AA01 | G3: Haarlemmerbuurt | H3: 2 | I3: 345 | J3: 180 | K3: 160 | L3: 15 | M3: 25 | N3: 180 | O3: 90 | P3: 35 | Q3: 270 | R3: 40 | S3: 20 | T3: 5 | U3: 160 | V3: 90 | W3: 95 | X3: 160 | Y3: 15 | Z3: 35 | AA3: 70 | AB3: 60 | AC3: 5 | AD3: 15 | AE3: 5 | AF3: 9 | AG3: 255 | AH3: 185 | AI3: 50 | AJ3: 20 | AK3: 1.3 | AL3: 18761 | AM3: 242 | AN3: 395 | AO3: 1 | AP3: 99 | AQ3: 96 | AR3: 4 | AS3: 10 | AT3: 90 | AU3: 51 | AV3: 40 | AW3: 0 | AX3: 100 | AY3: 0 | AZ3: 1360 | BA3: 1350 | BB3: . | BC3: . | BD3: . | BE3: . | BF3: 1330 | BG3: 1740 | BH3: 650 | BI3: 640 | BJ3: . | BK3: . | BL3: . | BM3: . | BN3: 640 | BO3: 810 | BP3: . | BQ3: 10 | BR3: 10 | BS3: 0 | BT3: 10 | BU3: 10 | BV3: . | BW3: . | BX3: . | BY3: 79 | BZ3: 72 | CA3: 28 | CB3: 300 | CC3: . | CD3: . | CE3: 35.2 | CF3: 24.2 | CG3: . | CH3: 57.8 | CI3: 6 | CJ3: 11.9 | CK3: 11.4 | CL3: 18.2 | CM3: 20.8 | CN3: 5.7 | CO3: 10 | CP3: 20 | CQ3: 10 | CR3: 30 | CS3: . | CT3: . | CU3: 10 | CV3: 35 | CW3: 85 | CX3: 0 | CY3: 5 | CZ3: 10 | DA3: 15 | DB3: 0 | DC3: 15 | DD3: 10 | DE3: 30 | DF3: 55 | DG3: 45 | DH3: 10 | DI3: 0.2 | DJ3: 3026 | DK3: 15 | DL3: 0.8 | DM3: 0.3 | DN3: 0.1 | DO3: 0.5 | DP3: 15.7 | DQ3: 2 | DR3: 2 | DS3: 1 | DT3: 1013 | DU3: 1 | DV3: 1 | DW3: 8723 | DX3: 53.62318841 | DY3: 53.62318841 | DZ3: 2.898550725 | EA3: 4.347826087 | EB3: 10.14492754 | EC3: 0 | ED3: 0 | EE3: 0 | EF3: 0 | EG3: 0 | EH3: 0 | EI3: 0 | EJ3: 0 | EK3: 0 | EL3: 0 | EM3: 0 | EN3: 0 | EO3: 0 | EP3: 0 | EQ3: 0 | ER3: 0 | ES3: 0 | ET3: 0 | EU3: 0 | EV3: 0 | EW3: 0 | EX3: 0 | EY3: 0 | EZ3: 0 | FA3: 0
A4: BU0363AA02 | B4: 0363AA02 | C4: Westelijke eilanden | D4: Amsterdam | E4: Buurt | F4: BU0363AA02 | G4: Haarlemmerbuurt | H4: 2 | I4: 2910 | J4: 1395 | K4: 1520 | L4: 290 | M4: 260 | N4: 910 | O4: 870 | P4: 585 | Q4: 1875 | R4: 700 | S4: 275 | T4: 65 | U4: 1600 | V4: 570 | W4: 745 | X4: 1595 | Y4: 160 | Z4: 280 | AA4: 405 | AB4: 465 | AC4: 25 | AD4: 8 | AE4: 15 | AF4: 4 | AG4: 1840 | AH4: 1140 | AI4: 400 | AJ4: 295 | AK4: 1.6 | AL4: 19139 | AM4: 1731 | AN4: 609 | AO4: 3 | AP4: 97 | AQ4: 92 | AR4: 8 | AS4: 33 | AT4: 67 | AU4: 50 | AV4: 17 | AW4: 0 | AX4: 86 | AY4: 14 | AZ4: 1760 | BA4: 1720 | BB4: 3210 | BC4: 3060 | BD4: 3380 | BE4: 2940 | BF4: 1480 | BG4: 2340 | BH4: 700 | BI4: 680 | BJ4: 1220 | BK4: 1270 | BL4: 1790 | BM4: 1710 | BN4: 640 | BO4: 820 | BP4: . | BQ4: 150 | BR4: 100 | BS4: 20 | BT4: 40 | BU4: 110 | BV4: 320 | BW4: 570 | BX4: 1530 | BY4: 70 | BZ4: 66 | CA4: 34 | CB4: 2500 | CC4: . | CD4: 41.7 | CE4: 38.1 | CF4: 27.4 | CG4: . | CH4: 52.2 | CI4: 18.7 | CJ4: 9.6 | CK4: 11.4 | CL4: 15.4 | CM4: 18 | CN4: 39.8 | CO4: 70 | CP4: 90 | CQ4: 30 | CR4: 530 | CS4: 55 | CT4: 12.1 | CU4: 160 | CV4: 56 | CW4: 965 | CX4: 0 | CY4: 50 | CZ4: 80 | DA4: 105 | DB4: 60 | DC4: 365 | DD4: 110 | DE4: 195 | DF4: 670 | DG4: 500 | DH4: 170 | DI4: 0.4 | DJ4: 4417 | DK4: 80 | DL4: 0.8 | DM4: 0.6 | DN4: 0.3 | DO4: 0.4 | DP4: 14.3 | DQ4: 22 | DR4: 15 | DS4: 6 | DT4: 1013 | DU4: 1 | DV4: 1 | DW4: 7797 | DX4: 45.18900344 | DY4: 45.01718213 | DZ4: 3.780068729 | EA4: 9.965635739 | EB4: 20.10309278 | EC4: 0 | ED4: 0 | EE4: 0 | EF4: 0 | EG4: 0 | EH4: 0 | EI4: 0 | EJ4: 0 | EK4: 0 | EL4: 0 | EM4: 0 | EN4: 0 | EO4: 0 | EP4: 0 | EQ4: 0 | ER4: 0 | ES4: 0 | ET4: 0 | EU4: 0 | EV4: 0 | EW4: 0 | EX4: 0 | EY4: 0 | EZ4: 0 | FA4: 0
A5: BU0363AA03 | B5: 0363AA03 | C5: Westerdokseiland | D5: Amsterdam | E5: Buurt | F5: BU0363AA03 | G5: Haarlemmerbuurt | H5: 2 | I5: 1825 | J5: 925 | K5: 900 | L5: 210 | M5: 140 | N5: 515 | O5: 550 | P5: 410 | Q5: 1025 | R5: 565 | S5: 170 | T5: 60 | U5: 880 | V5: 335 | W5: 610 | X5: 875 | Y5: 75 | Z5: 235 | AA5: 260 | AB5: 375 | AC5: 15 | AD5: 8 | AE5: 10 | AF5: 6 | AG5: 990 | AH5: 445 | AI5: 330 | AJ5: 215 | AK5: 1.8 | AL5: 11712 | AM5: 977 | AN5: 800 | AO5: 0 | AP5: 100 | AQ5: 94 | AR5: 6 | AS5: 43 | AT5: 57 | AU5: 28 | AV5: 29 | AW5: 0 | AX5: 0 | AY5: 100 | AZ5: 2300 | BA5: 2300 | BB5: . | BC5: . | BD5: . | BE5: . | BF5: 2120 | BG5: 2540 | BH5: 720 | BI5: 720 | BJ5: . | BK5: . | BL5: . | BM5: . | BN5: 920 | BO5: 440 | BP5: 26,3 | BQ5: 100 | BR5: 80 | BS5: 30 | BT5: 20 | BU5: 30 | BV5: 230 | BW5: 260 | BX5: 970 | BY5: 71 | BZ5: 74 | CA5: 26 | CB5: 1500 | CC5: . | CD5: . | CE5: 31.5 | CF5: 41.8 | CG5: . | CH5: 31.6 | CI5: 32.4 | CJ5: 6.6 | CK5: 10.1 | CL5: 12.5 | CM5: 14.8 | CN5: 133.2 | CO5: 40 | CP5: 50 | CQ5: 20 | CR5: 370 | CS5: 30 | CT5: 8.5 | CU5: 145 | CV5: 79 | CW5: 500 | CX5: 0 | CY5: 20 | CZ5: 50 | DA5: 55 | DB5: 60 | DC5: 190 | DD5: 60 | DE5: 70 | DF5: 525 | DG5: 350 | DH5: 175 | DI5: 0.5 | DJ5: 3376 | DK5: 60 | DL5: 0.2 | DM5: 0.7 | DN5: 0.2 | DO5: 1 | DP5: 14.7 | DQ5: 34 | DR5: 16 | DS5: 18 | DT5: 1013 | DU5: 1 | DV5: 1 | DW5: 6823 | DX5: 52.05479452 | DY5: 51.78082192 | DZ5: 1.643835616 | EA5: 11.50684932 | EB5: 22.46575342 | EC5: 0 | ED5: 0 | EE5: 0 | EF5: 0 | EG5: 0 | EH5: 0 | EI5: 0 | EJ5: 0 | EK5: 0 | EL5: 0 | EM5: 0 | EN5: 0 | EO5: 0 | EP5: 0 | EQ5: 0 | ER5: 0 | ES5: 0 | ET5: 0 | EU5: 0 | EV5: 0 | EW5: 0 | EX5: 0 | EY5: 0 | EZ5: 0 | FA5: 0
A6: BU0363AA04 | B6: 0363AA04 | C6: Planciusbuurt-Zuid | D6: Amsterdam | E6: Buurt | F6: BU0363AA04 | G6: Haarlemmerbuurt | H6: 2 | I6: 165 | J6: 85 | K6: 80 | L6: 10 | M6: 10 | N6: 65 | O6: 55 | P6: 30 | Q6: 115 | R6: 25 | S6: 20 | T6: 5 | U6: 90 | V6: 30 | W6: 45 | X6: 90 | Y6: 5 | Z6: 20 | AA6: 25 | AB6: 25 | AC6: 0 | AD6: 12 | AE6: 0 | AF6: 6 | AG6: 125 | AH6: 90 | AI6: 20 | AJ6: 15 | AK6: 1.4 | AL6: 12941 | AM6: 123 | AN6: 403 | AO6: 0 | AP6: 100 | AQ6: 93 | AR6: 7 | AS6: 1 | AT6: 99 | AU6: 91 | AV6: 8 | AW6: 0 | AX6: 100 | AY6: 0 | AZ6: 1410 | BA6: 1410 | BB6: . | BC6: . | BD6: . | BE6: . | BF6: 1410 | BG6: . | BH6: 530 | BI6: 530 | BJ6: . | BK6: . | BL6: . | BM6: . | BN6: 530 | BO6: . | BP6: . | BQ6: 0 | BR6: 0 | BS6: 0 | BT6: 0 | BU6: 0 | BV6: . | BW6: . | BX6: . | BY6: . | BZ6: . | CA6: . | CB6: 100 | CC6: . | CD6: . | CE6: 49.3 | CF6: 11.1 | CG6: . | CH6: 75.2 | CI6: 2.6 | CJ6: 22.7 | CK6: 25.5 | CL6: 30.9 | CM6: 36.4 | CN6: 3.1 | CO6: 20 | CP6: 10 | CQ6: 0 | CR6: 30 | CS6: . | CT6: . | CU6: 20 | CV6: 109 | CW6: 55 | CX6: 0 | CY6: 0 | CZ6: 10 | DA6: 10 | DB6: 0 | DC6: 15 | DD6: 10 | DE6: 10 | DF6: 20 | DG6: 20 | DH6: 5 | DI6: 0.2 | DJ6: 1726 | DK6: 5 | DL6: 0.6 | DM6: 0.2 | DN6: 0.3 | DO6: 0.7 | DP6: 20 | DQ6: 2 | DR6: 1 | DS6: 0 | DT6: 1013 | DU6: 1 | DV6: 1 | DW6: 8984 | DX6: 45.45454545 | DY6: 45.45454545 | DZ6: 0 | EA6: 6.060606061 | EB6: 18.18181818 | EC6: 0 | ED6: 0 | EE6: 0 | EF6: 0 | EG6: 0 | EH6: 0 | EI6: 0 | EJ6: 0 | EK6: 0 | EL6: 0 | EM6: 0 | EN6: 0 | EO6: 0 | EP6: 0 | EQ6: 0 | ER6: 0 | ES6: 0 | ET6: 0 | EU6: 0 | EV6: 0 | EW6: 0 | EX6: 0 | EY6: 0 | EZ6: 0 | FA6: 0
A7: BU0363AA05 | B7: 0363AA05 | C7: Haarlemmerbuurt-West | D7: Amsterdam | E7: Buurt | F7: BU0363AA05 | G7: Haarlemmerbuurt | H7: 2 | I7: 2375 | J7: 1210 | K7: 1170 | L7: 190 | M7: 240 | N7: 810 | O7: 685 | P7: 445 | Q7: 1545 | R7: 525 | S7: 220 | T7: 80 | U7: 1220 | V7: 465 | W7: 690 | X7: 1225 | Y7: 120 | Z7: 255 | AA7: 340 | AB7: 440 | AC7: 20 | AD7: 7 | AE7: 25 | AF7: 12 | AG7: 1475 | AH7: 905 | AI7: 355 | AJ7: 215 | AK7: 1.6 | AL7: 21731 | AM7: 1550 | AN7: 567 | AO7: 2 | AP7: 98 | AQ7: 90 | AR7: 10 | AS7: 25 | AT7: 74 | AU7: 44 | AV7: 31 | AW7: 0 | AX7: 94 | AY7: 6 | AZ7: 1750 | BA7: 1730 | BB7: 2450 | BC7: . | BD7: . | BE7: . | BF7: 1630 | BG7: 2110 | BH7: 710 | BI7: 700 | BJ7: 1040 | BK7: . | BL7: . | BM7: . | BN7: 680 | BO7: 810 | BP7: . | BQ7: 90 | BR7: 70 | BS7: 30 | BT7: 50 | BU7: 100 | BV7: 310 | BW7: 460 | BX7: 1240 | BY7: 72 | BZ7: 72 | CA7: 28 | CB7: 2000 | CC7: . | CD7: . | CE7: 39.2 | CF7: 27.7 | CG7: . | CH7: 51.7 | CI7: 16 | CJ7: 11.5 | CK7: 13.9 | CL7: 17.8 | CM7: 21 | CN7: 23.2 | CO7: 90 | CP7: 90 | CQ7: 30 | CR7: 410 | CS7: 45 | CT7: 13.1 | CU7: 215 | CV7: 91 | CW7: 740 | CX7: 0 | CY7: 30 | CZ7: 180 | DA7: 70 | DB7: 40 | DC7: 195 | DD7: 75 | DE7: 150 | DF7: 490 | DG7: 390 | DH7: 100 | DI7: 0.3 | DJ7: 4498 | DK7: 50 | DL7: 0.3 | DM7: 0.2 | DN7: 0.5 | DO7: 0.7 | DP7: 16.1 | DQ7: 12 | DR7: 11 | DS7: 1 | DT7: 1013 | DU7: 1 | DV7: 1 | DW7: 9613 | DX7: 48.42105263 | DY7: 48.63157895 | DZ7: 4.210526316 | EA7: 8 | EB7: 18.73684211 | EC7: 0 | ED7: 0 | EE7: 0 | EF7: 0 | EG7: 0 | EH7: 0 | EI7: 0 | EJ7: 0 | EK7: 0 | EL7: 0 | EM7: 0 | EN7: 0 | EO7: 0 | EP7: 0 | EQ7: 0 | ER7: 0 | ES7: 0 | ET7: 0 | EU7: 0 | EV7: 0 | EW7: 0 | EX7: 0 | EY7: 0 | EZ7: 0 | FA7: 0
A8: BU0363AA06 | B8: 0363AA06 | C8: Haarlemmerbuurt-Oost | D8: Amsterdam | E8: Buurt | F8: BU0363AA06 | G8: Haarlemmerbuurt | H8: 2 | I8: 1515 | J8: 775 | K8: 745 | L8: 95 | M8: 180 | N8: 575 | O8: 400 | P8: 270 | Q8: 1065 | R8: 285 | S8: 125 | T8: 35 | U8: 835 | V8: 325 | W8: 360 | X8: 835 | Y8: 80 | Z8: 115 | AA8: 240 | AB8: 240 | AC8: 10 | AD8: 7 | AE8: 10 | AF8: 5 | AG8: 1010 | AH8: 640 | AI8: 250 | AJ8: 115 | AK8: 1.5 | AL8: 16243 | AM8: 1054 | AN8: 614 | AO8: 5 | AP8: 95 | AQ8: 87 | AR8: 13 | AS8: 25 | AT8: 75 | AU8: 32 | AV8: 43 | AW8: 0 | AX8: 99 | AY8: 1 | AZ8: 1730 | BA8: 1670 | BB8: 2910 | BC8: . | BD8: . | BE8: . | BF8: 1550 | BG8: 2210 | BH8: 770 | BI8: 750 | BJ8: 1370 | BK8: . | BL8: . | BM8: . | BN8: 720 | BO8: 920 | BP8: . | BQ8: 50 | BR8: 30 | BS8: 10 | BT8: 40 | BU8: 80 | BV8: 120 | BW8: 270 | BX8: 940 | BY8: 73 | BZ8: 70 | CA8: 30 | CB8: 1300 | CC8: . | CD8: . | CE8: 35.5 | CF8: 28.5 | CG8: . | CH8: 50.7 | CI8: 16 | CJ8: 8 | CK8: 9.4 | CL8: 12.6 | CM8: 15.4 | CN8: 32.2 | CO8: 30 | CP8: 30 | CQ8: 20 | CR8: 240 | CS8: 15 | CT8: 8.1 | CU8: 75 | CV8: 50 | CW8: 595 | CX8: 0 | CY8: 20 | CZ8: 140 | DA8: 70 | DB8: 35 | DC8: 160 | DD8: 65 | DE8: 105 | DF8: 310 | DG8: 245 | DH8: 65 | DI8: 0.3 | DJ8: 3334 | DK8: 30 | DL8: 0.3 | DM8: 0.3 | DN8: 0.3 | DO8: 0.4 | DP8: 20.4 | DQ8: 10 | DR8: 9 | DS8: 1 | DT8: 1013 | DU8: 1 | DV8: 1 | DW8: 8303 | DX8: 44.88448845 | DY8: 44.88448845 | DZ8: 5.280528053 | EA8: 6.270627063 | EB8: 17.82178218 | EC8: 0 | ED8: 0 | EE8: 0 | EF8: 0 | EG8: 0 | EH8: 0 | EI8: 0 | EJ8: 0 | EK8: 0 | EL8: 0 | EM8: 0 | EN8: 0 | EO8: 0 | EP8: 0 | EQ8: 0 | ER8: 0 | ES8: 0 | ET8: 0 | EU8: 0 | EV8: 0 | EW8: 0 | EX8: 0 | EY8: 0 | EZ8: 0 | FA8: 0
A9: BU0363AB01 | B9: 0363AB01 | C9: Marnixbuurt-Noord | D9: Amsterdam | E9: Buurt | F9: BU0363AB01 | G9: Jordaan | H9: 2 | I9: 1455 | J9: 715 | K9: 735 | L9: 125 | M9: 135 | N9: 540 | O9: 405 | P9: 260 | Q9: 980 | R9: 290 | S9: 130 | T9: 50 | U9: 725 | V9: 290 | W9: 440 | X9: 720 | Y9: 80 | Z9: 165 | AA9: 210 | AB9: 280 | AC9: 5 | AD9: 6 | AE9: 10 | AF9: 8 | AG9: 955 | AH9: 605 | AI9: 210 | AJ9: 140 | AK9: 1.5 | AL9: 26253 | AM9: 974 | AN9: 471 | AO9: 0 | AP9: 100 | AQ9: 92 | AR9: 8 | AS9: 16 | AT9: 84 | AU9: 52 | AV9: 31 | AW9: 0 | AX9: 100 | AY9: 0 | AZ9: 1580 | BA9: 1580 | BB9: . | BC9: . | BD9: . | BE9: . | BF9: 1500 | BG9: 1990 | BH9: 550 | BI9: 550 | BJ9: . | BK9: . | BL9: . | BM9: . | BN9: 530 | BO9: 660 | BP9: . | BQ9: 60 | BR9: 40 | BS9: 10 | BT9: 20 | BU9: 50 | BV9: 210 | BW9: 530 | BX9: 500 | BY9: 72 | BZ9: 75 | CA9: 25 | CB9: 1300 | CC9: . | CD9: . | CE9: 39.1 | CF9: 23.6 | CG9: . | CH9: 59.6 | CI9: 13.4 | CJ9: 11.1 | CK9: 14.8 | CL9: 19.5 | CM9: 23.3 | CN9: 9.4 | CO9: 60 | CP9: 60 | CQ9: 20 | CR9: 230 | CS9: 25 | CT9: 11.9 | CU9: 120 | CV9: 84 | CW9: 315 | CX9: 0 | CY9: 25 | CZ9: 45 | DA9: 40 | DB9: 10 | DC9: 90 | DD9: 45 | DE9: 60 | DF9: 255 | DG9: 200 | DH9: 50 | DI9: 0.3 | DJ9: 4571 | DK9: 30 | DL9: 0.5 | DM9: 0.5 | DN9: 0.4 | DO9: 0.9 | DP9: 23.9 | DQ9: 7 | DR9: 6 | DS9: 2 | DT9: 1015 | DU9: 1 | DV9: 1 | DW9: 10924 | DX9: 50.51546392 | DY9: 50.17182131 | DZ9: 3.436426117 | EA9: 8.591065292 | EB9: 17.86941581 | EC9: 0 | ED9: 0 | EE9: 0 | EF9: 0 | EG9: 0 | EH9: 0 | EI9: 0 | EJ9: 0 | EK9: 0 | EL9: 0 | EM9: 0 | EN9: 0 | EO9: 0 | EP9: 0 | EQ9: 0 | ER9: 0 | ES9: 0 | ET9: 0 | EU9: 0 | EV9: 0 | EW9: 0 | EX9: 0 | EY9: 0 | EZ9: 0 | FA9: 0
A10: BU0363AB02 | B10: 0363AB02 | C10: Driehoekbuurt | D10: Amsterdam | E10: Buurt | F10: BU0363AB02 | G10: Jordaan | H10: 2 | I10: 2725 | J10: 1330 | K10: 1390 | L10: 215 | M10: 295 | N10: 1065 | O10: 695 | P10: 450 | Q10: 1920 | R10: 510 | S10: 230 | T10: 60 | U10: 1440 | V10: 605 | W10: 675 | X10: 1440 | Y10: 130 | Z10: 230 | AA10: 475 | AB10: 445 | AC10: 15 | AD10: 6 | AE10: 20 | AF10: 6 | AG10: 1890 | AH10: 1290 | AI10: 375 | AJ10: 220 | AK10: 1.4 | AL10: 27661 | AM10: 1896 | AN10: 519 | AO10: 4 | AP10: 96 | AQ10: 91 | AR10: 9 | AS10: 26 | AT10: 73 | AU10: 39 | AV10: 34 | AW10: 1 | AX10: 97 | AY10: 3 | AZ10: 1480 | BA10: 1450 | BB10: 2180 | BC10: 1790 | BD10: . | BE10: . | BF10: 1370 | BG10: 1780 | BH10: 670 | BI10: 660 | BJ10: 960 | BK10: 1030 | BL10: . | BM10: . | BN10: 640 | BO10: 750 | BP10: . | BQ10: 90 | BR10: 60 | BS10: 20 | BT10: 110 | BU10: 120 | BV10: 240 | BW10: 580 | BX10: 1540 | BY10: 72 | BZ10: 73 | CA10: 27 | CB10: 2400 | CC10: . | CD10: 43 | CE10: 38.1 | CF10: 27.5 | CG10: . | CH10: 56.2 | CI10: 13.8 | CJ10: 11.9 | CK10: 13.8 | CL10: 17.5 | CM10: 20.3 | CN10: 18.9 | CO10: 100 | CP10: 100 | CQ10: 30 | CR10: 400 | CS10: 30 | CT10: 7.5 | CU10: 185 | CV10: 67 | CW10: 680 | CX10: 0 | CY10: 30 | CZ10: 95 | DA10: 65 | DB10: 30 | DC10: 195 | DD10: 100 | DE10: 160 | DF10: 530 | DG10: 420 | DH10: 110 | DI10: 0.3 | DJ10: 5374 | DK10: 70 | DL10: 0.3 | DM10: 0.4 | DN10: 0.4 | DO10: 0.8 | DP10: 18.9 | DQ10: 11 | DR10: 10 | DS10: 1 | DT10: 1015 | DU10: 1 | DV10: 1 | DW10: 10744 | DX10: 47.1559633 | DY10: 47.1559633 | DZ10: 4.403669725 | EA10: 7.889908257 | EB10: 16.51376147 | EC10: 0 | ED10: 0 | EE10: 0 | EF10: 0 | EG10: 0 | EH10: 0 | EI10: 0 | EJ10: 0 | EK10: 0 | EL10: 0 | EM10: 0 | EN10: 0 | EO10: 0 | EP10: 0 | EQ10: 0 | ER10: 0 | ES10: 0 | ET10: 0 | EU10: 0 | EV10: 0 | EW10: 0 | EX10: 0 | EY10: 0 | EZ10: 0 | FA10: 0
A11: BU0363AB03 | B11: 0363AB03 | C11: Anjeliersbuurt-Noord | D11: Amsterdam | E11: Buurt | F11: BU0363AB03 | G11: Jordaan | H11: 2 | I11: 2095 | J11: 1025 | K11: 1070 | L11: 155 | M11: 250 | N11: 675 | O11: 630 | P11: 380 | Q11: 1450 | R11: 420 | S11: 175 | T11: 50 | U11: 1260 | V11: 415 | W11: 420 | X11: 1260 | Y11: 105 | Z11: 180 | AA11: 310 | AB11: 245 | AC11: 15 | AD11: 6 | AE11: 10 | AF11: 5 | AG11: 1345 | AH11: 840 | AI11: 310 | AJ11: 200 | AK11: 1.6 | AL11: 22153 | AM11: 1340 | AN11: 627 | AO11: 7 | AP11: 93 | AQ11: 91 | AR11: 9 | AS11: 28 | AT11: 71 | AU11: 31 | AV11: 40 | AW11: 0 | AX11: 97 | AY11: 3 | AZ11: 1800 | BA11: 1740 | BB11: 2570 | BC11: 1450 | BD11: . | BE11: . | BF11: 1570 | BG11: 2400 | BH11: 770 | BI11: 740 | BJ11: 1230 | BK11: 1420 | BL11: . | BM11: . | BN11: 690 | BO11: 980 | BP11: . | BQ11: 70 | BR11: 70 | BS11: 20 | BT11: 50 | BU11: 100 | BV11: 250 | BW11: 440 | BX11: 1090 | BY11: 73 | BZ11: 67 | CA11: 33 | CB11: 1800 | CC11: . | CD11: . | CE11: 38.3 | CF11: 27.5 | CG11: . | CH11: 51.5 | CI11: 17.2 | CJ11: 9.8 | CK11: 10.8 | CL11: 14.5 | CM11: 17.3 | CN11: 29 | CO11: 50 | CP11: 60 | CQ11: 20 | CR11: 340 | CS11: 40 | CT11: 12.3 | CU11: 115 | CV11: 56 | CW11: 670 | CX11: 0 | CY11: 25 | CZ11: 115 | DA11: 50 | DB11: 65 | DC11: 210 | DD11: 75 | DE11: 135 | DF11: 530 | DG11: 420 | DH11: 110 | DI11: 0.4 | DJ11: 5578 | DK11: 80 | DL11: 0.4 | DM11: 0.3 | DN11: 0.4 | DO11: 0.7 | DP11: 23.2 | DQ11: 10 | DR11: 9 | DS11: 0 | DT11: 1015 | DU11: 1 | DV11: 1 | DW11: 11013 | DX11: 39.85680191 | DY11: 39.85680191 | DZ11: 4.77326969 | EA11: 7.398568019 | EB11: 18.13842482 | EC11: 0 | ED11: 0 | EE11: 0 | EF11: 0 | EG11: 0 | EH11: 0 | EI11: 0 | EJ11: 0 | EK11: 0 | EL11: 0 | EM11: 0 | EN11: 0 | EO11: 0 | EP11: 0 | EQ11: 0 | ER11: 0 | ES11: 0 | ET11: 0 | EU11: 0 | EV11: 0 | EW11: 0 | EX11: 0 | EY11: 0 | EZ11: 0 | FA11: 0
A12: BU0363AB04 | B12: 0363AB04 | C12: Zaagpoortbuurt | D12: Amsterdam | E12: Buurt | F12: BU0363AB04 | G12: Jordaan | H12: 2 | I12: 915 | J12: 540 | K12: 380 | L12: 50 | M12: 115 | N12: 450 | O12: 215 | P12: 85 | Q12: 725 | R12: 100 | S12: 80 | T12: 10 | U12: 380 | V12: 195 | W12: 340 | X12: 380 | Y12: 35 | Z12: 105 | AA12: 160 | AB12: 230 | AC12: 5 | AD12: 5 | AE12: 5 | AF12: 3 | AG12: 730 | AH12: 585 | AI12: 100 | AJ12: 45 | AK12: 1.3 | AL12: 26154 | AM12: 725 | AN12: 368 | AO12: 0 | AP12: 100 | AQ12: 91 | AR12: 9 | AS12: 16 | AT12: 84 | AU12: 51 | AV12: 33 | AW12: 0 | AX12: 100 | AY12: 0 | AZ12: 1390 | BA12: 1390 | BB12: . | BC12: . | BD12: . | BE12: . | BF12: 1370 | BG12: 1500 | BH12: 500 | BI12: 500 | BJ12: . | BK12: . | BL12: . | BM12: . | BN12: 500 | BO12: 520 | BP12: . | BQ12: 20 | BR12: 10 | BS12: 10 | BT12: 30 | BU12: 70 | BV12: . | BW12: . | BX12: . | BY12: 69 | BZ12: 78 | CA12: 22 | CB12: 800 | CC12: . | CD12: . | CE12: 45.6 | CF12: 17.8 | CG12: . | CH12: 72.1 | CI12: 6.1 | CJ12: 17.1 | CK12: 18.8 | CL12: 25.2 | CM12: 28.1 | CN12: 4 | CO12: 80 | CP12: 50 | CQ12: 20 | CR12: 70 | CS12: 10 | CT12: 9.1 | CU12: 65 | CV12: 69 | CW12: 205 | CX12: 0 | CY12: 5 | CZ12: 25 | DA12: 35 | DB12: 10 | DC12: 60 | DD12: 25 | DE12: 45 | DF12: 115 | DG12: 85 | DH12: 30 | DI12: 0.2 | DJ12: 3341 | DK12: 20 | DL12: 0.4 | DM12: 0.6 | DN12: 0.3 | DO12: 0.4 | DP12: 31.3 | DQ12: 4 | DR12: 4 | DS12: 0 | DT12: 1015 | DU12: 1 | DV12: 1 | DW12: 12438 | DX12: 58.46994536 | DY12: 58.46994536 | DZ12: 7.650273224 | EA12: 5.464480874 | EB12: 9.289617486 | EC12: 0 | ED12: 0 | EE12: 0 | EF12: 0 | EG12: 0 | EH12: 0 | EI12: 0 | EJ12: 0 | EK12: 0 | EL12: 0 | EM12: 0 | EN12: 0 | EO12: 0 | EP12: 0 | EQ12: 0 | ER12: 0 | ES12: 0 | ET12: 0 | EU12: 0 | EV12: 0 | EW12: 0 | EX12: 0 | EY12: 0 | EZ12: 0 | FA12: 0
A13: BU0363AB05 | B13: 0363AB05 | C13: Anjeliersbuurt-Zuid | D13: Amsterdam | E13: Buurt | F13: BU0363AB05 | G13: Jordaan | H13: 2 | I13: 2915 | J13: 1445 | K13: 1470 | L13: 225 | M13: 305 | N13: 905 | O13: 905 | P13: 575 | Q13: 2005 | R13: 565 | S13: 270 | T13: 75 | U13: 1650 | V13: 580 | W13: 685 | X13: 1650 | Y13: 185 | Z13: 245 | AA13: 400 | AB13: 440 | AC13: 20 | AD13: 5 | AE13: 20 | AF13: 8 | AG13: 1960 | AH13: 1310 | AI13: 380 | AJ13: 270 | AK13: 1.5 | AL13: 26355 | AM13: 1981 | AN13: 568 | AO13: 5 | AP13: 95 | AQ13: 91 | AR13: 9 | AS13: 26 | AT13: 73 | AU13: 47 | AV13: 26 | AW13: 1 | AX13: 98 | AY13: 2 | AZ13: 1570 | BA13: 1520 | BB13: 2710 | BC13: 3240 | BD13: . | BE13: . | BF13: 1430 | BG13: 1980 | BH13: 700 | BI13: 680 | BJ13: 1190 | BK13: 1130 | BL13: . | BM13: . | BN13: 660 | BO13: 830 | BP13: . | BQ13: 100 | BR13: 70 | BS13: 20 | BT13: 70 | BU13: 150 | BV13: 280 | BW13: 800 | BX13: 1400 | BY13: 70 | BZ13: 71 | CA13: 29 | CB13: 2600 | CC13: 47.4 | CD13: 42.4 | CE13: 39.3 | CF13: 25.6 | CG13: . | CH13: 55.9 | CI13: 14.7 | CJ13: 10.6 | CK13: 13.1 | CL13: 17.5 | CM13: 20.4 | CN13: 25.9 | CO13: 110 | CP13: 110 | CQ13: 40 | CR13: 500 | CS13: 45 | CT13: 10.4 | CU13: 195 | CV13: 66 | CW13: 785 | CX13: 0 | CY13: 35 | CZ13: 135 | DA13: 75 | DB13: 50 | DC13: 230 | DD13: 90 | DE13: 170 | DF13: 560 | DG13: 455 | DH13: 105 | DI13: 0.3 | DJ13: 5083 | DK13: 75 | DL13: 0.5 | DM13: 0.4 | DN13: 0.4 | DO13: 0.4 | DP13: 25.7 | DQ13: 12 | DR13: 11 | DS13: 1 | DT13: 1015 | DU13: 1 | DV13: 1 | DW13: 11876 | DX13: 43.39622642 | DY13: 43.39622642 | DZ13: 5.145797599 | EA13: 7.718696398 | EB13: 19.72555746 | EC13: 0 | ED13: 0 | EE13: 0 | EF13: 0 | EG13: 0 | EH13: 0 | EI13: 0 | EJ13: 0 | EK13: 0 | EL13: 0 | EM13: 0 | EN13: 0 | EO13: 0 | EP13: 0 | EQ13: 0 | ER13: 0 | ES13: 0 | ET13: 0 | EU13: 0 | EV13: 0 | EW13: 0 | EX13: 0 | EY13: 0 | EZ13: 0 | FA13: 0
A14: BU0363AB06 | B14: 0363AB06 | C14: Marnixbuurt-Midden | D14: Amsterdam | E14: Buurt | F14: BU0363AB06 | G14: Jordaan | H14: 2 | I14: 215 | J14: 120 | K14: 95 | L14: 15 | M14: 25 | N14: 125 | O14: 30 | P14: 15 | Q14: 170 | R14: 40 | S14: 10 | T14: 0 | U14: 95 | V14: 55 | W14: 60 | X14: 95 | Y14: 15 | Z14: 20 | AA14: 40 | AB14: 45 | AC14: 0 | AD14: 14 | AE14: 0 | AF14: 0 | AG14: 130 | AH14: 65 | AI14: 45 | AJ14: 20 | AK14: 1.7 | AL14: 14086 | AM14: 119 | AN14: 601 | AO14: 1 | AP14: 99 | AQ14: 92 | AR14: 8 | AS14: 43 | AT14: 57 | AU14: 1 | AV14: 56 | AW14: 0 | AX14: 100 | AY14: 0 | AZ14: 1930 | BA14: 1920 | BB14: . | BC14: . | BD14: . | BE14: . | BF14: 1820 | BG14: 2070 | BH14: 710 | BI14: 700 | BJ14: . | BK14: . | BL14: . | BM14: . | BN14: 670 | BO14: 770 | BP14: . | BQ14: 10 | BR14: 10 | BS14: 0 | BT14: 10 | BU14: 10 | BV14: . | BW14: . | BX14: . | BY14: 84 | BZ14: 75 | CA14: 25 | CB14: 200 | CC14: . | CD14: . | CE14: 29.2 | CF14: 39.5 | CG14: . | CH14: 39.5 | CI14: 27.4 | CJ14: 4.4 | CK14: 4.4 | CL14: 5.3 | CM14: 7 | CN14: 37.6 | CO14: 0 | CP14: 0 | CQ14: 0 | CR14: 10 | CS14: . | CT14: . | CU14: . | CV14: . | CW14: 70 | CX14: 0 | CY14: 0 | CZ14: 15 | DA14: 10 | DB14: 5 | DC14: 15 | DD14: 10 | DE14: 20 | DF14: 35 | DG14: 30 | DH14: 5 | DI14: 0.3 | DJ14: 2293 | DK14: 10 | DL14: 0.2 | DM14: 0.5 | DN14: 0.4 | DO14: 0.2 | DP14: 34.8 | DQ14: 2 | DR14: 2 | DS14: 1 | DT14: 1016 | DU14: 1 | DV14: 1 | DW14: 12047 | DX14: 55.81395349 | DY14: 55.81395349 | DZ14: 4.651162791 | EA14: 6.976744186 | EB14: 6.976744186 | EC14: 0 | ED14: 0 | EE14: 0 | EF14: 0 | EG14: 0 | EH14: 0 | EI14: 0 | EJ14: 0 | EK14: 0 | EL14: 0 | EM14: 0 | EN14: 0 | EO14: 0 | EP14: 0 | EQ14: 0 | ER14: 0 | ES14: 0 | ET14: 0 | EU14: 0 | EV14: 0 | EW14: 0 | EX14: 0 | EY14: 0 | EZ14: 0 | FA14: 0
A15: BU0363AB07 | B15: 0363AB07 | C15: Bloemgrachtbuurt | D15: Amsterdam | E15: Buurt | F15: BU0363AB07 | G15: Jordaan | H15: 2 | I15: 2980 | J15: 1435 | K15: 1540 | L15: 245 | M15: 365 | N15: 1135 | O15: 750 | P15: 485 | Q15: 2075 | R15: 585 | S15: 245 | T15: 65 | U15: 1525 | V15: 690 | W15: 770 | X15: 1525 | Y15: 145 | Z15: 255 | AA15: 545 | AB15: 515 | AC15: 25 | AD15: 9 | AE15: 15 | AF15: 5 | AG15: 1955 | AH15: 1270 | AI15: 425 | AJ15: 270 | AK15: 1.5 | AL15: 26211 | AM15: 1980 | AN15: 647 | AO15: 7 | AP15: 93 | AQ15: 88 | AR15: 12 | AS15: 32 | AT15: 67 | AU15: 23 | AV15: 44 | AW15: 1 | AX15: 95 | AY15: 5 | AZ15: 1740 | BA15: 1650 | BB15: 2890 | BC15: . | BD15: . | BE15: . | BF15: 1510 | BG15: 2200 | BH15: 770 | BI15: 730 | BJ15: 1280 | BK15: . | BL15: . | BM15: . | BN15: 710 | BO15: 910 | BP15: . | BQ15: 110 | BR15: 90 | BS15: 20 | BT15: 60 | BU15: 180 | BV15: 240 | BW15: 690 | BX15: 1650 | BY15: 73 | BZ15: 74 | CA15: 26 | CB15: 2500 | CC15: 54.2 | CD15: 47.5 | CE15: 34 | CF15: 32.1 | CG15: . | CH15: 49.7 | CI15: 18.1 | CJ15: 9.7 | CK15: 10.9 | CL15: 14.4 | CM15: 16.7 | CN15: 29.8 | CO15: 80 | CP15: 70 | CQ15: 30 | CR15: 430 | CS15: 40 | CT15: 7.8 | CU15: 165 | CV15: 55 | CW15: 815 | CX15: 0 | CY15: 30 | CZ15: 140 | DA15: 90 | DB15: 80 | DC15: 270 | DD15: 70 | DE15: 140 | DF15: 600 | DG15: 470 | DH15: 130 | DI15: 0.3 | DJ15: 5261 | DK15: 60 | DL15: 0.4 | DM15: 0.5 | DN15: 0.4 | DO15: 0.5 | DP15: 29.7 | DQ15: 13 | DR15: 11 | DS15: 1 | DT15: 1016 | DU15: 5 | DV15: 1 | DW15: 12003 | DX15: 48.82550336 | DY15: 48.82550336 | DZ15: 6.040268456 | EA15: 8.22147651 | EB15: 16.27516779 | EC15: 0 | ED15: 0 | EE15: 0 | EF15: 0 | EG15: 0 | EH15: 0 | EI15: 0 | EJ15: 0 | EK15: 0 | EL15: 0 | EM15: 0 | EN15: 0 | EO15: 0 | EP15: 0 | EQ15: 0 | ER15: 0 | ES15: 0 | ET15: 0 | EU15: 0 | EV15: 0 | EW15: 0 | EX15: 0 | EY15: 0 | EZ15: 0 | FA15: 0
A16: BU0363AB08 | B16: 0363AB08 | C16: Groenmarktkadebuurt | D16: Amsterdam | E16: Buurt | F16: BU0363AB08 | G16: Jordaan | H16: 2 | I16: 310 | J16: 130 | K16: 180 | L16: 10 | M16: 80 | N16: 155 | O16: 35 | P16: 25 | Q16: 250 | R16: 30 | S16: 20 | T16: 5 | U16: 150 | V16: 80 | W16: 85 | X16: 150 | Y16: 10 | Z16: 20 | AA16: 65 | AB16: 60 | AC16: 5 | AD16: 13 | AE16: 0 | AF16: 0 | AG16: 215 | AH16: 130 | AI16: 75 | AJ16: 10 | AK16: 1.4 | AL16: 8670 | AM16: 210 | AN16: 580 | AO16: 0 | AP16: 100 | AQ16: 88 | AR16: 12 | AS16: 26 | AT16: 74 | AU16: 0 | AV16: 74 | AW16: 0 | AX16: 81 | AY16: 19 | AZ16: 2020 | BA16: 2020 | BB16: . | BC16: . | BD16: . | BE16: . | BF16: 2090 | BG16: 1830 | BH16: 510 | BI16: 510 | BJ16: . | BK16: . | BL16: . | BM16: . | BN16: 480 | BO16: 590 | BP16: . | BQ16: 0 | BR16: 0 | BS16: 0 | BT16: 10 | BU16: 40 | BV16: . | BW16: . | BX16: . | BY16: 82 | BZ16: 83 | CA16: 17 | CB16: 300 | CC16: . | CD16: . | CE16: 34.2 | CF16: 35.2 | CG16: . | CH16: 44.7 | CI16: 23.3 | CJ16: 5.5 | CK16: 5.5 | CL16: 8.2 | CM16: 10.4 | CN16: 21.7 | CO16: 0 | CP16: 10 | CQ16: 10 | CR16: 20 | CS16: . | CT16: . | CU16: 10 | CV16: 29 | CW16: 95 | CX16: 0 | CY16: 5 | CZ16: 20 | DA16: 10 | DB16: 10 | DC16: 35 | DD16: 10 | DE16: 10 | DF16: 40 | DG16: 30 | DH16: 10 | DI16: 0.2 | DJ16: 1175 | DK16: 5 | DL16: 0.4 | DM16: 0.6 | DN16: 0.5 | DO16: 0.4 | DP16: 33.7 | DQ16: 5 | DR16: 4 | DS16: 1 | DT16: 1016 | DU16: 1 | DV16: 1 | DW16: 12038 | DX16: 51.61290323 | DY16: 51.61290323 | DZ16: 12.90322581 | EA16: 3.225806452 | EB16: 8.064516129 | EC16: 0 | ED16: 0 | EE16: 0 | EF16: 0 | EG16: 0 | EH16: 0 | EI16: 0 | EJ16: 0 | EK16: 0 | EL16: 0 | EM16: 0 | EN16: 0 | EO16: 0 | EP16: 0 | EQ16: 0 | ER16: 0 | ES16: 0 | ET16: 0 | EU16: 0 | EV16: 0 | EW16: 0 | EX16: 0 | EY16: 0 | EZ16: 0 | FA16: 0
A17: BU0363AB09 | B17: 0363AB09 | C17: Marnixbuurt-Zuid | D17: Amsterdam | E17: Buurt | F17: BU0363AB09 | G17: Jordaan | H17: 2 | I17: 700 | J17: 365 | K17: 335 | L17: 30 | M17: 45 | N17: 280 | O17: 145 | P17: 195 | Q17: 445 | R17: 110 | S17: 70 | T17: 70 | U17: 350 | V17: 145 | W17: 205 | X17: 350 | Y17: 50 | Z17: 70 | AA17: 95 | AB17: 130 | AC17: 0 | AD17: 4 | AE17: 20 | AF17: 26 | AG17: 530 | AH17: 410 | AI17: 90 | AJ17: 25 | AK17: 1.3 | AL17: 17081 | AM17: 515 | AN17: 510 | AO17: 0 | AP17: 100 | AQ17: 94 | AR17: 6 | AS17: 13 | AT17: 86 | AU17: 34 | AV17: 52 | AW17: 1 | AX17: 71 | AY17: 29 | AZ17: 1580 | BA17: 1570 | BB17: . | BC17: . | BD17: . | BE17: . | BF17: 1500 | BG17: 2120 | BH17: 500 | BI17: 490 | BJ17: . | BK17: . | BL17: . | BM17: . | BN17: 460 | BO17: 750 | BP17: . | BQ17: 10 | BR17: 10 | BS17: 0 | BT17: 20 | BU17: 40 | BV17: . | BW17: . | BX17: . | BY17: 73 | BZ17: 72 | CA17: 28 | CB17: 600 | CC17: . | CD17: . | CE17: 33.5 | CF17: 28.6 | CG17: . | CH17: 59.3 | CI17: 10.8 | CJ17: 12.3 | CK17: 13.2 | CL17: 15.9 | CM17: 18.7 | CN17: 24.2 | CO17: 20 | CP17: 20 | CQ17: 10 | CR17: 180 | CS17: . | CT17: . | CU17: 115 | CV17: 164 | CW17: 135 | CX17: 0 | CY17: 5 | CZ17: 20 | DA17: 10 | DB17: 10 | DC17: 40 | DD17: 20 | DE17: 30 | DF17: 105 | DG17: 90 | DH17: 20 | DI17: 0.2 | DJ17: 2611 | DK17: 15 | DL17: 0.1 | DM17: 0.5 | DN17: 0.3 | DO17: 0.4 | DP17: 41.4 | DQ17: 5 | DR17: 4 | DS17: 1 | DT17: 1016 | DU17: 1 | DV17: 1 | DW17: 11370 | DX17: 50 | DY17: 50 | DZ17: 5.714285714 | EA17: 4.285714286 | EB17: 27.85714286 | EC17: 0 | ED17: 0 | EE17: 0 | EF17: 0 | EG17: 0 | EH17: 0 | EI17: 0 | EJ17: 0 | EK17: 0 | EL17: 0 | EM17: 0 | EN17: 0 | EO17: 0 | EP17: 0 | EQ17: 0 | ER17: 0 | ES17: 0 | ET17: 0 | EU17: 0 | EV17: 0 | EW17: 0 | EX17: 0 | EY17: 0 | EZ17: 0 | FA17: 0
A18: BU0363AB10 | B18: 0363AB10 | C18: Elandsgrachtbuurt | D18: Amsterdam | E18: Buurt | F18: BU0363AB10 | G18: Jordaan | H18: 2 | I18: 4325 | J18: 2195 | K18: 2130 | L18: 320 | M18: 470 | N18: 1590 | O18: 1135 | P18: 810 | Q18: 2975 | R18: 875 | S18: 375 | T18: 100 | U18: 2240 | V18: 950 | W18: 1135 | X18: 2240 | Y18: 225 | Z18: 385 | AA18: 725 | AB18: 745 | AC18: 40 | AD18: 8 | AE18: 40 | AF18: 9 | AG18: 2885 | AH18: 1920 | AI18: 615 | AJ18: 350 | AK18: 1.5 | AL18: 22898 | AM18: 2966 | AN18: 576 | AO18: 3 | AP18: 97 | AQ18: 89 | AR18: 11 | AS18: 24 | AT18: 75 | AU18: 33 | AV18: 42 | AW18: 1 | AX18: 96 | AY18: 4 | AZ18: 1680 | BA18: 1640 | BB18: 2890 | BC18: . | BD18: . | BE18: . | BF18: 1520 | BG18: 2160 | BH18: 710 | BI18: 690 | BJ18: 1300 | BK18: . | BL18: . | BM18: . | BN18: 660 | BO18: 870 | BP18: . | BQ18: 140 | BR18: 110 | BS18: 30 | BT18: 90 | BU18: 240 | BV18: 420 | BW18: 940 | BX18: 2320 | BY18: 71 | BZ18: 72 | CA18: 28 | CB18: 3700 | CC18: 50.1 | CD18: 44.6 | CE18: 37.8 | CF18: 28.3 | CG18: 44 | CH18: 55.8 | CI18: 15 | CJ18: 10.7 | CK18: 13.4 | CL18: 17.3 | CM18: 19.9 | CN18: 23 | CO18: 120 | CP18: 140 | CQ18: 40 | CR18: 720 | CS18: 65 | CT18: 10.4 | CU18: 310 | CV18: 71 | CW18: 1360 | CX18: 0 | CY18: 70 | CZ18: 255 | DA18: 125 | DB18: 85 | DC18: 370 | DD18: 160 | DE18: 295 | DF18: 850 | DG18: 685 | DH18: 165 | DI18: 0.3 | DJ18: 4508 | DK18: 135 | DL18: 0.5 | DM18: 0.4 | DN18: 0.3 | DO18: 0.5 | DP18: 33.6 | DQ18: 21 | DR18: 19 | DS18: 2 | DT18: 1016 | DU18: 1 | DV18: 1 | DW18: 11783 | DX18: 48.20809249 | DY18: 48.20809249 | DZ18: 5.549132948 | EA18: 7.398843931 | EB18: 18.7283237 | EC18: 0 | ED18: 0 | EE18: 0 | EF18: 0 | EG18: 0 | EH18: 0 | EI18: 0 | EJ18: 0 | EK18: 0 | EL18: 0 | EM18: 0 | EN18: 0 | EO18: 0 | EP18: 0 | EQ18: 0 | ER18: 0 | ES18: 0 | ET18: 0 | EU18: 0 | EV18: 0 | EW18: 0 | EX18: 0 | EY18: 0 | EZ18: 0 | FA18: 0
A19: BU0363AB11 | B19: 0363AB11 | C19: Passeerdersgrachtbuurt | D19: Amsterdam | E19: Buurt | F19: BU0363AB11 | G19: Jordaan | H19: 2 | I19: 915 | J19: 495 | K19: 420 | L19: 50 | M19: 100 | N19: 355 | O19: 240 | P19: 180 | Q19: 655 | R19: 165 | S19: 70 | T19: 30 | U19: 450 | V19: 205 | W19: 255 | X19: 455 | Y19: 45 | Z19: 75 | AA19: 160 | AB19: 180 | AC19: 10 | AD19: 9 | AE19: 5 | AF19: 7 | AG19: 640 | AH19: 430 | AI19: 150 | AJ19: 55 | AK19: 1.4 | AL19: 20002 | AM19: 648 | AN19: 695 | AO19: 3 | AP19: 97 | AQ19: 89 | AR19: 11 | AS19: 37 | AT19: 62 | AU19: 34 | AV19: 27 | AW19: 2 | AX19: 97 | AY19: 3 | AZ19: 1700 | BA19: 1670 | BB19: 2710 | BC19: . | BD19: . | BE19: . | BF19: 1500 | BG19: 2060 | BH19: 730 | BI19: 710 | BJ19: 1340 | BK19: . | BL19: . | BM19: . | BN19: 690 | BO19: 770 | BP19: . | BQ19: 30 | BR19: 20 | BS19: 10 | BT19: 20 | BU19: 40 | BV19: 120 | BW19: 150 | BX19: 510 | BY19: 66 | BZ19: 73 | CA19: 27 | CB19: 800 | CC19: . | CD19: . | CE19: 35.9 | CF19: 31 | CG19: . | CH19: 49.7 | CI19: 17.8 | CJ19: 12.3 | CK19: 12.9 | CL19: 17.2 | CM19: 20.2 | CN19: 60 | CO19: 30 | CP19: 40 | CQ19: 10 | CR19: 160 | CS19: 10 | CT19: 6.9 | CU19: 55 | CV19: 62 | CW19: 290 | CX19: 0 | CY19: 15 | CZ19: 35 | DA19: 30 | DB19: 30 | DC19: 95 | DD19: 25 | DE19: 55 | DF19: 160 | DG19: 130 | DH19: 25 | DI19: 0.2 | DJ19: 3454 | DK19: 20 | DL19: 0.3 | DM19: 0.5 | DN19: 0.4 | DO19: 0.6 | DP19: 40.5 | DQ19: 5 | DR19: 5 | DS19: 1 | DT19: 1016 | DU19: 1 | DV19: 1 | DW19: 10307 | DX19: 50.27322404 | DY19: 50.81967213 | DZ19: 4.371584699 | EA19: 5.464480874 | EB19: 19.67213115 | EC19: 0 | ED19: 0 | EE19: 0 | EF19: 0 | EG19: 0 | EH19: 0 | EI19: 0 | EJ19: 0 | EK19: 0 | EL19: 0 | EM19: 0 | EN19: 0 | EO19: 0 | EP19: 0 | EQ19: 0 | ER19: 0 | ES19: 0 | ET19: 0 | EU19: 0 | EV19: 0 | EW19: 0 | EX19: 0 | EY19: 0 | EZ19: 0 | FA19: 0
A20: BU0363AC01 | B20: 0363AC01 | C20: Langestraat e.o. | D20: Amsterdam | E20: Buurt | F20: BU0363AC01 | G20: Grachtengordel-West | H20: 2 | I20: 1895 | J20: 1000 | K20: 900 | L20: 160 | M20: 240 | N20: 610 | O20: 500 | P20: 395 | Q20: 1160 | R20: 545 | S20: 135 | T20: 55 | U20: 1000 | V20: 465 | W20: 435 | X20: 1000 | Y20: 100 | Z20: 125 | AA20: 365 | AB20: 305 | AC20: 15 | AD20: 8 | AE20: 20 | AF20: 9 | AG20: 1170 | AH20: 675 | AI20: 330 | AJ20: 165 | AK20: 1.6 | AL20: 19537 | AM20: 1208 | AN20: 947 | AO20: 9 | AP20: 91 | AQ20: 81 | AR20: 19 | AS20: 48 | AT20: 51 | AU20: 7 | AV20: 43 | AW20: 1 | AX20: 99 | AY20: 1 | AZ20: 2200 | BA20: 2070 | BB20: 3560 | BC20: . | BD20: . | BE20: . | BF20: 1810 | BG20: 2590 | BH20: 990 | BI20: 940 | BJ20: 1460 | BK20: . | BL20: . | BM20: . | BN20: 840 | BO20: 1140 | BP20: . | BQ20: 80 | BR20: 60 | BS20: 10 | BT20: 50 | BU20: 120 | BV20: 310 | BW20: 300 | BX20: 990 | BY20: 73 | BZ20: 65 | CA20: 35 | CB20: 1600 | CC20: . | CD20: . | CE20: 33.4 | CF20: 39.4 | CG20: . | CH20: 38.7 | CI20: 29.6 | CJ20: 7.9 | CK20: 7.6 | CL20: 9.7 | CM20: 10.6 | CN20: 214.2 | CO20: 0 | CP20: 20 | CQ20: 20 | CR20: 340 | CS20: 30 | CT20: 9.5 | CU20: 50 | CV20: 26 | CW20: 860 | CX20: 0 | CY20: 35 | CZ20: 100 | DA20: 90 | DB20: 105 | DC20: 295 | DD20: 90 | DE20: 145 | DF20: 540 | DG20: 390 | DH20: 150 | DI20: 0.5 | DJ20: 5555 | DK20: 40 | DL20: 0.3 | DM20: 0.5 | DN20: 0.7 | DO20: 0.5 | DP20: 22.4 | DQ20: 12 | DR20: 10 | DS20: 3 | DT20: 1015 | DU20: 1 | DV20: 1 | DW20: 9729 | DX20: 47.22955145 | DY20: 47.22955145 | DZ20: 6.332453826 | EA20: 8.443271768 | EB20: 20.84432718 | EC20: 0 | ED20: 0 | EE20: 0 | EF20: 0 | EG20: 0 | EH20: 0 | EI20: 0 | EJ20: 0 | EK20: 0 | EL20: 0 | EM20: 0 | EN20: 0 | EO20: 0 | EP20: 0 | EQ20: 0 | ER20: 0 | ES20: 0 | ET20: 0 | EU20: 0 | EV20: 0 | EW20: 0 | EX20: 0 | EY20: 0 | EZ20: 0 | FA20: 0
A21: BU0363AC02 | B21: 0363AC02 | C21: Leliegracht e.o. | D21: Amsterdam | E21: Buurt | F21: BU0363AC02 | G21: Grachtengordel-West | H21: 2 | I21: 1870 | J21: 935 | K21: 935 | L21: 120 | M21: 310 | N21: 720 | O21: 450 | P21: 265 | Q21: 1305 | R21: 440 | S21: 90 | T21: 35 | U21: 865 | V21: 485 | W21: 515 | X21: 870 | Y21: 75 | Z21: 100 | AA21: 410 | AB21: 410 | AC21: 10 | AD21: 5 | AE21: 10 | AF21: 5 | AG21: 1230 | AH21: 785 | AI21: 320 | AJ21: 125 | AK21: 1.5 | AL21: 13748 | AM21: 1213 | AN21: 938 | AO21: 7 | AP21: 93 | AQ21: 79 | AR21: 21 | AS21: 40 | AT21: 59 | AU21: 17 | AV21: 42 | AW21: 1 | AX21: 100 | AY21: 0 | AZ21: 2200 | BA21: 2140 | BB21: 3030 | BC21: . | BD21: . | BE21: . | BF21: 1930 | BG21: 2590 | BH21: 930 | BI21: 890 | BJ21: 1410 | BK21: . | BL21: . | BM21: . | BN21: 800 | BO21: 1110 | BP21: . | BQ21: 50 | BR21: 40 | BS21: 10 | BT21: 40 | BU21: 140 | BV21: 100 | BW21: 340 | BX21: 1210 | BY21: 67 | BZ21: 69 | CA21: 31 | CB21: 1400 | CC21: . | CD21: . | CE21: 31.1 | CF21: 40.2 | CG21: . | CH21: 42.3 | CI21: 28.7 | CJ21: 8.7 | CK21: 7.9 | CL21: 9.1 | CM21: 10.3 | CN21: 72.4 | CO21: 10 | CP21: 20 | CQ21: 10 | CR21: 230 | CS21: 20 | CT21: 5.7 | CU21: 40 | CV21: 22 | CW21: 965 | CX21: 0 | CY21: 20 | CZ21: 170 | DA21: 120 | DB21: 150 | DC21: 305 | DD21: 65 | DE21: 135 | DF21: 610 | DG21: 450 | DH21: 160 | DI21: 0.5 | DJ21: 4499 | DK21: 45 | DL21: 0.2 | DM21: 0.5 | DN21: 0.6 | DO21: 0.8 | DP21: 25.4 | DQ21: 17 | DR21: 14 | DS21: 4 | DT21: 1015 | DU21: 3 | DV21: 1 | DW21: 10958 | DX21: 53.47593583 | DY21: 53.74331551 | DZ21: 7.486631016 | EA21: 6.417112299 | EB21: 14.17112299 | EC21: 0 | ED21: 0 | EE21: 0 | EF21: 0 | EG21: 0 | EH21: 0 | EI21: 0 | EJ21: 0 | EK21: 0 | EL21: 0 | EM21: 0 | EN21: 0 | EO21: 0 | EP21: 0 | EQ21: 0 | ER21: 0 | ES21: 0 | ET21: 0 | EU21: 0 | EV21: 0 | EW21: 0 | EX21: 0 | EY21: 0 | EZ21: 0 | FA21: 0
A22: BU0363AC03 | B22: 0363AC03 | C22: Felix Meritisbuurt | D22: Amsterdam | E22: Buurt | F22: BU0363AC03 | G22: Grachtengordel-West | H22: 2 | I22: 2075 | J22: 1095 | K22: 980 | L22: 120 | M22: 260 | N22: 825 | O22: 545 | P22: 320 | Q22: 1395 | R22: 510 | S22: 135 | T22: 35 | U22: 990 | V22: 550 | W22: 535 | X22: 990 | Y22: 110 | Z22: 135 | AA22: 435 | AB22: 405 | AC22: 15 | AD22: 7 | AE22: 5 | AF22: 3 | AG22: 1360 | AH22: 825 | AI22: 380 | AJ22: 160 | AK22: 1.5 | AL22: 12875 | AM22: 1482 | AN22: 908 | AO22: 8 | AP22: 92 | AQ22: 77 | AR22: 23 | AS22: 39 | AT22: 60 | AU22: 8 | AV22: 52 | AW22: 1 | AX22: 99 | AY22: 1 | AZ22: 2110 | BA22: 2010 | BB22: 3210 | BC22: 2830 | BD22: . | BE22: . | BF22: 1870 | BG22: 2460 | BH22: 930 | BI22: 880 | BJ22: 1530 | BK22: 950 | BL22: . | BM22: . | BN22: 840 | BO22: 1060 | BP22: . | BQ22: 40 | BR22: 40 | BS22: 10 | BT22: 50 | BU22: 150 | BV22: 80 | BW22: 340 | BX22: 1440 | BY22: 73 | BZ22: 67 | CA22: 33 | CB22: 1700 | CC22: . | CD22: . | CE22: 30.6 | CF22: 39.4 | CG22: . | CH22: 41.4 | CI22: 26.8 | CJ22: 8.1 | CK22: 8 | CL22: 9.9 | CM22: 11.3 | CN22: 64.6 | CO22: 10 | CP22: 20 | CQ22: 20 | CR22: 290 | CS22: . | CT22: . | CU22: 50 | CV22: 25 | CW22: 1505 | CX22: 0 | CY22: 55 | CZ22: 335 | DA22: 190 | DB22: 180 | DC22: 495 | DD22: 100 | DE22: 150 | DF22: 630 | DG22: 430 | DH22: 195 | DI22: 0.5 | DJ22: 3897 | DK22: 45 | DL22: 0.4 | DM22: 0.3 | DN22: 0.4 | DO22: 0.8 | DP22: 31.7 | DQ22: 20 | DR22: 16 | DS22: 4 | DT22: 1016 | DU22: 1 | DV22: 1 | DW22: 11681 | DX22: 52.28915663 | DY22: 52.28915663 | DZ22: 7.228915663 | EA22: 5.78313253 | EB22: 15.42168675 | EC22: 0 | ED22: 0 | EE22: 0 | EF22: 0 | EG22: 0 | EH22: 0 | EI22: 0 | EJ22: 0 | EK22: 0 | EL22: 0 | EM22: 0 | EN22: 0 | EO22: 0 | EP22: 0 | EQ22: 0 | ER22: 0 | ES22: 0 | ET22: 0 | EU22: 0 | EV22: 0 | EW22: 0 | EX22: 0 | EY22: 0 | EZ22: 0 | FA22: 0
A23: BU0363AC04 | B23: 0363AC04 | C23: Leidsegracht-Noord | D23: Amsterdam | E23: Buurt | F23: BU0363AC04 | G23: Grachtengordel-West | H23: 2 | I23: 740 | J23: 390 | K23: 350 | L23: 50 | M23: 105 | N23: 285 | O23: 175 | P23: 120 | Q23: 485 | R23: 190 | S23: 45 | T23: 15 | U23: 335 | V23: 235 | W23: 175 | X23: 330 | Y23: 45 | Z23: 55 | AA23: 185 | AB23: 125 | AC23: 5 | AD23: 3 | AE23: 0 | AF23: 1 | AG23: 480 | AH23: 305 | AI23: 125 | AJ23: 50 | AK23: 1.5 | AL23: 13839 | AM23: 454 | AN23: 1113 | AO23: 10 | AP23: 90 | AQ23: 80 | AR23: 20 | AS23: 42 | AT23: 57 | AU23: 9 | AV23: 48 | AW23: 1 | AX23: 99 | AY23: 1 | AZ23: 2210 | BA23: 2120 | BB23: 3110 | BC23: . | BD23: . | BE23: . | BF23: 1820 | BG23: 2740 | BH23: 1000 | BI23: 940 | BJ23: 1550 | BK23: . | BL23: . | BM23: . | BN23: 810 | BO23: 1250 | BP23: . | BQ23: 10 | BR23: 20 | BS23: 0 | BT23: 20 | BU23: 60 | BV23: 110 | BW23: 120 | BX23: 380 | BY23: 72 | BZ23: 66 | CA23: 34 | CB23: 600 | CC23: . | CD23: . | CE23: 32.1 | CF23: 41.9 | CG23: . | CH23: 43.4 | CI23: 30.9 | CJ23: 10.1 | CK23: 8.9 | CL23: 10.8 | CM23: 11.8 | CN23: 51.1 | CO23: 0 | CP23: 10 | CQ23: 10 | CR23: 110 | CS23: . | CT23: . | CU23: 10 | CV23: 16 | CW23: 555 | CX23: 0 | CY23: 20 | CZ23: 105 | DA23: 70 | DB23: 55 | DC23: 195 | DD23: 55 | DE23: 55 | DF23: 230 | DG23: 160 | DH23: 70 | DI23: 0.5 | DJ23: 4307 | DK23: 15 | DL23: 0.6 | DM23: 0.4 | DN23: 0.4 | DO23: 0.9 | DP23: 36.9 | DQ23: 7 | DR23: 5 | DS23: 2 | DT23: 1016 | DU23: 1 | DV23: 1 | DW23: 10004 | DX23: 55.40540541 | DY23: 54.72972973 | DZ23: 8.108108108 | EA23: 6.756756757 | EB23: 16.21621622 | EC23: 0 | ED23: 0 | EE23: 0 | EF23: 0 | EG23: 0 | EH23: 0 | EI23: 0 | EJ23: 0 | EK23: 0 | EL23: 0 | EM23: 0 | EN23: 0 | EO23: 0 | EP23: 0 | EQ23: 0 | ER23: 0 | ES23: 0 | ET23: 0 | EU23: 0 | EV23: 0 | EW23: 0 | EX23: 0 | EY23: 0 | EZ23: 0 | FA23: 0
A24: BU0363AD01 | B24: 0363AD01 | C24: Stationsplein e.o. | D24: Amsterdam | E24: Buurt | F24: BU0363AD01 | G24: Burgwallen-Nieuwe Zijde | H24: 2 | I24: 5 | J24: 0 | K24: 0 | L24: 0 | M24: 0 | N24: 0 | O24: 0 | P24: 0 | Q24: 0 | R24: 0 | S24: 0 | T24: 0 | U24: 0 | V24: 0 | W24: 5 | X24: 0 | Y24: 0 | Z24: 0 | AA24: 0 | AB24: 0 | AC24: 0 | AD24: 0 | AE24: 0 | AF24: 0 | AG24: 5 | AH24: 0 | AI24: 0 | AJ24: 0 | AK24: 1.5 | AL24: . | AM24: 0 | AN24: . | AO24: . | AP24: . | AQ24: . | AR24: . | AS24: . | AT24: . | AU24: . | AV24: . | AW24: . | AX24: . | AY24: . | AZ24: . | BA24: . | BB24: . | BC24: . | BD24: . | BE24: . | BF24: . | BG24: . | BH24: . | BI24: . | BJ24: . | BK24: . | BL24: . | BM24: . | BN24: . | BO24: . | BP24: . | BQ24: 0 | BR24: 0 | BS24: 0 | BT24: 0 | BU24: 0 | BV24: . | BW24: . | BX24: . | BY24: . | BZ24: . | CA24: . | CB24: 0 | CC24: . | CD24: . | CE24: . | CF24: . | CG24: . | CH24: . | CI24: . | CJ24: . | CK24: . | CL24: . | CM24: . | CN24: . | CO24: . | CP24: . | CQ24: . | CR24: . | CS24: . | CT24: . | CU24: . | CV24: . | CW24: 70 | CX24: 0 | CY24: 0 | CZ24: 50 | DA24: 5 | DB24: 5 | DC24: 5 | DD24: 0 | DE24: 5 | DF24: 5 | DG24: 5 | DH24: 0 | DI24: . | DJ24: . | DK24: 0 | DL24: . | DM24: . | DN24: . | DO24: . | DP24: . | DQ24: 26 | DR24: 14 | DS24: 12 | DT24: 1012 | DU24: 1 | DV24: 1 | DW24: 6747 | DX24: 100 | DY24: 100 | DZ24: 0 | EA24: 0 | EB24: 0 | EC24: 0 | ED24: 0 | EE24: 0 | EF24: 0 | EG24: 0 | EH24: 0 | EI24: 0 | EJ24: 0 | EK24: 0 | EL24: 0 | EM24: 0 | EN24: 0 | EO24: 0 | EP24: 0 | EQ24: 0 | ER24: 0 | ES24: 0 | ET24: 0 | EU24: 0 | EV24: 0 | EW24: 0 | EX24: 0 | EY24: 0 | EZ24: 0 | FA24: 0
A25: BU0363AD02 | B25: 0363AD02 | C25: Hemelrijk | D25: Amsterdam | E25: Buurt | F25: BU0363AD02 | G25: Burgwallen-Nieuwe Zijde | H25: 2 | I25: 565 | J25: 325 | K25: 245 | L25: 20 | M25: 110 | N25: 275 | O25: 135 | P25: 35 | Q25: 460 | R25: 70 | S25: 35 | T25: 5 | U25: 215 | V25: 205 | W25: 145 | X25: 215 | Y25: 25 | Z25: 40 | AA25: 180 | AB25: 110 | AC25: 0 | AD25: 5 | AE25: 5 | AF25: 2 | AG25: 405 | AH25: 275 | AI25: 110 | AJ25: 20 | AK25: 1.4 | AL25: 10224 | AM25: 413 | AN25: 496 | AO25: 2 | AP25: 98 | AQ25: 80 | AR25: 20 | AS25: 27 | AT25: 72 | AU25: 3 | AV25: 69 | AW25: 1 | AX25: 99 | AY25: 1 | AZ25: 1750 | BA25: 1750 | BB25: 1790 | BC25: . | BD25: . | BE25: . | BF25: 1770 | BG25: 1690 | BH25: 720 | BI25: 720 | BJ25: 1010 | BK25: . | BL25: . | BM25: . | BN25: 740 | BO25: 680 | BP25: . | BQ25: 10 | BR25: 0 | BS25: 0 | BT25: 20 | BU25: 50 | BV25: 40 | BW25: 140 | BX25: 350 | BY25: 76 | BZ25: 73 | CA25: 27 | CB25: 500 | CC25: . | CD25: . | CE25: 36.7 | CF25: 26 | CG25: . | CH25: 55.8 | CI25: 12.4 | CJ25: 11.9 | CK25: 11.6 | CL25: 14.7 | CM25: 15.6 | CN25: 7.8 | CO25: 10 | CP25: 10 | CQ25: 10 | CR25: 30 | CS25: . | CT25: . | CU25: . | CV25: . | CW25: 365 | CX25: 0 | CY25: 10 | CZ25: 120 | DA25: 30 | DB25: 30 | DC25: 110 | DD25: 15 | DE25: 45 | DF25: 95 | DG25: 65 | DH25: 35 | DI25: 0.2 | DJ25: 1752 | DK25: 15 | DL25: 0.5 | DM25: 0.4 | DN25: 0.6 | DO25: 0.8 | DP25: 20.3 | DQ25: 6 | DR25: 6 | DS25: 1 | DT25: 1012 | DU25: 1 | DV25: 1 | DW25: 8884 | DX25: 61.94690265 | DY25: 61.94690265 | DZ25: 8.849557522 | EA25: 3.539823009 | EB25: 6.194690265 | EC25: 0 | ED25: 0 | EE25: 0 | EF25: 0 | EG25: 0 | EH25: 0 | EI25: 0 | EJ25: 0 | EK25: 0 | EL25: 0 | EM25: 0 | EN25: 0 | EO25: 0 | EP25: 0 | EQ25: 0 | ER25: 0 | ES25: 0 | ET25: 0 | EU25: 0 | EV25: 0 | EW25: 0 | EX25: 0 | EY25: 0 | EZ25: 0 | FA25: 0
A26: BU0363AD03 | B26: 0363AD03 | C26: Nieuwendijk-Noord | D26: Amsterdam | E26: Buurt | F26: BU0363AD03 | G26: Burgwallen-Nieuwe Zijde | H26: 2 | I26: 505 | J26: 285 | K26: 215 | L26: 20 | M26: 95 | N26: 270 | O26: 95 | P26: 25 | Q26: 415 | R26: 60 | S26: 25 | T26: 0 | U26: 155 | V26: 180 | W26: 165 | X26: 155 | Y26: 15 | Z26: 50 | AA26: 160 | AB26: 125 | AC26: 5 | AD26: 2 | AE26: 0 | AF26: 2 | AG26: 360 | AH26: 250 | AI26: 90 | AJ26: 25 | AK26: 1.4 | AL26: 9191 | AM26: 345 | AN26: 532 | AO26: 6 | AP26: 94 | AQ26: 79 | AR26: 21 | AS26: 14 | AT26: 85 | AU26: 10 | AV26: 75 | AW26: 1 | AX26: 97 | AY26: 3 | AZ26: 1880 | BA26: 1850 | BB26: 2480 | BC26: . | BD26: . | BE26: . | BF26: 1810 | BG26: 2380 | BH26: 690 | BI26: 660 | BJ26: 1320 | BK26: . | BL26: . | BM26: . | BN26: 670 | BO26: 830 | BP26: . | BQ26: 10 | BR26: 0 | BS26: 0 | BT26: 10 | BU26: 40 | BV26: . | BW26: . | BX26: . | BY26: 78 | BZ26: 78 | CA26: 22 | CB26: 400 | CC26: . | CD26: . | CE26: 40.4 | CF26: 25.1 | CG26: . | CH26: 57.9 | CI26: 8.8 | CJ26: 13.5 | CK26: 12.8 | CL26: 15.2 | CM26: 17.4 | CN26: 5.6 | CO26: 10 | CP26: 10 | CQ26: 0 | CR26: 10 | CS26: . | CT26: . | CU26: 10 | CV26: 18 | CW26: 305 | CX26: 0 | CY26: 5 | CZ26: 135 | DA26: 35 | DB26: 25 | DC26: 55 | DD26: 10 | DE26: 40 | DF26: 60 | DG26: 50 | DH26: 10 | DI26: 0.2 | DJ26: 1135 | DK26: 10 | DL26: 0.7 | DM26: 0.5 | DN26: 0.8 | DO26: 0.9 | DP26: 22.2 | DQ26: 7 | DR26: 5 | DS26: 1 | DT26: 1012 | DU26: 1 | DV26: 1 | DW26: 7205 | DX26: 69.30693069 | DY26: 69.30693069 | DZ26: 7.920792079 | EA26: 3.96039604 | EB26: 4.95049505 | EC26: 0 | ED26: 0 | EE26: 0 | EF26: 0 | EG26: 0 | EH26: 0 | EI26: 0 | EJ26: 0 | EK26: 0 | EL26: 0 | EM26: 0 | EN26: 0 | EO26: 0 | EP26: 0 | EQ26: 0 | ER26: 0 | ES26: 0 | ET26: 0 | EU26: 0 | EV26: 0 | EW26: 0 | EX26: 0 | EY26: 0 | EZ26: 0 | FA26: 0
A27: BU0363AD04 | B27: 0363AD04 | C27: Spuistraat-Noord | D27: Amsterdam | E27: Buurt | F27: BU0363AD04 | G27: Burgwallen-Nieuwe Zijde | H27: 2 | I27: 890 | J27: 465 | K27: 420 | L27: 30 | M27: 175 | N27: 470 | O27: 145 | P27: 70 | Q27: 720 | R27: 125 | S27: 30 | T27: 10 | U27: 335 | V27: 315 | W27: 240 | X27: 335 | Y27: 30 | Z27: 70 | AA27: 290 | AB27: 170 | AC27: 5 | AD27: 4 | AE27: 0 | AF27: 4 | AG27: 605 | AH27: 380 | AI27: 190 | AJ27: 40 | AK27: 1.5 | AL27: 17663 | AM27: 565 | AN27: 561 | AO27: 6 | AP27: 94 | AQ27: 86 | AR27: 14 | AS27: 27 | AT27: 72 | AU27: 8 | AV27: 64 | AW27: 1 | AX27: 100 | AY27: 0 | AZ27: 2050 | BA27: 2030 | BB27: 2430 | BC27: . | BD27: . | BE27: . | BF27: 1940 | BG27: 2340 | BH27: 870 | BI27: 840 | BJ27: 1240 | BK27: . | BL27: . | BM27: . | BN27: 810 | BO27: 1020 | BP27: . | BQ27: 10 | BR27: 10 | BS27: 0 | BT27: 30 | BU27: 100 | BV27: . | BW27: . | BX27: . | BY27: 77 | BZ27: 78 | CA27: 22 | CB27: 800 | CC27: . | CD27: . | CE27: 34.4 | CF27: 28.3 | CG27: . | CH27: 51.1 | CI27: 13.7 | CJ27: 8.3 | CK27: 7.3 | CL27: 10.1 | CM27: 10.7 | CN27: 7.6 | CO27: 0 | CP27: 10 | CQ27: 10 | CR27: 60 | CS27: . | CT27: . | CU27: 15 | CV27: 19 | CW27: 495 | CX27: 0 | CY27: 20 | CZ27: 130 | DA27: 65 | DB27: 40 | DC27: 135 | DD27: 25 | DE27: 85 | DF27: 140 | DG27: 100 | DH27: 40 | DI27: 0.2 | DJ27: 2818 | DK27: 15 | DL27: 0.4 | DM27: 0.5 | DN27: 0.7 | DO27: 1.1 | DP27: 22.8 | DQ27: 6 | DR27: 5 | DS27: 1 | DT27: 1012 | DU27: 1 | DV27: 1 | DW27: 9860 | DX27: 62.35955056 | DY27: 62.35955056 | DZ27: 11.23595506 | EA27: 3.370786517 | EB27: 7.865168539 | EC27: 0 | ED27: 0 | EE27: 0 | EF27: 0 | EG27: 0 | EH27: 0 | EI27: 0 | EJ27: 0 | EK27: 0 | EL27: 0 | EM27: 0 | EN27: 0 | EO27: 0 | EP27: 0 | EQ27: 0 | ER27: 0 | ES27: 0 | ET27: 0 | EU27: 0 | EV27: 0 | EW27: 0 | EX27: 0 | EY27: 0 | EZ27: 0 | FA27: 0
A28: BU0363AD05 | B28: 0363AD05 | C28: Nieuwe Kerk e.o. | D28: Amsterdam | E28: Buurt | F28: BU0363AD05 | G28: Burgwallen-Nieuwe Zijde | H28: 2 | I28: 790 | J28: 430 | K28: 360 | L28: 40 | M28: 155 | N28: 405 | O28: 145 | P28: 45 | Q28: 635 | R28: 120 | S28: 25 | T28: 5 | U28: 330 | V28: 220 | W28: 240 | X28: 330 | Y28: 25 | Z28: 70 | AA28: 195 | AB28: 170 | AC28: 5 | AD28: 6 | AE28: 5 | AF28: 3 | AG28: 535 | AH28: 340 | AI28: 165 | AJ28: 35 | AK28: 1.5 | AL28: 9376 | AM28: 535 | AN28: 515 | AO28: 8 | AP28: 92 | AQ28: 84 | AR28: 16 | AS28: 21 | AT28: 78 | AU28: 6 | AV28: 72 | AW28: 1 | AX28: 97 | AY28: 3 | AZ28: 1850 | BA28: 1810 | BB28: 2270 | BC28: . | BD28: . | BE28: . | BF28: 1800 | BG28: 2040 | BH28: 750 | BI28: 720 | BJ28: 1150 | BK28: . | BL28: . | BM28: . | BN28: 740 | BO28: 800 | BP28: . | BQ28: 20 | BR28: 10 | BS28: 10 | BT28: 40 | BU28: 90 | BV28: . | BW28: . | BX28: . | BY28: 80 | BZ28: 80 | CA28: 20 | CB28: 700 | CC28: . | CD28: . | CE28: 34.3 | CF28: 30 | CG28: . | CH28: 50.3 | CI28: 15.1 | CJ28: 6.5 | CK28: 6.5 | CL28: 8.4 | CM28: 9.5 | CN28: 6 | CO28: 10 | CP28: 10 | CQ28: 10 | CR28: 40 | CS28: 10 | CT28: 9.4 | CU28: . | CV28: . | CW28: 435 | CX28: 0 | CY28: 15 | CZ28: 195 | DA28: 30 | DB28: 25 | DC28: 80 | DD28: 20 | DE28: 70 | DF28: 115 | DG28: 85 | DH28: 30 | DI28: 0.2 | DJ28: 1390 | DK28: 30 | DL28: 0.7 | DM28: 0.6 | DN28: 0.9 | DO28: 1.1 | DP28: 21.3 | DQ28: 8 | DR28: 8 | DS28: 0 | DT28: 1012 | DU28: 1 | DV28: 1 | DW28: 9666 | DX28: 58.2278481 | DY28: 58.2278481 | DZ28: 11.39240506 | EA28: 5.063291139 | EB28: 5.696202532 | EC28: 0 | ED28: 0 | EE28: 0 | EF28: 0 | EG28: 0 | EH28: 0 | EI28: 0 | EJ28: 0 | EK28: 0 | EL28: 0 | EM28: 0 | EN28: 0 | EO28: 0 | EP28: 0 | EQ28: 0 | ER28: 0 | ES28: 0 | ET28: 0 | EU28: 0 | EV28: 0 | EW28: 0 | EX28: 0 | EY28: 0 | EZ28: 0 | FA28: 0
A29: BU0363AD06 | B29: 0363AD06 | C29: Spuistraat-Zuid | D29: Amsterdam | E29: Buurt | F29: BU0363AD06 | G29: Burgwallen-Nieuwe Zijde | H29: 2 | I29: 785 | J29: 435 | K29: 355 | L29: 35 | M29: 125 | N29: 405 | O29: 145 | P29: 85 | Q29: 610 | R29: 120 | S29: 50 | T29: 5 | U29: 310 | V29: 250 | W29: 230 | X29: 315 | Y29: 35 | Z29: 55 | AA29: 215 | AB29: 175 | AC29: 5 | AD29: 1 | AE29: 0 | AF29: 3 | AG29: 550 | AH29: 355 | AI29: 145 | AJ29: 50 | AK29: 1.4 | AL29: 13229 | AM29: 588 | AN29: 543 | AO29: 3 | AP29: 97 | AQ29: 84 | AR29: 16 | AS29: 16 | AT29: 83 | AU29: 23 | AV29: 60 | AW29: 1 | AX29: 93 | AY29: 7 | AZ29: 1740 | BA29: 1720 | BB29: 2180 | BC29: . | BD29: . | BE29: . | BF29: 1670 | BG29: 2120 | BH29: 710 | BI29: 710 | BJ29: 980 | BK29: . | BL29: . | BM29: . | BN29: 700 | BO29: 810 | BP29: . | BQ29: 20 | BR29: 10 | BS29: 0 | BT29: 30 | BU29: 70 | BV29: . | BW29: . | BX29: . | BY29: 77 | BZ29: 74 | CA29: 26 | CB29: 700 | CC29: . | CD29: . | CE29: 35.6 | CF29: 30.6 | CG29: . | CH29: 53.1 | CI29: 15.8 | CJ29: 11.5 | CK29: 11.5 | CL29: 14.1 | CM29: 16.5 | CN29: 9.8 | CO29: 10 | CP29: 0 | CQ29: 10 | CR29: 70 | CS29: . | CT29: . | CU29: 15 | CV29: 22 | CW29: 390 | CX29: 0 | CY29: 15 | CZ29: 130 | DA29: 35 | DB29: 25 | DC29: 80 | DD29: 35 | DE29: 75 | DF29: 130 | DG29: 100 | DH29: 35 | DI29: 0.2 | DJ29: 2213 | DK29: 20 | DL29: 0.2 | DM29: 0.4 | DN29: 0.6 | DO29: 1.2 | DP29: 28.9 | DQ29: 7 | DR29: 6 | DS29: 1 | DT29: 1012 | DU29: 1 | DV29: 1 | DW29: 10146 | DX29: 59.87261146 | DY29: 60.50955414 | DZ29: 8.917197452 | EA29: 4.458598726 | EB29: 10.82802548 | EC29: 0 | ED29: 0 | EE29: 0 | EF29: 0 | EG29: 0 | EH29: 0 | EI29: 0 | EJ29: 0 | EK29: 0 | EL29: 0 | EM29: 0 | EN29: 0 | EO29: 0 | EP29: 0 | EQ29: 0 | ER29: 0 | ES29: 0 | ET29: 0 | EU29: 0 | EV29: 0 | EW29: 0 | EX29: 0 | EY29: 0 | EZ29: 0 | FA29: 0
A30: BU0363AD07 | B30: 0363AD07 | C30: Begijnhofbuurt | D30: Amsterdam | E30: Buurt | F30: BU0363AD07 | G30: Burgwallen-Nieuwe Zijde | H30: 2 | I30: 460 | J30: 195 | K30: 260 | L30: 5 | M30: 70 | N30: 230 | O30: 75 | P30: 75 | Q30: 360 | R30: 50 | S30: 45 | T30: 5 | U30: 190 | V30: 135 | W30: 135 | X30: 195 | Y30: 10 | Z30: 45 | AA30: 125 | AB30: 90 | AC30: 0 | AD30: 0 | AE30: 0 | AF30: 2 | AG30: 355 | AH30: 260 | AI30: 85 | AJ30: 10 | AK30: 1.3 | AL30: 6501 | AM30: 353 | AN30: 499 | AO30: 6 | AP30: 94 | AQ30: 82 | AR30: 18 | AS30: 9 | AT30: 90 | AU30: 1 | AV30: 89 | AW30: 0 | AX30: 100 | AY30: 0 | AZ30: 1600 | BA30: 1600 | BB30: 1560 | BC30: . | BD30: . | BE30: . | BF30: 1550 | BG30: 2110 | BH30: 740 | BI30: 720 | BJ30: 1010 | BK30: . | BL30: . | BM30: . | BN30: 730 | BO30: 780 | BP30: . | BQ30: 0 | BR30: 0 | BS30: 0 | BT30: 10 | BU30: 30 | BV30: . | BW30: . | BX30: . | BY30: 77 | BZ30: 80 | CA30: 20 | CB30: 400 | CC30: . | CD30: . | CE30: 33.8 | CF30: 24.8 | CG30: . | CH30: 59.9 | CI30: 9.7 | CJ30: 8.4 | CK30: 9.1 | CL30: 12.5 | CM30: 16.2 | CN30: 5.6 | CO30: 10 | CP30: 10 | CQ30: 10 | CR30: 60 | CS30: . | CT30: . | CU30: 15 | CV30: 35 | CW30: 370 | CX30: 0 | CY30: 10 | CZ30: 165 | DA30: 25 | DB30: 25 | DC30: 75 | DD30: 30 | DE30: 35 | DF30: 80 | DG30: 60 | DH30: 20 | DI30: 0.2 | DJ30: 1119 | DK30: 10 | DL30: 0.5 | DM30: 0.4 | DN30: 0.8 | DO30: 1.2 | DP30: 26.8 | DQ30: 7 | DR30: 7 | DS30: 0 | DT30: 1012 | DU30: 1 | DV30: 1 | DW30: 10098 | DX30: 57.60869565 | DY30: 58.69565217 | DZ30: 6.52173913 | EA30: 1.086956522 | EB30: 16.30434783 | EC30: 0 | ED30: 0 | EE30: 0 | EF30: 0 | EG30: 0 | EH30: 0 | EI30: 0 | EJ30: 0 | EK30: 0 | EL30: 0 | EM30: 0 | EN30: 0 | EO30: 0 | EP30: 0 | EQ30: 0 | ER30: 0 | ES30: 0 | ET30: 0 | EU30: 0 | EV30: 0 | EW30: 0 | EX30: 0 | EY30: 0 | EZ30: 0 | FA30: 0
A31: BU0363AD08 | B31: 0363AD08 | C31: Kalverdriehoek | D31: Amsterdam | E31: Buurt | F31: BU0363AD08 | G31: Burgwallen-Nieuwe Zijde | H31: 2 | I31: 335 | J31: 190 | K31: 145 | L31: 15 | M31: 80 | N31: 175 | O31: 50 | P31: 20 | Q31: 275 | R31: 45 | S31: 15 | T31: 0 | U31: 130 | V31: 120 | W31: 90 | X31: 130 | Y31: 15 | Z31: 25 | AA31: 100 | AB31: 65 | AC31: 0 | AD31: 3 | AE31: 0 | AF31: 0 | AG31: 230 | AH31: 140 | AI31: 70 | AJ31: 20 | AK31: 1.5 | AL31: 6424 | AM31: 234 | AN31: 631 | AO31: 3 | AP31: 97 | AQ31: 76 | AR31: 24 | AS31: 21 | AT31: 78 | AU31: 5 | AV31: 73 | AW31: 1 | AX31: 98 | AY31: 2 | AZ31: 2070 | BA31: 2080 | BB31: 1720 | BC31: . | BD31: . | BE31: . | BF31: 2000 | BG31: 2330 | BH31: 700 | BI31: 690 | BJ31: 1150 | BK31: . | BL31: . | BM31: . | BN31: 680 | BO31: 780 | BP31: . | BQ31: 0 | BR31: 0 | BS31: 0 | BT31: 10 | BU31: 40 | BV31: . | BW31: . | BX31: . | BY31: 77 | BZ31: 76 | CA31: 24 | CB31: 300 | CC31: . | CD31: . | CE31: 35.5 | CF31: 30.3 | CG31: . | CH31: 50.5 | CI31: 14.8 | CJ31: 6.8 | CK31: 7.4 | CL31: 8 | CM31: 8.6 | CN31: 3.7 | CO31: 0 | CP31: 0 | CQ31: 10 | CR31: 20 | CS31: . | CT31: . | CU31: . | CV31: . | CW31: 220 | CX31: 0 | CY31: 5 | CZ31: 120 | DA31: 10 | DB31: 10 | DC31: 35 | DD31: 15 | DE31: 20 | DF31: 40 | DG31: 25 | DH31: 10 | DI31: 0.2 | DJ31: 724 | DK31: 5 | DL31: 0.9 | DM31: 0.4 | DN31: 1 | DO31: 1.3 | DP31: 23.3 | DQ31: 6 | DR31: 5 | DS31: 1 | DT31: 1012 | DU31: 1 | DV31: 1 | DW31: 9859 | DX31: 61.19402985 | DY31: 61.19402985 | DZ31: 11.94029851 | EA31: 4.47761194 | EB31: 5.970149254 | EC31: 0 | ED31: 0 | EE31: 0 | EF31: 0 | EG31: 0 | EH31: 0 | EI31: 0 | EJ31: 0 | EK31: 0 | EL31: 0 | EM31: 0 | EN31: 0 | EO31: 0 | EP31: 0 | EQ31: 0 | ER31: 0 | ES31: 0 | ET31: 0 | EU31: 0 | EV31: 0 | EW31: 0 | EX31: 0 | EY31: 0 | EZ31: 0 | FA31: 0
A32: BU0363AE01 | B32: 0363AE01 | C32: Kop Zeedijk | D32: Amsterdam | E32: Buurt | F32: BU0363AE01 | G32: Burgwallen-Oude Zijde | H32: 2 | I32: 1155 | J32: 650 | K32: 505 | L32: 50 | M32: 155 | N32: 570 | O32: 280 | P32: 105 | Q32: 875 | R32: 185 | S32: 80 | T32: 10 | U32: 480 | V32: 310 | W32: 355 | X32: 485 | Y32: 35 | Z32: 100 | AA32: 275 | AB32: 260 | AC32: 0 | AD32: 2 | AE32: 15 | AF32: 10 | AG32: 835 | AH32: 570 | AI32: 210 | AJ32: 50 | AK32: 1.4 | AL32: 19086 | AM32: 772 | AN32: 492 | AO32: 4 | AP32: 96 | AQ32: 85 | AR32: 15 | AS32: 20 | AT32: 80 | AU32: 7 | AV32: 73 | AW32: 1 | AX32: 97 | AY32: 3 | AZ32: 1800 | BA32: 1760 | BB32: 2470 | BC32: . | BD32: . | BE32: . | BF32: 1730 | BG32: 2060 | BH32: 750 | BI32: 730 | BJ32: 1100 | BK32: . | BL32: . | BM32: . | BN32: 710 | BO32: 890 | BP32: . | BQ32: 20 | BR32: 10 | BS32: 10 | BT32: 40 | BU32: 100 | BV32: . | BW32: . | BX32: . | BY32: 77 | BZ32: 73 | CA32: 27 | CB32: 1000 | CC32: . | CD32: . | CE32: 38.4 | CF32: 24.7 | CG32: . | CH32: 57.4 | CI32: 9.5 | CJ32: 12.3 | CK32: 12.6 | CL32: 15.2 | CM32: 17.7 | CN32: 6.3 | CO32: 10 | CP32: 30 | CQ32: 20 | CR32: 80 | CS32: 10 | CT32: 8.7 | CU32: 45 | CV32: 40 | CW32: 505 | CX32: 0 | CY32: 15 | CZ32: 215 | DA32: 40 | DB32: 30 | DC32: 90 | DD32: 35 | DE32: 80 | DF32: 135 | DG32: 100 | DH32: 35 | DI32: 0.2 | DJ32: 2266 | DK32: 20 | DL32: 0.6 | DM32: 0.3 | DN32: 0.3 | DO32: 0.8 | DP32: 20.3 | DQ32: 8 | DR32: 6 | DS32: 2 | DT32: 1012 | DU32: 1 | DV32: 1 | DW32: 6841 | DX32: 58.00865801 | DY32: 58.44155844 | DZ32: 8.658008658 | EA32: 4.329004329 | EB32: 9.090909091 | EC32: 0 | ED32: 0 | EE32: 0 | EF32: 0 | EG32: 0 | EH32: 0 | EI32: 0 | EJ32: 0 | EK32: 0 | EL32: 0 | EM32: 0 | EN32: 0 | EO32: 0 | EP32: 0 | EQ32: 0 | ER32: 0 | ES32: 0 | ET32: 0 | EU32: 0 | EV32: 0 | EW32: 0 | EX32: 0 | EY32: 0 | EZ32: 0 | FA32: 0
A33: BU0363AE02 | B33: 0363AE02 | C33: Oude Kerk e.o. | D33: Amsterdam | E33: Buurt | F33: BU0363AE02 | G33: Burgwallen-Oude Zijde | H33: 2 | I33: 740 | J33: 430 | K33: 310 | L33: 25 | M33: 180 | N33: 345 | O33: 120 | P33: 70 | Q33: 595 | R33: 90 | S33: 40 | T33: 15 | U33: 330 | V33: 215 | W33: 195 | X33: 325 | Y33: 25 | Z33: 50 | AA33: 190 | AB33: 140 | AC33: 5 | AD33: 1 | AE33: 5 | AF33: 5 | AG33: 525 | AH33: 350 | AI33: 145 | AJ33: 35 | AK33: 1.4 | AL33: 8353 | AM33: 535 | AN33: 566 | AO33: 5 | AP33: 95 | AQ33: 79 | AR33: 21 | AS33: 14 | AT33: 84 | AU33: 26 | AV33: 58 | AW33: 1 | AX33: 87 | AY33: 13 | AZ33: 1750 | BA33: 1730 | BB33: 2180 | BC33: . | BD33: . | BE33: . | BF33: 1670 | BG33: 2260 | BH33: 760 | BI33: 760 | BJ33: 940 | BK33: . | BL33: . | BM33: . | BN33: 750 | BO33: 850 | BP33: . | BQ33: 10 | BR33: 10 | BS33: 0 | BT33: 50 | BU33: 90 | BV33: . | BW33: . | BX33: . | BY33: 76 | BZ33: 70 | CA33: 30 | CB33: 700 | CC33: . | CD33: . | CE33: 44 | CF33: 20.2 | CG33: . | CH33: 64.6 | CI33: 9.9 | CJ33: 13.2 | CK33: 14 | CL33: 17.7 | CM33: 20.7 | CN33: 4.6 | CO33: 10 | CP33: 10 | CQ33: 10 | CR33: 60 | CS33: . | CT33: . | CU33: 20 | CV33: 24 | CW33: 570 | CX33: 0 | CY33: 20 | CZ33: 145 | DA33: 45 | DB33: 55 | DC33: 115 | DD33: 25 | DE33: 165 | DF33: 90 | DG33: 60 | DH33: 25 | DI33: 0.2 | DJ33: 1009 | DK33: 15 | DL33: 0.6 | DM33: 0.2 | DN33: 0.5 | DO33: 0.9 | DP33: 22 | DQ33: 9 | DR33: 9 | DS33: 0 | DT33: 1012 | DU33: 1 | DV33: 1 | DW33: 7498 | DX33: 56.08108108 | DY33: 55.40540541 | DZ33: 12.16216216 | EA33: 3.378378378 | EB33: 9.459459459 | EC33: 0 | ED33: 0 | EE33: 0 | EF33: 0 | EG33: 0 | EH33: 0 | EI33: 0 | EJ33: 0 | EK33: 0 | EL33: 0 | EM33: 0 | EN33: 0 | EO33: 0 | EP33: 0 | EQ33: 0 | ER33: 0 | ES33: 0 | ET33: 0 | EU33: 0 | EV33: 0 | EW33: 0 | EX33: 0 | EY33: 0 | EZ33: 0 | FA33: 0
A34: BU0363AE03 | B34: 0363AE03 | C34: Burgwallen-Oost | D34: Amsterdam | E34: Buurt | F34: BU0363AE03 | G34: Burgwallen-Oude Zijde | H34: 2 | I34: 1600 | J34: 875 | K34: 725 | L34: 75 | M34: 295 | N34: 760 | O34: 300 | P34: 170 | Q34: 1250 | R34: 235 | S34: 105 | T34: 15 | U34: 670 | V34: 450 | W34: 480 | X34: 670 | Y34: 70 | Z34: 145 | AA34: 390 | AB34: 335 | AC34: 10 | AD34: 6 | AE34: 5 | AF34: 3 | AG34: 1135 | AH34: 785 | AI34: 255 | AJ34: 100 | AK34: 1.4 | AL34: 25650 | AM34: 1024 | AN34: 549 | AO34: 4 | AP34: 96 | AQ34: 83 | AR34: 17 | AS34: 17 | AT34: 83 | AU34: 9 | AV34: 74 | AW34: 0 | AX34: 96 | AY34: 4 | AZ34: 1720 | BA34: 1680 | BB34: 2650 | BC34: . | BD34: . | BE34: . | BF34: 1680 | BG34: 1910 | BH34: 770 | BI34: 750 | BJ34: 1340 | BK34: . | BL34: . | BM34: . | BN34: 740 | BO34: 940 | BP34: . | BQ34: 40 | BR34: 30 | BS34: 10 | BT34: 70 | BU34: 140 | BV34: 130 | BW34: 460 | BX34: 930 | BY34: 75 | BZ34: 70 | CA34: 30 | CB34: 1400 | CC34: . | CD34: . | CE34: 44.3 | CF34: 20.1 | CG34: . | CH34: 63 | CI34: 8.6 | CJ34: 14.1 | CK34: 13.7 | CL34: 18 | CM34: 20.7 | CN34: 3.7 | CO34: 30 | CP34: 20 | CQ34: 20 | CR34: 150 | CS34: 15 | CT34: 5.5 | CU34: 45 | CV34: 29 | CW34: 765 | CX34: 0 | CY34: 25 | CZ34: 200 | DA34: 65 | DB34: 40 | DC34: 155 | DD34: 50 | DE34: 225 | DF34: 230 | DG34: 180 | DH34: 55 | DI34: 0.2 | DJ34: 3703 | DK34: 50 | DL34: 0.3 | DM34: 0.2 | DN34: 0.4 | DO34: 0.7 | DP34: 22.6 | DQ34: 7 | DR34: 6 | DS34: 1 | DT34: 1012 | DU34: 1 | DV34: 1 | DW34: 7618 | DX34: 58.125 | DY34: 58.125 | DZ34: 8.75 | EA34: 4.6875 | EB34: 10.625 | EC34: 0 | ED34: 0 | EE34: 0 | EF34: 0 | EG34: 0 | EH34: 0 | EI34: 0 | EJ34: 0 | EK34: 0 | EL34: 0 | EM34: 0 | EN34: 0 | EO34: 0 | EP34: 0 | EQ34: 0 | ER34: 0 | ES34: 0 | ET34: 0 | EU34: 0 | EV34: 0 | EW34: 0 | EX34: 0 | EY34: 0 | EZ34: 0 | FA34: 0
A35: BU0363AE04 | B35: 0363AE04 | C35: Nes e.o. | D35: Amsterdam | E35: Buurt | F35: BU0363AE04 | G35: Burgwallen-Oude Zijde | H35: 2 | I35: 375 | J35: 200 | K35: 180 | L35: 15 | M35: 70 | N35: 185 | O35: 80 | P35: 30 | Q35: 295 | R35: 55 | S35: 20 | T35: 10 | U35: 155 | V35: 125 | W35: 95 | X35: 155 | Y35: 15 | Z35: 30 | AA35: 105 | AB35: 65 | AC35: 0 | AD35: 8 | AE35: 5 | AF35: 3 | AG35: 255 | AH35: 160 | AI35: 70 | AJ35: 25 | AK35: 1.5 | AL35: 7067 | AM35: 263 | AN35: 690 | AO35: 8 | AP35: 92 | AQ35: 78 | AR35: 22 | AS35: 28 | AT35: 71 | AU35: 5 | AV35: 66 | AW35: 1 | AX35: 98 | AY35: 2 | AZ35: 1920 | BA35: 1890 | BB35: 2260 | BC35: . | BD35: . | BE35: . | BF35: 1820 | BG35: 2160 | BH35: 900 | BI35: 880 | BJ35: 1160 | BK35: . | BL35: . | BM35: . | BN35: 910 | BO35: 870 | BP35: . | BQ35: 10 | BR35: 10 | BS35: 0 | BT35: 10 | BU35: 40 | BV35: . | BW35: . | BX35: . | BY35: 76 | BZ35: 76 | CA35: 24 | CB35: 300 | CC35: . | CD35: . | CE35: 33.4 | CF35: 33.8 | CG35: . | CH35: 41.1 | CI35: 17.4 | CJ35: 7.4 | CK35: 7.9 | CL35: 9.7 | CM35: 11.1 | CN35: 12.9 | CO35: 10 | CP35: 0 | CQ35: 0 | CR35: 30 | CS35: . | CT35: . | CU35: . | CV35: . | CW35: 290 | CX35: 0 | CY35: 10 | CZ35: 95 | DA35: 25 | DB35: 25 | DC35: 55 | DD35: 15 | DE35: 65 | DF35: 8155 | DG35: 60 | DH35: 8095 | DI35: . | DJ35: . | DK35: 15 | DL35: 0.6 | DM35: 0.4 | DN35: 0.8 | DO35: 1.1 | DP35: 23.2 | DQ35: 6 | DR35: 5 | DS35: 0 | DT35: 1012 | DU35: 1 | DV35: 1 | DW35: 10044 | DX35: 58.66666667 | DY35: 58.66666667 | DZ35: 10.66666667 | EA35: 4 | EB35: 8 | EC35: 0 | ED35: 0 | EE35: 0 | EF35: 0 | EG35: 0 | EH35: 0 | EI35: 0 | EJ35: 0 | EK35: 0 | EL35: 0 | EM35: 0 | EN35: 0 | EO35: 0 | EP35: 0 | EQ35: 0 | ER35: 0 | ES35: 0 | ET35: 0 | EU35: 0 | EV35: 0 | EW35: 0 | EX35: 0 | EY35: 0 | EZ35: 0 | FA35: 0
A36: BU0363AE05 | B36: 0363AE05 | C36: BG-terrein e.o. | D36: Amsterdam | E36: Buurt | F36: BU0363AE05 | G36: Burgwallen-Oude Zijde | H36: 2 | I36: 695 | J36: 370 | K36: 330 | L36: 30 | M36: 135 | N36: 300 | O36: 150 | P36: 90 | Q36: 540 | R36: 105 | S36: 40 | T36: 10 | U36: 370 | V36: 175 | W36: 155 | X36: 370 | Y36: 45 | Z36: 45 | AA36: 130 | AB36: 105 | AC36: 0 | AD36: 3 | AE36: 5 | AF36: 4 | AG36: 515 | AH36: 385 | AI36: 100 | AJ36: 40 | AK36: 1.3 | AL36: 8246 | AM36: 410 | AN36: 610 | AO36: 6 | AP36: 94 | AQ36: 85 | AR36: 15 | AS36: 21 | AT36: 78 | AU36: 36 | AV36: 43 | AW36: 0 | AX36: 100 | AY36: 0 | AZ36: 1810 | BA36: 1750 | BB36: 2450 | BC36: . | BD36: . | BE36: . | BF36: 1690 | BG36: 2260 | BH36: 830 | BI36: 800 | BJ36: 1230 | BK36: . | BL36: . | BM36: . | BN36: 770 | BO36: 1080 | BP36: . | BQ36: 10 | BR36: 10 | BS36: 0 | BT36: 30 | BU36: 120 | BV36: 60 | BW36: 160 | BX36: 440 | BY36: 74 | BZ36: 73 | CA36: 27 | CB36: 600 | CC36: . | CD36: . | CE36: 43.1 | CF36: 24.8 | CG36: . | CH36: 64.7 | CI36: 11.2 | CJ36: 13.7 | CK36: 13.7 | CL36: 15.6 | CM36: 19.3 | CN36: 5.3 | CO36: 20 | CP36: 10 | CQ36: 10 | CR36: 70 | CS36: 10 | CT36: 8.8 | CU36: 15 | CV36: 23 | CW36: 295 | CX36: 0 | CY36: 5 | CZ36: 65 | DA36: 35 | DB36: 15 | DC36: 80 | DD36: 35 | DE36: 60 | DF36: 110 | DG36: 80 | DH36: 30 | DI36: 0.2 | DJ36: 1323 | DK36: 15 | DL36: 0.3 | DM36: 0.4 | DN36: 0.7 | DO36: 0.9 | DP36: 24.1 | DQ36: 10 | DR36: 8 | DS36: 2 | DT36: 1012 | DU36: 1 | DV36: 1 | DW36: 8551 | DX36: 46.76258993 | DY36: 46.76258993 | DZ36: 17.26618705 | EA36: 4.316546763 | EB36: 12.94964029 | EC36: 0 | ED36: 0 | EE36: 0 | EF36: 0 | EG36: 0 | EH36: 0 | EI36: 0 | EJ36: 0 | EK36: 0 | EL36: 0 | EM36: 0 | EN36: 0 | EO36: 0 | EP36: 0 | EQ36: 0 | ER36: 0 | ES36: 0 | ET36: 0 | EU36: 0 | EV36: 0 | EW36: 0 | EX36: 0 | EY36: 0 | EZ36: 0 | FA36: 0
A37: BU0363AF01 | B37: 0363AF01 | C37: Oosterdokseiland | D37: Amsterdam | E37: Buurt | F37: BU0363AF01 | G37: Nieuwmarkt/Lastage | H37: 2 | I37: 505 | J37: 290 | K37: 210 | L37: 55 | M37: 25 | N37: 230 | O37: 135 | P37: 55 | Q37: 335 | R37: 120 | S37: 45 | T37: 5 | U37: 205 | V37: 100 | W37: 200 | X37: 210 | Y37: 20 | Z37: 60 | AA37: 80 | AB37: 135 | AC37: 5 | AD37: 10 | AE37: 5 | AF37: 6 | AG37: 310 | AH37: 175 | AI37: 85 | AJ37: 45 | AK37: 1.6 | AL37: 4076 | AM37: 268 | AN37: 815 | AO37: 0 | AP37: 100 | AQ37: 88 | AR37: 12 | AS37: 43 | AT37: 56 | AU37: 34 | AV37: 22 | AW37: 1 | AX37: 4 | AY37: 96 | AZ37: 2260 | BA37: 2260 | BB37: . | BC37: . | BD37: . | BE37: . | BF37: 1940 | BG37: 2660 | BH37: 420 | BI37: 420 | BJ37: . | BK37: . | BL37: . | BM37: . | BN37: 450 | BO37: 380 | BP37: . | BQ37: 30 | BR37: 20 | BS37: 0 | BT37: 0 | BU37: 20 | BV37: . | BW37: . | BX37: . | BY37: 74 | BZ37: 81 | CA37: 19 | CB37: 400 | CC37: . | CD37: . | CE37: 24 | CF37: 45.8 | CG37: . | CH37: 32 | CI37: 27.9 | CJ37: 5.4 | CK37: 5.4 | CL37: 7.6 | CM37: 8.3 | CN37: 17.1 | CO37: 10 | CP37: 20 | CQ37: 10 | CR37: 60 | CS37: 10 | CT37: 17.4 | CU37: 15 | CV37: 26 | CW37: 175 | CX37: 0 | CY37: 0 | CZ37: 30 | DA37: 15 | DB37: 35 | DC37: 55 | DD37: 10 | DE37: 30 | DF37: 1115 | DG37: 640 | DH37: 475 | DI37: . | DJ37: . | DK37: 10 | DL37: 0.9 | DM37: 0.1 | DN37: 1 | DO37: 1.1 | DP37: 16.3 | DQ37: 24 | DR37: 12 | DS37: 12 | DT37: 1011 | DU37: 1 | DV37: 1 | DW37: 5476 | DX37: 58.41584158 | DY37: 59.40594059 | DZ37: 3.96039604 | EA37: 10.89108911 | EB37: 10.89108911 | EC37: 0 | ED37: 0 | EE37: 0 | EF37: 0 | EG37: 0 | EH37: 0 | EI37: 0 | EJ37: 0 | EK37: 0 | EL37: 0 | EM37: 0 | EN37: 0 | EO37: 0 | EP37: 0 | EQ37: 0 | ER37: 0 | ES37: 0 | ET37: 0 | EU37: 0 | EV37: 0 | EW37: 0 | EX37: 0 | EY37: 0 | EZ37: 0 | FA37: 0
A38: BU0363AF02 | B38: 0363AF02 | C38: Lastage | D38: Amsterdam | E38: Buurt | F38: BU0363AF02 | G38: Nieuwmarkt/Lastage | H38: 2 | I38: 1100 | J38: 575 | K38: 525 | L38: 75 | M38: 130 | N38: 430 | O38: 295 | P38: 170 | Q38: 780 | R38: 230 | S38: 80 | T38: 20 | U38: 605 | V38: 255 | W38: 250 | X38: 605 | Y38: 65 | Z38: 90 | AA38: 190 | AB38: 155 | AC38: 5 | AD38: 5 | AE38: 10 | AF38: 5 | AG38: 700 | AH38: 405 | AI38: 205 | AJ38: 85 | AK38: 1.6 | AL38: 20743 | AM38: 691 | AN38: 589 | AO38: 7 | AP38: 93 | AQ38: 88 | AR38: 12 | AS38: 34 | AT38: 66 | AU38: 23 | AV38: 43 | AW38: 0 | AX38: 98 | AY38: 2 | AZ38: 1830 | BA38: 1760 | BB38: 2860 | BC38: . | BD38: . | BE38: . | BF38: 1600 | BG38: 2260 | BH38: 800 | BI38: 780 | BJ38: 1180 | BK38: . | BL38: . | BM38: . | BN38: 750 | BO38: 900 | BP38: . | BQ38: 30 | BR38: 40 | BS38: 10 | BT38: 30 | BU38: 60 | BV38: 70 | BW38: 230 | BX38: 680 | BY38: 77 | BZ38: 70 | CA38: 30 | CB38: 1000 | CC38: . | CD38: . | CE38: 33 | CF38: 32.9 | CG38: . | CH38: 44.8 | CI38: 20.1 | CJ38: 6.8 | CK38: 9.2 | CL38: 11.5 | CM38: 13.4 | CN38: 44.5 | CO38: 20 | CP38: 30 | CQ38: 20 | CR38: 150 | CS38: 10 | CT38: 7.6 | CU38: 40 | CV38: 37 | CW38: 385 | CX38: 0 | CY38: 15 | CZ38: 60 | DA38: 35 | DB38: 20 | DC38: 135 | DD38: 40 | DE38: 85 | DF38: 210 | DG38: 155 | DH38: 50 | DI38: 0.3 | DJ38: 3908 | DK38: 30 | DL38: 0.4 | DM38: 0.5 | DN38: 0.4 | DO38: 0.4 | DP38: 20.7 | DQ38: 8 | DR38: 5 | DS38: 2 | DT38: 1011 | DU38: 1 | DV38: 1 | DW38: 6700 | DX38: 45 | DY38: 45 | DZ38: 5.454545455 | EA38: 6.818181818 | EB38: 15.45454545 | EC38: 0 | ED38: 0 | EE38: 0 | EF38: 0 | EG38: 0 | EH38: 0 | EI38: 0 | EJ38: 0 | EK38: 0 | EL38: 0 | EM38: 0 | EN38: 0 | EO38: 0 | EP38: 0 | EQ38: 0 | ER38: 0 | ES38: 0 | ET38: 0 | EU38: 0 | EV38: 0 | EW38: 0 | EX38: 0 | EY38: 0 | EZ38: 0 | FA38: 0
A39: BU0363AF03 | B39: 0363AF03 | C39: Scheepvaarthuisbuurt | D39: Amsterdam | E39: Buurt | F39: BU0363AF03 | G39: Nieuwmarkt/Lastage | H39: 2 | I39: 745 | J39: 360 | K39: 390 | L39: 55 | M39: 150 | N39: 270 | O39: 170 | P39: 105 | Q39: 535 | R39: 160 | S39: 40 | T39: 10 | U39: 465 | V39: 170 | W39: 120 | X39: 460 | Y39: 60 | Z39: 60 | AA39: 110 | AB39: 55 | AC39: 10 | AD39: 9 | AE39: 5 | AF39: 5 | AG39: 455 | AH39: 265 | AI39: 125 | AJ39: 60 | AK39: 1.6 | AL39: 15504 | AM39: 336 | AN39: 763 | AO39: 4 | AP39: 96 | AQ39: 87 | AR39: 13 | AS39: 38 | AT39: 61 | AU39: 4 | AV39: 57 | AW39: 1 | AX39: 98 | AY39: 2 | AZ39: 2320 | BA39: 2240 | BB39: 4230 | BC39: . | BD39: . | BE39: . | BF39: 2120 | BG39: 2630 | BH39: 890 | BI39: 850 | BJ39: 1670 | BK39: . | BL39: . | BM39: . | BN39: 790 | BO39: 1040 | BP39: . | BQ39: 20 | BR39: 30 | BS39: 0 | BT39: 40 | BU39: 90 | BV39: 30 | BW39: 210 | BX39: 460 | BY39: 76 | BZ39: 69 | CA39: 31 | CB39: 700 | CC39: . | CD39: . | CE39: 35.9 | CF39: 30.6 | CG39: . | CH39: 45.1 | CI39: 21.2 | CJ39: 6.5 | CK39: 5.7 | CL39: 7 | CM39: 8 | CN39: 44.7 | CO39: 0 | CP39: 10 | CQ39: 10 | CR39: 100 | CS39: 10 | CT39: 5.2 | CU39: 10 | CV39: 16 | CW39: 250 | CX39: 0 | CY39: 15 | CZ39: 35 | DA39: 25 | DB39: 15 | DC39: 80 | DD39: 20 | DE39: 60 | DF39: 160 | DG39: 115 | DH39: 45 | DI39: 0.4 | DJ39: 3337 | DK39: 30 | DL39: 0.3 | DM39: 0.7 | DN39: 0.4 | DO39: 0.6 | DP39: 20.3 | DQ39: 11 | DR39: 5 | DS39: 6 | DT39: 1011 | DU39: 1 | DV39: 1 | DW39: 6396 | DX39: 38.25503356 | DY39: 37.58389262 | DZ39: 12.08053691 | EA39: 7.382550336 | EB39: 14.09395973 | EC39: 0 | ED39: 0 | EE39: 0 | EF39: 0 | EG39: 0 | EH39: 0 | EI39: 0 | EJ39: 0 | EK39: 0 | EL39: 0 | EM39: 0 | EN39: 0 | EO39: 0 | EP39: 0 | EQ39: 0 | ER39: 0 | ES39: 0 | ET39: 0 | EU39: 0 | EV39: 0 | EW39: 0 | EX39: 0 | EY39: 0 | EZ39: 0 | FA39: 0
A40: BU0363AF04 | B40: 0363AF04 | C40: Rapenburg | D40: Amsterdam | E40: Buurt | F40: BU0363AF04 | G40: Nieuwmarkt/Lastage | H40: 2 | I40: 995 | J40: 490 | K40: 505 | L40: 85 | M40: 230 | N40: 345 | O40: 225 | P40: 115 | Q40: 720 | R40: 205 | S40: 60 | T40: 15 | U40: 460 | V40: 260 | W40: 275 | X40: 455 | Y40: 30 | Z40: 75 | AA40: 230 | AB40: 205 | AC40: 5 | AD40: 4 | AE40: 5 | AF40: 5 | AG40: 665 | AH40: 425 | AI40: 155 | AJ40: 80 | AK40: 1.5 | AL40: 10840 | AM40: 599 | AN40: 510 | AO40: 4 | AP40: 96 | AQ40: 90 | AR40: 10 | AS40: 25 | AT40: 74 | AU40: 36 | AV40: 38 | AW40: 1 | AX40: 94 | AY40: 6 | AZ40: 1890 | BA40: 1880 | BB40: 2280 | BC40: . | BD40: . | BE40: . | BF40: 1720 | BG40: 2380 | BH40: 750 | BI40: 740 | BJ40: 1110 | BK40: . | BL40: . | BM40: . | BN40: 700 | BO40: 900 | BP40: . | BQ40: 30 | BR40: 30 | BS40: 0 | BT40: 20 | BU40: 90 | BV40: . | BW40: . | BX40: . | BY40: 63 | BZ40: 72 | CA40: 28 | CB40: 700 | CC40: . | CD40: . | CE40: 35.9 | CF40: 32.4 | CG40: . | CH40: 51.2 | CI40: 18.1 | CJ40: 6.9 | CK40: 8.8 | CL40: 10.8 | CM40: 11.4 | CN40: 20.1 | CO40: 10 | CP40: 20 | CQ40: 0 | CR40: 100 | CS40: 10 | CT40: 5.2 | CU40: 25 | CV40: 24 | CW40: 290 | CX40: 0 | CY40: 10 | CZ40: 35 | DA40: 40 | DB40: 25 | DC40: 100 | DD40: 40 | DE40: 40 | DF40: 175 | DG40: 125 | DH40: 45 | DI40: 0.3 | DJ40: 1883 | DK40: 15 | DL40: 0.5 | DM40: 0.7 | DN40: 0.2 | DO40: 0.8 | DP40: 21.9 | DQ40: 17 | DR40: 9 | DS40: 7 | DT40: 1011 | DU40: 1 | DV40: 1 | DW40: 6134 | DX40: 54.27135678 | DY40: 53.76884422 | DZ40: 9.045226131 | EA40: 8.542713568 | EB40: 11.55778894 | EC40: 0 | ED40: 0 | EE40: 0 | EF40: 0 | EG40: 0 | EH40: 0 | EI40: 0 | EJ40: 0 | EK40: 0 | EL40: 0 | EM40: 0 | EN40: 0 | EO40: 0 | EP40: 0 | EQ40: 0 | ER40: 0 | ES40: 0 | ET40: 0 | EU40: 0 | EV40: 0 | EW40: 0 | EX40: 0 | EY40: 0 | EZ40: 0 | FA40: 0
A41: BU0363AF05 | B41: 0363AF05 | C41: Nieuwmarkt | D41: Amsterdam | E41: Buurt | F41: BU0363AF05 | G41: Nieuwmarkt/Lastage | H41: 2 | I41: 1585 | J41: 775 | K41: 810 | L41: 105 | M41: 165 | N41: 405 | O41: 430 | P41: 475 | Q41: 995 | R41: 310 | S41: 205 | T41: 80 | U41: 915 | V41: 280 | W41: 390 | X41: 915 | Y41: 95 | Z41: 160 | AA41: 185 | AB41: 230 | AC41: 5 | AD41: 4 | AE41: 35 | AF41: 21 | AG41: 1055 | AH41: 725 | AI41: 195 | AJ41: 135 | AK41: 1.5 | AL41: 26690 | AM41: 1091 | AN41: 504 | AO41: 5 | AP41: 95 | AQ41: 93 | AR41: 7 | AS41: 17 | AT41: 83 | AU41: 68 | AV41: 15 | AW41: 0 | AX41: 100 | AY41: 0 | AZ41: 1570 | BA41: 1520 | BB41: 2620 | BC41: . | BD41: . | BE41: . | BF41: 1430 | BG41: 2250 | BH41: 690 | BI41: 670 | BJ41: 1170 | BK41: . | BL41: . | BM41: . | BN41: 660 | BO41: 890 | BP41: . | BQ41: 50 | BR41: 40 | BS41: 10 | BT41: 40 | BU41: 80 | BV41: 170 | BW41: 460 | BX41: 660 | BY41: 64 | BZ41: 68 | CA41: 32 | CB41: 1400 | CC41: . | CD41: . | CE41: 44.6 | CF41: 21 | CG41: . | CH41: 63.1 | CI41: 10.7 | CJ41: 12.1 | CK41: 17.2 | CL41: 23 | CM41: 27.1 | CN41: 16.6 | CO41: 60 | CP41: 70 | CQ41: 20 | CR41: 430 | CS41: 30 | CT41: 12.6 | CU41: 170 | CV41: 107 | CW41: 410 | CX41: 0 | CY41: 20 | CZ41: 60 | DA41: 40 | DB41: 15 | DC41: 110 | DD41: 60 | DE41: 105 | DF41: 260 | DG41: 205 | DH41: 55 | DI41: 0.2 | DJ41: 4370 | DK41: 45 | DL41: 0.3 | DM41: 0.3 | DN41: 0.3 | DO41: 0.4 | DP41: 22.6 | DQ41: 7 | DR41: 6 | DS41: 1 | DT41: 1011 | DU41: 1 | DV41: 1 | DW41: 7384 | DX41: 42.27129338 | DY41: 42.27129338 | DZ41: 5.047318612 | EA41: 6.624605678 | EB41: 29.96845426 | EC41: 0 | ED41: 0 | EE41: 0 | EF41: 0 | EG41: 0 | EH41: 0 | EI41: 0 | EJ41: 0 | EK41: 0 | EL41: 0 | EM41: 0 | EN41: 0 | EO41: 0 | EP41: 0 | EQ41: 0 | ER41: 0 | ES41: 0 | ET41: 0 | EU41: 0 | EV41: 0 | EW41: 0 | EX41: 0 | EY41: 0 | EZ41: 0 | FA41: 0
A42: BU0363AF06 | B42: 0363AF06 | C42: Uilenburg | D42: Amsterdam | E42: Buurt | F42: BU0363AF06 | G42: Nieuwmarkt/Lastage | H42: 2 | I42: 1245 | J42: 645 | K42: 595 | L42: 80 | M42: 140 | N42: 455 | O42: 350 | P42: 220 | Q42: 810 | R42: 295 | S42: 110 | T42: 30 | U42: 545 | V42: 305 | W42: 395 | X42: 545 | Y42: 55 | Z42: 90 | AA42: 250 | AB42: 305 | AC42: 5 | AD42: 5 | AE42: 5 | AF42: 4 | AG42: 815 | AH42: 495 | AI42: 215 | AJ42: 105 | AK42: 1.5 | AL42: 15475 | AM42: 805 | AN42: 588 | AO42: 0 | AP42: 100 | AQ42: 92 | AR42: 8 | AS42: 36 | AT42: 64 | AU42: 36 | AV42: 28 | AW42: 0 | AX42: 72 | AY42: 28 | AZ42: 1760 | BA42: 1760 | BB42: . | BC42: . | BD42: . | BE42: . | BF42: 1590 | BG42: 2080 | BH42: 580 | BI42: 580 | BJ42: . | BK42: . | BL42: . | BM42: . | BN42: 570 | BO42: 600 | BP42: 10,0 | BQ42: 40 | BR42: 20 | BS42: 10 | BT42: 30 | BU42: 70 | BV42: 150 | BW42: 220 | BX42: 740 | BY42: 71 | BZ42: 76 | CA42: 24 | CB42: 1100 | CC42: . | CD42: . | CE42: 34.4 | CF42: 34.7 | CG42: . | CH42: 44.9 | CI42: 23.2 | CJ42: 9.9 | CK42: 12.3 | CL42: 16.1 | CM42: 17.7 | CN42: 40.6 | CO42: 40 | CP42: 30 | CQ42: 10 | CR42: 200 | CS42: 35 | CT42: 20 | CU42: 60 | CV42: 47 | CW42: 370 | CX42: 0 | CY42: 20 | CZ42: 60 | DA42: 35 | DB42: 20 | DC42: 110 | DD42: 45 | DE42: 75 | DF42: 245 | DG42: 190 | DH42: 55 | DI42: 0.3 | DJ42: 3030 | DK42: 40 | DL42: 0.6 | DM42: 0.4 | DN42: 0.3 | DO42: 0.4 | DP42: 23.7 | DQ42: 11 | DR42: 8 | DS42: 3 | DT42: 1011 | DU42: 1 | DV42: 1 | DW42: 6666 | DX42: 56.2248996 | DY42: 56.2248996 | DZ42: 5.62248996 | EA42: 6.425702811 | EB42: 17.67068273 | EC42: 0 | ED42: 0 | EE42: 0 | EF42: 0 | EG42: 0 | EH42: 0 | EI42: 0 | EJ42: 0 | EK42: 0 | EL42: 0 | EM42: 0 | EN42: 0 | EO42: 0 | EP42: 0 | EQ42: 0 | ER42: 0 | ES42: 0 | ET42: 0 | EU42: 0 | EV42: 0 | EW42: 0 | EX42: 0 | EY42: 0 | EZ42: 0 | FA42: 0
A43: BU0363AF07 | B43: 0363AF07 | C43: Valkenburg | D43: Amsterdam | E43: Buurt | F43: BU0363AF07 | G43: Nieuwmarkt/Lastage | H43: 2 | I43: 1200 | J43: 610 | K43: 585 | L43: 85 | M43: 170 | N43: 380 | O43: 275 | P43: 290 | Q43: 760 | R43: 280 | S43: 110 | T43: 50 | U43: 590 | V43: 285 | W43: 320 | X43: 590 | Y43: 65 | Z43: 105 | AA43: 220 | AB43: 215 | AC43: 5 | AD43: 8 | AE43: 10 | AF43: 9 | AG43: 810 | AH43: 550 | AI43: 160 | AJ43: 100 | AK43: 1.5 | AL43: 17664 | AM43: 822 | AN43: 589 | AO43: 0 | AP43: 100 | AQ43: 88 | AR43: 12 | AS43: 41 | AT43: 58 | AU43: 23 | AV43: 35 | AW43: 1 | AX43: 100 | AY43: 0 | AZ43: 1660 | BA43: 1660 | BB43: . | BC43: . | BD43: . | BE43: . | BF43: 1430 | BG43: 1990 | BH43: 360 | BI43: 360 | BJ43: . | BK43: . | BL43: . | BM43: . | BN43: 370 | BO43: 350 | BP43: 43,7 | BQ43: 30 | BR43: 40 | BS43: 0 | BT43: 30 | BU43: 110 | BV43: 120 | BW43: 250 | BX43: 630 | BY43: 70 | BZ43: 79 | CA43: 21 | CB43: 1000 | CC43: . | CD43: . | CE43: 34.1 | CF43: 32.9 | CG43: . | CH43: 49 | CI43: 18.5 | CJ43: 4.5 | CK43: 9.1 | CL43: 12.6 | CM43: 14.8 | CN43: 54.4 | CO43: 10 | CP43: 40 | CQ43: 10 | CR43: 260 | CS43: 10 | CT43: 6.5 | CU43: 115 | CV43: 95 | CW43: 315 | CX43: 0 | CY43: 15 | CZ43: 25 | DA43: 45 | DB43: 35 | DC43: 115 | DD43: 25 | DE43: 50 | DF43: 270 | DG43: 210 | DH43: 60 | DI43: 0.3 | DJ43: 3951 | DK43: 25 | DL43: 0.7 | DM43: 0.6 | DN43: 0.4 | DO43: 0.4 | DP43: 24.2 | DQ43: 7 | DR43: 7 | DS43: 1 | DT43: 1011 | DU43: 1 | DV43: 1 | DW43: 7142 | DX43: 50.83333333 | DY43: 50.83333333 | DZ43: 9.166666667 | EA43: 7.083333333 | EB43: 24.16666667 | EC43: 0 | ED43: 0 | EE43: 0 | EF43: 0 | EG43: 0 | EH43: 0 | EI43: 0 | EJ43: 0 | EK43: 0 | EL43: 0 | EM43: 0 | EN43: 0 | EO43: 0 | EP43: 0 | EQ43: 0 | ER43: 0 | ES43: 0 | ET43: 0 | EU43: 0 | EV43: 0 | EW43: 0 | EX43: 0 | EY43: 0 | EZ43: 0 | FA43: 0
A44: BU0363AF08 | B44: 0363AF08 | C44: Zuiderkerkbuurt | D44: Amsterdam | E44: Buurt | F44: BU0363AF08 | G44: Nieuwmarkt/Lastage | H44: 2 | I44: 1630 | J44: 940 | K44: 695 | L44: 95 | M44: 185 | N44: 575 | O44: 430 | P44: 345 | Q44: 1095 | R44: 330 | S44: 165 | T44: 40 | U44: 840 | V44: 320 | W44: 465 | X44: 845 | Y44: 80 | Z44: 155 | AA44: 240 | AB44: 310 | AC44: 10 | AD44: 4 | AE44: 10 | AF44: 6 | AG44: 1085 | AH44: 725 | AI44: 235 | AJ44: 130 | AK44: 1.5 | AL44: 24020 | AM44: 1076 | AN44: 630 | AO44: 5 | AP44: 95 | AQ44: 90 | AR44: 10 | AS44: 21 | AT44: 78 | AU44: 49 | AV44: 29 | AW44: 1 | AX44: 100 | AY44: 0 | AZ44: 1810 | BA44: 1790 | BB44: 2340 | BC44: . | BD44: . | BE44: . | BF44: 1710 | BG44: 2200 | BH44: 800 | BI44: 780 | BJ44: 1300 | BK44: . | BL44: . | BM44: . | BN44: 760 | BO44: 970 | BP44: . | BQ44: 50 | BR44: 40 | BS44: 10 | BT44: 40 | BU44: 100 | BV44: 130 | BW44: 370 | BX44: 880 | BY44: 70 | BZ44: 71 | CA44: 29 | CB44: 1400 | CC44: . | CD44: . | CE44: 38.3 | CF44: 25.7 | CG44: . | CH44: 56.6 | CI44: 16.1 | CJ44: 11 | CK44: 13.8 | CL44: 17.8 | CM44: 20.9 | CN44: 21.6 | CO44: 40 | CP44: 30 | CQ44: 20 | CR44: 320 | CS44: 20 | CT44: 8.5 | CU44: 90 | CV44: 56 | CW44: 555 | CX44: 0 | CY44: 20 | CZ44: 145 | DA44: 60 | DB44: 40 | DC44: 125 | DD44: 50 | DE44: 115 | DF44: 305 | DG44: 245 | DH44: 60 | DI44: 0.3 | DJ44: 4504 | DK44: 45 | DL44: 0.3 | DM44: 0.4 | DN44: 0.6 | DO44: 0.7 | DP44: 21.4 | DQ44: 9 | DR44: 7 | DS44: 2 | DT44: 1011 | DU44: 1 | DV44: 1 | DW44: 8396 | DX44: 48.1595092 | DY44: 48.46625767 | DZ44: 6.134969325 | EA44: 5.828220859 | EB44: 21.16564417 | EC44: 0 | ED44: 0 | EE44: 0 | EF44: 0 | EG44: 0 | EH44: 0 | EI44: 0 | EJ44: 0 | EK44: 0 | EL44: 0 | EM44: 0 | EN44: 0 | EO44: 0 | EP44: 0 | EQ44: 0 | ER44: 0 | ES44: 0 | ET44: 0 | EU44: 0 | EV44: 0 | EW44: 0 | EX44: 0 | EY44: 0 | EZ44: 0 | FA44: 0
A45: BU0363AF09 | B45: 0363AF09 | C45: Waterloopleinbuurt | D45: Amsterdam | E45: Buurt | F45: BU0363AF09 | G45: Nieuwmarkt/Lastage | H45: 2 | I45: 895 | J45: 460 | K45: 430 | L45: 60 | M45: 105 | N45: 325 | O45: 225 | P45: 180 | Q45: 610 | R45: 185 | S45: 75 | T45: 15 | U45: 430 | V45: 205 | W45: 260 | X45: 430 | Y45: 60 | Z45: 95 | AA45: 145 | AB45: 160 | AC45: 10 | AD45: 11 | AE45: 10 | AF45: 11 | AG45: 615 | AH45: 405 | AI45: 145 | AJ45: 65 | AK45: 1.5 | AL45: 7961 | AM45: 579 | AN45: 545 | AO45: 2 | AP45: 98 | AQ45: 92 | AR45: 8 | AS45: 30 | AT45: 70 | AU45: 38 | AV45: 32 | AW45: 0 | AX45: 96 | AY45: 4 | AZ45: 1740 | BA45: 1710 | BB45: 3420 | BC45: . | BD45: . | BE45: . | BF45: 1620 | BG45: 2050 | BH45: 700 | BI45: 690 | BJ45: 1180 | BK45: . | BL45: . | BM45: . | BN45: 690 | BO45: 730 | BP45: . | BQ45: 20 | BR45: 20 | BS45: 0 | BT45: 20 | BU45: 70 | BV45: 80 | BW45: 240 | BX45: 460 | BY45: 71 | BZ45: 73 | CA45: 27 | CB45: 800 | CC45: . | CD45: . | CE45: 36.2 | CF45: 27.5 | CG45: . | CH45: 52.8 | CI45: 15.3 | CJ45: 7.7 | CK45: 10.5 | CL45: 14.7 | CM45: 17.1 | CN45: 28 | CO45: 20 | CP45: 20 | CQ45: 10 | CR45: 160 | CS45: 20 | CT45: 15.6 | CU45: 70 | CV45: 78 | CW45: 300 | CX45: 0 | CY45: 10 | CZ45: 60 | DA45: 20 | DB45: 25 | DC45: 75 | DD45: 35 | DE45: 80 | DF45: 190 | DG45: 140 | DH45: 50 | DI45: 0.3 | DJ45: 1674 | DK45: 15 | DL45: 0.6 | DM45: 0.4 | DN45: 0.5 | DO45: 0.5 | DP45: 26.5 | DQ45: 13 | DR45: 11 | DS45: 2 | DT45: 1011 | DU45: 1 | DV45: 1 | DW45: 8165 | DX45: 51.95530726 | DY45: 51.95530726 | DZ45: 7.82122905 | EA45: 6.703910615 | EB45: 20.11173184 | EC45: 0 | ED45: 0 | EE45: 0 | EF45: 0 | EG45: 0 | EH45: 0 | EI45: 0 | EJ45: 0 | EK45: 0 | EL45: 0 | EM45: 0 | EN45: 0 | EO45: 0 | EP45: 0 | EQ45: 0 | ER45: 0 | ES45: 0 | ET45: 0 | EU45: 0 | EV45: 0 | EW45: 0 | EX45: 0 | EY45: 0 | EZ45: 0 | FA45: 0
A46: BU0363AG01 | B46: 0363AG01 | C46: Leidsegracht-Zuid | D46: Amsterdam | E46: Buurt | F46: BU0363AG01 | G46: Grachtengordel-Zuid | H46: 2 | I46: 700 | J46: 395 | K46: 305 | L46: 50 | M46: 85 | N46: 295 | O46: 165 | P46: 110 | Q46: 490 | R46: 155 | S46: 30 | T46: 30 | U46: 320 | V46: 195 | W46: 185 | X46: 325 | Y46: 25 | Z46: 40 | AA46: 170 | AB46: 145 | AC46: 10 | AD46: 13 | AE46: 10 | AF46: 11 | AG46: 445 | AH46: 285 | AI46: 110 | AJ46: 50 | AK46: 1.5 | AL46: 12879 | AM46: 454 | AN46: 947 | AO46: 15 | AP46: 85 | AQ46: 77 | AR46: 23 | AS46: 34 | AT46: 64 | AU46: 2 | AV46: 62 | AW46: 2 | AX46: 100 | AY46: 0 | AZ46: 2260 | BA46: 2150 | BB46: 2810 | BC46: . | BD46: . | BE46: . | BF46: 2040 | BG46: 2630 | BH46: 990 | BI46: 890 | BJ46: 1560 | BK46: . | BL46: . | BM46: . | BN46: 900 | BO46: 1170 | BP46: . | BQ46: 20 | BR46: 20 | BS46: 0 | BT46: 10 | BU46: 50 | BV46: 20 | BW46: 130 | BX46: 450 | BY46: 75 | BZ46: 69 | CA46: 31 | CB46: 600 | CC46: . | CD46: . | CE46: 28.8 | CF46: 40.6 | CG46: . | CH46: 39.6 | CI46: 27.6 | CJ46: 7.2 | CK46: 6.7 | CL46: 8.6 | CM46: 9.1 | CN46: 64.3 | CO46: 0 | CP46: 10 | CQ46: 10 | CR46: 100 | CS46: 10 | CT46: 9 | CU46: 30 | CV46: 40 | CW46: 640 | CX46: 0 | CY46: 20 | CZ46: 145 | DA46: 85 | DB46: 70 | DC46: 225 | DD46: 45 | DE46: 45 | DF46: 245 | DG46: 140 | DH46: 110 | DI46: 0.6 | DJ46: 4532 | DK46: 20 | DL46: 0.7 | DM46: 0.3 | DN46: 0.5 | DO46: 1.1 | DP46: 36.7 | DQ46: 7 | DR46: 5 | DS46: 1 | DT46: 1017 | DU46: 1 | DV46: 1 | DW46: 9979 | DX46: 53.57142857 | DY46: 54.28571429 | DZ46: 7.142857143 | EA46: 7.142857143 | EB46: 15.71428571 | EC46: 0 | ED46: 0 | EE46: 0 | EF46: 0 | EG46: 0 | EH46: 0 | EI46: 0 | EJ46: 0 | EK46: 0 | EL46: 0 | EM46: 0 | EN46: 0 | EO46: 0 | EP46: 0 | EQ46: 0 | ER46: 0 | ES46: 0 | ET46: 0 | EU46: 0 | EV46: 0 | EW46: 0 | EX46: 0 | EY46: 0 | EZ46: 0 | FA46: 0
A47: BU0363AG02 | B47: 0363AG02 | C47: Geelvinckbuurt | D47: Amsterdam | E47: Buurt | F47: BU0363AG02 | G47: Grachtengordel-Zuid | H47: 3 | I47: 345 | J47: 190 | K47: 150 | L47: 20 | M47: 80 | N47: 180 | O47: 40 | P47: 20 | Q47: 280 | R47: 45 | S47: 15 | T47: 5 | U47: 125 | V47: 135 | W47: 80 | X47: 125 | Y47: 15 | Z47: 15 | AA47: 120 | AB47: 65 | AC47: 0 | AD47: 3 | AE47: 5 | AF47: 3 | AG47: 245 | AH47: 170 | AI47: 60 | AJ47: 20 | AK47: 1.4 | AL47: 8516 | AM47: 194 | AN47: 738 | AO47: 3 | AP47: 97 | AQ47: 80 | AR47: 20 | AS47: 15 | AT47: 84 | AU47: 0 | AV47: 84 | AW47: 1 | AX47: 96 | AY47: 4 | AZ47: 2050 | BA47: 2010 | BB47: 3440 | BC47: . | BD47: . | BE47: . | BF47: 2000 | BG47: 2360 | BH47: 900 | BI47: 890 | BJ47: 1360 | BK47: . | BL47: . | BM47: . | BN47: 900 | BO47: 930 | BP47: . | BQ47: 10 | BR47: 10 | BS47: 0 | BT47: 10 | BU47: 40 | BV47: . | BW47: . | BX47: . | BY47: 74 | BZ47: 82 | CA47: 18 | CB47: 300 | CC47: . | CD47: . | CE47: 36.6 | CF47: 35.2 | CG47: . | CH47: 51.8 | CI47: 13.8 | CJ47: 7.2 | CK47: 6 | CL47: 6.6 | CM47: 9 | CN47: 4.4 | CO47: 0 | CP47: 0 | CQ47: 10 | CR47: 20 | CS47: . | CT47: . | CU47: . | CV47: . | CW47: 565 | CX47: 0 | CY47: 25 | CZ47: 155 | DA47: 95 | DB47: 65 | DC47: 175 | DD47: 20 | DE47: 30 | DF47: 90 | DG47: 55 | DH47: 35 | DI47: 0.4 | DJ47: 2198 | DK47: 5 | DL47: 0.8 | DM47: 0.4 | DN47: 0.7 | DO47: 1.1 | DP47: 29.7 | DQ47: 5 | DR47: 4 | DS47: 1 | DT47: 1017 | DU47: 1 | DV47: 1 | DW47: 9859 | DX47: 63.76811594 | DY47: 63.76811594 | DZ47: 11.5942029 | EA47: 5.797101449 | EB47: 5.797101449 | EC47: 0 | ED47: 0 | EE47: 0 | EF47: 0 | EG47: 0 | EH47: 0 | EI47: 0 | EJ47: 0 | EK47: 0 | EL47: 0 | EM47: 0 | EN47: 0 | EO47: 0 | EP47: 0 | EQ47: 0 | ER47: 0 | ES47: 0 | ET47: 0 | EU47: 0 | EV47: 0 | EW47: 0 | EX47: 0 | EY47: 0 | EZ47: 0 | FA47: 0
A48: BU0363AG03 | B48: 0363AG03 | C48: Rembrandtplein e.o. | D48: Amsterdam | E48: Buurt | F48: BU0363AG03 | G48: Grachtengordel-Zuid | H48: 3 | I48: 1025 | J48: 585 | K48: 440 | L48: 60 | M48: 160 | N48: 590 | O48: 160 | P48: 55 | Q48: 770 | R48: 200 | S48: 40 | T48: 10 | U48: 310 | V48: 320 | W48: 390 | X48: 315 | Y48: 20 | Z48: 60 | AA48: 295 | AB48: 335 | AC48: 5 | AD48: 9 | AE48: 5 | AF48: 4 | AG48: 710 | AH48: 470 | AI48: 195 | AJ48: 50 | AK48: 1.4 | AL48: 10260 | AM48: 536 | AN48: 639 | AO48: 6 | AP48: 94 | AQ48: 74 | AR48: 26 | AS48: 20 | AT48: 79 | AU48: 4 | AV48: 75 | AW48: 1 | AX48: 97 | AY48: 3 | AZ48: 1890 | BA48: 1890 | BB48: 1970 | BC48: . | BD48: . | BE48: . | BF48: 1890 | BG48: 1950 | BH48: 780 | BI48: 760 | BJ48: 1200 | BK48: . | BL48: . | BM48: . | BN48: 790 | BO48: 750 | BP48: . | BQ48: 20 | BR48: 10 | BS48: 0 | BT48: 20 | BU48: 90 | BV48: . | BW48: . | BX48: . | BY48: 74 | BZ48: 81 | CA48: 19 | CB48: 800 | CC48: . | CD48: . | CE48: 30.5 | CF48: 38.6 | CG48: . | CH48: 45.4 | CI48: 13.5 | CJ48: 8 | CK48: 6.9 | CL48: 8.2 | CM48: 9.1 | CN48: 4.3 | CO48: 10 | CP48: 10 | CQ48: 10 | CR48: 50 | CS48: . | CT48: . | CU48: 15 | CV48: 16 | CW48: 500 | CX48: 0 | CY48: 10 | CZ48: 210 | DA48: 40 | DB48: 50 | DC48: 90 | DD48: 25 | DE48: 80 | DF48: 135 | DG48: 90 | DH48: 40 | DI48: 0.2 | DJ48: 1331 | DK48: 20 | DL48: 0.6 | DM48: 0.4 | DN48: 0.4 | DO48: 0.8 | DP48: 31.9 | DQ48: 12 | DR48: 10 | DS48: 2 | DT48: 1017 | DU48: 1 | DV48: 1 | DW48: 9184 | DX48: 69.26829268 | DY48: 69.75609756 | DZ48: 8.780487805 | EA48: 5.853658537 | EB48: 5.365853659 | EC48: 0 | ED48: 0 | EE48: 0 | EF48: 0 | EG48: 0 | EH48: 0 | EI48: 0 | EJ48: 0 | EK48: 0 | EL48: 0 | EM48: 0 | EN48: 0 | EO48: 0 | EP48: 0 | EQ48: 0 | ER48: 0 | ES48: 0 | ET48: 0 | EU48: 0 | EV48: 0 | EW48: 0 | EX48: 0 | EY48: 0 | EZ48: 0 | FA48: 0
A49: BU0363AG04 | B49: 0363AG04 | C49: Spiegelbuurt | D49: Amsterdam | E49: Buurt | F49: BU0363AG04 | G49: Grachtengordel-Zuid | H49: 2 | I49: 835 | J49: 480 | K49: 355 | L49: 65 | M49: 125 | N49: 300 | O49: 240 | P49: 105 | Q49: 560 | R49: 215 | S49: 50 | T49: 10 | U49: 330 | V49: 260 | W49: 250 | X49: 330 | Y49: 55 | Z49: 70 | AA49: 205 | AB49: 175 | AC49: 5 | AD49: 7 | AE49: 0 | AF49: 4 | AG49: 530 | AH49: 320 | AI49: 140 | AJ49: 70 | AK49: 1.6 | AL49: 10459 | AM49: 614 | AN49: 980 | AO49: 9 | AP49: 91 | AQ49: 72 | AR49: 28 | AS49: 41 | AT49: 58 | AU49: 7 | AV49: 51 | AW49: 1 | AX49: 99 | AY49: 1 | AZ49: 2210 | BA49: 2160 | BB49: 2630 | BC49: . | BD49: . | BE49: . | BF49: 1950 | BG49: 2540 | BH49: 950 | BI49: 900 | BJ49: 1390 | BK49: . | BL49: . | BM49: . | BN49: 850 | BO49: 1090 | BP49: . | BQ49: 30 | BR49: 30 | BS49: 0 | BT49: 20 | BU49: 60 | BV49: 80 | BW49: 160 | BX49: 510 | BY49: 72 | BZ49: 71 | CA49: 29 | CB49: 700 | CC49: . | CD49: . | CE49: 30.7 | CF49: 41.5 | CG49: . | CH49: 39.9 | CI49: 29.3 | CJ49: 6.5 | CK49: 5.6 | CL49: 6.7 | CM49: 6.9 | CN49: 142 | CO49: 0 | CP49: 10 | CQ49: 10 | CR49: 90 | CS49: . | CT49: . | CU49: 15 | CV49: 18 | CW49: 835 | CX49: 0 | CY49: 30 | CZ49: 180 | DA49: 100 | DB49: 120 | DC49: 290 | DD49: 45 | DE49: 70 | DF49: 310 | DG49: 205 | DH49: 105 | DI49: 0.6 | DJ49: 3880 | DK49: 40 | DL49: 0.8 | DM49: 0.5 | DN49: 0.6 | DO49: 1 | DP49: 33.1 | DQ49: 9 | DR49: 8 | DS49: 1 | DT49: 1017 | DU49: 1 | DV49: 1 | DW49: 9511 | DX49: 60.47904192 | DY49: 60.47904192 | DZ49: 7.185628743 | EA49: 7.784431138 | EB49: 12.5748503 | EC49: 0 | ED49: 0 | EE49: 0 | EF49: 0 | EG49: 0 | EH49: 0 | EI49: 0 | EJ49: 0 | EK49: 0 | EL49: 0 | EM49: 0 | EN49: 0 | EO49: 0 | EP49: 0 | EQ49: 0 | ER49: 0 | ES49: 0 | ET49: 0 | EU49: 0 | EV49: 0 | EW49: 0 | EX49: 0 | EY49: 0 | EZ49: 0 | FA49: 0
A50: BU0363AG05 | B50: 0363AG05 | C50: Vijzelstraatbuurt | D50: Amsterdam | E50: Buurt | F50: BU0363AG05 | G50: Grachtengordel-Zuid | H50: 3 | I50: 1410 | J50: 730 | K50: 685 | L50: 95 | M50: 195 | N50: 495 | O50: 360 | P50: 265 | Q50: 890 | R50: 375 | S50: 100 | T50: 50 | U50: 805 | V50: 305 | W50: 305 | X50: 805 | Y50: 85 | Z50: 100 | AA50: 225 | AB50: 200 | AC50: 5 | AD50: 2 | AE50: 10 | AF50: 8 | AG50: 880 | AH50: 535 | AI50: 230 | AJ50: 120 | AK50: 1.6 | AL50: 10506 | AM50: 842 | AN50: 1106 | AO50: 19 | AP50: 81 | AQ50: 81 | AR50: 19 | AS50: 47 | AT50: 53 | AU50: 1 | AV50: 52 | AW50: 1 | AX50: 97 | AY50: 3 | AZ50: 2450 | BA50: 2210 | BB50: 3420 | BC50: . | BD50: . | BE50: . | BF50: 2110 | BG50: 2820 | BH50: 1060 | BI50: 940 | BJ50: 1550 | BK50: . | BL50: . | BM50: . | BN50: 950 | BO50: 1190 | BP50: . | BQ50: 40 | BR50: 50 | BS50: 10 | BT50: 30 | BU50: 110 | BV50: 270 | BW50: 270 | BX50: 670 | BY50: 74 | BZ50: 70 | CA50: 30 | CB50: 1200 | CC50: . | CD50: . | CE50: 32 | CF50: 38.5 | CG50: . | CH50: 40 | CI50: 30.7 | CJ50: 7.8 | CK50: 7.4 | CL50: 8.5 | CM50: 9.4 | CN50: 146.4 | CO50: 0 | CP50: 20 | CQ50: 10 | CR50: 230 | CS50: 15 | CT50: 5.6 | CU50: 40 | CV50: 28 | CW50: 800 | CX50: 0 | CY50: 25 | CZ50: 135 | DA50: 95 | DB50: 115 | DC50: 255 | DD50: 80 | DE50: 95 | DF50: 405 | DG50: 295 | DH50: 115 | DI50: 0.5 | DJ50: 3026 | DK50: 30 | DL50: 0.5 | DM50: 0.3 | DN50: 0.5 | DO50: 0.7 | DP50: 34.2 | DQ50: 16 | DR50: 13 | DS50: 3 | DT50: 1017 | DU50: 1 | DV50: 1 | DW50: 9283 | DX50: 42.90780142 | DY50: 42.90780142 | DZ50: 7.80141844 | EA50: 6.737588652 | EB50: 18.79432624 | EC50: 0 | ED50: 0 | EE50: 0 | EF50: 0 | EG50: 0 | EH50: 0 | EI50: 0 | EJ50: 0 | EK50: 0 | EL50: 0 | EM50: 0 | EN50: 0 | EO50: 0 | EP50: 0 | EQ50: 0 | ER50: 0 | ES50: 0 | ET50: 0 | EU50: 0 | EV50: 0 | EW50: 0 | EX50: 0 | EY50: 0 | EZ50: 0 | FA50: 0
A51: BU0363AG06 | B51: 0363AG06 | C51: Amstelveldbuurt | D51: Amsterdam | E51: Buurt | F51: BU0363AG06 | G51: Grachtengordel-Zuid | H51: 2 | I51: 1550 | J51: 785 | K51: 770 | L51: 140 | M51: 220 | N51: 510 | O51: 430 | P51: 250 | Q51: 1005 | R51: 425 | S51: 80 | T51: 40 | U51: 870 | V51: 340 | W51: 340 | X51: 875 | Y51: 75 | Z51: 130 | AA51: 265 | AB51: 210 | AC51: 10 | AD51: 4 | AE51: 5 | AF51: 5 | AG51: 950 | AH51: 560 | AI51: 255 | AJ51: 135 | AK51: 1.6 | AL51: 13937 | AM51: 956 | AN51: 979 | AO51: 13 | AP51: 87 | AQ51: 83 | AR51: 17 | AS51: 42 | AT51: 57 | AU51: 7 | AV51: 50 | AW51: 1 | AX51: 99 | AY51: 1 | AZ51: 2150 | BA51: 1980 | BB51: 3280 | BC51: . | BD51: . | BE51: . | BF51: 1760 | BG51: 2660 | BH51: 970 | BI51: 890 | BJ51: 1530 | BK51: . | BL51: . | BM51: . | BN51: 850 | BO51: 1150 | BP51: . | BQ51: 70 | BR51: 40 | BS51: 10 | BT51: 50 | BU51: 120 | BV51: 40 | BW51: 310 | BX51: 980 | BY51: 74 | BZ51: 67 | CA51: 33 | CB51: 1300 | CC51: . | CD51: . | CE51: 32.4 | CF51: 38.8 | CG51: . | CH51: 40.3 | CI51: 28.3 | CJ51: 8.7 | CK51: 8.2 | CL51: 9.1 | CM51: 10.6 | CN51: 160.3 | CO51: 10 | CP51: 20 | CQ51: 10 | CR51: 220 | CS51: 15 | CT51: 5.6 | CU51: 25 | CV51: 15 | CW51: 680 | CX51: 0 | CY51: 25 | CZ51: 135 | DA51: 45 | DB51: 120 | DC51: 215 | DD51: 55 | DE51: 90 | DF51: 515 | DG51: 370 | DH51: 145 | DI51: 0.5 | DJ51: 4628 | DK51: 55 | DL51: 0.4 | DM51: 0.5 | DN51: 0.3 | DO51: 0.6 | DP51: 33.9 | DQ51: 15 | DR51: 11 | DS51: 4 | DT51: 1017 | DU51: 1 | DV51: 1 | DW51: 9341 | DX51: 43.5483871 | DY51: 43.87096774 | DZ51: 7.741935484 | EA51: 9.032258065 | EB51: 16.12903226 | EC51: 0 | ED51: 0 | EE51: 0 | EF51: 0 | EG51: 0 | EH51: 0 | EI51: 0 | EJ51: 0 | EK51: 0 | EL51: 0 | EM51: 0 | EN51: 0 | EO51: 0 | EP51: 0 | EQ51: 0 | ER51: 0 | ES51: 0 | ET51: 0 | EU51: 0 | EV51: 0 | EW51: 0 | EX51: 0 | EY51: 0 | EZ51: 0 | FA51: 0
A52: BU0363AH01 | B52: 0363AH01 | C52: Leidsebuurt-Noordwest | D52: Amsterdam | E52: Buurt | F52: BU0363AH01 | G52: De Weteringschans | H52: 2 | I52: 285 | J52: 165 | K52: 120 | L52: 10 | M52: 40 | N52: 170 | O52: 45 | P52: 15 | Q52: 235 | R52: 40 | S52: 15 | T52: 0 | U52: 100 | V52: 100 | W52: 85 | X52: 100 | Y52: 10 | Z52: 30 | AA52: 90 | AB52: 60 | AC52: 0 | AD52: 3 | AE52: 0 | AF52: 0 | AG52: 215 | AH52: 155 | AI52: 50 | AJ52: 15 | AK52: 1.3 | AL52: 11435 | AM52: 210 | AN52: 570 | AO52: 8 | AP52: 92 | AQ52: 85 | AR52: 15 | AS52: 35 | AT52: 64 | AU52: 0 | AV52: 64 | AW52: 1 | AX52: 100 | AY52: 0 | AZ52: 1820 | BA52: 1700 | BB52: 3030 | BC52: . | BD52: . | BE52: . | BF52: 1750 | BG52: 1970 | BH52: 710 | BI52: 610 | BJ52: 1650 | BK52: . | BL52: . | BM52: . | BN52: 730 | BO52: 670 | BP52: . | BQ52: 0 | BR52: 0 | BS52: 0 | BT52: 10 | BU52: 20 | BV52: . | BW52: . | BX52: . | BY52: 86 | BZ52: 84 | CA52: 16 | CB52: 300 | CC52: . | CD52: . | CE52: 28 | CF52: 37.2 | CG52: . | CH52: 49 | CI52: 14.6 | CJ52: 5.6 | CK52: 6.7 | CL52: 7.3 | CM52: 7.3 | CN52: 18.2 | CO52: 0 | CP52: 0 | CQ52: 10 | CR52: 10 | CS52: . | CT52: . | CU52: . | CV52: . | CW52: 145 | CX52: 0 | CY52: 5 | CZ52: 50 | DA52: 15 | DB52: 10 | DC52: 30 | DD52: 10 | DE52: 25 | DF52: 40 | DG52: 25 | DH52: 15 | DI52: 0.2 | DJ52: 1679 | DK52: 10 | DL52: 0.6 | DM52: 0.5 | DN52: 0.3 | DO52: 0.8 | DP52: 43.6 | DQ52: 3 | DR52: 3 | DS52: 0 | DT52: 1017 | DU52: 1 | DV52: 1 | DW52: 9579 | DX52: 64.9122807 | DY52: 64.9122807 | DZ52: 7.01754386 | EA52: 3.50877193 | EB52: 5.263157895 | EC52: 0 | ED52: 0 | EE52: 0 | EF52: 0 | EG52: 0 | EH52: 0 | EI52: 0 | EJ52: 0 | EK52: 0 | EL52: 0 | EM52: 0 | EN52: 0 | EO52: 0 | EP52: 0 | EQ52: 0 | ER52: 0 | ES52: 0 | ET52: 0 | EU52: 0 | EV52: 0 | EW52: 0 | EX52: 0 | EY52: 0 | EZ52: 0 | FA52: 0
A53: BU0363AH02 | B53: 0363AH02 | C53: Leidsebuurt-Noordoost | D53: Amsterdam | E53: Buurt | F53: BU0363AH02 | G53: De Weteringschans | H53: 2 | I53: 1110 | J53: 570 | K53: 540 | L53: 45 | M53: 260 | N53: 570 | O53: 165 | P53: 65 | Q53: 915 | R53: 140 | S53: 45 | T53: 10 | U53: 420 | V53: 355 | W53: 335 | X53: 420 | Y53: 50 | Z53: 80 | AA53: 310 | AB53: 255 | AC53: 10 | AD53: 8 | AE53: 0 | AF53: 0 | AG53: 770 | AH53: 505 | AI53: 220 | AJ53: 50 | AK53: 1.4 | AL53: 20651 | AM53: 735 | AN53: 604 | AO53: 6 | AP53: 94 | AQ53: 83 | AR53: 17 | AS53: 27 | AT53: 72 | AU53: 0 | AV53: 72 | AW53: 1 | AX53: 98 | AY53: 2 | AZ53: 1870 | BA53: 1820 | BB53: 2540 | BC53: . | BD53: . | BE53: . | BF53: 1720 | BG53: 2240 | BH53: 750 | BI53: 720 | BJ53: 1220 | BK53: . | BL53: . | BM53: . | BN53: 700 | BO53: 890 | BP53: . | BQ53: 10 | BR53: 20 | BS53: 10 | BT53: 50 | BU53: 130 | BV53: . | BW53: . | BX53: . | BY53: 81 | BZ53: 79 | CA53: 21 | CB53: 1000 | CC53: . | CD53: . | CE53: 34.1 | CF53: 31 | CG53: . | CH53: 50 | CI53: 14.5 | CJ53: 8.7 | CK53: 8.7 | CL53: 10.3 | CM53: 11.3 | CN53: 7.3 | CO53: 10 | CP53: 10 | CQ53: 10 | CR53: 60 | CS53: 10 | CT53: 4.7 | CU53: 15 | CV53: 15 | CW53: 495 | CX53: 0 | CY53: 15 | CZ53: 185 | DA53: 45 | DB53: 40 | DC53: 105 | DD53: 30 | DE53: 80 | DF53: 165 | DG53: 120 | DH53: 45 | DI53: 0.2 | DJ53: 3046 | DK53: 20 | DL53: 0.7 | DM53: 0.6 | DN53: 0.6 | DO53: 0.9 | DP53: 40.7 | DQ53: 6 | DR53: 5 | DS53: 1 | DT53: 1017 | DU53: 1 | DV53: 1 | DW53: 9452 | DX53: 62.16216216 | DY53: 62.16216216 | DZ53: 11.71171171 | EA53: 4.054054054 | EB53: 5.855855856 | EC53: 0 | ED53: 0 | EE53: 0 | EF53: 0 | EG53: 0 | EH53: 0 | EI53: 0 | EJ53: 0 | EK53: 0 | EL53: 0 | EM53: 0 | EN53: 0 | EO53: 0 | EP53: 0 | EQ53: 0 | ER53: 0 | ES53: 0 | ET53: 0 | EU53: 0 | EV53: 0 | EW53: 0 | EX53: 0 | EY53: 0 | EZ53: 0 | FA53: 0
A54: BU0363AH03 | B54: 0363AH03 | C54: Weteringbuurt | D54: Amsterdam | E54: Buurt | F54: BU0363AH03 | G54: De Weteringschans | H54: 2 | I54: 2400 | J54: 1170 | K54: 1225 | L54: 220 | M54: 305 | N54: 1055 | O54: 530 | P54: 295 | Q54: 1750 | R54: 495 | S54: 120 | T54: 40 | U54: 1195 | V54: 600 | W54: 605 | X54: 1195 | Y54: 110 | Z54: 190 | AA54: 490 | AB54: 410 | AC54: 15 | AD54: 6 | AE54: 5 | AF54: 3 | AG54: 1535 | AH54: 945 | AI54: 385 | AJ54: 205 | AK54: 1.6 | AL54: 20206 | AM54: 1551 | AN54: 686 | AO54: 9 | AP54: 91 | AQ54: 86 | AR54: 14 | AS54: 39 | AT54: 61 | AU54: 8 | AV54: 53 | AW54: 1 | AX54: 92 | AY54: 8 | AZ54: 1910 | BA54: 1810 | BB54: 2970 | BC54: . | BD54: . | BE54: . | BF54: 1690 | BG54: 2280 | BH54: 820 | BI54: 750 | BJ54: 1510 | BK54: . | BL54: . | BM54: . | BN54: 740 | BO54: 940 | BP54: . | BQ54: 90 | BR54: 80 | BS54: 10 | BT54: 60 | BU54: 190 | BV54: 120 | BW54: 590 | BX54: 1420 | BY54: 76 | BZ54: 74 | CA54: 26 | CB54: 2000 | CC54: . | CD54: . | CE54: 30.8 | CF54: 38.7 | CG54: . | CH54: 42.8 | CI54: 23.4 | CJ54: 7.7 | CK54: 7.8 | CL54: 10 | CM54: 11.5 | CN54: 39.8 | CO54: 30 | CP54: 50 | CQ54: 30 | CR54: 260 | CS54: 30 | CT54: 7.5 | CU54: 65 | CV54: 28 | CW54: 725 | CX54: 0 | CY54: 25 | CZ54: 110 | DA54: 60 | DB54: 70 | DC54: 240 | DD54: 100 | DE54: 120 | DF54: 495 | DG54: 370 | DH54: 125 | DI54: 0.3 | DJ54: 4176 | DK54: 85 | DL54: 0.4 | DM54: 0.5 | DN54: 0.5 | DO54: 0.6 | DP54: 34.1 | DQ54: 14 | DR54: 12 | DS54: 2 | DT54: 1017 | DU54: 1 | DV54: 1 | DW54: 9642 | DX54: 50.20833333 | DY54: 50.20833333 | DZ54: 7.916666667 | EA54: 9.166666667 | EB54: 12.29166667 | EC54: 0 | ED54: 0 | EE54: 0 | EF54: 0 | EG54: 0 | EH54: 0 | EI54: 0 | EJ54: 0 | EK54: 0 | EL54: 0 | EM54: 0 | EN54: 0 | EO54: 0 | EP54: 0 | EQ54: 0 | ER54: 0 | ES54: 0 | ET54: 0 | EU54: 0 | EV54: 0 | EW54: 0 | EX54: 0 | EY54: 0 | EZ54: 0 | FA54: 0
A55: BU0363AH04 | B55: 0363AH04 | C55: Utrechtsebuurt-Zuid | D55: Amsterdam | E55: Buurt | F55: BU0363AH04 | G55: De Weteringschans | H55: 2 | I55: 1220 | J55: 635 | K55: 585 | L55: 95 | M55: 135 | N55: 445 | O55: 330 | P55: 215 | Q55: 785 | R55: 305 | S55: 105 | T55: 30 | U55: 640 | V55: 275 | W55: 300 | X55: 645 | Y55: 65 | Z55: 105 | AA55: 215 | AB55: 190 | AC55: 10 | AD55: 7 | AE55: 5 | AF55: 4 | AG55: 790 | AH55: 485 | AI55: 185 | AJ55: 115 | AK55: 1.5 | AL55: 21349 | AM55: 797 | AN55: 749 | AO55: 9 | AP55: 91 | AQ55: 86 | AR55: 14 | AS55: 39 | AT55: 60 | AU55: 14 | AV55: 46 | AW55: 1 | AX55: 97 | AY55: 3 | AZ55: 1920 | BA55: 1800 | BB55: 3260 | BC55: . | BD55: . | BE55: . | BF55: 1650 | BG55: 2320 | BH55: 780 | BI55: 730 | BJ55: 1450 | BK55: . | BL55: . | BM55: . | BN55: 700 | BO55: 910 | BP55: . | BQ55: 50 | BR55: 30 | BS55: 10 | BT55: 30 | BU55: 60 | BV55: 80 | BW55: 210 | BX55: 720 | BY55: 73 | BZ55: 71 | CA55: 29 | CB55: 1000 | CC55: . | CD55: . | CE55: 31 | CF55: 38 | CG55: . | CH55: 42.1 | CI55: 23.6 | CJ55: 8 | CK55: 8.9 | CL55: 11.5 | CM55: 12.8 | CN55: 86.5 | CO55: 20 | CP55: 20 | CQ55: 20 | CR55: 200 | CS55: 15 | CT55: 8.2 | CU55: 60 | CV55: 48 | CW55: 470 | CX55: 0 | CY55: 25 | CZ55: 70 | DA55: 45 | DB55: 50 | DC55: 160 | DD55: 45 | DE55: 70 | DF55: 290 | DG55: 225 | DH55: 70 | DI55: 0.4 | DJ55: 5096 | DK55: 25 | DL55: 0.4 | DM55: 0.3 | DN55: 0.3 | DO55: 0.3 | DP55: 34.6 | DQ55: 7 | DR55: 6 | DS55: 1 | DT55: 1017 | DU55: 1 | DV55: 1 | DW55: 9451 | DX55: 47.13114754 | DY55: 47.54098361 | DZ55: 4.918032787 | EA55: 7.786885246 | EB55: 17.62295082 | EC55: 0 | ED55: 0 | EE55: 0 | EF55: 0 | EG55: 0 | EH55: 0 | EI55: 0 | EJ55: 0 | EK55: 0 | EL55: 0 | EM55: 0 | EN55: 0 | EO55: 0 | EP55: 0 | EQ55: 0 | ER55: 0 | ES55: 0 | ET55: 0 | EU55: 0 | EV55: 0 | EW55: 0 | EX55: 0 | EY55: 0 | EZ55: 0 | FA55: 0
A56: BU0363AH05 | B56: 0363AH05 | C56: Leidsebuurt-Zuidwest | D56: Amsterdam | E56: Buurt | F56: BU0363AH05 | G56: De Weteringschans | H56: 2 | I56: 160 | J56: 80 | K56: 80 | L56: 5 | M56: 30 | N56: 75 | O56: 35 | P56: 20 | Q56: 115 | R56: 30 | S56: 15 | T56: 5 | U56: 55 | V56: 45 | W56: 65 | X56: 55 | Y56: 10 | Z56: 30 | AA56: 40 | AB56: 30 | AC56: 0 | AD56: 0 | AE56: 0 | AF56: 6 | AG56: 120 | AH56: 85 | AI56: 20 | AJ56: 10 | AK56: 1.4 | AL56: 5966 | AM56: 112 | AN56: 561 | AO56: 0 | AP56: 100 | AQ56: 84 | AR56: 16 | AS56: 14 | AT56: 86 | AU56: 20 | AV56: 66 | AW56: 0 | AX56: 96 | AY56: 4 | AZ56: 2100 | BA56: 2100 | BB56: . | BC56: . | BD56: . | BE56: . | BF56: 1980 | BG56: 2760 | BH56: 780 | BI56: 780 | BJ56: . | BK56: . | BL56: . | BM56: . | BN56: 760 | BO56: 870 | BP56: . | BQ56: 0 | BR56: 0 | BS56: 10 | BT56: 10 | BU56: 20 | BV56: . | BW56: . | BX56: . | BY56: 70 | BZ56: . | CA56: . | CB56: 100 | CC56: . | CD56: . | CE56: 35.3 | CF56: 26.5 | CG56: . | CH56: 62.6 | CI56: 15.9 | CJ56: . | CK56: . | CL56: . | CM56: . | CN56: 6.1 | CO56: 0 | CP56: 0 | CQ56: 10 | CR56: 10 | CS56: . | CT56: . | CU56: . | CV56: . | CW56: 55 | CX56: 0 | CY56: 5 | CZ56: 15 | DA56: 5 | DB56: 5 | DC56: 10 | DD56: 0 | DE56: 15 | DF56: 35 | DG56: 30 | DH56: 5 | DI56: 0.3 | DJ56: 1289 | DK56: 0 | DL56: 0.5 | DM56: 0.4 | DN56: 0.5 | DO56: 0.7 | DP56: 42.8 | DQ56: 3 | DR56: 3 | DS56: 1 | DT56: 1017 | DU56: 1 | DV56: 1 | DW56: 9855 | DX56: 65.625 | DY56: 65.625 | DZ56: 12.5 | EA56: 3.125 | EB56: 12.5 | EC56: 0 | ED56: 0 | EE56: 0 | EF56: 0 | EG56: 0 | EH56: 0 | EI56: 0 | EJ56: 0 | EK56: 0 | EL56: 0 | EM56: 0 | EN56: 0 | EO56: 0 | EP56: 0 | EQ56: 0 | ER56: 0 | ES56: 0 | ET56: 0 | EU56: 0 | EV56: 0 | EW56: 0 | EX56: 0 | EY56: 0 | EZ56: 0 | FA56: 0
A57: BU0363AH06 | B57: 0363AH06 | C57: Leidsebuurt-Zuidoost | D57: Amsterdam | E57: Buurt | F57: BU0363AH06 | G57: De Weteringschans | H57: 2 | I57: 300 | J57: 160 | K57: 140 | L57: 30 | M57: 30 | N57: 120 | O57: 70 | P57: 45 | Q57: 210 | R57: 65 | S57: 20 | T57: 10 | U57: 130 | V57: 70 | W57: 100 | X57: 130 | Y57: 10 | Z57: 40 | AA57: 60 | AB57: 60 | AC57: 0 | AD57: 7 | AE57: 0 | AF57: 0 | AG57: 195 | AH57: 125 | AI57: 45 | AJ57: 25 | AK57: 1.6 | AL57: 6904 | AM57: 215 | AN57: 656 | AO57: 2 | AP57: 98 | AQ57: 79 | AR57: 21 | AS57: 27 | AT57: 73 | AU57: 13 | AV57: 59 | AW57: 0 | AX57: 100 | AY57: 0 | AZ57: 2000 | BA57: 1920 | BB57: . | BC57: . | BD57: . | BE57: . | BF57: 1880 | BG57: 2370 | BH57: 670 | BI57: 640 | BJ57: . | BK57: . | BL57: . | BM57: . | BN57: 620 | BO57: 820 | BP57: . | BQ57: 10 | BR57: 10 | BS57: 0 | BT57: 10 | BU57: 20 | BV57: . | BW57: . | BX57: . | BY57: 77 | BZ57: 77 | CA57: 23 | CB57: 300 | CC57: . | CD57: . | CE57: 34.1 | CF57: 33.7 | CG57: . | CH57: 49.5 | CI57: 18.9 | CJ57: 8.5 | CK57: 10.3 | CL57: 11.5 | CM57: 12.1 | CN57: 24.8 | CO57: 0 | CP57: 0 | CQ57: 10 | CR57: 40 | CS57: . | CT57: . | CU57: 10 | CV57: 30 | CW57: 150 | CX57: 0 | CY57: 5 | CZ57: 30 | DA57: 15 | DB57: 15 | DC57: 50 | DD57: 10 | DE57: 20 | DF57: 50 | DG57: 40 | DH57: 15 | DI57: 0.3 | DJ57: 1201 | DK57: 5 | DL57: 0.7 | DM57: 0.6 | DN57: 0.7 | DO57: 0.8 | DP57: 41.1 | DQ57: 5 | DR57: 4 | DS57: 1 | DT57: 1017 | DU57: 1 | DV57: 1 | DW57: 9452 | DX57: 56.66666667 | DY57: 56.66666667 | DZ57: 6.666666667 | EA57: 10 | EB57: 15 | EC57: 0 | ED57: 0 | EE57: 0 | EF57: 0 | EG57: 0 | EH57: 0 | EI57: 0 | EJ57: 0 | EK57: 0 | EL57: 0 | EM57: 0 | EN57: 0 | EO57: 0 | EP57: 0 | EQ57: 0 | ER57: 0 | ES57: 0 | ET57: 0 | EU57: 0 | EV57: 0 | EW57: 0 | EX57: 0 | EY57: 0 | EZ57: 0 | FA57: 0
A58: BU0363AH07 | B58: 0363AH07 | C58: Den Texbuurt | D58: Amsterdam | E58: Buurt | F58: BU0363AH07 | G58: De Weteringschans | H58: 2 | I58: 1110 | J58: 570 | K58: 540 | L58: 110 | M58: 145 | N58: 415 | O58: 255 | P58: 190 | Q58: 695 | R58: 320 | S58: 65 | T58: 30 | U58: 585 | V58: 250 | W58: 285 | X58: 585 | Y58: 50 | Z58: 90 | AA58: 195 | AB58: 195 | AC58: 10 | AD58: 8 | AE58: 0 | AF58: 3 | AG58: 645 | AH58: 365 | AI58: 160 | AJ58: 120 | AK58: 1.7 | AL58: 11730 | AM58: 571 | AN58: 910 | AO58: 3 | AP58: 97 | AQ58: 89 | AR58: 11 | AS58: 44 | AT58: 55 | AU58: 17 | AV58: 38 | AW58: 0 | AX58: 98 | AY58: 2 | AZ58: 2310 | BA58: 2270 | BB58: 3310 | BC58: . | BD58: . | BE58: . | BF58: 2020 | BG58: 2660 | BH58: 930 | BI58: 910 | BJ58: 1560 | BK58: . | BL58: . | BM58: . | BN58: 840 | BO58: 1040 | BP58: . | BQ58: 50 | BR58: 40 | BS58: 10 | BT58: 20 | BU58: 80 | BV58: 50 | BW58: 300 | BX58: 620 | BY58: 73 | BZ58: 74 | CA58: 26 | CB58: 900 | CC58: . | CD58: . | CE58: 30 | CF58: 41.4 | CG58: . | CH58: 38.8 | CI58: 30.4 | CJ58: 6.5 | CK58: 8.5 | CL58: 9.9 | CM58: 11.5 | CN58: 83.9 | CO58: 20 | CP58: 10 | CQ58: 20 | CR58: 180 | CS58: 15 | CT58: 7 | CU58: 45 | CV58: 42 | CW58: 405 | CX58: 0 | CY58: 20 | CZ58: 50 | DA58: 25 | DB58: 55 | DC58: 155 | DD58: 55 | DE58: 45 | DF58: 255 | DG58: 195 | DH58: 60 | DI58: 0.4 | DJ58: 2692 | DK58: 15 | DL58: 0.3 | DM58: 0.5 | DN58: 0.4 | DO58: 0.8 | DP58: 34.7 | DQ58: 11 | DR58: 9 | DS58: 2 | DT58: 1017 | DU58: 1 | DV58: 1 | DW58: 10199 | DX58: 47.2972973 | DY58: 47.2972973 | DZ58: 7.207207207 | EA58: 9.90990991 | EB58: 17.11711712 | EC58: 0 | ED58: 0 | EE58: 0 | EF58: 0 | EG58: 0 | EH58: 0 | EI58: 0 | EJ58: 0 | EK58: 0 | EL58: 0 | EM58: 0 | EN58: 0 | EO58: 0 | EP58: 0 | EQ58: 0 | ER58: 0 | ES58: 0 | ET58: 0 | EU58: 0 | EV58: 0 | EW58: 0 | EX58: 0 | EY58: 0 | EZ58: 0 | FA58: 0
A59: BU0363AH08 | B59: 0363AH08 | C59: Frederikspleinbuurt | D59: Amsterdam | E59: Buurt | F59: BU0363AH08 | G59: De Weteringschans | H59: 2 | I59: 970 | J59: 495 | K59: 475 | L59: 75 | M59: 95 | N59: 370 | O59: 265 | P59: 150 | Q59: 625 | R59: 255 | S59: 65 | T59: 20 | U59: 495 | V59: 225 | W59: 245 | X59: 500 | Y59: 45 | Z59: 85 | AA59: 180 | AB59: 160 | AC59: 5 | AD59: 4 | AE59: 5 | AF59: 6 | AG59: 605 | AH59: 365 | AI59: 165 | AJ59: 80 | AK59: 1.6 | AL59: 7120 | AM59: 566 | AN59: 859 | AO59: 6 | AP59: 94 | AQ59: 88 | AR59: 12 | AS59: 45 | AT59: 55 | AU59: 19 | AV59: 36 | AW59: 0 | AX59: 92 | AY59: 8 | AZ59: 2110 | BA59: 1990 | BB59: 3620 | BC59: . | BD59: . | BE59: . | BF59: 1730 | BG59: 2590 | BH59: 850 | BI59: 790 | BJ59: 1550 | BK59: . | BL59: . | BM59: . | BN59: 740 | BO59: 980 | BP59: . | BQ59: 30 | BR59: 30 | BS59: 0 | BT59: 20 | BU59: 40 | BV59: 40 | BW59: 190 | BX59: 580 | BY59: 75 | BZ59: 70 | CA59: 30 | CB59: 800 | CC59: . | CD59: . | CE59: 26.6 | CF59: 44.7 | CG59: . | CH59: 36.8 | CI59: 32.1 | CJ59: 8.9 | CK59: 8.9 | CL59: 10.6 | CM59: 13 | CN59: 90 | CO59: 20 | CP59: 20 | CQ59: 10 | CR59: 140 | CS59: 15 | CT59: 8.9 | CU59: 30 | CV59: 33 | CW59: 405 | CX59: 0 | CY59: 15 | CZ59: 35 | DA59: 40 | DB59: 80 | DC59: 145 | DD59: 55 | DE59: 35 | DF59: 325 | DG59: 245 | DH59: 80 | DI59: 0.5 | DJ59: 2383 | DK59: 20 | DL59: 0.5 | DM59: 0.5 | DN59: 0.4 | DO59: 0.5 | DP59: 35.5 | DQ59: 16 | DR59: 14 | DS59: 2 | DT59: 1017 | DU59: 1 | DV59: 1 | DW59: 10506 | DX59: 48.45360825 | DY59: 48.96907216 | DZ59: 4.12371134 | EA59: 7.731958763 | EB59: 15.46391753 | EC59: 0 | ED59: 0 | EE59: 0 | EF59: 0 | EG59: 0 | EH59: 0 | EI59: 0 | EJ59: 0 | EK59: 0 | EL59: 0 | EM59: 0 | EN59: 0 | EO59: 0 | EP59: 0 | EQ59: 0 | ER59: 0 | ES59: 0 | ET59: 0 | EU59: 0 | EV59: 0 | EW59: 0 | EX59: 0 | EY59: 0 | EZ59: 0 | FA59: 0
A60: BU0363AJ01 | B60: 0363AJ01 | C60: Weesperbuurt | D60: Amsterdam | E60: Buurt | F60: BU0363AJ01 | G60: Weesperbuurt/Plantage | H60: 2 | I60: 3060 | J60: 1535 | K60: 1525 | L60: 190 | M60: 500 | N60: 1120 | O60: 640 | P60: 615 | Q60: 2150 | R60: 580 | S60: 245 | T60: 80 | U60: 1575 | V60: 705 | W60: 780 | X60: 1580 | Y60: 155 | Z60: 260 | AA60: 545 | AB60: 520 | AC60: 25 | AD60: 8 | AE60: 60 | AF60: 19 | AG60: 2030 | AH60: 1370 | AI60: 455 | AJ60: 205 | AK60: 1.4 | AL60: 14443 | AM60: 1830 | AN60: 636 | AO60: 2 | AP60: 98 | AQ60: 85 | AR60: 15 | AS60: 30 | AT60: 70 | AU60: 28 | AV60: 41 | AW60: 0 | AX60: 98 | AY60: 2 | AZ60: 1770 | BA60: 1730 | BB60: 3280 | BC60: . | BD60: . | BE60: . | BF60: 1630 | BG60: 2050 | BH60: 730 | BI60: 710 | BJ60: 1330 | BK60: . | BL60: . | BM60: . | BN60: 670 | BO60: 850 | BP60: . | BQ60: 90 | BR60: 70 | BS60: 20 | BT60: 90 | BU60: 330 | BV60: 190 | BW60: 1110 | BX60: 1390 | BY60: 70 | BZ60: 74 | CA60: 26 | CB60: 2500 | CC60: 57 | CD60: 51.6 | CE60: 36.6 | CF60: 32 | CG60: . | CH60: 51.9 | CI60: 18.8 | CJ60: 7.9 | CK60: 10.1 | CL60: 13.4 | CM60: 15.5 | CN60: 25.1 | CO60: 60 | CP60: 90 | CQ60: 30 | CR60: 560 | CS60: 35 | CT60: 6.5 | CU60: 240 | CV60: 79 | CW60: 915 | CX60: 0 | CY60: 25 | CZ60: 85 | DA60: 110 | DB60: 65 | DC60: 330 | DD60: 150 | DE60: 150 | DF60: 945 | DG60: 525 | DH60: 420 | DI60: 0.5 | DJ60: 4459 | DK60: 50 | DL60: 0.6 | DM60: 0.6 | DN60: 0.5 | DO60: 0.5 | DP60: 28.8 | DQ60: 28 | DR60: 21 | DS60: 7 | DT60: 1018 | DU60: 1 | DV60: 1 | DW60: 8096 | DX60: 48.36601307 | DY60: 48.52941176 | DZ60: 10.78431373 | EA60: 6.209150327 | EB60: 20.09803922 | EC60: 0 | ED60: 0 | EE60: 0 | EF60: 0 | EG60: 0 | EH60: 0 | EI60: 0 | EJ60: 0 | EK60: 0 | EL60: 0 | EM60: 0 | EN60: 0 | EO60: 0 | EP60: 0 | EQ60: 0 | ER60: 0 | ES60: 0 | ET60: 0 | EU60: 0 | EV60: 0 | EW60: 0 | EX60: 0 | EY60: 0 | EZ60: 0 | FA60: 0
A61: BU0363AJ02 | B61: 0363AJ02 | C61: Plantage | D61: Amsterdam | E61: Buurt | F61: BU0363AJ02 | G61: Weesperbuurt/Plantage | H61: 2 | I61: 2385 | J61: 1195 | K61: 1195 | L61: 195 | M61: 300 | N61: 830 | O61: 540 | P61: 515 | Q61: 1535 | R61: 575 | S61: 175 | T61: 100 | U61: 1380 | V61: 485 | W61: 520 | X61: 1380 | Y61: 125 | Z61: 190 | AA61: 360 | AB61: 330 | AC61: 25 | AD61: 10 | AE61: 30 | AF61: 13 | AG61: 1405 | AH61: 785 | AI61: 425 | AJ61: 195 | AK61: 1.6 | AL61: 6978 | AM61: 1414 | AN61: 705 | AO61: 4 | AP61: 96 | AQ61: 89 | AR61: 11 | AS61: 36 | AT61: 63 | AU61: 15 | AV61: 49 | AW61: 0 | AX61: 96 | AY61: 4 | AZ61: 2370 | BA61: 2310 | BB61: 3930 | BC61: . | BD61: . | BE61: . | BF61: 2350 | BG61: 2410 | BH61: 610 | BI61: 580 | BJ61: 1390 | BK61: . | BL61: . | BM61: . | BN61: 440 | BO61: 910 | BP61: . | BQ61: 100 | BR61: 80 | BS61: 10 | BT61: 40 | BU61: 170 | BV61: 620 | BW61: 270 | BX61: 1140 | BY61: 72 | BZ61: 73 | CA61: 27 | CB61: 1900 | CC61: . | CD61: . | CE61: 28.1 | CF61: 41.2 | CG61: . | CH61: 36 | CI61: 26.7 | CJ61: 6.6 | CK61: 6.3 | CL61: 8.6 | CM61: 9.6 | CN61: 118.9 | CO61: 20 | CP61: 40 | CQ61: 30 | CR61: 490 | CS61: 20 | CT61: 5.3 | CU61: 165 | CV61: 68 | CW61: 595 | CX61: 0 | CY61: 15 | CZ61: 70 | DA61: 60 | DB61: 55 | DC61: 210 | DD61: 80 | DE61: 105 | DF61: 610 | DG61: 445 | DH61: 165 | DI61: 0.4 | DJ61: 1784 | DK61: 45 | DL61: 0.5 | DM61: 0.9 | DN61: 0.5 | DO61: 0.8 | DP61: 28.9 | DQ61: 38 | DR61: 34 | DS61: 4 | DT61: 1018 | DU61: 1 | DV61: 1 | DW61: 7290 | DX61: 42.13836478 | DY61: 42.13836478 | DZ61: 7.1278826 | EA61: 8.176100629 | EB61: 21.5932914 | EC61: 0 | ED61: 0 | EE61: 0 | EF61: 0 | EG61: 0 | EH61: 0 | EI61: 0 | EJ61: 0 | EK61: 0 | EL61: 0 | EM61: 0 | EN61: 0 | EO61: 0 | EP61: 0 | EQ61: 0 | ER61: 0 | ES61: 0 | ET61: 0 | EU61: 0 | EV61: 0 | EW61: 0 | EX61: 0 | EY61: 0 | EZ61: 0 | FA61: 0
A62: BU0363AJ03 | B62: 0363AJ03 | C62: Sarphatistrook | D62: Amsterdam | E62: Buurt | F62: BU0363AJ03 | G62: Weesperbuurt/Plantage | H62: 2 | I62: 1995 | J62: 990 | K62: 1005 | L62: 175 | M62: 355 | N62: 795 | O62: 440 | P62: 230 | Q62: 1460 | R62: 400 | S62: 100 | T62: 35 | U62: 1000 | V62: 485 | W62: 510 | X62: 1000 | Y62: 110 | Z62: 145 | AA62: 375 | AB62: 365 | AC62: 25 | AD62: 11 | AE62: 10 | AF62: 4 | AG62: 1240 | AH62: 730 | AI62: 325 | AJ62: 180 | AK62: 1.6 | AL62: 10924 | AM62: 1182 | AN62: 630 | AO62: 1 | AP62: 99 | AQ62: 91 | AR62: 9 | AS62: 28 | AT62: 72 | AU62: 42 | AV62: 30 | AW62: 0 | AX62: 88 | AY62: 12 | AZ62: 1770 | BA62: 1750 | BB62: 4820 | BC62: . | BD62: . | BE62: . | BF62: 1540 | BG62: 2340 | BH62: 740 | BI62: 740 | BJ62: 1800 | BK62: . | BL62: . | BM62: . | BN62: 670 | BO62: 920 | BP62: . | BQ62: 70 | BR62: 60 | BS62: 10 | BT62: 50 | BU62: 180 | BV62: 250 | BW62: 400 | BX62: 1070 | BY62: 71 | BZ62: 74 | CA62: 26 | CB62: 1600 | CC62: . | CD62: . | CE62: 36.9 | CF62: 31.2 | CG62: . | CH62: 51 | CI62: 21.6 | CJ62: 10 | CK62: 11.7 | CL62: 14.8 | CM62: 16.6 | CN62: 21 | CO62: 40 | CP62: 40 | CQ62: 20 | CR62: 200 | CS62: 25 | CT62: 6.1 | CU62: 65 | CV62: 33 | CW62: 710 | CX62: 0 | CY62: 20 | CZ62: 70 | DA62: 70 | DB62: 95 | DC62: 250 | DD62: 85 | DE62: 120 | DF62: 400 | DG62: 295 | DH62: 105 | DI62: 0.3 | DJ62: 2201 | DK62: 35 | DL62: 0.5 | DM62: 0.4 | DN62: 0.5 | DO62: 0.4 | DP62: 34.5 | DQ62: 21 | DR62: 18 | DS62: 3 | DT62: 1018 | DU62: 1 | DV62: 1 | DW62: 8296 | DX62: 49.87468672 | DY62: 49.87468672 | DZ62: 9.022556391 | EA62: 8.771929825 | EB62: 11.52882206 | EC62: 0 | ED62: 0 | EE62: 0 | EF62: 0 | EG62: 0 | EH62: 0 | EI62: 0 | EJ62: 0 | EK62: 0 | EL62: 0 | EM62: 0 | EN62: 0 | EO62: 0 | EP62: 0 | EQ62: 0 | ER62: 0 | ES62: 0 | ET62: 0 | EU62: 0 | EV62: 0 | EW62: 0 | EX62: 0 | EY62: 0 | EZ62: 0 | FA62: 0
A63: BU0363AJ04 | B63: 0363AJ04 | C63: Alexanderplein e.o. | D63: Amsterdam | E63: Buurt | F63: BU0363AJ04 | G63: Weesperbuurt/Plantage | H63: 2 | I63: 390 | J63: 200 | K63: 195 | L63: 45 | M63: 50 | N63: 170 | O63: 90 | P63: 40 | Q63: 295 | R63: 70 | S63: 25 | T63: 5 | U63: 220 | V63: 75 | W63: 90 | X63: 220 | Y63: 15 | Z63: 45 | AA63: 60 | AB63: 50 | AC63: 5 | AD63: 5 | AE63: 5 | AF63: 5 | AG63: 235 | AH63: 140 | AI63: 65 | AJ63: 35 | AK63: 1.6 | AL63: 9785 | AM63: 234 | AN63: 646 | AO63: 1 | AP63: 99 | AQ63: 90 | AR63: 10 | AS63: 48 | AT63: 52 | AU63: 16 | AV63: 36 | AW63: 0 | AX63: 99 | AY63: 1 | AZ63: 1870 | BA63: 1860 | BB63: . | BC63: . | BD63: . | BE63: . | BF63: 1680 | BG63: 2100 | BH63: 710 | BI63: 710 | BJ63: . | BK63: . | BL63: . | BM63: . | BN63: 660 | BO63: 760 | BP63: . | BQ63: 20 | BR63: 20 | BS63: 0 | BT63: 10 | BU63: 30 | BV63: . | BW63: . | BX63: . | BY63: 81 | BZ63: 72 | CA63: 28 | CB63: 300 | CC63: . | CD63: . | CE63: 28.6 | CF63: 42.5 | CG63: . | CH63: 40.6 | CI63: 28.2 | CJ63: 6.3 | CK63: 5.8 | CL63: 6.7 | CM63: 7.7 | CN63: 126.2 | CO63: 10 | CP63: 0 | CQ63: 10 | CR63: 30 | CS63: . | CT63: . | CU63: . | CV63: . | CW63: 100 | CX63: 0 | CY63: 5 | CZ63: 10 | DA63: 5 | DB63: 5 | DC63: 30 | DD63: 15 | DE63: 30 | DF63: 70 | DG63: 55 | DH63: 15 | DI63: 0.3 | DJ63: 1702 | DK63: 5 | DL63: 0.7 | DM63: 0.5 | DN63: 0.8 | DO63: 0.9 | DP63: 27.2 | DQ63: 5 | DR63: 4 | DS63: 1 | DT63: 1018 | DU63: 1 | DV63: 1 | DW63: 9304 | DX63: 43.58974359 | DY63: 43.58974359 | DZ63: 7.692307692 | EA63: 11.53846154 | EB63: 10.25641026 | EC63: 0 | ED63: 0 | EE63: 0 | EF63: 0 | EG63: 0 | EH63: 0 | EI63: 0 | EJ63: 0 | EK63: 0 | EL63: 0 | EM63: 0 | EN63: 0 | EO63: 0 | EP63: 0 | EQ63: 0 | ER63: 0 | ES63: 0 | ET63: 0 | EU63: 0 | EV63: 0 | EW63: 0 | EX63: 0 | EY63: 0 | EZ63: 0 | FA63: 0
A64: BU0363AK01 | B64: 0363AK01 | C64: Marine-Etablissement | D64: Amsterdam | E64: Buurt | F64: BU0363AK01 | G64: Oostelijke Eilanden/Kadijken | H64: 2 | I64: 110 | J64: 65 | K64: 50 | L64: 10 | M64: 15 | N64: 30 | O64: 35 | P64: 15 | Q64: 65 | R64: 30 | S64: 5 | T64: 5 | U64: 55 | V64: 10 | W64: 45 | X64: 55 | Y64: 5 | Z64: 5 | AA64: 10 | AB64: 40 | AC64: 0 | AD64: 18 | AE64: 0 | AF64: 0 | AG64: 40 | AH64: 15 | AI64: 10 | AJ64: 10 | AK64: 1.9 | AL64: 655 | AM64: 3 | AN64: . | AO64: . | AP64: . | AQ64: . | AR64: . | AS64: . | AT64: . | AU64: . | AV64: . | AW64: . | AX64: . | AY64: . | AZ64: . | BA64: . | BB64: . | BC64: . | BD64: . | BE64: . | BF64: . | BG64: . | BH64: . | BI64: . | BJ64: . | BK64: . | BL64: . | BM64: . | BN64: . | BO64: . | BP64: . | BQ64: 0 | BR64: 10 | BS64: 0 | BT64: 0 | BU64: 0 | BV64: . | BW64: . | BX64: . | BY64: . | BZ64: . | CA64: . | CB64: 100 | CC64: . | CD64: . | CE64: . | CF64: . | CG64: . | CH64: . | CI64: . | CJ64: . | CK64: . | CL64: . | CM64: . | CN64: . | CO64: 0 | CP64: 0 | CQ64: 0 | CR64: 20 | CS64: . | CT64: . | CU64: . | CV64: . | CW64: 100 | CX64: 0 | CY64: 10 | CZ64: 15 | DA64: 20 | DB64: 5 | DC64: 10 | DD64: 10 | DE64: 25 | DF64: 25 | DG64: 20 | DH64: 5 | DI64: . | DJ64: . | DK64: 10 | DL64: 1.2 | DM64: 1 | DN64: 0.6 | DO64: 0.7 | DP64: 16.6 | DQ64: 27 | DR64: 17 | DS64: 10 | DT64: 1019 | DU64: 2 | DV64: 1 | DW64: 4259 | DX64: 50 | DY64: 50 | DZ64: 0 | EA64: 9.090909091 | EB64: 13.63636364 | EC64: 0 | ED64: 0 | EE64: 0 | EF64: 0 | EG64: 0 | EH64: 0 | EI64: 0 | EJ64: 0 | EK64: 0 | EL64: 0 | EM64: 0 | EN64: 0 | EO64: 0 | EP64: 0 | EQ64: 0 | ER64: 0 | ES64: 0 | ET64: 0 | EU64: 0 | EV64: 0 | EW64: 0 | EX64: 0 | EY64: 0 | EZ64: 0 | FA64: 0
A65: BU0363AK02 | B65: 0363AK02 | C65: Kattenburg | D65: Amsterdam | E65: Buurt | F65: BU0363AK02 | G65: Oostelijke Eilanden/Kadijken | H65: 2 | I65: 1670 | J65: 760 | K65: 905 | L65: 160 | M65: 340 | N65: 430 | O65: 350 | P65: 385 | Q65: 1025 | R65: 425 | S65: 155 | T65: 60 | U65: 895 | V65: 275 | W65: 500 | X65: 890 | Y65: 85 | Z65: 205 | AA65: 180 | AB65: 295 | AC65: 10 | AD65: 7 | AE65: 15 | AF65: 10 | AG65: 1030 | AH65: 645 | AI65: 205 | AJ65: 185 | AK65: 1.6 | AL65: 18648 | AM65: 785 | AN65: 486 | AO65: 4 | AP65: 96 | AQ65: 97 | AR65: 3 | AS65: 23 | AT65: 77 | AU65: 70 | AV65: 7 | AW65: 0 | AX65: 100 | AY65: 0 | AZ65: 1990 | BA65: 2000 | BB65: 1520 | BC65: 1980 | BD65: . | BE65: . | BF65: 1960 | BG65: 2090 | BH65: 780 | BI65: 780 | BJ65: 710 | BK65: 1210 | BL65: . | BM65: . | BN65: 780 | BO65: 780 | BP65: . | BQ65: 90 | BR65: 60 | BS65: 20 | BT65: 60 | BU65: 190 | BV65: 310 | BW65: 480 | BX65: 560 | BY65: 63 | BZ65: 81 | CA65: 19 | CB65: 1400 | CC65: . | CD65: . | CE65: 49.4 | CF65: 17.4 | CG65: . | CH65: 63.5 | CI65: 12.5 | CJ65: 9.4 | CK65: 12.5 | CL65: 18.4 | CM65: 22.3 | CN65: 8.2 | CO65: 60 | CP65: 60 | CQ65: 10 | CR65: 340 | CS65: 40 | CT65: 9.4 | CU65: 200 | CV65: 121 | CW65: 230 | CX65: 0 | CY65: 15 | CZ65: 30 | DA65: 30 | DB65: 5 | DC65: 70 | DD65: 30 | DE65: 55 | DF65: 355 | DG65: 310 | DH65: 45 | DI65: 0.3 | DJ65: 3974 | DK65: 20 | DL65: 0.9 | DM65: 0.8 | DN65: 0.3 | DO65: 0.9 | DP65: 18.5 | DQ65: 12 | DR65: 9 | DS65: 3 | DT65: 1018 | DU65: 1 | DV65: 1 | DW65: 5209 | DX65: 46.70658683 | DY65: 46.40718563 | DZ65: 11.37724551 | EA65: 9.580838323 | EB65: 23.05389222 | EC65: 0 | ED65: 0 | EE65: 0 | EF65: 0 | EG65: 0 | EH65: 0 | EI65: 0 | EJ65: 0 | EK65: 0 | EL65: 0 | EM65: 0 | EN65: 0 | EO65: 0 | EP65: 0 | EQ65: 0 | ER65: 0 | ES65: 0 | ET65: 0 | EU65: 0 | EV65: 0 | EW65: 0 | EX65: 0 | EY65: 0 | EZ65: 0 | FA65: 0
A66: BU0363AK03 | B66: 0363AK03 | C66: Wittenburg | D66: Amsterdam | E66: Buurt | F66: BU0363AK03 | G66: Oostelijke Eilanden/Kadijken | H66: 2 | I66: 2525 | J66: 1390 | K66: 1130 | L66: 205 | M66: 160 | N66: 930 | O66: 805 | P66: 415 | Q66: 1680 | R66: 485 | S66: 315 | T66: 45 | U66: 1105 | V66: 350 | W66: 1075 | X66: 1100 | Y66: 95 | Z66: 430 | AA66: 255 | AB66: 640 | AC66: 20 | AD66: 8 | AE66: 10 | AF66: 5 | AG66: 1345 | AH66: 805 | AI66: 285 | AJ66: 260 | AK66: 1.6 | AL66: 20315 | AM66: 1313 | AN66: 486 | AO66: 1 | AP66: 99 | AQ66: 96 | AR66: 4 | AS66: 31 | AT66: 69 | AU66: 60 | AV66: 9 | AW66: 0 | AX66: 94 | AY66: 6 | AZ66: 1560 | BA66: 1550 | BB66: 2960 | BC66: . | BD66: . | BE66: . | BF66: 1510 | BG66: 1680 | BH66: 640 | BI66: 630 | BJ66: 980 | BK66: . | BL66: . | BM66: . | BN66: 640 | BO66: 630 | BP66: . | BQ66: 100 | BR66: 70 | BS66: 30 | BT66: 40 | BU66: 60 | BV66: 540 | BW66: 550 | BX66: 1120 | BY66: 70 | BZ66: 77 | CA66: 23 | CB66: 1900 | CC66: . | CD66: . | CE66: 38.2 | CF66: 23.7 | CG66: . | CH66: 51.4 | CI66: 14.7 | CJ66: 10.5 | CK66: 13.5 | CL66: 18.1 | CM66: 21.1 | CN66: 26.3 | CO66: 110 | CP66: 180 | CQ66: 40 | CR66: 370 | CS66: 35 | CT66: 10.8 | CU66: 215 | CV66: 86 | CW66: 445 | CX66: 0 | CY66: 25 | CZ66: 40 | DA66: 50 | DB66: 10 | DC66: 125 | DD66: 65 | DE66: 125 | DF66: 565 | DG66: 445 | DH66: 120 | DI66: 0.4 | DJ66: 4531 | DK66: 65 | DL66: 1 | DM66: 0.5 | DN66: 0.4 | DO66: 0.4 | DP66: 19.6 | DQ66: 18 | DR66: 12 | DS66: 6 | DT66: 1018 | DU66: 1 | DV66: 1 | DW66: 5333 | DX66: 56.43564356 | DY66: 56.23762376 | DZ66: 2.376237624 | EA66: 8.118811881 | EB66: 16.43564356 | EC66: 0 | ED66: 0 | EE66: 0 | EF66: 0 | EG66: 0 | EH66: 0 | EI66: 0 | EJ66: 0 | EK66: 0 | EL66: 0 | EM66: 0 | EN66: 0 | EO66: 0 | EP66: 0 | EQ66: 0 | ER66: 0 | ES66: 0 | ET66: 0 | EU66: 0 | EV66: 0 | EW66: 0 | EX66: 0 | EY66: 0 | EZ66: 0 | FA66: 0
A67: BU0363AK04 | B67: 0363AK04 | C67: Oostenburg | D67: Amsterdam | E67: Buurt | F67: BU0363AK04 | G67: Oostelijke Eilanden/Kadijken | H67: 2 | I67: 2900 | J67: 1475 | K67: 1430 | L67: 210 | M67: 270 | N67: 1610 | O67: 530 | P67: 280 | Q67: 2200 | R67: 485 | S67: 180 | T67: 35 | U67: 1280 | V67: 545 | W67: 1075 | X67: 1280 | Y67: 120 | Z67: 425 | AA67: 430 | AB67: 645 | AC67: 25 | AD67: 8 | AE67: 15 | AF67: 4 | AG67: 1895 | AH67: 1215 | AI67: 445 | AJ67: 235 | AK67: 1.5 | AL67: 14379 | AM67: 1250 | AN67: 492 | AO67: 1 | AP67: 99 | AQ67: 97 | AR67: 3 | AS67: 22 | AT67: 78 | AU67: 56 | AV67: 22 | AW67: 0 | AX67: 66 | AY67: 34 | AZ67: 1690 | BA67: 1640 | BB67: 5810 | BC67: . | BD67: . | BE67: . | BF67: 1580 | BG67: 2110 | BH67: 420 | BI67: 430 | BJ67: 20 | BK67: . | BL67: . | BM67: . | BN67: 400 | BO67: 510 | BP67: . | BQ67: 110 | BR67: 60 | BS67: 30 | BT67: 80 | BU67: 130 | BV67: 330 | BW67: 670 | BX67: 2050 | BY67: 80 | BZ67: 85 | CA67: 15 | CB67: 2600 | CC67: 50.9 | CD67: 46.2 | CE67: 27.8 | CF67: 33.8 | CG67: . | CH67: 45.7 | CI67: 15.5 | CJ67: 7.2 | CK67: 8.8 | CL67: 11.1 | CM67: 13.3 | CN67: 8.2 | CO67: 100 | CP67: 100 | CQ67: 40 | CR67: 260 | CS67: 40 | CT67: 10.6 | CU67: 180 | CV67: 62 | CW67: 575 | CX67: 0 | CY67: 30 | CZ67: 55 | DA67: 95 | DB67: 30 | DC67: 195 | DD67: 80 | DE67: 95 | DF67: 485 | DG67: 385 | DH67: 105 | DI67: 0.3 | DJ67: 2412 | DK67: 65 | DL67: 0.4 | DM67: 0.8 | DN67: 0.7 | DO67: 0.8 | DP67: 20.8 | DQ67: 25 | DR67: 20 | DS67: 5 | DT67: 1018 | DU67: 1 | DV67: 1 | DW67: 6438 | DX67: 55.86206897 | DY67: 55.86206897 | DZ67: 4.482758621 | EA67: 7.24137931 | EB67: 9.655172414 | EC67: 0 | ED67: 0 | EE67: 0 | EF67: 0 | EG67: 0 | EH67: 0 | EI67: 0 | EJ67: 0 | EK67: 0 | EL67: 0 | EM67: 0 | EN67: 0 | EO67: 0 | EP67: 0 | EQ67: 0 | ER67: 0 | ES67: 0 | ET67: 0 | EU67: 0 | EV67: 0 | EW67: 0 | EX67: 0 | EY67: 0 | EZ67: 0 | FA67: 0
A68: BU0363AK05 | B68: 0363AK05 | C68: Czaar Peterbuurt | D68: Amsterdam | E68: Buurt | F68: BU0363AK05 | G68: Oostelijke Eilanden/Kadijken | H68: 2 | I68: 2320 | J68: 1170 | K68: 1150 | L68: 220 | M68: 280 | N68: 1010 | O68: 555 | P68: 260 | Q68: 1675 | R68: 380 | S68: 225 | T68: 40 | U68: 1030 | V68: 440 | W68: 855 | X68: 1035 | Y68: 105 | Z68: 345 | AA68: 330 | AB68: 510 | AC68: 30 | AD68: 13 | AE68: 40 | AF68: 17 | AG68: 1500 | AH68: 975 | AI68: 285 | AJ68: 240 | AK68: 1.5 | AL68: 22329 | AM68: 1461 | AN68: 432 | AO68: 2 | AP68: 98 | AQ68: 95 | AR68: 5 | AS68: 23 | AT68: 77 | AU68: 52 | AV68: 25 | AW68: 0 | AX68: 79 | AY68: 21 | AZ68: 1470 | BA68: 1450 | BB68: 2980 | BC68: . | BD68: . | BE68: . | BF68: 1400 | BG68: 1720 | BH68: 540 | BI68: 530 | BJ68: 950 | BK68: . | BL68: . | BM68: . | BN68: 540 | BO68: 530 | BP68: . | BQ68: 110 | BR68: 70 | BS68: 40 | BT68: 40 | BU68: 110 | BV68: 280 | BW68: 590 | BX68: 1130 | BY68: 73 | BZ68: 79 | CA68: 21 | CB68: 2000 | CC68: . | CD68: . | CE68: 40.2 | CF68: 25.1 | CG68: . | CH68: 57 | CI68: 13.2 | CJ68: 13.9 | CK68: 15.8 | CL68: 20.3 | CM68: 23 | CN68: 7.6 | CO68: 140 | CP68: 90 | CQ68: 30 | CR68: 230 | CS68: 55 | CT68: 13.7 | CU68: 185 | CV68: 80 | CW68: 675 | CX68: 0 | CY68: 40 | CZ68: 100 | DA68: 95 | DB68: 25 | DC68: 195 | DD68: 105 | DE68: 115 | DF68: 385 | DG68: 290 | DH68: 90 | DI68: 0.3 | DJ68: 3683 | DK68: 55 | DL68: 0.5 | DM68: 0.5 | DN68: 0.2 | DO68: 0.3 | DP68: 25.4 | DQ68: 11 | DR68: 10 | DS68: 0 | DT68: 1018 | DU68: 1 | DV68: 1 | DW68: 7029 | DX68: 55.38793103 | DY68: 55.60344828 | DZ68: 4.74137931 | EA68: 9.482758621 | EB68: 11.20689655 | EC68: 0 | ED68: 0 | EE68: 0 | EF68: 0 | EG68: 0 | EH68: 0 | EI68: 0 | EJ68: 0 | EK68: 0 | EL68: 0 | EM68: 0 | EN68: 0 | EO68: 0 | EP68: 0 | EQ68: 0 | ER68: 0 | ES68: 0 | ET68: 0 | EU68: 0 | EV68: 0 | EW68: 0 | EX68: 0 | EY68: 0 | EZ68: 0 | FA68: 0
A69: BU0363AK06 | B69: 0363AK06 | C69: Het Funen | D69: Amsterdam | E69: Buurt | F69: BU0363AK06 | G69: Oostelijke Eilanden/Kadijken | H69: 2 | I69: 1295 | J69: 660 | K69: 640 | L69: 230 | M69: 150 | N69: 350 | O69: 420 | P69: 145 | Q69: 800 | R69: 380 | S69: 90 | T69: 25 | U69: 705 | V69: 225 | W69: 365 | X69: 700 | Y69: 85 | Z69: 185 | AA69: 135 | AB69: 185 | AC69: 10 | AD69: 7 | AE69: 5 | AF69: 5 | AG69: 625 | AH69: 280 | AI69: 135 | AJ69: 205 | AK69: 2.1 | AL69: 17510 | AM69: 562 | AN69: 700 | AO69: 0 | AP69: 100 | AQ69: 97 | AR69: 3 | AS69: 61 | AT69: 39 | AU69: 31 | AV69: 8 | AW69: 0 | AX69: 1 | AY69: 99 | AZ69: 2370 | BA69: 2370 | BB69: . | BC69: . | BD69: . | BE69: . | BF69: 2140 | BG69: 2520 | BH69: 650 | BI69: 640 | BJ69: . | BK69: . | BL69: . | BM69: . | BN69: 640 | BO69: 650 | BP69: . | BQ69: 110 | BR69: 110 | BS69: 20 | BT69: 30 | BU69: 40 | BV69: 130 | BW69: 210 | BX69: 670 | BY69: 74 | BZ69: 77 | CA69: 23 | CB69: 1000 | CC69: . | CD69: . | CE69: 34.3 | CF69: 37.6 | CG69: . | CH69: 35.1 | CI69: 33.7 | CJ69: 5.4 | CK69: 6 | CL69: 9.5 | CM69: 11.7 | CN69: 385.4 | CO69: 20 | CP69: 40 | CQ69: 10 | CR69: 130 | CS69: 45 | CT69: 12.9 | CU69: 85 | CV69: 65 | CW69: 310 | CX69: 0 | CY69: 15 | CZ69: 30 | DA69: 50 | DB69: 30 | DC69: 95 | DD69: 55 | DE69: 40 | DF69: 330 | DG69: 230 | DH69: 95 | DI69: 0.5 | DJ69: 4452 | DK69: 35 | DL69: 0.7 | DM69: 0.7 | DN69: 0.5 | DO69: 0.7 | DP69: 22 | DQ69: 9 | DR69: 7 | DS69: 2 | DT69: 1018 | DU69: 1 | DV69: 1 | DW69: 7997 | DX69: 45.94594595 | DY69: 45.55984556 | DZ69: 3.088803089 | EA69: 17.76061776 | EB69: 11.1969112 | EC69: 0 | ED69: 0 | EE69: 0 | EF69: 0 | EG69: 0 | EH69: 0 | EI69: 0 | EJ69: 0 | EK69: 0 | EL69: 0 | EM69: 0 | EN69: 0 | EO69: 0 | EP69: 0 | EQ69: 0 | ER69: 0 | ES69: 0 | ET69: 0 | EU69: 0 | EV69: 0 | EW69: 0 | EX69: 0 | EY69: 0 | EZ69: 0 | FA69: 0
A70: BU0363AK07 | B70: 0363AK07 | C70: Kadijken | D70: Amsterdam | E70: Buurt | F70: BU0363AK07 | G70: Oostelijke Eilanden/Kadijken | H70: 2 | I70: 2905 | J70: 1490 | K70: 1415 | L70: 220 | M70: 305 | N70: 830 | O70: 870 | P70: 680 | Q70: 1865 | R70: 715 | S70: 240 | T70: 85 | U70: 1685 | V70: 465 | W70: 755 | X70: 1685 | Y70: 145 | Z70: 270 | AA70: 325 | AB70: 485 | AC70: 20 | AD70: 8 | AE70: 15 | AF70: 4 | AG70: 1875 | AH70: 1170 | AI70: 440 | AJ70: 275 | AK70: 1.5 | AL70: 17110 | AM70: 1661 | AN70: 611 | AO70: 2 | AP70: 98 | AQ70: 96 | AR70: 4 | AS70: 33 | AT70: 66 | AU70: 53 | AV70: 13 | AW70: 0 | AX70: 92 | AY70: 8 | AZ70: 1670 | BA70: 1650 | BB70: 2390 | BC70: . | BD70: . | BE70: . | BF70: 1430 | BG70: 2140 | BH70: 600 | BI70: 590 | BJ70: 1100 | BK70: . | BL70: . | BM70: . | BN70: 560 | BO70: 680 | BP70: . | BQ70: 110 | BR70: 100 | BS70: 30 | BT70: 70 | BU70: 90 | BV70: 280 | BW70: 570 | BX70: 1610 | BY70: 68 | BZ70: 68 | CA70: 32 | CB70: 2500 | CC70: 46.9 | CD70: 41.6 | CE70: 36.8 | CF70: 29 | CG70: . | CH70: 50.8 | CI70: 16.8 | CJ70: 9.8 | CK70: 12.3 | CL70: 15.5 | CM70: 18.5 | CN70: 42 | CO70: 80 | CP70: 100 | CQ70: 30 | CR70: 620 | CS70: 45 | CT70: 10.2 | CU70: 145 | CV70: 50 | CW70: 795 | CX70: 0 | CY70: 30 | CZ70: 70 | DA70: 95 | DB70: 50 | DC70: 255 | DD70: 105 | DE70: 195 | DF70: 790 | DG70: 595 | DH70: 195 | DI70: 0.4 | DJ70: 4644 | DK70: 115 | DL70: 0.6 | DM70: 0.7 | DN70: 0.8 | DO70: 1.1 | DP70: 22.5 | DQ70: 22 | DR70: 17 | DS70: 5 | DT70: 1018 | DU70: 1 | DV70: 1 | DW70: 6535 | DX70: 41.99655766 | DY70: 41.99655766 | DZ70: 3.098106713 | EA70: 7.573149742 | EB70: 23.40791738 | EC70: 0 | ED70: 0 | EE70: 0 | EF70: 0 | EG70: 0 | EH70: 0 | EI70: 0 | EJ70: 0 | EK70: 0 | EL70: 0 | EM70: 0 | EN70: 0 | EO70: 0 | EP70: 0 | EQ70: 0 | ER70: 0 | ES70: 0 | ET70: 0 | EU70: 0 | EV70: 0 | EW70: 0 | EX70: 0 | EY70: 0 | EZ70: 0 | FA70: 0
